Workbook

Sheet Início
B2: SIMULADOR DE USO PÚBLICO | O2: Organização Geral da Planilha | T2: Código de Cores
O3: Aba | Q3: Descrição | T3: Cor | U3: Descrição
B4: PREÇO DA ELETRICIDADE PRODUZIDA POR UMA TERMELÉTRICA A MADEIRA DE EUCALIPTO | T4: Azul | U4: Premissa a ser definida pelo usuário
T5: Laranja | U5: Sugerido pelas bibliotecas, porém pode ser modificado
T6: Vermelho | U6: Fixado, não deve ser modificado
T7: Preto | U7: Resultado de um cálculo
T9: Código de símbolos
T10: Símbolo | U10: Significado
U12: Hyperlink de acesso a informações adicionais
D13: Version | F13: Final
D14: Data | F14: 2017-11-16 | U14: Ponto de atenção - o usuário deve ler cuidadosamente o comentário
B18: Descrição e Explicações:

Sheet Premissas macroeconomicas
B2: PREMISSAS MACROECONÔMICAS
B4: Item | C4: 2010 | D4: =C4+1 -> 2011 | E4: 2012 | F4: 2013 | G4: 2014 | H4: 2015 | I4: 2016 | J4: =I4+1 -> 2017 | K4: 2018 | L4: 2019 | M4: 2020 | N4: 2021 | O4: 2022 | P4: 2023 | Q4: 2024 | R4: =Q4+1 -> 2025 | S4: =R4+1 -> 2026 | T4: =S4+1 -> 2027 | U4: =T4+1 -> 2028 | V4: =U4+1 -> 2029 | W4: =V4+1 -> 2030 | X4: 2031 | Y4: 2032 | Z4: 2033 | AA4: 2034 | AB4: 2035 | AC4: =AB4+1 -> 2036 | AD4: =AC4+1 -> 2037 | AE4: 2038 | AF4: 2039 | AG4: 2040 | AH4: 2041 | AI4: 2042 | AJ4: 2043 | AK4: 2044 | AL4: 2045 | AM4: 2046 | AN4: 2047 | AO4: 2048 | AP4: 2049 | AQ4: 2050 | AR4: 2051 | AS4: 2052 | AT4: =AS4+1 -> 2053 | AU4: 2054 | AV4: 2055 | AW4: 2056 | AX4: 2057 | AY4: 2058 | AZ4: 2059 | BA4: 2060 | BB4: 2061 | BC4: 2062 | BD4: 2063 | BE4: 2064 | BF4: 2065 | BG4: 2066 | BH4: 2067 | BI4: 2068 | BJ4: 2069 | BK4: 2070 | BL4: 2071 | BM4: 2072 | BN4: 2073 | BO4: 2074 | BP4: 2075 | BQ4: =BP4+1 -> 2076 | BR4: =BQ4+1 -> 2077 | BS4: =BR4+1 -> 2078 | BT4: =BS4+1 -> 2079 | BU4: =BT4+1 -> 2080
B5: IPCA fim do ano | C5: 823.6 | D5: 877.2 | E5: 928.4 | F5: 983.3 | G5: 1,046.3 | H5: 1,158.0 | I5: 1,230.8 | J5: =I5*(1+J7) -> 1,273.2 | K5: 1,326.7 | L5: 1,382.4 | M5: 1,440.5 | N5: 1,501.0 | O5: 1,564.0 | P5: 1,629.7 | Q5: 1,698.2 | R5: 1,769.5 | S5: 1,843.8 | T5: 1,921.2 | U5: 2,001.9 | V5: 2,086.0 | W5: 2,173.6 | X5: 2,264.9 | Y5: 2,360.0 | Z5: 2,459.2 | AA5: 2,562.5 | AB5: 2,670.1 | AC5: 2,782.2 | AD5: 2,899.1 | AE5: 3,020.8 | AF5: 3,147.7 | AG5: 3,279.9 | AH5: 3,417.7 | AI5: 3,561.2 | AJ5: 3,710.8 | AK5: 3,866.6 | AL5: 4,029.0 | AM5: 4,198.3 | AN5: 4,374.6 | AO5: 4,558.3 | AP5: =AO5*(1+AP7) -> 4,749.8 | AQ5: 4,949.3 | AR5: 5,157.1 | AS5: 5,373.7 | AT5: 5,599.4 | AU5: 5,834.6 | AV5: 6,079.6 | AW5: 6,335.0 | AX5: 6,601.1 | AY5: 6,878.3 | AZ5: 7,167.2 | BA5: 7,468.2 | BB5: 7,781.9 | BC5: 8,108.7 | BD5: 8,449.3 | BE5: 8,804.2 | BF5: 9,173.9 | BG5: 9,559.2 | BH5: 9,960.7 | BI5: 10,379.1 | BJ5: 10,815.0 | BK5: 11,269.2 | BL5: 11,742.5 | BM5: 12,235.7 | BN5: 12,749.6 | BO5: 13,285.1 | BP5: 13,843.1 | BQ5: =BP5*(1+BQ7) -> 14,424.5 | BR5: =BQ5*(1+BR7) -> 15,030.3 | BS5: =BR5*(1+BS7) -> 15,661.6 | BT5: =BS5*(1+BT7) -> 16,319.4 | BU5: =BT5*(1+BU7) -> 17,004.8
B6: Índice de preço fim do ano (base 1 ano atual) | C6: =C5/HLOOKUP('Premissas do projeto'!$G$16,$C$4:$BP$5,2,0) -> 0.65 | D6: =D5/HLOOKUP('Premissas do projeto'!$G$16,$C$4:$BP$5,2,0) -> 0.69 | E6: =E5/HLOOKUP('Premissas do projeto'!$G$16,$C$4:$BP$5,2,0) -> 0.73 | F6: =F5/HLOOKUP('Premissas do projeto'!$G$16,$C$4:$BP$5,2,0) -> 0.77 | G6: =G5/HLOOKUP('Premissas do projeto'!$G$16,$C$4:$BP$5,2,0) -> 0.82 | H6: =H5/HLOOKUP('Premissas do projeto'!$G$16,$C$4:$BP$5,2,0) -> 0.91 | I6: =I5/HLOOKUP('Premissas do projeto'!$G$16,$C$4:$BP$5,2,0) -> 0.97 | J6: =J5/HLOOKUP('Premissas do projeto'!$G$16,$C$4:$BP$5,2,0) -> 1.00 | K6: =K5/HLOOKUP('Premissas do projeto'!$G$16,$C$4:$BP$5,2,0) -> 1.04 | L6: =L5/HLOOKUP('Premissas do projeto'!$G$16,$C$4:$BP$5,2,0) -> 1.09 | M6: =M5/HLOOKUP('Premissas do projeto'!$G$16,$C$4:$BP$5,2,0) -> 1.13 | N6: =N5/HLOOKUP('Premissas do projeto'!$G$16,$C$4:$BP$5,2,0) -> 1.18 | O6: =O5/HLOOKUP('Premissas do projeto'!$G$16,$C$4:$BP$5,2,0) -> 1.23 | P6: =P5/HLOOKUP('Premissas do projeto'!$G$16,$C$4:$BP$5,2,0) -> 1.28 | Q6: =Q5/HLOOKUP('Premissas do projeto'!$G$16,$C$4:$BP$5,2,0) -> 1.33 | R6: =R5/HLOOKUP('Premissas do projeto'!$G$16,$C$4:$BP$5,2,0) -> 1.39 | S6: =S5/HLOOKUP('Premissas do projeto'!$G$16,$C$4:$BP$5,2,0) -> 1.45 | T6: =T5/HLOOKUP('Premissas do projeto'!$G$16,$C$4:$BP$5,2,0) -> 1.51 | U6: =U5/HLOOKUP('Premissas do projeto'!$G$16,$C$4:$BP$5,2,0) -> 1.57 | V6: =V5/HLOOKUP('Premissas do projeto'!$G$16,$C$4:$BP$5,2,0) -> 1.64 | W6: =W5/HLOOKUP('Premissas do projeto'!$G$16,$C$4:$BP$5,2,0) -> 1.71 | X6: =X5/HLOOKUP('Premissas do projeto'!$G$16,$C$4:$BP$5,2,0) -> 1.78 | Y6: =Y5/HLOOKUP('Premissas do projeto'!$G$16,$C$4:$BP$5,2,0) -> 1.85 | Z6: =Z5/HLOOKUP('Premissas do projeto'!$G$16,$C$4:$BP$5,2,0) -> 1.93 | AA6: =AA5/HLOOKUP('Premissas do projeto'!$G$16,$C$4:$BP$5,2,0) -> 2.01 | AB6: =AB5/HLOOKUP('Premissas do projeto'!$G$16,$C$4:$BP$5,2,0) -> 2.10 | AC6: =AC5/HLOOKUP('Premissas do projeto'!$G$16,$C$4:$BP$5,2,0) -> 2.19 | AD6: =AD5/HLOOKUP('Premissas do projeto'!$G$16,$C$4:$BP$5,2,0) -> 2.28 | AE6: =AE5/HLOOKUP('Premissas do projeto'!$G$16,$C$4:$BP$5,2,0) -> 2.37 | AF6: =AF5/HLOOKUP('Premissas do projeto'!$G$16,$C$4:$BP$5,2,0) -> 2.47 | AG6: =AG5/HLOOKUP('Premissas do projeto'!$G$16,$C$4:$BP$5,2,0) -> 2.58 | AH6: =AH5/HLOOKUP('Premissas do projeto'!$G$16,$C$4:$BP$5,2,0) -> 2.68 | AI6: =AI5/HLOOKUP('Premissas do projeto'!$G$16,$C$4:$BP$5,2,0) -> 2.80 | AJ6: =AJ5/HLOOKUP('Premissas do projeto'!$G$16,$C$4:$BP$5,2,0) -> 2.91 | AK6: =AK5/HLOOKUP('Premissas do projeto'!$G$16,$C$4:$BP$5,2,0) -> 3.04 | AL6: =AL5/HLOOKUP('Premissas do projeto'!$G$16,$C$4:$BP$5,2,0) -> 3.16 | AM6: =AM5/HLOOKUP('Premissas do projeto'!$G$16,$C$4:$BP$5,2,0) -> 3.30 | AN6: =AN5/HLOOKUP('Premissas do projeto'!$G$16,$C$4:$BP$5,2,0) -> 3.44 | AO6: =AO5/HLOOKUP('Premissas do projeto'!$G$16,$C$4:$BP$5,2,0) -> 3.58 | AP6: =AP5/HLOOKUP('Premissas do projeto'!$G$16,$C$4:$BP$5,2,0) -> 3.73 | AQ6: =AQ5/HLOOKUP('Premissas do projeto'!$G$16,$C$4:$BP$5,2,0) -> 3.89 | AR6: =AR5/HLOOKUP('Premissas do projeto'!$G$16,$C$4:$BP$5,2,0) -> 4.05 | AS6: =AS5/HLOOKUP('Premissas do projeto'!$G$16,$C$4:$BP$5,2,0) -> 4.22 | AT6: =AT5/HLOOKUP('Premissas do projeto'!$G$16,$C$4:$BP$5,2,0) -> 4.40 | AU6: =AU5/HLOOKUP('Premissas do projeto'!$G$16,$C$4:$BP$5,2,0) -> 4.58 | AV6: =AV5/HLOOKUP('Premissas do projeto'!$G$16,$C$4:$BP$5,2,0) -> 4.77 | AW6: =AW5/HLOOKUP('Premissas do projeto'!$G$16,$C$4:$BP$5,2,0) -> 4.98 | AX6: =AX5/HLOOKUP('Premissas do projeto'!$G$16,$C$4:$BP$5,2,0) -> 5.18 | AY6: =AY5/HLOOKUP('Premissas do projeto'!$G$16,$C$4:$BP$5,2,0) -> 5.40 | AZ6: =AZ5/HLOOKUP('Premissas do projeto'!$G$16,$C$4:$BP$5,2,0) -> 5.63 | BA6: =BA5/HLOOKUP('Premissas do projeto'!$G$16,$C$4:$BP$5,2,0) -> 5.87 | BB6: =BB5/HLOOKUP('Premissas do projeto'!$G$16,$C$4:$BP$5,2,0) -> 6.11 | BC6: =BC5/HLOOKUP('Premissas do projeto'!$G$16,$C$4:$BP$5,2,0) -> 6.37 | BD6: =BD5/HLOOKUP('Premissas do projeto'!$G$16,$C$4:$BP$5,2,0) -> 6.64 | BE6: =BE5/HLOOKUP('Premissas do projeto'!$G$16,$C$4:$BP$5,2,0) -> 6.91 | BF6: =BF5/HLOOKUP('Premissas do projeto'!$G$16,$C$4:$BP$5,2,0) -> 7.21 | BG6: =BG5/HLOOKUP('Premissas do projeto'!$G$16,$C$4:$BP$5,2,0) -> 7.51 | BH6: =BH5/HLOOKUP('Premissas do projeto'!$G$16,$C$4:$BP$5,2,0) -> 7.82 | BI6: =BI5/HLOOKUP('Premissas do projeto'!$G$16,$C$4:$BP$5,2,0) -> 8.15 | BJ6: =BJ5/HLOOKUP('Premissas do projeto'!$G$16,$C$4:$BP$5,2,0) -> 8.49 | BK6: =BK5/HLOOKUP('Premissas do projeto'!$G$16,$C$4:$BP$5,2,0) -> 8.85 | BL6: =BL5/HLOOKUP('Premissas do projeto'!$G$16,$C$4:$BP$5,2,0) -> 9.22 | BM6: =BM5/HLOOKUP('Premissas do projeto'!$G$16,$C$4:$BP$5,2,0) -> 9.61 | BN6: =BN5/HLOOKUP('Premissas do projeto'!$G$16,$C$4:$BP$5,2,0) -> 10.01 | BO6: =BO5/HLOOKUP('Premissas do projeto'!$G$16,$C$4:$BP$5,2,0) -> 10.43 | BP6: =BP5/HLOOKUP('Premissas do projeto'!$G$16,$C$4:$BP$5,2,0) -> 10.87 | BQ6: =BQ5/HLOOKUP('Premissas do projeto'!$G$16,$C$4:$BP$5,2,0) -> 11.33 | BR6: =BR5/HLOOKUP('Premissas do projeto'!$G$16,$C$4:$BP$5,2,0) -> 11.80 | BS6: =BS5/HLOOKUP('Premissas do projeto'!$G$16,$C$4:$BP$5,2,0) -> 12.30 | BT6: =BT5/HLOOKUP('Premissas do projeto'!$G$16,$C$4:$BP$5,2,0) -> 12.82 | BU6: =BU5/HLOOKUP('Premissas do projeto'!$G$16,$C$4:$BP$5,2,0) -> 13.36
B7: Variação do IPCA | C7: =C5/777.6671-1 -> 5.9% | D7: =D5/C5-1 -> 6.5% | E7: 5.8% | F7: 5.9% | G7: 6.4% | H7: 10.7% | I7: 6.3% | J7: 3.5% | K7: 4.2% | L7: 4.2% | M7: 4.2% | N7: 4.2% | O7: 4.2% | P7: 4.2% | Q7: 4.2% | R7: 4.2% | S7: 4.2% | T7: 4.2% | U7: 4.2% | V7: 4.2% | W7: 4.2% | X7: 4.2% | Y7: 4.2% | Z7: 4.2% | AA7: 4.2% | AB7: 4.2% | AC7: 4.2% | AD7: 4.2% | AE7: 4.2% | AF7: 4.2% | AG7: 4.2% | AH7: 4.2% | AI7: 4.2% | AJ7: 4.2% | AK7: 4.2% | AL7: 4.2% | AM7: 4.2% | AN7: 4.2% | AO7: 4.2% | AP7: 4.2% | AQ7: 4.2% | AR7: 4.2% | AS7: 4.2% | AT7: 4.2% | AU7: 4.2% | AV7: 4.2% | AW7: 4.2% | AX7: 4.2% | AY7: 4.2% | AZ7: 4.2% | BA7: 4.2% | BB7: 4.2% | BC7: 4.2% | BD7: 4.2% | BE7: 4.2% | BF7: 4.2% | BG7: 4.2% | BH7: 4.2% | BI7: 4.2% | BJ7: 4.2% | BK7: 4.2% | BL7: 4.2% | BM7: 4.2% | BN7: 4.2% | BO7: 4.2% | BP7: 4.2% | BQ7: 4.2% | BR7: 4.2% | BS7: 4.2% | BT7: 4.2% | BU7: 4.2%
B8: Taxa NTN-B | C8: 4.9% | D8: 4.5% | E8: 3.2% | F8: 3.4% | G8: 4.6% | H8: 4.7% | I8: 5.1% | J8: =AVERAGE(C8:I8) -> 4.3% | K8: =J8 -> 4.3% | L8: =K8 -> 4.3% | M8: 4.3% | N8: 4.3% | O8: 4.3% | P8: 4.3% | Q8: 4.3% | R8: 4.3% | S8: 4.3% | T8: 4.3% | U8: 4.3% | V8: 4.3% | W8: 4.3% | X8: 4.3% | Y8: 4.3% | Z8: 4.3% | AA8: 4.3% | AB8: 4.3% | AC8: 4.3% | AD8: 4.3% | AE8: 4.3% | AF8: 4.3% | AG8: 4.3% | AH8: 4.3% | AI8: 4.3% | AJ8: 4.3% | AK8: 4.3% | AL8: 4.3% | AM8: 4.3% | AN8: 4.3% | AO8: 4.3% | AP8: 4.3% | AQ8: 4.3% | AR8: 4.3% | AS8: 4.3% | AT8: 4.3% | AU8: 4.3% | AV8: 4.3% | AW8: 4.3% | AX8: 4.3% | AY8: 4.3% | AZ8: 4.3% | BA8: 4.3% | BB8: 4.3% | BC8: 4.3% | BD8: 4.3% | BE8: 4.3% | BF8: 4.3% | BG8: 4.3% | BH8: 4.3% | BI8: 4.3% | BJ8: 4.3% | BK8: 4.3% | BL8: 4.3% | BM8: 4.3% | BN8: 4.3% | BO8: 4.3% | BP8: 4.3% | BQ8: =BP8 -> 4.3% | BR8: =BQ8 -> 4.3% | BS8: =BR8 -> 4.3% | BT8: =BS8 -> 4.3% | BU8: =BT8 -> 4.3%
B9: Taxa de Longo Prazo (TLP) | K9: =K7+0.5*K8 -> 6.4% | L9: =L7+0.6*L8 -> 6.8% | M9: =M7+0.7*M8 -> 7.2% | N9: =N7+0.8*N8 -> 7.7% | O9: =O7+0.9*O8 -> 8.1% | P9: =P7+P8 -> 8.5% | Q9: 8.5% | R9: 8.5% | S9: 8.5% | T9: 8.5% | U9: 8.5% | V9: 8.5% | W9: 8.5% | X9: 8.5% | Y9: 8.5% | Z9: 8.5% | AA9: 8.5% | AB9: 8.5% | AC9: 8.5% | AD9: 8.5% | AE9: 8.5% | AF9: 8.5% | AG9: 8.5% | AH9: 8.5% | AI9: 8.5% | AJ9: 8.5% | AK9: 8.5% | AL9: 8.5% | AM9: 8.5% | AN9: 8.5% | AO9: 8.5% | AP9: 8.5% | AQ9: 8.5% | AR9: 8.5% | AS9: 8.5% | AT9: 8.5% | AU9: 8.5% | AV9: =AV7+AV8 -> 8.5% | AW9: 8.5% | AX9: 8.5% | AY9: 8.5% | AZ9: 8.5% | BA9: 8.5% | BB9: 8.5% | BC9: 8.5% | BD9: 8.5% | BE9: 8.5% | BF9: 8.5% | BG9: 8.5% | BH9: 8.5% | BI9: 8.5% | BJ9: 8.5% | BK9: 8.5% | BL9: 8.5% | BM9: 8.5% | BN9: 8.5% | BO9: 8.5% | BP9: 8.5% | BQ9: =BQ7+BQ8 -> 8.5% | BR9: 8.5% | BS9: 8.5% | BT9: 8.5% | BU9: 8.5%
B10: Taxa de inflação americana (%) | J10: 1.5% | K10: 2.0% | L10: 2.0% | M10: 2.0% | N10: 2.0% | O10: 2.0% | P10: 2.0% | Q10: 2.0% | R10: 2.0% | S10: 2.0% | T10: 2.0% | U10: 2.0% | V10: 2.0% | W10: 2.0% | X10: 2.0% | Y10: 2.0% | Z10: 2.0% | AA10: 2.0% | AB10: 2.0% | AC10: 2.0% | AD10: 2.0% | AE10: 2.0% | AF10: 2.0% | AG10: 2.0% | AH10: 2.0% | AI10: 2.0% | AJ10: 2.0% | AK10: 2.0% | AL10: 2.0% | AM10: 2.0% | AN10: 2.0% | AO10: 2.0% | AP10: 2.0% | AQ10: 2.0% | AR10: 2.0% | AS10: 2.0% | AT10: 2.0% | AU10: 2.0% | AV10: 2.0% | AW10: 2.0% | AX10: 2.0% | AY10: 2.0% | AZ10: 2.0% | BA10: 2.0% | BB10: 2.0% | BC10: 2.0% | BD10: 2.0% | BE10: 2.0% | BF10: 2.0% | BG10: 2.0% | BH10: 2.0% | BI10: 2.0% | BJ10: 2.0% | BK10: 2.0% | BL10: 2.0% | BM10: 2.0% | BN10: 2.0% | BO10: 2.0% | BP10: 2.0% | BQ10: 2.0% | BR10: 2.0% | BS10: 2.0% | BT10: 2.0% | BU10: 2.0%
B11: FX (R$/US$) - fim do período | J11: 3.3 | K11: =J11*(1+K7)/(1+K10) -> 3.4 | L11: 3.4 | M11: 3.5 | N11: 3.6 | O11: 3.7 | P11: 3.8 | Q11: 3.8 | R11: 3.9 | S11: 4.0 | T11: 4.1 | U11: 4.2 | V11: 4.3 | W11: 4.4 | X11: 4.4 | Y11: 4.5 | Z11: 4.6 | AA11: 4.7 | AB11: 4.8 | AC11: 4.9 | AD11: 5.1 | AE11: 5.2 | AF11: 5.3 | AG11: 5.4 | AH11: 5.5 | AI11: 5.6 | AJ11: 5.7 | AK11: 5.9 | AL11: 6.0 | AM11: 6.1 | AN11: 6.3 | AO11: 6.4 | AP11: 6.5 | AQ11: =AP11*(1+AQ7)/(1+AQ10) -> 6.7 | AR11: 6.8 | AS11: 7.0 | AT11: 7.1 | AU11: 7.3 | AV11: 7.4 | AW11: 7.6 | AX11: 7.7 | AY11: 7.9 | AZ11: 8.1 | BA11: 8.3 | BB11: 8.4 | BC11: 8.6 | BD11: 8.8 | BE11: 9.0 | BF11: 9.2 | BG11: 9.4 | BH11: 9.6 | BI11: 9.8 | BJ11: 10.0 | BK11: 10.2 | BL11: 10.4 | BM11: 10.7 | BN11: 10.9 | BO11: 11.1 | BP11: 11.4 | BQ11: =BP11*(1+BQ7)/(1+BQ10) -> 11.6 | BR11: =BQ11*(1+BR7)/(1+BR10) -> 11.9 | BS11: =BR11*(1+BS7)/(1+BS10) -> 12.1 | BT11: =BS11*(1+BT7)/(1+BT10) -> 12.4 | BU11: =BT11*(1+BU7)/(1+BU10) -> 12.7
B12: Limite lucro presumido - lucro real (Mi R$) | J12: 76.0 | K12: 76.0 | L12: 76.0 | M12: 76.0 | N12: 76.0 | O12: 76.0 | P12: 76.0 | Q12: 76.0 | R12: 76.0 | S12: 76.0 | T12: 76.0 | U12: 76.0 | V12: 76.0 | W12: 76.0 | X12: 76.0 | Y12: 76.0 | Z12: 76.0 | AA12: 76.0 | AB12: 76.0 | AC12: 76.0 | AD12: 76.0 | AE12: 76.0 | AF12: 76.0 | AG12: 76.0 | AH12: 76.0 | AI12: 76.0 | AJ12: 76.0 | AK12: 76.0 | AL12: 76.0 | AM12: 76.0 | AN12: 76.0 | AO12: 76.0 | AP12: 76.0 | AQ12: 76.0 | AR12: 76.0 | AS12: 76.0 | AT12: 76.0 | AU12: 76.0 | AV12: 76.0 | AW12: 76.0 | AX12: 76.0 | AY12: 76.0 | AZ12: 76.0 | BA12: 76.0 | BB12: 76.0 | BC12: 76.0 | BD12: 76.0 | BE12: 76.0 | BF12: 76.0 | BG12: 76.0 | BH12: 76.0 | BI12: 76.0 | BJ12: 76.0 | BK12: 76.0 | BL12: 76.0 | BM12: 76.0 | BN12: 76.0 | BO12: 76.0 | BP12: 76.0 | BQ12: 76.0 | BR12: 76.0 | BS12: 76.0 | BT12: 76.0 | BU12: 76.0
B14: Descrição e Explicações:
B22: \

Sheet Premissas do projeto
B2: PREMISSAS DO PROJETO
B4: 1. Escolha de Premissas | AR4: Descrição e Explicações:
B6: Quais premissas o usuário quer escolher ? | E6: Somente as características gerais e os parâmetros de venda | I6: O usuário deve imperativamente escolher todas as premissas dos quadros 2 e 3. Ele pode decidir escolher também as outras premissas dos quadros 4 a 7 , ou deixar o custeio escolher em função de bancos de dados. Esta segunda opção é recomendada para um usuário que descobre o modelo de custeio ou está numa fase preliminar de definição do seu projeto florestal. Caso o usuário for escolher todas as premissas, o valor que teria sido escolhido pelo modelo de custeio sempre aparece na coluna “sugestão”. | K6: =IF(E6="Todas as premissas",1,0) -> 0 | M6: Todas as premissas | N6: Somente as características gerais e os parâmetros de venda
B9: 2. Características gerais do projeto
B11: Categoria | C11: Item | E11: Valor | H11: Unidade | I11: Comentário
E12: Sugestão | F12: Escolha usuário | G12: Efetivo
B13: Localização | C13: Estado | E13: N/D | F13: Mato Grosso do Sul | G13: =F13 -> Mato Grosso do Sul | I13: Escolha entre todos os Estados do Brasil. Considera-se que o projeto mais barato pode ser realizado no Estado de São Paulo, por conta da chegada mais simples dos equipamentos ao porto de Santos e de mão de obra qualificada, e para os outros Estados, é aplicado um fator de aumento de custo.
C14: Município | E14: N/D | F14: Ribas do Rio Pardo | G14: =F14 -> Ribas do Rio Pardo | I14: Entrada aberta e sem ligação automática com o Estado ou a origem da madeira. Cabe ao usuário verificar a consistência destes três dados. Se o Estado for MG ou ES, é importante verificar na aba "Biblioeteca incentivos" se o munípio faz parte da lista de muncícipios eligíveis para o programa Sudene, e neste caso, usar a ortografia correta.
C15: Eligibilidade Sudene / Sudam ? | E15: =IF(COUNTIF('Biblioteca de incentivos'!G13:G20,G13)=1,"Não",IF(OR(G13="Minas Gerais",G13="Espírito Santo"),IF(COUNTIF('Biblioteca de incentivos'!K20:K215,G14)=0,"Não","Sim"),"Sim")) -> Não | F15: Não | G15: =F15 -> Não | I15: A sugestão é dada conforme os locais eligíveis estabelecidos pelo Ministério da Integração Nacional.
B16: Cronograma | C16: Ano atual | E16: N/D | F16: 2017 | G16: =F16 -> 2017 | I16: Somente número inteiro e maior que ou igual a 2017 (ano de criação da planilha)
C17: Início de produção no 01 de janeiro de | E17: =G16+6 -> 2023 | F17: 2023 | G17: =F17 -> 2023 | I17: Somente número inteiro, que deve ser ao mínimo igual ao ano atual mais 4 anos (para tomar conta realisticamente do tempo de desenvolvimento e construção do projeto) e menor do que o ano atual mais 10 anos (para manter uma incerteza razoável em relação aos custos de investimento e operacionais).
C18: Prazo de produção | E18: 25 | F18: 25 | G18: =F18 -> 25 | H18: anos | I18: Somente número inteiro; a mecânica do modelo somente permite valores de 7 a 50 anos. Se a venda for para distribuidores, recomendado-se 25 anos que é o prazo do contrato de venda conforme o leilão regulado.
B19: Tipologia | C19: Tipo de dono do projeto | E19: N/D | F19: Utilities de capital aberto | G19: Utilities de capital aberto | I19: Escolha fechada entre "Utilities de capital aberto" ou "Produtor independente ou fundo". Investidores em capital e dívida consideram que o perfil de risco do projeto com um dono de tipo “Utilities” é menor, e este dono também consegue menores taxas de estruturação de dívida e de captação de capital. | L19: Utilities de capital aberto | M19: Produtor independente ou fundo
C20: Comprador(es) da eletricidade | E20: N/D | F20: Distribuidor(es) | G20: =F20 -> Distribuidor(es) | I20: Escolha fechada entre "Distribudor(es)", "Consumidor(es) final(is) passando pela rede" e "Consumidor(es) final(is) sem usar a rede". Neste último caso, não tem custo de uso da rede. Se a venda for para um distribuidor ou um consumidor final fora do Estado de implantação da termelétrica, não se paga ICMS.
C21: Origem da Madeira | E21: N/D | F21: Convencional, mesorregião Mato Grosso do Sul | G21: =F21 -> Convencional, mesorregião Mato Grosso do Sul | I21: As opções de origem da madeira foram definidas durante o projeto de cálculo do custo de produção da madeira de eucalipto por fins energéticos, que dividiu o Brasil em 11 mesorregiões e avaliou em cada caso a possibilidade de plantio comercial convencional e a recomposição de reserva legal com uma combinação de plantios de eucalipto e árvores nativas. A entrada não tem uma ligação automática com o Estado ou o município. Cabe ao usuário verificar a consistência destes três dados. | L21: Distribuidor(es) | M21: Consumidor(es) e/ou trader(s) passando pela rede | N21: Consumidor(es) final(is) sem usar a rede
C22: Modelo da termelétrica (Potência líquida x tecnologia) | E22: N/D | F22: 100 MW - LFB | G22: =F22 -> 100 MW - LFB | I22: Lista fechada. O número indica a potência líquida e pode variar de 5 a 150 MW. As letras indicam a tecnologia da caldeira, que pode ser a grelha, leito fludizado borbulhante (LFB) ou leito fluidizado circulante (LFC) conforme o porte do projeto. Na aba descrevendo os modelos, o único parâmetro que o usuário pode escolher é a distância de conexão, o que atualiza o custo da linah de conexão.
C23: Tempo máximo de produção por ano | E23: N/D | F23: 8,000 | G23: 8,000 | H23: horas/ano | I23: Ao máximo 8.600 horas/ano (350 dias por ano) considerando a manutenção anual obrigatória. No caso de venda através da rede, o máximo possível é definido pelo ANEEL em função da contribuição estimada da UTE à estabilidade do sistem elétrico.
C24: Classe de risco do projeto | E24: Médio | F24: Médio | G24: Médio | I24: Escolha fechada entre "Baixo", "Médio" e "Alto". A apreciação é sugestiva, porém a maoiria dos projetos de termelétrica a biomassa de médio ou grande porte terá um risco Médio ou Alto. Considera-se que o prêmio de rentabilidade pedido por investidores é cerca 1% maior (em termos absolutos) para um projeto de risco "Médio" do que para o risco "Baixo". Para um projeto de risco "Alto", o prêmio de rentabilidade em relação a um projeto de baixo risco é estimado em 2%. | L24: Baixo | M24: Médio | N24: Alto | P24: Horas | Q24: Receita (mil R$) | U24: Modelo | V24: Custo variável | X24: Modelo | Y24: Custo fixo | AA24: Modelo | AB24: Invest/divest | AD24: Modelo | AE24: Dívida financeira | AJ24: Modelo | AK24: Preço alvo
Q25: =Resultados!U31 -> 431,923 | V25: =Resultados!V10 -> 166 | Y25: =Resultados!V13 -> 37 | AB25: =Resultados!V18 -> 70 | AE25: =Resultados!V22 -> 22 | AK25: =Resultados!$V$31 -> 545
P26: 0 | Q26: 250,182 | U26: ='Biblioteca modelos industriais'!E7 -> 5 MW - Grelha | V26: 222 | X26: =U26 -> 5 MW - Grelha | Y26: 285 | AA26: =X26 -> 5 MW - Grelha | AB26: 112 | AD26: =AA26 -> 5 MW - Grelha | AE26: 34 | AJ26: =AD26 -> 5 MW - Grelha | AK26: 1,129
B27: 3. Parâmetros de venda da eletricidade | P27: =P26+0.1*$G$23 -> 800 | Q27: 268540.1137 | U27: ='Biblioteca modelos industriais'!F7 -> 25 MW - Grelha | V27: 170 | X27: =U27 -> 25 MW - Grelha | Y27: 88 | AA27: =X27 -> 25 MW - Grelha | AB27: 52 | AD27: =AA27 -> 25 MW - Grelha | AE27: 16 | AJ27: =AD27 -> 25 MW - Grelha | AK27: 551
P28: =P27+0.1*$G$23 -> 1600 | Q28: 286897.7446 | U28: ='Biblioteca modelos industriais'!G7 -> 50 MW - Grelha | V28: 165 | X28: 50 MW - Grelha | Y28: 58 | AA28: 50 MW - Grelha | AB28: 59 | AD28: 50 MW - Grelha | AE28: 19 | AJ28: 50 MW - Grelha | AK28: 530
B29: Categoria | C29: Item | E29: Valor | H29: Unidade | I29: Comentário | P29: 2400 | Q29: 305255.3756 | U29: ='Biblioteca modelos industriais'!H7 -> 50 MW - LFB | V29: 168 | X29: 50 MW - LFB | Y29: 55 | AA29: 50 MW - LFB | AB29: 59 | AD29: 50 MW - LFB | AE29: 19 | AJ29: 50 MW - LFB | AK29: 530
E30: Sugestão | F30: Escolha usuário | G30: Efetivo | P30: 3200 | Q30: 323613.0066 | U30: ='Biblioteca modelos industriais'!I7 -> 100 MW - Grelha | V30: 162 | X30: 100 MW - Grelha | Y30: 46 | AA30: 100 MW - Grelha | AB30: 60 | AD30: 100 MW - Grelha | AE30: 19 | AJ30: 100 MW - Grelha | AK30: 511
B31: Nível de produção | C31: Tempo provável de produção por ano | E31: N/D | F31: 7,920 | G31: =F31 -> 7,920 | H31: horas/ano | I31: Entre 0 e o tempo máximo de produção por ano. O simulador custeio não prevê a possibilidade de variar o tempo de produção ano por ano, ou seja, considera-se o mesmo valor ao longo da vida do projeto. O tempo provável de produção por ano pode ser efetivamente fixo (caso de uma contratação ao leilão regulado com CVU = 0 por exemplo), ou uma estimativa se existe a possibilidade de um despacho variável ao longo do tempo (contratação ao leilão regulado com CVU ≠ 0 ou vendas no mercado livre). | P31: 4000 | Q31: 341970.6376 | U31: ='Biblioteca modelos industriais'!J7 -> 100 MW - LFB | V31: 166 | X31: 100 MW - LFB | Y31: 37 | AA31: 100 MW - LFB | AB31: 70 | AD31: 100 MW - LFB | AE31: 22 | AJ31: 100 MW - LFB | AK31: 545
B32: Condições de venda do mercado | C32: Preço de mercado da eletricidade | E32: N/D | F32: 350 | G32: =F32 -> 350 | H32: R$/MWh | I32: Caso este dado esteja informado, ele não é usado diretamente no cálculo, mas ele pode embasar a escolha do preço provável de venda da eletricidade. | P32: 4800 | Q32: 360328.2685 | U32: ='Biblioteca modelos industriais'!K7 -> 100 MW - LFC | V32: 161 | X32: 100 MW - LFC | Y32: 51 | AA32: 100 MW - LFC | AB32: 77 | AD32: 100 MW - LFC | AE32: 25 | AJ32: 100 MW - LFC | AK32: 583
B33: Condições de venda alvo | C33: Receita bruta alvo | E33: N/D | F33: N/D | G33: =Resultados!U31 -> 431,923 | H33: mil R$/ano | I33: Receita bruta que permite obter exatamente a rentabilidade desejada pelo acionista do projeto. Ela é calculada automaticamente pelo custeio a partir da todas as premissas do projeto (fora o preço de mercado e a receita e o preço prováveis). Ela é informada na aba de premissas porque ela é uma das referências possíveis para escolher a receita bruta provável. | P33: 5600 | Q33: 378685.8995 | U33: ='Biblioteca modelos industriais'!L7 -> 150 MW - Grelha | V33: 170 | X33: 150 MW - Grelha | Y33: 41 | AA33: 150 MW - Grelha | AB33: 61 | AD33: 150 MW - Grelha | AE33: 19 | AJ33: 150 MW - Grelha | AK33: 525
C34: Preço de venda alvo | E34: N/D | F34: N/D | G34: =IF(G31=0,"N/D",G33*1000/G45/G31) -> 545 | H34: R$/MWh | I34: "N/D" se o tempo provável de produção por ano = 0 Receita bruta alvo / Produção anual provável em outros casos | P34: =P33+0.1*$G$23 -> 6400 | Q34: 397043.5305 | U34: ='Biblioteca modelos industriais'!M7 -> 150 MW - LFB | V34: 165 | X34: 150 MW - LFB | Y34: 36 | AA34: 150 MW - LFB | AB34: 63 | AD34: 150 MW - LFB | AE34: 20 | AJ34: 150 MW - LFB | AK34: 520
B35: Condições prováveis de venda | C35: Preço de venda indexado na inflação | E35: Sim | F35: Sim | G35: =F35 -> Sim | I35: Escolha fechada entre "Sim" ou "Não". Na maioria dos casos, será "Sim" para proteger o gerador de eletricidade do risco de inflação. | P35: 7200 | Q35: 415401.1614 | U35: ='Biblioteca modelos industriais'!N7 -> 150 MW - LFC | V35: 160 | X35: 150 MW - LFC | Y35: 33 | AA35: 150 MW - LFC | AB35: 70 | AD35: 150 MW - LFC | AE35: 23 | AJ35: 150 MW - LFC | AK35: 533
C36: Receita bruta provável | E36: N/D | F36: 436,802 | G36: =F36 -> 436,802 | H36: mil R$/ano | I36: A receita bruta provável é a receita usada no modelo financeiro para calcular os fluxos de caixa e a rentabilidade. Ela inclui as deduções PIS, COFINS e se existir, ICMS. O modelo financeiro tem como input a receita bruta provável, e não o preço de venda da eletricidade, porque existe a possibilidade de receita > 0 sem produção, quando a termelétrica é paga pelo fato de estar disponível para geração. Esse é o caso por exemplo dos leilões regulados organizados pela ANEEL com o modelo CVU ≠ 0. O modelo não sugere nenhum valor, porque o usuário pode utilizar várias referências, tais quais: - valor atual de mercado (ver acima) - valor projetado do mercado no horizonte de início de produção da eletricidade - valor que corresponde ao potencial de pagamento dos consumidor(es) - receita bruta alvo (ver acima) Se o usuário decidir usar a receita bruta alvo, ele deve tomar cuidado que qualquer mudança de premissa modifica este valor, necessitando uma atualização da receita bruta provável escolhida. | P36: 8000 | Q36: 433758.7924 | U36: ='Biblioteca modelos industriais'!O7 -> 150 MW LFC - alto des. | V36: 142 | X36: 150 MW LFC - alto des. | Y36: 35 | AA36: 150 MW LFC - alto des. | AB36: 72 | AD36: 150 MW LFC - alto des. | AE36: 23 | AJ36: 150 MW LFC - alto des. | AK36: 518
C37: Preço de venda provável da eletricidade | E37: N/D | F37: N/D | G37: =IF(G31=0,"N/D",G36*1000/G45/G31) -> 552 | H37: R$/MWh | I37: "N/D" se o tempo provável de produção por ano = 0 Receita bruta provável / Produção anual provável em outros casos
B40: 4. Caracteristicas técnicas da termelétrica
B42: Categoria | C42: Item | E42: Valor | H42: Unidade | I42: Comentário
E43: Sugestão | F43: Escolha usuário | G43: Efetivo
B44: Modelo e potência da UTE | C44: Potência instalada | E44: =HLOOKUP($G$22,'Biblioteca modelos industriais'!$E$7:$O$30,'Biblioteca modelos industriais'!A8,0) -> 110 | F44: 110 | G44: =IF($K$6=1,F44,E44) -> 110 | H44: MW | I44: A sugestão provém da biblioteca de modelos industriais.
C45: Potência líquida até a sobestação | E45: =HLOOKUP($G$22,'Biblioteca modelos industriais'!$E$7:$O$30,'Biblioteca modelos industriais'!A9,0) -> 100 | F45: 100 | G45: =IF($K$6=1,F45,E45) -> 100
C46: Perdas da sobestação até a entrega ao(s) cliente(s) | E46: 1% | F46: 1% | G46: 1% | I46: Para informação somente. Este valor não é utilizado na modelagem financeira.
B47: Características de caldeira(s) | C47: Tipo | E47: =HLOOKUP($G$22,'Biblioteca modelos industriais'!$E$7:$O$30,'Biblioteca modelos industriais'!A10,0) -> LFB | F47: grelha | G47: LFB | I47: Parâmetros técnicos sem impacto sobre o resto da modelagem. As sugestões provém da biblioteca de modelos industriais.
C48: Condições de operação | E48: =HLOOKUP($G$22,'Biblioteca modelos industriais'!$E$7:$O$30,'Biblioteca modelos industriais'!A11,0) -> 102bar/505C | F48: 102bar/505C | G48: 102bar/505C
C49: Número x vazão | E49: =HLOOKUP($G$22,'Biblioteca modelos industriais'!$E$7:$O$30,'Biblioteca modelos industriais'!A12,0) -> 2 x 220 | F49: 1 x 220 | G49: 2 x 220 | H49: t/hora
B50: Características de turbogerador(es) | C50: Número x Potência instalada | E50: =HLOOKUP($G$22,'Biblioteca modelos industriais'!$E$7:$O$30,'Biblioteca modelos industriais'!A13,0) -> 2 x 55 | F50: 2 x 60 | G50: 2 x 55 | H50: MW | I50: Parâmetros técnicos sem impacto sobre o resto da modelagem. As sugestões provém da biblioteca de modelos industriais.
B51: Torre(s) de resfriamento | C51: Capacidade | E51: =HLOOKUP($G$22,'Biblioteca modelos industriais'!$E$7:$O$30,'Biblioteca modelos industriais'!A14,0) -> 4 x 5.000 | F51: 0 | G51: 4 x 5.000 | H51: m³/hora | I51: Parâmetros técnicos sem impacto sobre o resto da modelagem. As sugestões provém da biblioteca de modelos industriais.
B54: 4. Condições de financiamento | M54: =Resultados!V31 -> 545 | P54: =Resultados!V31 -> 545
L55: 0% | M55: 569 | O55: 0% | P55: 528
B56: Categoria | C56: Item | E56: Valor | H56: Unidade | I56: Comentário | L56: =L55+10% -> 10% | M56: 564 | O56: =1%+O55 -> 1% | P56: 533
E57: Sugestão | F57: Escolha usuário | G57: Efetivo | L57: =L56+10% -> 20% | M57: 559 | O57: =1%+O56 -> 2% | P57: 539
B58: Financiamento BNDES | C58: Proporção dos ativos fixos financiados | E58: 50% | F58: 60% | G58: =IF($K$6=1,MAX(F58,0.00000001%),MAX(E58,0.00000001%)) -> 50% | I58: O máximo praticado pelo BNDES em 2017 é 70% do valor dos equipamentos e da construção. | L58: 30% | M58: 555 | O58: 3% | P58: 545
C59: Taxa de intermediação financeira | E59: 0.50% | F59: 0.50% | G59: =IF($K$6=1,F59,E59) -> 0.50% | I59: Comissão paga pelo dono do projeto ao credor quando o contrato de empréstimo for assinado, para pagar as equipes de estruturação do credor. | L59: 40% | M59: 550 | O59: 4% | P59: 551
C60: Margem de juro acima da TLP | E60: =IF(G19="Utilities de capital aberto",2.2%,4%)+IF(G24="baixo",0,IF(G24="médio",0.8%,1.6%)) -> 3.00% | F60: 4.00% | G60: 3.00% | I60: Pode variar de 2,20% a 5,68%; é função do tipo de sponsor e risco do projeto. Assim, a sugestão varia em função destes dois fatores. | L60: 50% | M60: 545 | O60: 5% | P60: 558
C61: Prazo de amortização | E61: =MIN(G18,20) -> 20 | F61: 20 | G61: 20 | I61: Somente número inteiro e inferior ou igual ao mínimo entre o prazo de operação - 1 ano e 20 anos. | L61: 60% | M61: 541 | O61: 6% | P61: 564
C62: Método de amortização | E62: Amortização linear | F62: Amortização linear | G62: Amortização linear | I62: Escolha fechada entre amortização linear ou pagamento constante. | L62: 70% | M62: 536
C63: Índice de Cobertura do Serviço da Dívida (ICSD) mínimo | E63: 1.30 | F63: 1.30 | G63: 1.30 | I63: Não pode ser inferior a 1,00. 1,30 é o valor geralmente usado pelo BNDES. | L63: 80% | M63: 531
C64: Conta de reserva | E64: 50% | F64: 50% | G64: 50% | H64: pagamento anual | I64: O credor tipicamente impõe a constituição de uma conta de reserva, disponível para efetuar pagamentos da dívida durante algum prazo pré-determinado. Se o reembolso da dívida ocorrer conforme esperado ao longo da vida do projeto, a conta de reserva é esvaziada no final do prazo de amortização da dívida para fazer o(s) último(s) pagamento(s). | L64: 90% | M64: 527
B65: Capital próprio | C65: Custo de captação de capital | E65: =IF(G19="Utilities de capital aberto",1%,4.5%) -> 1.00% | F65: 1.00% | G65: =IF(K27=1,F65,E65) -> 1.00% | H65: dos recursos | I65: Inclui o pagamento de intermediários financeiros para captar novos recursos, os custos próprios dos donos do projeto em ações de marketing com investidores, e os custos jurídicos para estabelecer os contratos. Ele vale cerca 0 a 2% para as empresas de capital aberto, e de 2 a 7% para os produtores independentes e os fundos. O valor sugerido para cada categoria de dono é o meio do intervalo. | L65: 100% | M65: 522
C66: Taxa de retorno esperada após inflação e impostos | E66: =ROUND(100*('Biblioteca CAPM'!D12+IF(G19="Utilities de capital aberto",0,2%)+IF(G24="baixo",0,IF(G24="médio",1%,2%))),0)/100 -> 13% | F66: 10% | G66: =IF($K$6=1,F66,E66) -> 13% | I66: Função do ambiente do setor de energia, das características técnico-econômicas e do dono do projeto. O valor sugerido utiliza o modelo CAPM para definir a taxa de retorno para empreses de geração/transmissão/distribuição de eletricidade na bolsa brasileira e acrescenta prêmios em função da natureza do dono e da classe de risco do projeto definida pelo usuário da planilha.
B69: 5a. Condições de investimento
B71: Categoria | C71: Item | E71: Valor | H71: Unidade | I71: Comentário
E72: Sugestão | F72: Escolha usuário | G72: Efetivo
B73: Cronograma de investimento e reinvestimento | E73: Padrão de construção em 2 anos e de reinvestimento regular | I73: Fixo
B74: Investimento inicial em ativos imobilizados | C74: Custos de desenvolvimento | E74: =MAX(5000,3%*SUM(G75:G79)) -> 26,994 | F74: 15,000 | G74: =IF($K$6=1,F74,E74) -> 26,994 | H74: mil R$ | I74: Sugestão de máximo de 5 Mi R$ e 3% do total dos outros custos.
C75: Construção cívil | E75: =HLOOKUP($G$22,'Biblioteca modelos industriais'!$E$7:$O$30,'Biblioteca modelos industriais'!A17,0)*(1+VLOOKUP(G13,'Biblioteca dados investimentos'!B10:C36,2,0)) -> 155,109 | F75: 50,000 | G75: =IF($K$6=1,F75,E75) -> 155,109 | H75: mil R$ | I75: Sugestões para os custos diretos (construção civil, equipamento fixo e móvel) conforme a biblioteca de dados industriais. Os custos indretos são sugerios iguais a 16,1% do total dos custos diretos.
C76: Equipamento importado fixo com montagem | E76: =HLOOKUP($G$22,'Biblioteca modelos industriais'!$E$7:$O$30,'Biblioteca modelos industriais'!A19,0)*(1+VLOOKUP(G13,'Biblioteca dados investimentos'!B10:C36,2,0)) -> 10,059 | F76: 70,000 | G76: 10,059 | H76: mil USD
C77: Equipamento nacional fixo com montagem | E77: =HLOOKUP($G$22,'Biblioteca modelos industriais'!$E$7:$O$30,'Biblioteca modelos industriais'!A18,0)*(1+VLOOKUP(G13,'Biblioteca dados investimentos'!B10:C36,2,0)) -> 586,317 | F77: 360,000 | G77: 586,317 | H77: mil R$
C78: Equipamento móvel | E78: =HLOOKUP($G$22,'Biblioteca modelos industriais'!$E$7:$O$30,'Biblioteca modelos industriais'!A20,0)*(1+VLOOKUP(G13,'Biblioteca dados investimentos'!B10:C36,2,0)) -> 5,555 | F78: 2,500 | G78: 5,555 | H78: mil R$
C79: Custos indiretos | E79: =HLOOKUP($G$22,'Biblioteca modelos industriais'!$E$7:$O$30,'Biblioteca modelos industriais'!A21,0)*(1+VLOOKUP(G13,'Biblioteca dados investimentos'!B10:C36,2,0)) -> 142,772 | F79: 175,000 | G79: =IF($K$6=1,F79,E79) -> 142,772 | H79: mil R$
C80: Custos unitários globais com base o cambio atual | E80: N/D | F80: =(F74+F75+F76*VLOOKUP(F16,'Premissas macroeconomicas'!$J$4:$X$11,8)+F77+F78+F79)/F45/1000 -> 8.7 | G80: =(G74+G75+G76*VLOOKUP(G16,'Premissas macroeconomicas'!$J$4:$X$11,8)+G77+G78+G79)/G45/1000 -> 9.6 | H80: R$/W
B81: Elementos do capital de giro | C81: Estoques de madeira e outros consumíveis | E81: 2 | F81: 2 | G81: =IF($K$6=1,F81,E81) -> 2 | H81: meses de operação | I81: O armazamento da madeira reduz a umidade, e assim os custos de transporte (a madeira é mais leve) e o consumo de madeira (em m³/hora) da caldeira, porém ele aumenta o capital de giro. Vários estudos feitas por empresas de celulose e da siderurgia têm mostrado que o ponto de melhor equilíbrio é com cerca 2 meses de armazenamento.
C82: Prazo de pagamento do cliente | E82: 2 | F82: 2 | G82: 2 | H82: meses
C83: Prazo de pagamento dos fornecedores | E83: 1 | F83: 1 | G83: 1 | H83: meses
B86: 5.b. Decomissionamento da atividade
B88: Categoria | C88: Item | E88: Valor | H88: Unidade | I88: Comentário
E89: Sugestão | F89: Escolha usuário | G89: Efetivo
B90: Valor residual | C90: Valor de mercado ao decomissionamento | E90: 50% | F90: 50% | G90: =IF($K$6=1,F90,E90) -> 50% | I90: O valor residual depende da possibilidade de prolongar - tecnicamente e comercialmente - a vida da termelétrica no fim do prazo de produção e, se não for possível, se a planta vai ser desmembrada ou não, e neste caso o valor potencial de venda dos equipamentos para terceiros. O custeio considera uma proporção do valor contábil dos equipamentos fixos.
C91: Custo de decomissionamento | E91: 20% | F91: 20% | G91: 20% | I91: Proporção do custo de equipamento fixo com montagem.
B92: Prazo de provisionamento do custo de decomissionamento | E92: 5 | F92: 5 | G92: 5 | H92: anos antes do fim da operação | I92: É recomendado fazer com antecedência uma reserva destes custos, que ocorrem quando a termelétrica não gera mais fluxos de caixa livres através das operações.
B95: 6.a. Características físicas e consumo de madeira (considerada entregue em toras na porta da termelétrica)
B97: Categoria | C97: Item | E97: Valor | H97: Unidade | I97: Comentário
E98: Sugestão | F98: Escolha usuário | G98: Efetivo
B99: Propriedades físicas da madeira | C99: Teor energético da madeira seca | E99: 18.00 | F99: 18.00 | G99: =IF($K$6=1,F99,E99) -> 18.00 | H99: GJ / toneleda seca | I99: Para madeira, pode variar de 17 a 21. O valor sugerido é representativo de E. urograndis com casca aos 7 anos.
C100: Umidade média = (1 - densidade seca / densidade verda) | E100: 40% | F100: 40% | G100: 40% | I100: Impacta o consumo específico de madeira. Depende do clima e também diminui quando o prazo médio de armazenamento entre a colheita e o consumo aumenta. O valor sugerido é 40%, o que representa a média esperada ao longo do ano para toiras de eucalipto armazenadas durante dois meses após a colheita, conforme confirmado por grandes empresas consumidores.
C101: Densidade seca | E101: 0.45 | F101: 0.46 | G101: 0.45 | H101: t/m³ | I101: O valor sugerido é representativo de E. urograndis com casca aos 7 anos.
C102: Densidade verde | E102: N/D | F102: N/D | G102: =G101/(1-G100) -> 0.750 | H102: t/m³ | I102: É igual a: densidade seca / (1- umidade média)
C103: Teor enérgetico da madeira verde | E103: N/D | F103: N/D | G103: =(G99*(1-G100)-2.33*G100)*G102/3.6 -> 2.06 | H103: MWh mad/m³ | I103: Calculado automaticamente em função do teor energético seco, densidade seca e umidade.
B104: Consumo de madeira | C104: Rendimento energético líquido da termelétrica | E104: =HLOOKUP($G$22,'Biblioteca modelos industriais'!$E$7:$O$30,'Biblioteca modelos industriais'!A22,0) -> 29.9% | F104: 29.5% | G104: =IF($K$6=1,F104,E104) -> 29.9% | H104: MWh/MWh mad | I104: É função das características técnicas da termelétrica. O valor sugerido provém de modelos termodinâmicos com calibração em dados de termelétricas reais.
C105: Consumo específico | E105: N/D | F105: N/D | G105: =1/G103/G104 -> 1.63 | H105: m³/MWh | I105: Calculado automaticamente a partir do rendimento energético líquido e do teor energético da madeira verde.
C106: Consumo por hora | E106: N/D | F106: N/D | G106: =G105*G45 -> 163 | H106: m³/hora | I106: Calculado automaticamente a partir do consumo específico e da potência da termelétrica.
C107: Consumo máximo potencial de madeira | E107: N/D | F107: N/D | G107: =G105*G45*G23/1000 -> 1,301 | H107: mil m³/ano | I107: Calculado automaticamente a partir do consumo por hora e do tempo máximo de produção por ano.
B110: 6.b. Custos de aquisição dos insumos de consumo variável
B112: Categoria | C112: Item | E112: Valor | H112: Unidade | I112: Comentário
E113: Sugestão | F113: Escolha usuário | G113: Efetivo
B114: Madeira contrato de longo prazo (considerado durante todos anos de operação efetivos) | C114: Unidade de compra | E114: Volume | F114: Volume | G114: =IF($K$6=1,F114,E114) -> Volume | I114: O custeio oferece ao usuário a possibilidade de combinar um contrato de suprimento de longo prazo com duas componentes (descritas abaixo) com compras spot. Desta forma, o usuário pode refletir nas suas compras as modalidades potenciais de despacho e assim reduzir os riscos de suprimento (tanto de falta, quanto de excesso, de madeira). Ele deve definir as premissas para todas as fontes possíveis, mesmo se ele escolhe somente uma. A assinatura de um (ou vários) contrato(s) para garantir o suprimento da maioria da madeira ao longo prazo é altamente desejável, e, geralmente, imposta por credores. A proporção entre o volume contratado e o consumo máximo potencial da termelétrica depende do ambiente de mercado de madeira. Recomenda-se um mínimo de 75% quando o mercado é amplo (em relação ao consumo total), e com perspectivas de equilíbrio ou superávit no longo prazo. Em outros casos, esta proporção pode chegar em 100%. O contrato de longo prazo tem dois componentes: - compromisso de comprar a cada período um volume mínimo (Quantidade Mínima Contratual, definido a partir da referência com o Consumo máximo potencial) , com um valor fixo (Pagamento Mínimo. O Preço de compra do mínimo contratual é subsequentemente calculado pela divisão entre o Pagamento Mínimo e a Quantidade Mínima Contratual) - possibilidade- sem obrigação - de comprar a cada período uma quantidade adicional, até um valor máximo (Quantidade Máxima Contratual) com um preço fixo (Preço Variável Unitário). As quantidades do contrato podem ser definidas em termos de Volume, Peso, ou Energia. Para uma primeira abordagem de pré-viabilidade, o usuário pode usar: - Quantidade Mínima Contratual = 0 - Pagamento Mínimo = 0 - Quantidade Máxima Contratual = 100% do consumo potencial máximo - Preço Variável Unitário conforme a origem da madeira Os preços de compra sugeridos são definidos a partir da escolha da origem da madeira e da biblioteca de preços da madeira.
C115: Quantidade Mínima Contratual / Consumo máximo potencial | E115: 0% | F115: 40% | G115: =IF($K$6=1,F115,E115) -> 0% | H115: =IF(G114="Volume","mil m³/ano",IF(G114="Peso/ano","mil t","mil MWh mad/ano")) -> mil m³/ano
C116: Quantidade Máxima Contratual / Consumo máximo potencial | E116: 100% | F116: 50% | G116: 100% | H116: =IF(G114="Volume","mil m³/ano",IF(G114="Peso/ano","mil t","mil MWh mad/ano")) -> mil m³/ano
C117: Pagamento Mínimo | E117: 0 | F117: 100,000 | G117: 0 | H117: mil R$/ano
C118: Preço de compra do mínimo contratual | E118: =VLOOKUP(G21,'Biblioteca preços de madeira'!H6:I19,2,0)/IF(G114="Volume",1,IF(G114="Peso",G102,G103)) -> 85.91 | F118: =F117/(F115*G107*IF(F114="Volume",1,IF(F114="Peso",G102,G103))) -> 192.09 | G118: =IF(G115=0%,"N/D",G117/(G115*G107*IF(G114="Volume",1,IF(G114="Peso",G102,G103)))) -> N/D | H118: =IF(G114="Volume","R$/m³",IF(G114="Peso","R$/t","R$/MWh mad")) -> R$/m³
C119: Preço Variável Unitário (de compra acima da quantidade mínima contratual) | E119: =VLOOKUP(G21,'Biblioteca preços de madeira'!H6:I19,2,0)/IF(G114="Volume",1,IF(G114="Peso",G102,G103)) -> 85.91 | F119: 50.00 | G119: 85.91 | H119: =IF(G114="Volume","R$/m³",IF(G114="Peso","R$/t","R$/MWh mad")) -> R$/m³
C120: Volume mínimo contratual | E120: =E115*G107 -> 0 | F120: =F115*G107 -> 520.58 | G120: =G115*G107 -> 0 | H120: mil m³/ano | I120: Repete as informações acima se a unidade de compra é o m³.
C121: Volume máximo contratual | E121: =E116*G107 -> 1,301 | F121: =F116*G107 -> 650.73 | G121: =G116*G107 -> 1,301 | H121: mil m³/ano
C122: Preço do mínimo contratual em R$/m³ | E122: N/D | F122: =F117/F120 -> 192.09 | G122: N/D | H122: R$/m³
C123: Preço Variável Unitário em R$/m³ | E123: =VLOOKUP(G21,'Biblioteca preços de madeira'!H6:I19,2,0) -> 85.91 | F123: =F119/IF(G114="Volume",1,IF(G114="Peso",G102,G103)) -> 50.00 | G123: 85.91 | H123: R$/m³
C124: Preço médio de compra do máximo contratual | E124: =(E117+(E121-E120)*E123)/E121 -> 85.91 | F124: =(F117+(F121-F120)*F123)/F121 -> 163.67 | G124: 85.91 | H124: R$/m³ | I124: O valor sugerido é o preço médio de venda alvo dos produtores regionais de madeira para garantir uma rentabilidade suficiente, conforme estimado pelo IEMA a partir do custeio florestal.
B125: Madeira compras spot (fase de comissionamento + para completar contrato de longo prazo se necessário | C125: Unidade de compra | E125: Volume | F125: Volume | G125: Volume | I125: Escolha entre volume, peso e energia.
C126: Preço médio de compra | E126: =VLOOKUP(G21,'Biblioteca preços de madeira'!H6:I19,2,0)/IF(G114="Volume",1,IF(G114="Peso",G102,G103)) -> 85.91 | F126: 80.00 | G126: 85.91 | H126: =IF(G125="Volume","R$/m³",IF(G125="Peso","R$/t","R$/MWh mad")) -> R$/m³ | I126: Normalmente reflete o potencial de compra pela UTE a fornecedors alternativos.
C127: Preço em R$/m³ | E127: =VLOOKUP(G21,'Biblioteca preços de madeira'!H6:I19,2,0) -> 85.91 | F127: N/D | G127: =G126/IF(G125="Volume",1,IF(G125="Peso",G102,G103)) -> 85.91 | H127: R$/m³ | I127: Repete as informações acima se a unidade de compra é o m³.
B128: Plantios florestais | C128: Produtividade média | E128: =VLOOKUP(G21,'Biblioteca preços de madeira'!H6:K19,3,0) -> 35.4 | F128: 35.0 | G128: =IF($K$6=1,F128,E128) -> 35.4 | H128: m³/ha.ano | I128: Permite calcular a área de plantios necessária para abastecer a termelétrica, o que é uma informação importante para conferir a viabilidade do projeto.
B129: Água | C129: Preço bruto de compra | E129: 0.30 | F129: 0.30 | G129: =IF($K$6=1,F129,E129) -> 0.30 | H129: R$/m³
B130: Areia | C130: Preço bruto de compra | E130: 600.00 | F130: 500.00 | G130: 600 | H130: R$/t | I130: Consumida por caldeiras a leito fluidizado
B133: 6.c. Custos de produção fixos
B135: Categoria | C135: Item | E135: Valor | H135: Unidade | I135: Comentário
E136: Sugestão | F136: Escolha usuário | G136: Efetivo
B137: Custos fixos | C137: Mão de obra | E137: =HLOOKUP($G$22,'Biblioteca modelos industriais'!$E$7:$O$30,'Biblioteca modelos industriais'!A26,0)*(1+VLOOKUP(G13,'Biblioteca dados investimentos'!B10:C36,2,0)) -> 7,158 | F137: 7,000 | G137: =IF($K$6=1,F137,E137) -> 7,158 | H137: mil R$/ano | I137: Sugestões conforme a biblioteca de dados industriais
C138: Serviços terceirizados | E138: =HLOOKUP($G$22,'Biblioteca modelos industriais'!$E$7:$O$30,'Biblioteca modelos industriais'!A27,0)*(1+VLOOKUP(G13,'Biblioteca dados investimentos'!B10:C36,2,0)) -> 1,715 | F138: 2,000 | G138: 1,715
C139: Manutenção | E139: =HLOOKUP($G$22,'Biblioteca modelos industriais'!$E$7:$O$30,'Biblioteca modelos industriais'!A28,0)*(1+VLOOKUP(G13,'Biblioteca dados investimentos'!B10:C36,2,0)) -> 16,104 | F139: 30,000 | G139: 16,104
C140: Outros custos fixos | E140: =HLOOKUP($G$22,'Biblioteca modelos industriais'!$E$7:$O$30,'Biblioteca modelos industriais'!A29,0)*(1+VLOOKUP(G13,'Biblioteca dados investimentos'!B10:C36,2,0)) -> 1,332 | F140: 1,500 | G140: 1,332
C141: Custos administrativos | E141: =HLOOKUP($G$22,'Biblioteca modelos industriais'!$E$7:$O$30,'Biblioteca modelos industriais'!A30,0)*(1+VLOOKUP(G13,'Biblioteca dados investimentos'!B10:C36,2,0)) -> 2,118 | F141: 2,500 | G141: 2,118
B144: 6.d. Custos ligados ao modelo de venda da eletricidade
B146: Categoria | C146: Item | E146: Valor | H146: Unidade | I146: Comentário
E147: Sugestão | F147: Escolha usuário | G147: Efetivo
B148: Custos ligados ao uso da rede | C148: Tarifa de Uso do Sistema de transmissão (TUST) ou de Distribuição (TUSD) | E148: =35*IF(F20="Consumidor(es) final(is) sem usar a rede",0,'Biblioteca de incentivos'!C8) -> 17.5 | F148: 17.5 | G148: =IF($K$6=1,F148,E148) -> 17.5 | H148: mil R$/MW líquido/ano | I148: O valor exato é definido pelo regulador ANEEL especificamente para cada usina elétrica. A sugestão corresponde a 50% da média observada para termelétricas no Brasil, esta redução de 50% sendo aplicada por lei para termelétricas a biomassa de menos de 300 MW.
C149: Taxa de Fiscalização de Serviços de Energia Elétrica (TFSEE) | E149: =IF(F20="Consumidor(es) final(is) sem usar a rede",0,3) -> 3 | F149: 3 | G149: 3 | H149: mil R$/MW líquido/ano | I149: O valor equivale por lei a 0,4% do benefício econômico anual dos agentes do setor de eletricidade, e ele tem um impacto limitado no custo de produção. A abordagem sugerida é de informar esta taxa em R$ por MW líquido por ano. O valor sugerido é 3 mil R$/MW/ano.
C150: Pesquisa & Desenvolvimento | E150: 0% | H150: Renda bruta | I150: Termelétricas a biomassa são isentas por lei.
C151: CCEE (para vendas através a rede) | E151: =IF(F20="Consumidor(es) final(is) sem usar a rede",0,0.1) -> 0.10 | H151: R$/MWh | I151: Na prática, o pagamento na CCEE tem impacto negligável sobre a rentabilidade do projeto.
C152: Custo ONS | E152: =IF(F20="Consumidor(es) final(is) sem usar a rede",0,100) -> 100.00 | H152: R$/MW/ano | I152: Na prática, o pagamento ao ONS - se existir - tem impacto negligável sobre a rentabilidade do projeto.
B153: Custos ligados à venda aos distribuidores | C153: Lastro | E153: 0% | F153: 0% | G153: =IF($K$6=1,F153,E153) -> 0% | H153: Receita bruta | I153: Compra de direto a fornecimento por geradores terceiros, em caso de indisponibilidade. Não existe um modelo único de “compra” desta reserva, e o valor observado no mercado flutua expressivamente. O simulador representa este custo com uma percentagem da receita bruta, e na ausência de referência de mercado, o valor sugerido é 0.
B156: 7. Taxas de deduções pagas aos fornecedores (para potencialmente girar créditos sobre o pagamento de deduções)
B158: Categoria | C158: Item | E158: Valor | H158: Unidade | I158: Comentário
E159: Sugestão | F159: Escolha usuário | G159: Efetivo
B160: Incidência PIS + COFINS | C160: Madeira | E160: Cumulativa | F160: Cumulativa | G160: =IF($K$6=1,F160,E160) -> Cumulativa | I160: Cumulativa (aliquotas de 0,65% e 3,00% para PIS e COFINS) ou Não cumulativa (aliquotas de 1,60% e 7,65% para PIS e COFINS). A maioria dos empreendimentos florestais operam com a Incidência Cumulativa porque eles assim maximizam a rentabilidade. A maioria dos outros fornecedores de insumos e serviços operam com a Incidência Não-Cumulativa.
C161: Outros custos variáveis | E161: Não-cumulativa | F161: Cumulativa | G161: =IF($K$6=1,F161,E161) -> Não-cumulativa
B162: ICMS | C162: Dedutível de investimento / reinvestimento em equipamentos | E162: 4.5% | F162: 5.0% | G162: =IF($K$6=1,F162,E162) -> 4.5% | I162: O valor observado para projetos industriais de grande porte é de 0 a 10%. O valor sugerido é a média.
C163: Madeira | E163: 0% | F163: 0% | G163: =IF($K$6=1,F163,E163) -> 0% | I163: Geralmente, não há ICMS nas vendas de madeira dentro do mesmo Estado.
C164: Insumos fora madeira e serviços comprados | E164: 12% | F164: 0% | G164: =IF($K$6=1,F164,E164) -> 12% | I164: A percentagem observada para projetos industriais de grande porte é de 0 a 20%. O valor sugerido é a média.
L165: Sim | M165: Não
L168: Taxa | M168: custo levelized | N168: NPV | AL168: X1 | AM168: X2 | AN168: Y1 | AO168: Y2 | AP168: X(Y=0)
O170: 0% | P170: =O170+2% -> 2% | Q170: =P170+2% -> 4% | R170: 6% | S170: 8% | T170: 10% | U170: 12% | V170: 14% | W170: 16% | X170: 18% | Y170: 20% | Z170: 22% | AA170: 24% | AB170: 26% | AC170: 28% | AD170: 30% | AE170: 32% | AF170: 34% | AG170: 36% | AH170: 38% | AI170: 40%
O171: =$M172*(1+O170) -> 228,565 | P171: 233,136 | Q171: 237,707 | R171: 242,278 | S171: 246,850 | T171: 251,421 | U171: 255,992 | V171: 260,564 | W171: 265,135 | X171: 269,706 | Y171: 274,277 | Z171: 278,849 | AA171: 283,420 | AB171: =$M172*(1+AB170) -> 287,991 | AC171: 292,563 | AD171: 297,134 | AE171: 301,705 | AF171: 306,276 | AG171: =$M172*(1+AG170) -> 310,848 | AH171: 315,419 | AI171: 319,990
L172: 0% | M172: =-NPV(L172,'Modelo financeiro alvo'!$H$182:$BM$182)/NPV(L172,'Modelo financeiro alvo'!$H$19:$BM$19) -> 228,565 | N172: =NPV($L172,'Modelo financeiro alvo'!$H$189:$BM$189) -> 1,885,995 | O172: -812,162 | P172: -732,147 | Q172: -654,598 | R172: -579,424 | S172: -513,267 | T172: -448,412 | U172: -384,602 | V172: -321,553 | W172: -259,138 | X172: -197,255 | Y172: -135,653 | Z172: -74,326 | AA172: -13,265 | AB172: 47,217 | AC172: 107,519 | AD172: 167,676 | AE172: 227,606 | AF172: 287,247 | AG172: 346,646 | AH172: 405,624 | AI172: 464,227 | AL172: =HLOOKUP(MIN(O173:AI173)-2%,O170:AI171,2,0) -> 283,420 | AM172: =HLOOKUP(MIN(O173:AI173),O170:AI171,2,0) -> 287,991 | AN172: =HLOOKUP(AL172,O171:AI172,2,0) -> (13,265) | AO172: =HLOOKUP(AM172,O171:AI172,2,0) -> 47,217 | AP172: =(AO172*AL172-AN172*AM172)/(AO172-AN172) -> 284,423
O173: 100% | P173: =IF(P172<0,1,IF(O172<0,P$170,O173)) -> 100% | Q173: 100% | R173: 100% | S173: 100% | T173: 100% | U173: 100% | V173: 100% | W173: 100% | X173: 100% | Y173: 100% | Z173: 100% | AA173: 100% | AB173: =IF(AB172<0,1,IF(AA172<0,AB$170,AA173)) -> 26% | AC173: =IF(AC172<0,1,IF(AB172<0,AC$170,AB173)) -> 26% | AD173: =IF(AD172<0,1,IF(AC172<0,AD$170,AC173)) -> 26% | AE173: =IF(AE172<0,1,IF(AD172<0,AE$170,AD173)) -> 26% | AF173: =IF(AF172<0,1,IF(AE172<0,AF$170,AE173)) -> 26% | AG173: 26% | AH173: 26% | AI173: 26%
O175: 0% | P175: =O175+2% -> 2% | Q175: =P175+2% -> 4% | R175: 6% | S175: 8% | T175: 10% | U175: 12% | V175: 14% | W175: 16% | X175: 18% | Y175: 20% | Z175: 22% | AA175: 24% | AB175: 26% | AC175: 28% | AD175: 30% | AE175: 32% | AF175: 34% | AG175: 36% | AH175: 38% | AI175: 40%
O176: =$M177*(1+O175) -> 234,765 | P176: 239,460 | Q176: 244,155 | R176: 248,851 | S176: 253,546 | T176: 258,241 | U176: 262,937 | V176: 267,632 | W176: 272,327 | X176: 277,022 | Y176: 281,718 | Z176: 286,413 | AA176: 291,108 | AB176: =$M177*(1+AB175) -> 295,804 | AC176: 300,499 | AD176: 305,194 | AE176: 309,890 | AF176: 314,585 | AG176: =$M177*(1+AG175) -> 319,280 | AH176: 323,975 | AI176: 328,671
L177: =L172+1% -> 1% | M177: =-NPV(L177,'Modelo financeiro alvo'!$H$182:$BM$182)/NPV(L177,'Modelo financeiro alvo'!$H$19:$BM$19) -> 234,765 | N177: =NPV($L177,'Modelo financeiro alvo'!$H$189:$BM$189) -> 1,478,425 | O177: -704,115 | P177: -639,887 | Q177: -577,133 | R177: -519,204 | S177: -462,516 | T177: -406,657 | U177: -351,600 | V177: -297,265 | W177: -243,299 | X177: -189,641 | Y177: -136,275 | Z177: -83,382 | AA177: -30,820 | AB177: 21,525 | AC177: 73,634 | AD177: 125,528 | AE177: 177,029 | AF177: 228,136 | AG177: 278,792 | AH177: 329,270 | AI177: 379,480 | AL177: =HLOOKUP(MIN(O178:AI178)-2%,O175:AI176,2,0) -> 291,108 | AM177: =HLOOKUP(MIN(O178:AI178),O175:AI176,2,0) -> 295,804 | AN177: =HLOOKUP(AL177,O176:AI177,2,0) -> (30,820) | AO177: =HLOOKUP(AM177,O176:AI177,2,0) -> 21,525 | AP177: =(AO177*AL177-AN177*AM177)/(AO177-AN177) -> 293,873
O178: 100% | P178: =IF(P177<0,1,IF(O177<0,P$170,O178)) -> 100% | Q178: =IF(Q177<0,1,IF(P177<0,Q$170,P178)) -> 100% | R178: =IF(R177<0,1,IF(Q177<0,R$170,Q178)) -> 100% | S178: =IF(S177<0,1,IF(R177<0,S$170,R178)) -> 100% | T178: =IF(T177<0,1,IF(S177<0,T$170,S178)) -> 100% | U178: =IF(U177<0,1,IF(T177<0,U$170,T178)) -> 100% | V178: =IF(V177<0,1,IF(U177<0,V$170,U178)) -> 100% | W178: =IF(W177<0,1,IF(V177<0,W$170,V178)) -> 100% | X178: =IF(X177<0,1,IF(W177<0,X$170,W178)) -> 100% | Y178: =IF(Y177<0,1,IF(X177<0,Y$170,X178)) -> 100% | Z178: =IF(Z177<0,1,IF(Y177<0,Z$170,Y178)) -> 100% | AA178: =IF(AA177<0,1,IF(Z177<0,AA$170,Z178)) -> 100% | AB178: =IF(AB177<0,1,IF(AA177<0,AB$170,AA178)) -> 26% | AC178: =IF(AC177<0,1,IF(AB177<0,AC$170,AB178)) -> 26% | AD178: =IF(AD177<0,1,IF(AC177<0,AD$170,AC178)) -> 26% | AE178: =IF(AE177<0,1,IF(AD177<0,AE$170,AD178)) -> 26% | AF178: =IF(AF177<0,1,IF(AE177<0,AF$170,AE178)) -> 26% | AG178: 26% | AH178: 26% | AI178: 26%
O180: 0% | P180: =O180+2% -> 2% | Q180: =P180+2% -> 4% | R180: 6% | S180: 8% | T180: 10% | U180: 12% | V180: 14% | W180: 16% | X180: 18% | Y180: 20% | Z180: 22% | AA180: 24% | AB180: 26% | AC180: 28% | AD180: 30% | AE180: 32% | AF180: 34% | AG180: 36% | AH180: 38% | AI180: 40%
O181: =$M182*(1+O180) -> 241,176 | P181: 246,000 | Q181: 250,823 | R181: 255,647 | S181: 260,471 | T181: 265,294 | U181: 270,118 | V181: 274,941 | W181: 279,765 | X181: 284,588 | Y181: 289,412 | Z181: 294,235 | AA181: 299,059 | AB181: =$M182*(1+AB180) -> 303,882 | AC181: 308,706 | AD181: 313,529 | AE181: 318,353 | AF181: 323,176 | AG181: =$M182*(1+AG180) -> 328,000 | AH181: 332,823 | AI181: 337,647
L182: =L177+1% -> 2% | M182: =-NPV(L182,'Modelo financeiro alvo'!$H$182:$BM$182)/NPV(L182,'Modelo financeiro alvo'!$H$19:$BM$19) -> 241,176 | N182: =NPV($L182,'Modelo financeiro alvo'!$H$189:$BM$189) -> 1,158,210 | O182: -613,916 | P182: -567,198 | Q182: -516,244 | R182: -466,366 | S182: -417,342 | T182: -369,036 | U182: -321,355 | V182: -273,975 | W182: -226,898 | X182: -180,165 | Y182: -134,003 | Z182: -88,092 | AA182: -42,361 | AB182: 3,187 | AC182: 48,200 | AD182: 92,926 | AE182: 137,089 | AF182: 181,004 | AG182: 224,598 | AH182: 268,112 | AI182: 311,630 | AL182: =HLOOKUP(MIN(O183:AI183)-2%,O180:AI181,2,0) -> 299,059 | AM182: =HLOOKUP(MIN(O183:AI183),O180:AI181,2,0) -> 303,882 | AN182: =HLOOKUP(AL182,O181:AI182,2,0) -> (42,361) | AO182: =HLOOKUP(AM182,O181:AI182,2,0) -> 3,187 | AP182: =(AO182*AL182-AN182*AM182)/(AO182-AN182) -> 303,545
O183: 100% | P183: =IF(P182<0,1,IF(O182<0,P$170,O183)) -> 100% | Q183: =IF(Q182<0,1,IF(P182<0,Q$170,P183)) -> 100% | R183: =IF(R182<0,1,IF(Q182<0,R$170,Q183)) -> 100% | S183: =IF(S182<0,1,IF(R182<0,S$170,R183)) -> 100% | T183: =IF(T182<0,1,IF(S182<0,T$170,S183)) -> 100% | U183: =IF(U182<0,1,IF(T182<0,U$170,T183)) -> 100% | V183: =IF(V182<0,1,IF(U182<0,V$170,U183)) -> 100% | W183: =IF(W182<0,1,IF(V182<0,W$170,V183)) -> 100% | X183: =IF(X182<0,1,IF(W182<0,X$170,W183)) -> 100% | Y183: =IF(Y182<0,1,IF(X182<0,Y$170,X183)) -> 100% | Z183: =IF(Z182<0,1,IF(Y182<0,Z$170,Y183)) -> 100% | AA183: =IF(AA182<0,1,IF(Z182<0,AA$170,Z183)) -> 100% | AB183: =IF(AB182<0,1,IF(AA182<0,AB$170,AA183)) -> 26% | AC183: =IF(AC182<0,1,IF(AB182<0,AC$170,AB183)) -> 26% | AD183: =IF(AD182<0,1,IF(AC182<0,AD$170,AC183)) -> 26% | AE183: =IF(AE182<0,1,IF(AD182<0,AE$170,AD183)) -> 26% | AF183: =IF(AF182<0,1,IF(AE182<0,AF$170,AE183)) -> 26% | AG183: 26% | AH183: 26% | AI183: 26%
O185: 0% | P185: =O185+2% -> 2% | Q185: =P185+2% -> 4% | R185: 6% | S185: 8% | T185: 10% | U185: 12% | V185: 14% | W185: 16% | X185: 18% | Y185: 20% | Z185: 22% | AA185: 24% | AB185: 26% | AC185: 28% | AD185: 30% | AE185: 32% | AF185: 34% | AG185: 36% | AH185: 38% | AI185: 40%
O186: =$M187*(1+O185) -> 247,787 | P186: 252,743 | Q186: 257,699 | R186: 262,655 | S186: 267,610 | T186: 272,566 | U186: 277,522 | V186: 282,478 | W186: 287,433 | X186: 292,389 | Y186: 297,345 | Z186: 302,301 | AA186: 307,256 | AB186: =$M187*(1+AB185) -> 312,212 | AC186: 317,168 | AD186: 322,124 | AE186: 327,079 | AF186: 332,035 | AG186: =$M187*(1+AG185) -> 336,991 | AH186: 341,947 | AI186: 346,902
L187: =L182+1% -> 3% | M187: =-NPV(L187,'Modelo financeiro alvo'!$H$182:$BM$182)/NPV(L187,'Modelo financeiro alvo'!$H$19:$BM$19) -> 247,787 | N187: =NPV($L187,'Modelo financeiro alvo'!$H$189:$BM$189) -> 905,359 | O187: -545,102 | P187: -507,607 | Q187: -463,475 | R187: -420,180 | S187: -377,576 | T187: -335,416 | U187: -293,566 | V187: -252,022 | W187: -211,022 | X187: -170,364 | Y187: -129,898 | Z187: -89,725 | AA187: -49,913 | AB187: -10,421 | AC187: 28,427 | AD187: 66,867 | AE187: 105,066 | AF187: 143,071 | AG187: 181,083 | AH187: 219,044 | AI187: 256,947 | AL187: =HLOOKUP(MIN(O188:AI188)-2%,O185:AI186,2,0) -> 312,212 | AM187: =HLOOKUP(MIN(O188:AI188),O185:AI186,2,0) -> 317,168 | AN187: =HLOOKUP(AL187,O186:AI187,2,0) -> (10,421) | AO187: =HLOOKUP(AM187,O186:AI187,2,0) -> 28,427 | AP187: =(AO187*AL187-AN187*AM187)/(AO187-AN187) -> 313,542
O188: 100% | P188: =IF(P187<0,1,IF(O187<0,P$170,O188)) -> 100% | Q188: =IF(Q187<0,1,IF(P187<0,Q$170,P188)) -> 100% | R188: =IF(R187<0,1,IF(Q187<0,R$170,Q188)) -> 100% | S188: =IF(S187<0,1,IF(R187<0,S$170,R188)) -> 100% | T188: =IF(T187<0,1,IF(S187<0,T$170,S188)) -> 100% | U188: =IF(U187<0,1,IF(T187<0,U$170,T188)) -> 100% | V188: =IF(V187<0,1,IF(U187<0,V$170,U188)) -> 100% | W188: =IF(W187<0,1,IF(V187<0,W$170,V188)) -> 100% | X188: =IF(X187<0,1,IF(W187<0,X$170,W188)) -> 100% | Y188: =IF(Y187<0,1,IF(X187<0,Y$170,X188)) -> 100% | Z188: =IF(Z187<0,1,IF(Y187<0,Z$170,Y188)) -> 100% | AA188: =IF(AA187<0,1,IF(Z187<0,AA$170,Z188)) -> 100% | AB188: =IF(AB187<0,1,IF(AA187<0,AB$170,AA188)) -> 100% | AC188: =IF(AC187<0,1,IF(AB187<0,AC$170,AB188)) -> 28% | AD188: =IF(AD187<0,1,IF(AC187<0,AD$170,AC188)) -> 28% | AE188: =IF(AE187<0,1,IF(AD187<0,AE$170,AD188)) -> 28% | AF188: =IF(AF187<0,1,IF(AE187<0,AF$170,AE188)) -> 28% | AG188: 28% | AH188: 28% | AI188: 28%
O190: 0% | P190: =O190+2% -> 2% | Q190: =P190+2% -> 4% | R190: 6% | S190: 8% | T190: 10% | U190: 12% | V190: 14% | W190: 16% | X190: 18% | Y190: 20% | Z190: 22% | AA190: 24% | AB190: 26% | AC190: 28% | AD190: 30% | AE190: 32% | AF190: 34% | AG190: 36% | AH190: 38% | AI190: 40%
O191: =$M192*(1+O190) -> 254,584 | P191: 259,676 | Q191: 264,768 | R191: 269,859 | S191: 274,951 | T191: 280,043 | U191: 285,134 | V191: 290,226 | W191: 295,318 | X191: 300,409 | Y191: 305,501 | Z191: 310,593 | AA191: 315,685 | AB191: =$M192*(1+AB190) -> 320,776 | AC191: 325,868 | AD191: 330,960 | AE191: 336,051 | AF191: 341,143 | AG191: =$M192*(1+AG190) -> 346,235 | AH191: 351,326 | AI191: 356,418
L192: =L187+1% -> 4% | M192: =-NPV(L192,'Modelo financeiro alvo'!$H$182:$BM$182)/NPV(L192,'Modelo financeiro alvo'!$H$19:$BM$19) -> 254,584 | N192: =NPV($L192,'Modelo financeiro alvo'!$H$189:$BM$189) -> 704,741 | O192: -486,978 | P192: -456,195 | Q192: -417,708 | R192: -379,932 | S192: -342,437 | T192: -305,240 | U192: -268,397 | V192: -232,135 | W192: -196,140 | X192: -160,347 | Y192: -124,799 | Z192: -89,765 | AA192: -55,219 | AB192: -21,259 | AC192: 12,466 | AD192: 45,897 | AE192: 79,315 | AF192: 112,708 | AG192: 146,013 | AH192: 179,326 | AI192: 212,648 | AL192: =HLOOKUP(MIN(O193:AI193)-2%,O190:AI191,2,0) -> 320,776 | AM192: =HLOOKUP(MIN(O193:AI193),O190:AI191,2,0) -> 325,868 | AN192: =HLOOKUP(AL192,O191:AI192,2,0) -> (21,259) | AO192: =HLOOKUP(AM192,O191:AI192,2,0) -> 12,466 | AP192: =(AO192*AL192-AN192*AM192)/(AO192-AN192) -> 323,986
O193: 100% | P193: =IF(P192<0,1,IF(O192<0,P$170,O193)) -> 100% | Q193: =IF(Q192<0,1,IF(P192<0,Q$170,P193)) -> 100% | R193: =IF(R192<0,1,IF(Q192<0,R$170,Q193)) -> 100% | S193: =IF(S192<0,1,IF(R192<0,S$170,R193)) -> 100% | T193: =IF(T192<0,1,IF(S192<0,T$170,S193)) -> 100% | U193: =IF(U192<0,1,IF(T192<0,U$170,T193)) -> 100% | V193: =IF(V192<0,1,IF(U192<0,V$170,U193)) -> 100% | W193: =IF(W192<0,1,IF(V192<0,W$170,V193)) -> 100% | X193: =IF(X192<0,1,IF(W192<0,X$170,W193)) -> 100% | Y193: =IF(Y192<0,1,IF(X192<0,Y$170,X193)) -> 100% | Z193: =IF(Z192<0,1,IF(Y192<0,Z$170,Y193)) -> 100% | AA193: =IF(AA192<0,1,IF(Z192<0,AA$170,Z193)) -> 100% | AB193: =IF(AB192<0,1,IF(AA192<0,AB$170,AA193)) -> 100% | AC193: =IF(AC192<0,1,IF(AB192<0,AC$170,AB193)) -> 28% | AD193: =IF(AD192<0,1,IF(AC192<0,AD$170,AC193)) -> 28% | AE193: =IF(AE192<0,1,IF(AD192<0,AE$170,AD193)) -> 28% | AF193: =IF(AF192<0,1,IF(AE192<0,AF$170,AE193)) -> 28% | AG193: 28% | AH193: 28% | AI193: 28%
O195: 0% | P195: =O195+2% -> 2% | Q195: =P195+2% -> 4% | R195: 6% | S195: 8% | T195: 10% | U195: 12% | V195: 14% | W195: 16% | X195: 18% | Y195: 20% | Z195: 22% | AA195: 24% | AB195: 26% | AC195: 28% | AD195: 30% | AE195: 32% | AF195: 34% | AG195: 36% | AH195: 38% | AI195: 40%
O196: =$M197*(1+O195) -> 261,553 | P196: 266,784 | Q196: 272,015 | R196: 277,246 | S196: 282,477 | T196: 287,708 | U196: 292,939 | V196: 298,170 | W196: 303,401 | X196: 308,632 | Y196: 313,864 | Z196: 319,095 | AA196: 324,326 | AB196: =$M197*(1+AB195) -> 329,557 | AC196: 334,788 | AD196: 340,019 | AE196: 345,250 | AF196: 350,481 | AG196: =$M197*(1+AG195) -> 355,712 | AH196: 360,943 | AI196: 366,174
L197: =L192+1% -> 5% | M197: =-NPV(L197,'Modelo financeiro alvo'!$H$182:$BM$182)/NPV(L197,'Modelo financeiro alvo'!$H$19:$BM$19) -> 261,553 | N197: =NPV($L197,'Modelo financeiro alvo'!$H$189:$BM$189) -> 544,845 | O197: -437,406 | P197: -411,817 | Q197: -378,055 | R197: -344,518 | S197: -311,273 | T197: -278,552 | U197: -246,213 | V197: -214,077 | W197: -182,213 | X197: -150,812 | Y197: -119,793 | Z197: -89,485 | AA197: -59,492 | AB197: -29,871 | AC197: -312 | AD197: 29,256 | AE197: 58,700 | AF197: 88,154 | AG197: 117,616 | AH197: 146,997 | AI197: 176,359 | AL197: =HLOOKUP(MIN(O198:AI198)-2%,O195:AI196,2,0) -> 334,788 | AM197: =HLOOKUP(MIN(O198:AI198),O195:AI196,2,0) -> 340,019 | AN197: =HLOOKUP(AL197,O196:AI197,2,0) -> (312) | AO197: =HLOOKUP(AM197,O196:AI197,2,0) -> 29,256 | AP197: =(AO197*AL197-AN197*AM197)/(AO197-AN197) -> 334,843
O198: 100% | P198: =IF(P197<0,1,IF(O197<0,P$170,O198)) -> 100% | Q198: =IF(Q197<0,1,IF(P197<0,Q$170,P198)) -> 100% | R198: =IF(R197<0,1,IF(Q197<0,R$170,Q198)) -> 100% | S198: =IF(S197<0,1,IF(R197<0,S$170,R198)) -> 100% | T198: =IF(T197<0,1,IF(S197<0,T$170,S198)) -> 100% | U198: =IF(U197<0,1,IF(T197<0,U$170,T198)) -> 100% | V198: =IF(V197<0,1,IF(U197<0,V$170,U198)) -> 100% | W198: =IF(W197<0,1,IF(V197<0,W$170,V198)) -> 100% | X198: =IF(X197<0,1,IF(W197<0,X$170,W198)) -> 100% | Y198: =IF(Y197<0,1,IF(X197<0,Y$170,X198)) -> 100% | Z198: =IF(Z197<0,1,IF(Y197<0,Z$170,Y198)) -> 100% | AA198: =IF(AA197<0,1,IF(Z197<0,AA$170,Z198)) -> 100% | AB198: =IF(AB197<0,1,IF(AA197<0,AB$170,AA198)) -> 100% | AC198: =IF(AC197<0,1,IF(AB197<0,AC$170,AB198)) -> 100% | AD198: =IF(AD197<0,1,IF(AC197<0,AD$170,AC198)) -> 30% | AE198: =IF(AE197<0,1,IF(AD197<0,AE$170,AD198)) -> 30% | AF198: =IF(AF197<0,1,IF(AE197<0,AF$170,AE198)) -> 30% | AG198: 30% | AH198: 30% | AI198: 30%
O200: 0% | P200: =O200+2% -> 2% | Q200: =P200+2% -> 4% | R200: 6% | S200: 8% | T200: 10% | U200: 12% | V200: 14% | W200: 16% | X200: 18% | Y200: 20% | Z200: 22% | AA200: 24% | AB200: 26% | AC200: 28% | AD200: 30% | AE200: 32% | AF200: 34% | AG200: 36% | AH200: 38% | AI200: 40%
O201: =$M202*(1+O200) -> 268,679 | P201: 274,052 | Q201: 279,426 | R201: 284,799 | S201: 290,173 | T201: 295,546 | U201: 300,920 | V201: 306,294 | W201: 311,667 | X201: 317,041 | Y201: 322,414 | Z201: 327,788 | AA201: 333,161 | AB201: =$M202*(1+AB200) -> 338,535 | AC201: 343,909 | AD201: 349,282 | AE201: 354,656 | AF201: 360,029 | AG201: =$M202*(1+AG200) -> 365,403 | AH201: 370,776 | AI201: 376,150
L202: =L197+1% -> 6% | M202: =-NPV(L202,'Modelo financeiro alvo'!$H$182:$BM$182)/NPV(L202,'Modelo financeiro alvo'!$H$19:$BM$19) -> 268,679 | N202: =NPV($L202,'Modelo financeiro alvo'!$H$189:$BM$189) -> 416,867 | O202: -395,000 | P202: -373,211 | Q202: -343,123 | R202: -313,257 | S202: -284,043 | T202: -255,059 | U202: -226,285 | V202: -197,801 | W202: -169,799 | X202: -142,431 | Y202: -115,620 | Z202: -89,105 | AA202: -62,808 | AB202: -36,501 | AC202: -10,279 | AD202: 15,912 | AE202: 42,113 | AF202: 68,256 | AG202: 94,353 | AH202: 120,460 | AI202: 146,576 | AL202: =HLOOKUP(MIN(O203:AI203)-2%,O200:AI201,2,0) -> 343,909 | AM202: =HLOOKUP(MIN(O203:AI203),O200:AI201,2,0) -> 349,282 | AN202: =HLOOKUP(AL202,O201:AI202,2,0) -> (10,279) | AO202: =HLOOKUP(AM202,O201:AI202,2,0) -> 15,912 | AP202: =(AO202*AL202-AN202*AM202)/(AO202-AN202) -> 346,017
O203: 100% | P203: =IF(P202<0,1,IF(O202<0,P$170,O203)) -> 100% | Q203: =IF(Q202<0,1,IF(P202<0,Q$170,P203)) -> 100% | R203: =IF(R202<0,1,IF(Q202<0,R$170,Q203)) -> 100% | S203: =IF(S202<0,1,IF(R202<0,S$170,R203)) -> 100% | T203: =IF(T202<0,1,IF(S202<0,T$170,S203)) -> 100% | U203: =IF(U202<0,1,IF(T202<0,U$170,T203)) -> 100% | V203: =IF(V202<0,1,IF(U202<0,V$170,U203)) -> 100% | W203: =IF(W202<0,1,IF(V202<0,W$170,V203)) -> 100% | X203: =IF(X202<0,1,IF(W202<0,X$170,W203)) -> 100% | Y203: =IF(Y202<0,1,IF(X202<0,Y$170,X203)) -> 100% | Z203: =IF(Z202<0,1,IF(Y202<0,Z$170,Y203)) -> 100% | AA203: =IF(AA202<0,1,IF(Z202<0,AA$170,Z203)) -> 100% | AB203: =IF(AB202<0,1,IF(AA202<0,AB$170,AA203)) -> 100% | AC203: =IF(AC202<0,1,IF(AB202<0,AC$170,AB203)) -> 100% | AD203: =IF(AD202<0,1,IF(AC202<0,AD$170,AC203)) -> 30% | AE203: =IF(AE202<0,1,IF(AD202<0,AE$170,AD203)) -> 30% | AF203: =IF(AF202<0,1,IF(AE202<0,AF$170,AE203)) -> 30% | AG203: 30% | AH203: 30% | AI203: 30%
O205: 0% | P205: =O205+2% -> 2% | Q205: =P205+2% -> 4% | R205: 6% | S205: 8% | T205: 10% | U205: 12% | V205: 14% | W205: 16% | X205: 18% | Y205: 20% | Z205: 22% | AA205: 24% | AB205: 26% | AC205: 28% | AD205: 30% | AE205: 32% | AF205: 34% | AG205: 36% | AH205: 38% | AI205: 40%
O206: =$M207*(1+O205) -> 275,947 | P206: 281,466 | Q206: 286,984 | R206: 292,503 | S206: 298,022 | T206: 303,541 | U206: 309,060 | V206: 314,579 | W206: 320,098 | X206: 325,617 | Y206: 331,136 | Z206: 336,655 | AA206: 342,174 | AB206: =$M207*(1+AB205) -> 347,693 | AC206: 353,212 | AD206: 358,731 | AE206: 364,250 | AF206: 369,768 | AG206: =$M207*(1+AG205) -> 375,287 | AH206: 380,806 | AI206: 386,325
L207: =L202+1% -> 7% | M207: =-NPV(L207,'Modelo financeiro alvo'!$H$182:$BM$182)/NPV(L207,'Modelo financeiro alvo'!$H$19:$BM$19) -> 275,947 | N207: =NPV($L207,'Modelo financeiro alvo'!$H$189:$BM$189) -> 314,037 | O207: -358,231 | P207: -339,359 | Q207: -312,602 | R207: -286,228 | S207: -260,056 | T207: -234,164 | U207: -208,721 | V207: -183,715 | W207: -159,458 | X207: -135,535 | Y207: -111,971 | Z207: -88,438 | AA207: -64,943 | AB207: -41,527 | AC207: -18,102 | AD207: 5,299 | AE207: 28,620 | AF207: 51,950 | AG207: 75,290 | AH207: 98,570 | AI207: 121,819 | AL207: =HLOOKUP(MIN(O208:AI208)-2%,O205:AI206,2,0) -> 353,212 | AM207: =HLOOKUP(MIN(O208:AI208),O205:AI206,2,0) -> 358,731 | AN207: =HLOOKUP(AL207,O206:AI207,2,0) -> (18,102) | AO207: =HLOOKUP(AM207,O206:AI207,2,0) -> 5,299 | AP207: =(AO207*AL207-AN207*AM207)/(AO207-AN207) -> 357,481
O208: 100% | P208: =IF(P207<0,1,IF(O207<0,P$170,O208)) -> 100% | Q208: =IF(Q207<0,1,IF(P207<0,Q$170,P208)) -> 100% | R208: =IF(R207<0,1,IF(Q207<0,R$170,Q208)) -> 100% | S208: =IF(S207<0,1,IF(R207<0,S$170,R208)) -> 100% | T208: =IF(T207<0,1,IF(S207<0,T$170,S208)) -> 100% | U208: =IF(U207<0,1,IF(T207<0,U$170,T208)) -> 100% | V208: =IF(V207<0,1,IF(U207<0,V$170,U208)) -> 100% | W208: =IF(W207<0,1,IF(V207<0,W$170,V208)) -> 100% | X208: =IF(X207<0,1,IF(W207<0,X$170,W208)) -> 100% | Y208: =IF(Y207<0,1,IF(X207<0,Y$170,X208)) -> 100% | Z208: =IF(Z207<0,1,IF(Y207<0,Z$170,Y208)) -> 100% | AA208: =IF(AA207<0,1,IF(Z207<0,AA$170,Z208)) -> 100% | AB208: =IF(AB207<0,1,IF(AA207<0,AB$170,AA208)) -> 100% | AC208: =IF(AC207<0,1,IF(AB207<0,AC$170,AB208)) -> 100% | AD208: =IF(AD207<0,1,IF(AC207<0,AD$170,AC208)) -> 30% | AE208: =IF(AE207<0,1,IF(AD207<0,AE$170,AD208)) -> 30% | AF208: =IF(AF207<0,1,IF(AE207<0,AF$170,AE208)) -> 30% | AG208: 30% | AH208: 30% | AI208: 30%
O210: 0% | P210: =O210+2% -> 2% | Q210: =P210+2% -> 4% | R210: 6% | S210: 8% | T210: 10% | U210: 12% | V210: 14% | W210: 16% | X210: 18% | Y210: 20% | Z210: 22% | AA210: 24% | AB210: 26% | AC210: 28% | AD210: 30% | AE210: 32% | AF210: 34% | AG210: 36% | AH210: 38% | AI210: 40%
O211: =$M212*(1+O210) -> 283,343 | P211: 289,010 | Q211: 294,677 | R211: 300,343 | S211: 306,010 | T211: 311,677 | U211: 317,344 | V211: 323,011 | W211: 328,678 | X211: 334,344 | Y211: 340,011 | Z211: 345,678 | AA211: 351,345 | AB211: =$M212*(1+AB210) -> 357,012 | AC211: 362,679 | AD211: 368,346 | AE211: 374,012 | AF211: 379,679 | AG211: =$M212*(1+AG210) -> 385,346 | AH211: 391,013 | AI211: 396,680
L212: =L207+1% -> 8% | M212: =-NPV(L212,'Modelo financeiro alvo'!$H$182:$BM$182)/NPV(L212,'Modelo financeiro alvo'!$H$19:$BM$19) -> 283,343 | N212: =NPV($L212,'Modelo financeiro alvo'!$H$189:$BM$189) -> 231,127 | O212: -326,105 | P212: -309,839 | Q212: -286,032 | R212: -262,339 | S212: -238,895 | T212: -216,000 | U212: -193,717 | V212: -172,034 | W212: -150,696 | X212: -129,540 | Y212: -108,373 | Z212: -87,323 | AA212: -66,273 | AB212: -45,213 | AC212: -24,262 | AD212: -3,308 | AE212: 17,656 | AF212: 38,584 | AG212: 59,457 | AH212: 80,321 | AI212: 101,193 | AL212: =HLOOKUP(MIN(O213:AI213)-2%,O210:AI211,2,0) -> 368,346 | AM212: =HLOOKUP(MIN(O213:AI213),O210:AI211,2,0) -> 374,012 | AN212: =HLOOKUP(AL212,O211:AI212,2,0) -> (3,308) | AO212: =HLOOKUP(AM212,O211:AI212,2,0) -> 17,656 | AP212: =(AO212*AL212-AN212*AM212)/(AO212-AN212) -> 369,240
O213: 100% | P213: =IF(P212<0,1,IF(O212<0,P$170,O213)) -> 100% | Q213: =IF(Q212<0,1,IF(P212<0,Q$170,P213)) -> 100% | R213: =IF(R212<0,1,IF(Q212<0,R$170,Q213)) -> 100% | S213: =IF(S212<0,1,IF(R212<0,S$170,R213)) -> 100% | T213: =IF(T212<0,1,IF(S212<0,T$170,S213)) -> 100% | U213: =IF(U212<0,1,IF(T212<0,U$170,T213)) -> 100% | V213: =IF(V212<0,1,IF(U212<0,V$170,U213)) -> 100% | W213: =IF(W212<0,1,IF(V212<0,W$170,V213)) -> 100% | X213: =IF(X212<0,1,IF(W212<0,X$170,W213)) -> 100% | Y213: =IF(Y212<0,1,IF(X212<0,Y$170,X213)) -> 100% | Z213: =IF(Z212<0,1,IF(Y212<0,Z$170,Y213)) -> 100% | AA213: =IF(AA212<0,1,IF(Z212<0,AA$170,Z213)) -> 100% | AB213: =IF(AB212<0,1,IF(AA212<0,AB$170,AA213)) -> 100% | AC213: =IF(AC212<0,1,IF(AB212<0,AC$170,AB213)) -> 100% | AD213: =IF(AD212<0,1,IF(AC212<0,AD$170,AC213)) -> 100% | AE213: =IF(AE212<0,1,IF(AD212<0,AE$170,AD213)) -> 32% | AF213: =IF(AF212<0,1,IF(AE212<0,AF$170,AE213)) -> 32% | AG213: 32% | AH213: 32% | AI213: 32%
O215: 0% | P215: =O215+2% -> 2% | Q215: =P215+2% -> 4% | R215: 6% | S215: 8% | T215: 10% | U215: 12% | V215: 14% | W215: 16% | X215: 18% | Y215: 20% | Z215: 22% | AA215: 24% | AB215: 26% | AC215: 28% | AD215: 30% | AE215: 32% | AF215: 34% | AG215: 36% | AH215: 38% | AI215: 40%
O216: =$M217*(1+O215) -> 290,854 | P216: 296,671 | Q216: 302,488 | R216: 308,305 | S216: 314,122 | T216: 319,939 | U216: 325,756 | V216: 331,573 | W216: 337,390 | X216: 343,207 | Y216: 349,024 | Z216: 354,841 | AA216: 360,658 | AB216: =$M217*(1+AB215) -> 366,475 | AC216: 372,293 | AD216: 378,110 | AE216: 383,927 | AF216: 389,744 | AG216: =$M217*(1+AG215) -> 395,561 | AH216: 401,378 | AI216: 407,195
L217: =L212+1% -> 9% | M217: =-NPV(L217,'Modelo financeiro alvo'!$H$182:$BM$182)/NPV(L217,'Modelo financeiro alvo'!$H$19:$BM$19) -> 290,854 | N217: =NPV($L217,'Modelo financeiro alvo'!$H$189:$BM$189) -> 164,074 | O217: -298,465 | P217: -284,013 | Q217: -262,556 | R217: -241,397 | S217: -220,680 | T217: -200,776 | U217: -181,245 | V217: -162,093 | W217: -142,972 | X217: -123,904 | Y217: -104,900 | Z217: -85,885 | AA217: -66,931 | AB217: -48,023 | AC217: -29,105 | AD217: -10,190 | AE217: 8,635 | AF217: 27,457 | AG217: 46,281 | AH217: 65,115 | AI217: 83,894 | AL217: =HLOOKUP(MIN(O218:AI218)-2%,O215:AI216,2,0) -> 378,110 | AM217: =HLOOKUP(MIN(O218:AI218),O215:AI216,2,0) -> 383,927 | AN217: =HLOOKUP(AL217,O216:AI217,2,0) -> (10,190) | AO217: =HLOOKUP(AM217,O216:AI217,2,0) -> 8,635 | AP217: =(AO217*AL217-AN217*AM217)/(AO217-AN217) -> 381,258
O218: 100% | P218: =IF(P217<0,1,IF(O217<0,P$170,O218)) -> 100% | Q218: =IF(Q217<0,1,IF(P217<0,Q$170,P218)) -> 100% | R218: =IF(R217<0,1,IF(Q217<0,R$170,Q218)) -> 100% | S218: =IF(S217<0,1,IF(R217<0,S$170,R218)) -> 100% | T218: =IF(T217<0,1,IF(S217<0,T$170,S218)) -> 100% | U218: =IF(U217<0,1,IF(T217<0,U$170,T218)) -> 100% | V218: =IF(V217<0,1,IF(U217<0,V$170,U218)) -> 100% | W218: =IF(W217<0,1,IF(V217<0,W$170,V218)) -> 100% | X218: =IF(X217<0,1,IF(W217<0,X$170,W218)) -> 100% | Y218: =IF(Y217<0,1,IF(X217<0,Y$170,X218)) -> 100% | Z218: =IF(Z217<0,1,IF(Y217<0,Z$170,Y218)) -> 100% | AA218: =IF(AA217<0,1,IF(Z217<0,AA$170,Z218)) -> 100% | AB218: =IF(AB217<0,1,IF(AA217<0,AB$170,AA218)) -> 100% | AC218: =IF(AC217<0,1,IF(AB217<0,AC$170,AB218)) -> 100% | AD218: =IF(AD217<0,1,IF(AC217<0,AD$170,AC218)) -> 100% | AE218: =IF(AE217<0,1,IF(AD217<0,AE$170,AD218)) -> 32% | AF218: =IF(AF217<0,1,IF(AE217<0,AF$170,AE218)) -> 32% | AG218: 32% | AH218: 32% | AI218: 32%
O220: 0% | P220: =O220+2% -> 2% | Q220: =P220+2% -> 4% | R220: 6% | S220: 8% | T220: 10% | U220: 12% | V220: 14% | W220: 16% | X220: 18% | Y220: 20% | Z220: 22% | AA220: 24% | AB220: 26% | AC220: 28% | AD220: 30% | AE220: 32% | AF220: 34% | AG220: 36% | AH220: 38% | AI220: 40%
O221: =$M222*(1+O220) -> 298,466 | P221: 304,436 | Q221: 310,405 | R221: 316,374 | S221: 322,344 | T221: 328,313 | U221: 334,282 | V221: 340,252 | W221: 346,221 | X221: 352,190 | Y221: 358,160 | Z221: 364,129 | AA221: 370,098 | AB221: =$M222*(1+AB220) -> 376,068 | AC221: 382,037 | AD221: 388,006 | AE221: 393,976 | AF221: 399,945 | AG221: =$M222*(1+AG220) -> 405,914 | AH221: 411,884 | AI221: 417,853
L222: =L217+1% -> 10% | M222: =-NPV(L222,'Modelo financeiro alvo'!$H$182:$BM$182)/NPV(L222,'Modelo financeiro alvo'!$H$19:$BM$19) -> 298,466 | N222: =NPV($L222,'Modelo financeiro alvo'!$H$189:$BM$189) -> 109,707 | O222: -274,155 | P222: -261,200 | Q222: -242,098 | R222: -223,413 | S222: -205,462 | T222: -187,864 | U222: -170,517 | V222: -153,159 | W222: -135,917 | X222: -118,675 | Y222: -101,435 | Z222: -84,299 | AA222: -67,153 | AB222: -49,996 | AC222: -32,917 | AD222: -15,862 | AE222: 1,189 | AF222: 18,249 | AG222: 35,277 | AH222: 52,255 | AI222: 69,238 | AL222: =HLOOKUP(MIN(O223:AI223)-2%,O220:AI221,2,0) -> 388,006 | AM222: =HLOOKUP(MIN(O223:AI223),O220:AI221,2,0) -> 393,976 | AN222: =HLOOKUP(AL222,O221:AI222,2,0) -> (15,862) | AO222: =HLOOKUP(AM222,O221:AI222,2,0) -> 1,189 | AP222: =(AO222*AL222-AN222*AM222)/(AO222-AN222) -> 393,559
O223: 100% | P223: =IF(P222<0,1,IF(O222<0,P$170,O223)) -> 100% | Q223: =IF(Q222<0,1,IF(P222<0,Q$170,P223)) -> 100% | R223: =IF(R222<0,1,IF(Q222<0,R$170,Q223)) -> 100% | S223: =IF(S222<0,1,IF(R222<0,S$170,R223)) -> 100% | T223: =IF(T222<0,1,IF(S222<0,T$170,S223)) -> 100% | U223: =IF(U222<0,1,IF(T222<0,U$170,T223)) -> 100% | V223: =IF(V222<0,1,IF(U222<0,V$170,U223)) -> 100% | W223: =IF(W222<0,1,IF(V222<0,W$170,V223)) -> 100% | X223: =IF(X222<0,1,IF(W222<0,X$170,W223)) -> 100% | Y223: =IF(Y222<0,1,IF(X222<0,Y$170,X223)) -> 100% | Z223: =IF(Z222<0,1,IF(Y222<0,Z$170,Y223)) -> 100% | AA223: =IF(AA222<0,1,IF(Z222<0,AA$170,Z223)) -> 100% | AB223: =IF(AB222<0,1,IF(AA222<0,AB$170,AA223)) -> 100% | AC223: =IF(AC222<0,1,IF(AB222<0,AC$170,AB223)) -> 100% | AD223: =IF(AD222<0,1,IF(AC222<0,AD$170,AC223)) -> 100% | AE223: =IF(AE222<0,1,IF(AD222<0,AE$170,AD223)) -> 32% | AF223: =IF(AF222<0,1,IF(AE222<0,AF$170,AE223)) -> 32% | AG223: 32% | AH223: 32% | AI223: 32%
O225: 0% | P225: =O225+2% -> 2% | Q225: =P225+2% -> 4% | R225: 6% | S225: 8% | T225: 10% | U225: 12% | V225: 14% | W225: 16% | X225: 18% | Y225: 20% | Z225: 22% | AA225: 24% | AB225: 26% | AC225: 28% | AD225: 30% | AE225: 32% | AF225: 34% | AG225: 36% | AH225: 38% | AI225: 40%
O226: =$M227*(1+O225) -> 306,170 | P226: 312,293 | Q226: 318,416 | R226: 324,540 | S226: 330,663 | T226: 336,787 | U226: 342,910 | V226: 349,033 | W226: 355,157 | X226: 361,280 | Y226: 367,404 | Z226: 373,527 | AA226: 379,650 | AB226: =$M227*(1+AB225) -> 385,774 | AC226: 391,897 | AD226: 398,020 | AE226: 404,144 | AF226: 410,267 | AG226: =$M227*(1+AG225) -> 416,391 | AH226: 422,514 | AI226: 428,637
L227: =L222+1% -> 11% | M227: =-NPV(L227,'Modelo financeiro alvo'!$H$182:$BM$182)/NPV(L227,'Modelo financeiro alvo'!$H$19:$BM$19) -> 306,170 | N227: =NPV($L227,'Modelo financeiro alvo'!$H$189:$BM$189) -> 65,536 | O227: -252,883 | P227: -241,374 | Q227: -224,614 | R227: -208,301 | S227: -192,421 | T227: -176,608 | U227: -160,832 | V227: -145,133 | W227: -129,424 | X227: -113,780 | Y227: -98,176 | Z227: -82,563 | AA227: -66,979 | AB227: -51,460 | AC227: -35,953 | AD227: -20,437 | AE227: -4,924 | AF227: 10,512 | AG227: 25,947 | AH227: 41,400 | AI227: 56,865 | AL227: =HLOOKUP(MIN(O228:AI228)-2%,O225:AI226,2,0) -> 404,144 | AM227: =HLOOKUP(MIN(O228:AI228),O225:AI226,2,0) -> 410,267 | AN227: =HLOOKUP(AL227,O226:AI227,2,0) -> (4,924) | AO227: =HLOOKUP(AM227,O226:AI227,2,0) -> 10,512 | AP227: =(AO227*AL227-AN227*AM227)/(AO227-AN227) -> 406,097
O228: 100% | P228: =IF(P227<0,1,IF(O227<0,P$170,O228)) -> 100% | Q228: =IF(Q227<0,1,IF(P227<0,Q$170,P228)) -> 100% | R228: =IF(R227<0,1,IF(Q227<0,R$170,Q228)) -> 100% | S228: =IF(S227<0,1,IF(R227<0,S$170,R228)) -> 100% | T228: =IF(T227<0,1,IF(S227<0,T$170,S228)) -> 100% | U228: =IF(U227<0,1,IF(T227<0,U$170,T228)) -> 100% | V228: =IF(V227<0,1,IF(U227<0,V$170,U228)) -> 100% | W228: =IF(W227<0,1,IF(V227<0,W$170,V228)) -> 100% | X228: =IF(X227<0,1,IF(W227<0,X$170,W228)) -> 100% | Y228: =IF(Y227<0,1,IF(X227<0,Y$170,X228)) -> 100% | Z228: =IF(Z227<0,1,IF(Y227<0,Z$170,Y228)) -> 100% | AA228: =IF(AA227<0,1,IF(Z227<0,AA$170,Z228)) -> 100% | AB228: =IF(AB227<0,1,IF(AA227<0,AB$170,AA228)) -> 100% | AC228: =IF(AC227<0,1,IF(AB227<0,AC$170,AB228)) -> 100% | AD228: =IF(AD227<0,1,IF(AC227<0,AD$170,AC228)) -> 100% | AE228: =IF(AE227<0,1,IF(AD227<0,AE$170,AD228)) -> 100% | AF228: =IF(AF227<0,1,IF(AE227<0,AF$170,AE228)) -> 34% | AG228: 34% | AH228: 34% | AI228: 34%
O230: 0% | P230: =O230+2% -> 2% | Q230: =P230+2% -> 4% | R230: 6% | S230: 8% | T230: 10% | U230: 12% | V230: 14% | W230: 16% | X230: 18% | Y230: 20% | Z230: 22% | AA230: 24% | AB230: 26% | AC230: 28% | AD230: 30% | AE230: 32% | AF230: 34% | AG230: 36% | AH230: 38% | AI230: 40%
O231: =$M232*(1+O230) -> 313,953 | P231: 320,232 | Q231: 326,511 | R231: 332,790 | S231: 339,069 | T231: 345,348 | U231: 351,627 | V231: 357,906 | W231: 364,186 | X231: 370,465 | Y231: 376,744 | Z231: 383,023 | AA231: 389,302 | AB231: =$M232*(1+AB230) -> 395,581 | AC231: 401,860 | AD231: 408,139 | AE231: 414,418 | AF231: 420,697 | AG231: =$M232*(1+AG230) -> 426,976 | AH231: 433,255 | AI231: 439,534
L232: =L227+1% -> 12% | M232: =-NPV(L232,'Modelo financeiro alvo'!$H$182:$BM$182)/NPV(L232,'Modelo financeiro alvo'!$H$19:$BM$19) -> 313,953 | N232: =NPV($L232,'Modelo financeiro alvo'!$H$189:$BM$189) -> 29,599 | O232: -234,564 | P232: -224,581 | Q232: -209,816 | R232: -195,331 | S232: -180,862 | T232: -166,477 | U232: -152,120 | V232: -137,756 | W232: -123,503 | X232: -109,241 | Y232: -94,969 | Z232: -80,785 | AA232: -66,619 | AB232: -52,455 | AC232: -38,281 | AD232: -24,173 | AE232: -10,089 | AF232: 4,009 | AG232: 18,119 | AH232: 32,240 | AI232: 46,372 | AL232: =HLOOKUP(MIN(O233:AI233)-2%,O230:AI231,2,0) -> 414,418 | AM232: =HLOOKUP(MIN(O233:AI233),O230:AI231,2,0) -> 420,697 | AN232: =HLOOKUP(AL232,O231:AI232,2,0) -> (10,089) | AO232: =HLOOKUP(AM232,O231:AI232,2,0) -> 4,009 | AP232: =(AO232*AL232-AN232*AM232)/(AO232-AN232) -> 418,912
O233: 100% | P233: =IF(P232<0,1,IF(O232<0,P$170,O233)) -> 100% | Q233: =IF(Q232<0,1,IF(P232<0,Q$170,P233)) -> 100% | R233: =IF(R232<0,1,IF(Q232<0,R$170,Q233)) -> 100% | S233: =IF(S232<0,1,IF(R232<0,S$170,R233)) -> 100% | T233: =IF(T232<0,1,IF(S232<0,T$170,S233)) -> 100% | U233: =IF(U232<0,1,IF(T232<0,U$170,T233)) -> 100% | V233: =IF(V232<0,1,IF(U232<0,V$170,U233)) -> 100% | W233: =IF(W232<0,1,IF(V232<0,W$170,V233)) -> 100% | X233: =IF(X232<0,1,IF(W232<0,X$170,W233)) -> 100% | Y233: =IF(Y232<0,1,IF(X232<0,Y$170,X233)) -> 100% | Z233: =IF(Z232<0,1,IF(Y232<0,Z$170,Y233)) -> 100% | AA233: =IF(AA232<0,1,IF(Z232<0,AA$170,Z233)) -> 100% | AB233: =IF(AB232<0,1,IF(AA232<0,AB$170,AA233)) -> 100% | AC233: =IF(AC232<0,1,IF(AB232<0,AC$170,AB233)) -> 100% | AD233: =IF(AD232<0,1,IF(AC232<0,AD$170,AC233)) -> 100% | AE233: =IF(AE232<0,1,IF(AD232<0,AE$170,AD233)) -> 100% | AF233: =IF(AF232<0,1,IF(AE232<0,AF$170,AE233)) -> 34% | AG233: 34% | AH233: 34% | AI233: 34%
O235: 0% | P235: =O235+2% -> 2% | Q235: =P235+2% -> 4% | R235: 6% | S235: 8% | T235: 10% | U235: 12% | V235: 14% | W235: 16% | X235: 18% | Y235: 20% | Z235: 22% | AA235: 24% | AB235: 26% | AC235: 28% | AD235: 30% | AE235: 32% | AF235: 34% | AG235: 36% | AH235: 38% | AI235: 40%
O236: =$M237*(1+O235) -> 321,808 | P236: 328,244 | Q236: 334,680 | R236: 341,116 | S236: 347,552 | T236: 353,988 | U236: 360,425 | V236: 366,861 | W236: 373,297 | X236: 379,733 | Y236: 386,169 | Z236: 392,605 | AA236: 399,041 | AB236: =$M237*(1+AB235) -> 405,478 | AC236: 411,914 | AD236: 418,350 | AE236: 424,786 | AF236: 431,222 | AG236: =$M237*(1+AG235) -> 437,658 | AH236: 444,095 | AI236: 450,531
L237: =L232+1% -> 13% | M237: =-NPV(L237,'Modelo financeiro alvo'!$H$182:$BM$182)/NPV(L237,'Modelo financeiro alvo'!$H$19:$BM$19) -> 321,808 | N237: =NPV($L237,'Modelo financeiro alvo'!$H$189:$BM$189) -> 341 | O237: -219,086 | P237: -210,139 | Q237: -196,947 | R237: -183,666 | S237: -170,498 | T237: -157,321 | U237: -144,184 | V237: -131,111 | W237: -118,027 | X237: -104,971 | Y237: -91,982 | Z237: -79,007 | AA237: -66,023 | AB237: -53,061 | AC237: -40,162 | AD237: -27,258 | AE237: -14,339 | AF237: -1,409 | AG237: 11,531 | AH237: 24,481 | AI237: 37,406 | AL237: =HLOOKUP(MIN(O238:AI238)-2%,O235:AI236,2,0) -> 431,222 | AM237: =HLOOKUP(MIN(O238:AI238),O235:AI236,2,0) -> 437,658 | AN237: =HLOOKUP(AL237,O236:AI237,2,0) -> (1,409) | AO237: =HLOOKUP(AM237,O236:AI237,2,0) -> 11,531 | AP237: =(AO237*AL237-AN237*AM237)/(AO237-AN237) -> 431,923
O238: 100% | P238: =IF(P237<0,1,IF(O237<0,P$170,O238)) -> 100% | Q238: =IF(Q237<0,1,IF(P237<0,Q$170,P238)) -> 100% | R238: =IF(R237<0,1,IF(Q237<0,R$170,Q238)) -> 100% | S238: =IF(S237<0,1,IF(R237<0,S$170,R238)) -> 100% | T238: =IF(T237<0,1,IF(S237<0,T$170,S238)) -> 100% | U238: =IF(U237<0,1,IF(T237<0,U$170,T238)) -> 100% | V238: =IF(V237<0,1,IF(U237<0,V$170,U238)) -> 100% | W238: =IF(W237<0,1,IF(V237<0,W$170,V238)) -> 100% | X238: =IF(X237<0,1,IF(W237<0,X$170,W238)) -> 100% | Y238: =IF(Y237<0,1,IF(X237<0,Y$170,X238)) -> 100% | Z238: =IF(Z237<0,1,IF(Y237<0,Z$170,Y238)) -> 100% | AA238: =IF(AA237<0,1,IF(Z237<0,AA$170,Z238)) -> 100% | AB238: =IF(AB237<0,1,IF(AA237<0,AB$170,AA238)) -> 100% | AC238: =IF(AC237<0,1,IF(AB237<0,AC$170,AB238)) -> 100% | AD238: =IF(AD237<0,1,IF(AC237<0,AD$170,AC238)) -> 100% | AE238: =IF(AE237<0,1,IF(AD237<0,AE$170,AD238)) -> 100% | AF238: =IF(AF237<0,1,IF(AE237<0,AF$170,AE238)) -> 100% | AG238: 36% | AH238: 36% | AI238: 36%
O240: 0% | P240: =O240+2% -> 2% | Q240: =P240+2% -> 4% | R240: 6% | S240: 8% | T240: 10% | U240: 12% | V240: 14% | W240: 16% | X240: 18% | Y240: 20% | Z240: 22% | AA240: 24% | AB240: 26% | AC240: 28% | AD240: 30% | AE240: 32% | AF240: 34% | AG240: 36% | AH240: 38% | AI240: 40%
O241: =$M242*(1+O240) -> 329,725 | P241: 336,320 | Q241: 342,914 | R241: 349,509 | S241: 356,103 | T241: 362,698 | U241: 369,292 | V241: 375,887 | W241: 382,481 | X241: 389,076 | Y241: 395,671 | Z241: 402,265 | AA241: 408,860 | AB241: =$M242*(1+AB240) -> 415,454 | AC241: 422,049 | AD241: 428,643 | AE241: 435,238 | AF241: 441,832 | AG241: =$M242*(1+AG240) -> 448,427 | AH241: 455,021 | AI241: 461,616
L242: =L237+1% -> 14% | M242: =-NPV(L242,'Modelo financeiro alvo'!$H$182:$BM$182)/NPV(L242,'Modelo financeiro alvo'!$H$19:$BM$19) -> 329,725 | N242: =NPV($L242,'Modelo financeiro alvo'!$H$189:$BM$189) -> -23,477 | O242: -205,714 | P242: -197,468 | Q242: -185,344 | R242: -173,221 | S242: -161,087 | T242: -149,032 | U242: -137,000 | V242: -124,958 | W242: -112,989 | X242: -101,052 | Y242: -89,119 | Z242: -77,177 | AA242: -65,307 | AB242: -53,458 | AC242: -41,592 | AD242: -29,716 | AE242: -17,829 | AF242: -5,932 | AG242: 5,964 | AH242: 17,802 | AI242: 29,651 | AL242: =HLOOKUP(MIN(O243:AI243)-2%,O240:AI241,2,0) -> 441,832 | AM242: =HLOOKUP(MIN(O243:AI243),O240:AI241,2,0) -> 448,427 | AN242: =HLOOKUP(AL242,O241:AI242,2,0) -> (5,932) | AO242: =HLOOKUP(AM242,O241:AI242,2,0) -> 5,964 | AP242: =(AO242*AL242-AN242*AM242)/(AO242-AN242) -> 445,121
O243: 100% | P243: =IF(P242<0,1,IF(O242<0,P$170,O243)) -> 100% | Q243: =IF(Q242<0,1,IF(P242<0,Q$170,P243)) -> 100% | R243: =IF(R242<0,1,IF(Q242<0,R$170,Q243)) -> 100% | S243: =IF(S242<0,1,IF(R242<0,S$170,R243)) -> 100% | T243: =IF(T242<0,1,IF(S242<0,T$170,S243)) -> 100% | U243: =IF(U242<0,1,IF(T242<0,U$170,T243)) -> 100% | V243: =IF(V242<0,1,IF(U242<0,V$170,U243)) -> 100% | W243: =IF(W242<0,1,IF(V242<0,W$170,V243)) -> 100% | X243: =IF(X242<0,1,IF(W242<0,X$170,W243)) -> 100% | Y243: =IF(Y242<0,1,IF(X242<0,Y$170,X243)) -> 100% | Z243: =IF(Z242<0,1,IF(Y242<0,Z$170,Y243)) -> 100% | AA243: =IF(AA242<0,1,IF(Z242<0,AA$170,Z243)) -> 100% | AB243: =IF(AB242<0,1,IF(AA242<0,AB$170,AA243)) -> 100% | AC243: =IF(AC242<0,1,IF(AB242<0,AC$170,AB243)) -> 100% | AD243: =IF(AD242<0,1,IF(AC242<0,AD$170,AC243)) -> 100% | AE243: =IF(AE242<0,1,IF(AD242<0,AE$170,AD243)) -> 100% | AF243: =IF(AF242<0,1,IF(AE242<0,AF$170,AE243)) -> 100% | AG243: 36% | AH243: 36% | AI243: 36%
O245: 0% | P245: =O245+2% -> 2% | Q245: =P245+2% -> 4% | R245: 6% | S245: 8% | T245: 10% | U245: 12% | V245: 14% | W245: 16% | X245: 18% | Y245: 20% | Z245: 22% | AA245: 24% | AB245: 26% | AC245: 28% | AD245: 30% | AE245: 32% | AF245: 34% | AG245: 36% | AH245: 38% | AI245: 40%
O246: =$M247*(1+O245) -> 337,700 | P246: 344,454 | Q246: 351,208 | R246: 357,962 | S246: 364,716 | T246: 371,470 | U246: 378,224 | V246: 384,978 | W246: 391,732 | X246: 398,486 | Y246: 405,240 | Z246: 411,994 | AA246: 418,748 | AB246: =$M247*(1+AB245) -> 425,502 | AC246: 432,256 | AD246: 439,010 | AE246: 445,764 | AF246: 452,518 | AG246: =$M247*(1+AG245) -> 459,272 | AH246: 466,026 | AI246: 472,780
L247: =L242+1% -> 15% | M247: =-NPV(L247,'Modelo financeiro alvo'!$H$182:$BM$182)/NPV(L247,'Modelo financeiro alvo'!$H$19:$BM$19) -> 337,700 | N247: =NPV($L247,'Modelo financeiro alvo'!$H$189:$BM$189) -> -42,848 | O247: -193,727 | P247: -186,021 | Q247: -174,899 | R247: -163,693 | S247: -152,595 | T247: -141,488 | U247: -130,378 | V247: -119,365 | W247: -108,362 | X247: -97,354 | Y247: -86,362 | Z247: -75,440 | AA247: -64,514 | AB247: -53,572 | AC247: -42,621 | AD247: -31,660 | AE247: -20,690 | AF247: -9,767 | AG247: 1,145 | AH247: 12,066 | AI247: 22,998 | AL247: =HLOOKUP(MIN(O248:AI248)-2%,O245:AI246,2,0) -> 452,518 | AM247: =HLOOKUP(MIN(O248:AI248),O245:AI246,2,0) -> 459,272 | AN247: =HLOOKUP(AL247,O246:AI247,2,0) -> (9,767) | AO247: =HLOOKUP(AM247,O246:AI247,2,0) -> 1,145 | AP247: =(AO247*AL247-AN247*AM247)/(AO247-AN247) -> 458,563
O248: 100% | P248: =IF(P247<0,1,IF(O247<0,P$170,O248)) -> 100% | Q248: =IF(Q247<0,1,IF(P247<0,Q$170,P248)) -> 100% | R248: =IF(R247<0,1,IF(Q247<0,R$170,Q248)) -> 100% | S248: =IF(S247<0,1,IF(R247<0,S$170,R248)) -> 100% | T248: =IF(T247<0,1,IF(S247<0,T$170,S248)) -> 100% | U248: =IF(U247<0,1,IF(T247<0,U$170,T248)) -> 100% | V248: =IF(V247<0,1,IF(U247<0,V$170,U248)) -> 100% | W248: =IF(W247<0,1,IF(V247<0,W$170,V248)) -> 100% | X248: =IF(X247<0,1,IF(W247<0,X$170,W248)) -> 100% | Y248: =IF(Y247<0,1,IF(X247<0,Y$170,X248)) -> 100% | Z248: =IF(Z247<0,1,IF(Y247<0,Z$170,Y248)) -> 100% | AA248: =IF(AA247<0,1,IF(Z247<0,AA$170,Z248)) -> 100% | AB248: =IF(AB247<0,1,IF(AA247<0,AB$170,AA248)) -> 100% | AC248: =IF(AC247<0,1,IF(AB247<0,AC$170,AB248)) -> 100% | AD248: =IF(AD247<0,1,IF(AC247<0,AD$170,AC248)) -> 100% | AE248: =IF(AE247<0,1,IF(AD247<0,AE$170,AD248)) -> 100% | AF248: =IF(AF247<0,1,IF(AE247<0,AF$170,AE248)) -> 100% | AG248: 36% | AH248: 36% | AI248: 36%
O250: 0% | P250: =O250+2% -> 2% | Q250: =P250+2% -> 4% | R250: 6% | S250: 8% | T250: 10% | U250: 12% | V250: 14% | W250: 16% | X250: 18% | Y250: 20% | Z250: 22% | AA250: 24% | AB250: 26% | AC250: 28% | AD250: 30% | AE250: 32% | AF250: 34% | AG250: 36% | AH250: 38% | AI250: 40%
O251: =$M252*(1+O250) -> 345,725 | P251: 352,639 | Q251: 359,554 | R251: 366,468 | S251: 373,383 | T251: 380,297 | U251: 387,212 | V251: 394,126 | W251: 401,041 | X251: 407,955 | Y251: 414,870 | Z251: 421,784 | AA251: 428,699 | AB251: =$M252*(1+AB250) -> 435,613 | AC251: 442,528 | AD251: 449,442 | AE251: 456,357 | AF251: 463,271 | AG251: =$M252*(1+AG250) -> 470,186 | AH251: 477,100 | AI251: 484,015
... 18 more rows

Sheet Biblioteca dados investimentos
B2: BIBLIOTECA DADOS INVESTIMENTOS
B6: Expectativa de aumento médio de custo de investimento e operações fixas em relação à referência do Estado de São Paulo | F6: Cronograma de construção com start up no início do ano N | L6: Cronograma de reinvestimento com start up no início do ano N e encerremanto das operações no fim do ano F
B9: Estado | C9: Aumento investimento e Opex fixo em relação à referência SP | F9: Etapa | G9: Ano | I9: Proporção do investimento total da etapa gasto durante o ano | L9: Ano | N9: Proporção do Capex de construção inicial considerado reinvestido no ano
B10: Acre | C10: 10% | I10: Padrão de construção em 2 anos e de reinvestimento regular | N10: Padrão de construção em 2 anos e de reinvestimento regular
B11: Alagoas | C11: 10%
B12: Amapá | C12: 15% | F12: Desenvolvimento | G12: N - 4 | I12: 0% | L12: N | N12: 1.0%
B13: Amazonas | C13: 20% | G13: N - 3 | I13: 100% | L13: N + 1 | N13: 1.5%
B14: Bahia | C14: 15% | G14: N - 2 | I14: 0% | L14: N + 2 | N14: 1.5%
B15: Ceará | C15: 15% | G15: N - 1 | I15: 0% | L15: N + 3 a F - 3 | N15: 2.0%
B16: Distrito Federal | C16: 5% | G16: N | I16: 0% | L16: F - 2 | N16: 1.5%
B17: Espírito Santo | C17: 10% | F17: Construção | G17: N - 4 | I17: 0% | L17: F - 1 | N17: 1.0%
B18: Goiás | C18: 5% | G18: N - 3 | I18: 0% | L18: F | N18: 0.5%
B19: Maranhão | C19: 10% | G19: N - 2 | I19: 50%
B20: Mato Grosso | C20: 10% | G20: N - 1 | I20: 49%
B21: Mato Grosso do Sul | C21: 5% | G21: N | I21: 1%
B22: Minas Gerais | C22: 10% | I22: -2
B23: Pará | C23: 15%
B24: Paraíba | C24: 10%
B25: Paraná | C25: 0%
B26: Pernambuco | C26: 5%
B27: Piauí | C27: 10%
B28: Rio de Janeiro | C28: 0%
B29: Rio Grande do Norte | C29: 5%
B30: Rio Grande do Sul | C30: 5%
B31: Rondônia | C31: 10%
B32: Roraima | C32: 20%
B33: Santa Catarina | C33: 0%
B34: São Paulo | C34: 0%
B35: Sergipe | C35: 10%
B36: Tocantins | C36: 10%
B38: Descrição e Explicações:

Sheet Biblioteca CAPM
B2: BIBLIOTECA CAPM
B4: Resultado do Modelo CAPM - Base 2017
B6: Categoria | C6: Item | D6: Valor | E6: Atualizado em: | F6: Fonte
B7: Taxa de juros reais sem risco 20 anos | C7: Média de 01/01/2012 até 31/08/2017 das taxas de compra de títulos do Tesouro Direto de maturidade cerca 20 anos, líquidas de taxas e impostos | D7: 4.22% | E7: 2017
B8: Prêmio de risco do mercado brasileiro de ações | C8: Damodaram | D8: 9.64% | E8: 2017 | F8: Country Default Spreads and Risk Premiuns - NYU Stern
C9: Pablo Fernandez e al. | D9: 9.60% | E9: 2017 | F9: Discount Rate (Risk-Free Rate and Market Risk Premium) used for 41 countries in 2017: a survey - Pablo Fernandez
C10: Média | D10: =AVERAGE(D8:D9) -> 9.62%
B11: Beta setorial com alavancagem | C11: Empresas do setor energético para países emergentes, conforme Damodaran | D11: 0.81 | E11: 2017 | F11: Beta, Unlevered beta and other risk measures - NYU Stern
B12: Taxa de retorno do capital próprio de uma empresa do ramo de energia listada na bolsa brasileira | D12: =D7+D10*D11 -> 12.0%
B14: Descrição e Explicações:

Sheet Biblioteca de incentivos
B2: BIBLIOTECA DE INCENTIVOS
B4: DESCONTO DE TUST / TUSD PARA TERMELÉTRICAS A BIOMASSA | G4: SUDENE / SUDAM
B6: Definição do incentivo | G6: Definição do incentivo
B7: Capacidade máxima para desconto | C7: 300.00 | D7: MW | G7: Redução de IRPJ | H7: 75%
B8: Taxa reduzida | C8: 50% | G8: Período | H8: 10 | I8: anos a partir do pedido
G9: Praxo de vida de equipamento e material | H9: 12 | I9: meses para fins fiscais
B11: ISENÇÃO DE P&D PARA TERMELÉTRICAS A BIOMASSA | G11: Eligibilidade
G12: Estado | H12: Programa | I12: Comentário | K12: Municípios MG | L12: Eligibilidade
B13: Definição do incentivo | F13: 1 | G13: Distrito Federal | H13: Não | K13: Águas Formosas | L13: MG
B14: Isenção de P&D | F14: 2 | G14: Goiás | H14: Não | K14: Águas Vermelhas | L14: MG
F15: 3 | G15: Mato Grosso do Sul | H15: Não | K15: Almenara | L15: MG
B16: SELEÇÃO ATUAL | F16: 4 | G16: Paraná | H16: Não | K16: Angelândia | L16: MG
F17: 5 | G17: Rio de Janeiro | H17: Não | K17: Araçuaí | L17: MG
B18: Estado | C18: Eligibilidade | F18: 6 | G18: Rio Grande do Sul | H18: Não | K18: Aricanduva | L18: MG
B19: ='Premissas do projeto'!G13 -> Mato Grosso do Sul | C19: =VLOOKUP(MATCH(B19,G13:G39,0),F13:H39,3) -> Não | F19: 7 | G19: Santa Catarina | H19: Não | K19: Arinos | L19: MG
F20: 8 | G20: São Paulo | H20: Não | K20: Ataléia | L20: MG
F21: 9 | G21: Acre | H21: Sudam | K21: Bandeira | L21: MG
F22: 10 | G22: Amapá | H22: Sudam | K22: Berilo | L22: MG
F23: 11 | G23: Amazonas | H23: Sudam | K23: Berizal | L23: MG
F24: 12 | G24: Mato Grosso | H24: Sudam | K24: Bertópolis | L24: MG
F25: 13 | G25: Pará | H25: Sudam | K25: Bocaiúva | L25: MG
F26: 14 | G26: Rondônia | H26: Sudam | K26: Bonito de Minas | L26: MG
F27: 15 | G27: Roraima | H27: Sudam | K27: Botumirim | L27: MG
F28: 16 | G28: Tocantins | H28: Sudam | K28: Brasília de Minas | L28: MG
F29: 17 | G29: Alagoas | H29: Sudene | K29: Buritizeiro | L29: MG
F30: 18 | G30: Bahia | H30: Sudene | K30: Cachoeira de Pajeú | L30: MG
F31: 19 | G31: Ceará | H31: Sudene | K31: Campanário | L31: MG
F32: 20 | G32: Espírito Santo | H32: Sudene | I32: Somente municípios da lista na direta | K32: Campo Azul | L32: MG
F33: 21 | G33: Maranhão | H33: Sudene | K33: Capelinha | L33: MG
F34: 22 | G34: Minas Gerais | H34: Sudene | I34: Somente municípios da lista na direta | K34: Capitão Enéas | L34: MG
F35: 23 | G35: Paraíba | H35: Sudene | K35: Caraí | L35: MG
F36: 24 | G36: Pernambuco | H36: Sudene | K36: Carbonita | L36: MG
F37: 25 | G37: Piauí | H37: Sudene | K37: Carlos Chagas | L37: MG
F38: 26 | G38: Rio Grande do Norte | H38: Sudene | K38: Catuji | L38: MG
F39: 27 | G39: Sergipe | H39: Sudene | K39: Catuti | L39: MG
K40: Chapada do Norte | L40: MG
B41: Descrição e Explicações: | K41: Chapada Gaúcha | L41: MG
K42: Claro dos Poções | L42: MG
K43: Comercinho | L43: MG
K44: Cônego Marinho | L44: MG
K45: Coração de Jesus | L45: MG
K46: Coronel Murta | L46: MG
K47: Couto de Magalhães de Minas | L47: MG
K48: Crisólita | L48: MG
K49: Cristália | L49: MG
K50: Curral de Dentro | L50: MG
K51: Datas | L51: MG
K52: Diamantina | L52: MG
K53: Divisa Alegre | L53: MG
K54: Divisópolis | L54: MG
K55: Engenheiro Navarro | L55: MG
K56: Espinosa | L56: MG
K57: Felício dos Santos | L57: MG
K58: Felisburgo | L58: MG
K59: Formoso | L59: MG
K60: Francisco Badaró | L60: MG
K61: Francisco Dumont | L61: MG
K62: Francisco Sá | L62: MG
K63: Franciscópolis | L63: MG
K64: Frei Gaspar | L64: MG
K65: Fronteira dos Vales | L65: MG
K66: Fruta de Leite | L66: MG
K67: Gameleiras | L67: MG
K68: Glaucilândia | L68: MG
K69: Grão Mogol | L69: MG
K70: Guaraciama | L70: MG
K71: Ibiaí | L71: MG
K72: Ibiracatu | L72: MG
K73: Icaraí de Minas | L73: MG
K74: Indaiabira | L74: MG
K75: Itacambira | L75: MG
K76: Itacarambi | L76: MG
K77: Itaipé | L77: MG
K78: Itamarandiba | L78: MG
K79: Itambacuri | L79: MG
K80: Itaobim | L80: MG
K81: Itinga | L81: MG
K82: Jacinto | L82: MG
K83: Jaíba | L83: MG
K84: Janaúba | L84: MG
K85: Januária | L85: MG
K86: Japonvar | L86: MG
K87: Jenipapo de Minas | L87: MG
K88: Jequitaí | L88: MG
K89: Jequitinhonha | L89: MG
K90: Joaíma | L90: MG
K91: Jordânia | L91: MG
K92: José Gonçalves de Minas | L92: MG
K93: Josenópolis | L93: MG
K94: Juramento | L94: MG
K95: Juvenília | L95: MG
K96: Ladainha | L96: MG
K97: Lagoa dos Patos | L97: MG
K98: Lassance | L98: MG
K99: Leme do Prado | L99: MG
K100: Lontra | L100: MG
K101: Luislândia | L101: MG
K102: Machacalis | L102: MG
K103: Malacacheta | L103: MG
K104: Mamonas | L104: MG
K105: Manga | L105: MG
K106: Mata Verde | L106: MG
K107: Matias Cardoso | L107: MG
K108: Mato Verde | L108: MG
K109: Medina | L109: MG
K110: Minas Novas | L110: MG
K111: Mirabela | L111: MG
K112: Miravânia | L112: MG
K113: Montalvânia | L113: MG
K114: Monte Azul | L114: MG
K115: Monte Formoso | L115: MG
K116: Montes Claros | L116: MG
K117: Montezuma | L117: MG
K118: Nanuque | L118: MG
K119: Ninheira | L119: MG
K120: Nova Porteirinha | L120: MG
K121: Novo Cruzeiro | L121: MG
K122: Novo Oriente de Minas | L122: MG
K123: Novorizonte | L123: MG
K124: Olhos-d'Água | L124: MG
K125: Ouro Verde de Minas | L125: MG
K126: Padre Carvalho | L126: MG
K127: Padre Paraíso | L127: MG
K128: Pai Pedro | L128: MG
K129: Palmópolis | L129: MG
K130: Patis | L130: MG
K131: Pavão | L131: MG
K132: Pedra Azul | L132: MG
K133: Pedras de Maria da Cruz | L133: MG
K134: Pescador | L134: MG
K135: Pintópolis | L135: MG
K136: Pirapora | L136: MG
K137: Ponto Chique | L137: MG
K138: Ponto dos Volantes | L138: MG
K139: Porteirinha | L139: MG
K140: Poté | L140: MG
K141: Riachinho | L141: MG
K142: Riacho dos Machados | L142: MG
K143: Rio do Prado | L143: MG
K144: Rio Pardo de Minas | L144: MG
K145: Rio Vermelho | L145: MG
K146: Rubelita | L146: MG
K147: Rubim | L147: MG
K148: Salinas | L148: MG
K149: Salto da Divisa | L149: MG
K150: Santa Cruz de Salinas | L150: MG
K151: Santa Fé de Minas | L151: MG
K152: Santa Helena de Minas | L152: MG
K153: Santa Maria do Salto | L153: MG
K154: Santo Antônio do Jacinto | L154: MG
K155: Santo Antônio do Retiro | L155: MG
K156: São Francisco | L156: MG
K157: São Gonçalo do Rio Preto | L157: MG
K158: São João da Lagoa | L158: MG
K159: São João da Ponte | L159: MG
K160: São João das Missões | L160: MG
K161: São João do Pacuí | L161: MG
K162: São João do Paraíso | L162: MG
K163: São Romão | L163: MG
K164: Senador Modestino Gonçalves | L164: MG
K165: Serra dos Aimorés | L165: MG
K166: Serranópolis de Minas | L166: MG
K167: Serro | L167: MG
K168: Setubinha | L168: MG
K169: Taiobeiras | L169: MG
K170: Teófilo Otoni | L170: MG
K171: Turmalina | L171: MG
K172: Ubaí | L172: MG
K173: Umburatiba | L173: MG
K174: Urucuia | L174: MG
K175: Vargem Grande do Rio Pardo | L175: MG
K176: Várzea da Palma | L176: MG
K177: Varzelândia | L177: MG
K178: Verdelândia | L178: MG
K179: Veredinha | L179: MG
K180: Virgem da Lapa | L180: MG
K181: Água Doce do Norte | L181: ES
K182: Águia Branca | L182: ES
K183: Alto Rio Novo | L183: ES
K184: Baixo Guandu | L184: ES
K185: Barra de São Francisco | L185: ES
K186: Boa Esperança | L186: ES
K187: Colatina | L187: ES
K188: Conceição da Barra | L188: ES
K189: Ecoporanga | L189: ES
K190: Governador Lindemberg | L190: ES
K191: Jaguaré | L191: ES
K192: Linhares | L192: ES
K193: Mantenópolis | L193: ES
K194: Marilândia | L194: ES
K195: Montanha | L195: ES
K196: Mucurici | L196: ES
K197: Nova Venécia | L197: ES
K198: Pancas | L198: ES
K199: Pedro Canário | L199: ES
K200: Pinheiros | L200: ES
K201: Ponto Belo | L201: ES
K202: Rio Bananal | L202: ES
K203: São Domingos do Norte | L203: ES
K204: São Gabriel da Palha | L204: ES
... 4 more rows

Sheet Biblioteca preços de madeira
B2: BIBLIOTECA PREÇOS DE MADEIRA
B4: Estado | C4: Mesorregião(ões) possível(eis)conforme a análise do modelo de custeio florestal | H4: Origem da madeira | I4: Preço alvo de venda da madeira para garantir a rentabilidade de um investidor florestal no longo prazo (R$/m³) | J4: Produtividade florestal (m³/ha.ano) | K4: Comentário
C5: Mesorregião 1 | D5: Mesorregião 2
B6: Acre | C6: Amazônia | H6: Convencional, mesorregião Mato Grosso do Sul | I6: 86 | J6: 35.4 | K6: Resultado do Estudo de custo de produção da madeira de eucalipto de setembro de 2017
B7: Alagoas | C7: Norte ES e Sul Bahia | H7: Convencional, mesorregião Pampa Gaúcho | I7: 73 | J7: 30.5
B8: Amapá | C8: Amazônia | H8: Convencional, mesorregião Serra Gaúcha | I8: 109 | J8: 30.5
B9: Amazonas | C9: Amazônia | H9: Convencional, mesorregião Paraná e Santa Catarina | I9: 88 | J9: 36.6
B10: Bahia | C10: Norte ES e Sul Bahia | H10: Convencional, mesorregião São Paulo | I10: 92 | J10: 37.8
B11: Ceará | C11: N/D | H11: Convencional, mesorregião Leste de Minas Gerais | I11: 105 | J11: 33.2
B12: Distrito Federal | C12: N/D | H12: Convencional, mesorregião Oeste de Minas Gerais | I12: 96 | J12: 35.4
B13: Espírito Santo | C13: Norte ES e Sul Bahia | H13: Convencional, mesorregião Norte ES e Sul BA | I13: 87 | J13: 38.9
B14: Goiás | C14: Cerrado | H14: Convencional, mesorregião Cerrado | I14: 132 | J14: 32.5
B15: Maranhão | C15: MAPITO | H15: Convencional, mesorregião, MAPITO | I15: 134 | J15: 31.4
B16: Mato Grosso | C16: Cerrado | D16: Amazônia | H16: Convencional, mesorregião Amazônia | I16: 157 | J16: 27.1
B17: Mato Grosso do Sul | C17: Mato Grosso do Sul | H17: Plantio em reserva legal - favorável | I17: 62 | J17: 14.0
B18: Minas Gerais | C18: Leste de Minas Gerais | D18: Oeste de Minas Gerais | H18: Plantio em reserva legal - disfavorável | I18: 147 | J18: 14.0
B19: Pará | C19: Amazônia | H19: Média dos preços para plantios convencionais entre todas as mesorregiões | I19: =AVERAGE(I6:I18) -> 105 | J19: =AVERAGE(J6:J16) -> 33.6 | K19: Média dos preços para plantios convencionais entre todas as mesorregiões
B20: Paraíba | C20: N/D
B21: Paraná | C21: Paraná e Santa Catarina
B22: Pernambuco | C22: N/D
B23: Piauí | C23: MAPITO
B24: Rio de Janeiro | C24: Norte ES e Sul Bahia
B25: Rio Grande do Norte | C25: N/D
B26: Rio Grande do Sul | C26: Serra Gaucha | D26: Pampa Gaucho
B27: Rondônia | C27: Amazônia
B28: Roraima | C28: Amazônia
B29: Santa Catarina | C29: Paraná e Santa Catarina
B30: São Paulo | C30: São Paulo
B31: Sergipe | C31: Norte ES e Sul Bahia
B32: Tocantins | C32: MAPITO
B34: Descrição e Explicações:

Sheet Biblioteca impostos
B2: BIBLIOTECA IMPOSTOS
B4: Deduções PIS e COFINS | H4: ICMS de venda de eletricidade dentro do Estado | L4: ICMS - Aliquota sobre a compra de madeira (%) | AP4: Impostos de Renda - regimes sem subsídio | AW4: Amortização - regimes sem subsídio
B6: Regime de Incidência | C6: Base do Cálculo | E6: Aliquota sobre a base (%) | H6: Estado | I6: Aliquota | J6: Critério de validade do aliquota | M6: DESTINO | AP6: Regime de Lucro | AQ6: Taxa | AR6: Base do Cálculo | AT6: Aliquota sobre a base (%) | AW6: Categoria | AX6: Prazo de amortização
E7: PIS | F7: COFINS | AT7: CSLL | AU7: IRPJ | AX7: Anos | AY7: Meses
B8: Cumulativa | C8: Receita Bruta | E8: 0.65 | F8: 3.00 | H8: Acre | I8: 25% | J8: O comprador consome acima de 140 kW | L8: ORIGEM | N8: AC | O8: AL | P8: AM | Q8: AP | R8: BA | S8: CE | T8: DF | U8: ES | V8: GO | W8: MA | X8: MT | Y8: MS | Z8: MG | AA8: PA | AB8: PB | AC8: PR | AD8: PE | AE8: PI | AF8: RN | AG8: RJ | AH8: RO | AI8: RR | AJ8: RS | AK8: SC | AL8: SP | AM8: SE | AN8: TO | AP8: Presumido | AQ8: Nominal | AR8: Receita Bruta | AT8: 1.08 | AU8: 1.20 | AW8: Desenvolvimento e licenciamento | AX8: 5 | AY8: =12*AX8 -> 60
H9: Alagoas | I9: 17% | M9: AC | N9: 0 | O9: 12 | P9: 12 | Q9: 12 | R9: 12 | S9: 12 | T9: 12 | U9: 12 | V9: 12 | W9: 12 | X9: 12 | Y9: 12 | Z9: 12 | AA9: 12 | AB9: 12 | AC9: 12 | AD9: 12 | AE9: 12 | AF9: 12 | AG9: 12 | AH9: 12 | AI9: 12 | AJ9: 12 | AK9: 12 | AL9: 12 | AM9: 12 | AN9: 12 | AQ9: Adicional | AR9: Max(Receita Bruta - 240 mil ; 0) | AT9: 0.00 | AU9: 0.80 | AW9: Construção cívil | AX9: 25 | AY9: 300
B10: Não-cumulativa | C10: Receita bruta - despesas deductíveis | E10: 1.65 | F10: 7.60 | H10: Amapá | I10: N/C | M10: AL | N10: 12 | O10: 0 | P10: 12 | Q10: 12 | R10: 12 | S10: 12 | T10: 12 | U10: 12 | V10: 12 | W10: 12 | X10: 12 | Y10: 12 | Z10: 12 | AA10: 12 | AB10: 12 | AC10: 12 | AD10: 12 | AE10: 12 | AF10: 12 | AG10: 12 | AH10: 12 | AI10: 12 | AJ10: 12 | AK10: 12 | AL10: 12 | AM10: 12 | AN10: 12 | AP10: Real | AQ10: Nominal | AR10: EBT | AT10: 9.00 | AU10: 15.00 | AW10: Equipamento fixo com montagem | AX10: 10 | AY10: 120
H11: Amazonas | I11: 25% | M11: AM | N11: 12 | O11: 12 | P11: 0 | Q11: 12 | R11: 12 | S11: 12 | T11: 12 | U11: 12 | V11: 12 | W11: 12 | X11: 12 | Y11: 12 | Z11: 12 | AA11: 12 | AB11: 12 | AC11: 12 | AD11: 12 | AE11: 12 | AF11: 12 | AG11: 12 | AH11: 12 | AI11: 12 | AJ11: 12 | AK11: 12 | AL11: 12 | AM11: 12 | AN11: 12 | AQ11: Adicional | AR11: Max(EBT - 240 mil ; 0) | AT11: 0.00 | AU11: 10.00 | AW11: Equipamento móvel | AX11: 5 | AY11: 60
H12: Bahia | I12: 12.96% | M12: AP | N12: 12 | O12: 12 | P12: 12 | Q12: 0 | R12: 12 | S12: 12 | T12: 12 | U12: 12 | V12: 12 | W12: 12 | X12: 12 | Y12: 12 | Z12: 12 | AA12: 12 | AB12: 12 | AC12: 12 | AD12: 12 | AE12: 12 | AF12: 12 | AG12: 12 | AH12: 12 | AI12: 12 | AJ12: 12 | AK12: 12 | AL12: 12 | AM12: 12 | AN12: 12 | AW12: Custos indiretos | AX12: 5 | AY12: 60
H13: Ceará | I13: 27% | M13: BA | N13: 12 | O13: 12 | P13: 12 | Q13: 12 | R13: 0 | S13: 12 | T13: 12 | U13: 12 | V13: 12 | W13: 12 | X13: 12 | Y13: 12 | Z13: 12 | AA13: 12 | AB13: 12 | AC13: 12 | AD13: 12 | AE13: 12 | AF13: 12 | AG13: 12 | AH13: 12 | AI13: 12 | AJ13: 12 | AK13: 12 | AL13: 12 | AM13: 12 | AN13: 12 | AW13: Reinvestimentos | AX13: 10 | AY13: 120
H14: Distrito Federal | I14: 21% | J14: O comprador consome acima de 1000 kW | M14: CE | N14: 12 | O14: 12 | P14: 12 | Q14: 12 | R14: 12 | S14: 0 | T14: 12 | U14: 12 | V14: 12 | W14: 12 | X14: 12 | Y14: 12 | Z14: 12 | AA14: 12 | AB14: 12 | AC14: 12 | AD14: 12 | AE14: 12 | AF14: 12 | AG14: 12 | AH14: 12 | AI14: 12 | AJ14: 12 | AK14: 12 | AL14: 12 | AM14: 12 | AN14: 12
H15: Espírito Santo | I15: 25% | J15: O comprador consome acima de 50 kW | M15: DF | N15: 12 | O15: 12 | P15: 12 | Q15: 12 | R15: 12 | S15: 12 | T15: 0 | U15: 12 | V15: 12 | W15: 12 | X15: 12 | Y15: 12 | Z15: 12 | AA15: 12 | AB15: 12 | AC15: 12 | AD15: 12 | AE15: 12 | AF15: 12 | AG15: 12 | AH15: 12 | AI15: 12 | AJ15: 12 | AK15: 12 | AL15: 12 | AM15: 12 | AN15: 12
H16: Goiás | I16: 29% | M16: ES | N16: 12 | O16: 12 | P16: 12 | Q16: 12 | R16: 12 | S16: 12 | T16: 12 | U16: 0 | V16: 12 | W16: 12 | X16: 12 | Y16: 12 | Z16: 12 | AA16: 12 | AB16: 12 | AC16: 12 | AD16: 12 | AE16: 12 | AF16: 12 | AG16: 12 | AH16: 12 | AI16: 12 | AJ16: 12 | AK16: 12 | AL16: 12 | AM16: 12 | AN16: 12
H17: Maranhão | I17: 19% | M17: GO | N17: 12 | O17: 12 | P17: 12 | Q17: 12 | R17: 12 | S17: 12 | T17: 12 | U17: 12 | V17: 0 | W17: 12 | X17: 12 | Y17: 12 | Z17: 12 | AA17: 12 | AB17: 12 | AC17: 12 | AD17: 12 | AE17: 12 | AF17: 12 | AG17: 12 | AH17: 12 | AI17: 12 | AJ17: 12 | AK17: 12 | AL17: 12 | AM17: 12 | AN17: 12
H18: Mato Grosso | I18: 27% | M18: MA | N18: 12 | O18: 12 | P18: 12 | Q18: 12 | R18: 12 | S18: 12 | T18: 12 | U18: 12 | V18: 12 | W18: 0 | X18: 12 | Y18: 12 | Z18: 12 | AA18: 12 | AB18: 12 | AC18: 12 | AD18: 12 | AE18: 12 | AF18: 12 | AG18: 12 | AH18: 12 | AI18: 12 | AJ18: 12 | AK18: 12 | AL18: 12 | AM18: 12 | AN18: 12
H19: Mato Grosso do Sul | I19: 17% | M19: MT | N19: 12 | O19: 12 | P19: 12 | Q19: 12 | R19: 12 | S19: 12 | T19: 12 | U19: 12 | V19: 12 | W19: 12 | X19: 0 | Y19: 12 | Z19: 12 | AA19: 12 | AB19: 12 | AC19: 12 | AD19: 12 | AE19: 12 | AF19: 12 | AG19: 12 | AH19: 12 | AI19: 12 | AJ19: 12 | AK19: 12 | AL19: 12 | AM19: 12 | AN19: 12
H20: Minas Gerais | I20: 18% | M20: MS | N20: 12 | O20: 12 | P20: 12 | Q20: 12 | R20: 12 | S20: 12 | T20: 12 | U20: 12 | V20: 12 | W20: 12 | X20: 12 | Y20: 0 | Z20: 12 | AA20: 12 | AB20: 12 | AC20: 12 | AD20: 12 | AE20: 12 | AF20: 12 | AG20: 12 | AH20: 12 | AI20: 12 | AJ20: 12 | AK20: 12 | AL20: 12 | AM20: 12 | AN20: 12
H21: Pará | I21: 25% | M21: MG | N21: 7 | O21: 7 | P21: 7 | Q21: 7 | R21: 7 | S21: 7 | T21: 7 | U21: 7 | V21: 7 | W21: 7 | X21: 7 | Y21: 7 | Z21: 0 | AA21: 7 | AB21: 7 | AC21: 12 | AD21: 7 | AE21: 7 | AF21: 7 | AG21: 12 | AH21: 7 | AI21: 7 | AJ21: 12 | AK21: 12 | AL21: 12 | AM21: 7 | AN21: 7
H22: Paraíba | I22: 25% | J22: O comprador consome acima de 300 kW | M22: PA | N22: 12 | O22: 12 | P22: 12 | Q22: 12 | R22: 12 | S22: 12 | T22: 12 | U22: 12 | V22: 12 | W22: 12 | X22: 12 | Y22: 12 | Z22: 12 | AA22: 0 | AB22: 12 | AC22: 12 | AD22: 12 | AE22: 12 | AF22: 12 | AG22: 12 | AH22: 12 | AI22: 12 | AJ22: 12 | AK22: 12 | AL22: 12 | AM22: 12 | AN22: 12
H23: Paraná | I23: 29% | M23: PB | N23: 12 | O23: 12 | P23: 12 | Q23: 12 | R23: 12 | S23: 12 | T23: 12 | U23: 12 | V23: 12 | W23: 12 | X23: 12 | Y23: 12 | Z23: 12 | AA23: 12 | AB23: 0 | AC23: 12 | AD23: 12 | AE23: 12 | AF23: 12 | AG23: 12 | AH23: 12 | AI23: 12 | AJ23: 12 | AK23: 12 | AL23: 12 | AM23: 12 | AN23: 12
H24: Pernambuco | I24: 25% | M24: PR | N24: 7 | O24: 7 | P24: 7 | Q24: 7 | R24: 7 | S24: 7 | T24: 7 | U24: 7 | V24: 7 | W24: 7 | X24: 7 | Y24: 7 | Z24: 12 | AA24: 7 | AB24: 7 | AC24: 0 | AD24: 7 | AE24: 7 | AF24: 7 | AG24: 12 | AH24: 7 | AI24: 7 | AJ24: 12 | AK24: 12 | AL24: 12 | AM24: 7 | AN24: 7
H25: Piauí | I25: 25% | J25: O comprador consome acima de 200 kW | M25: PE | N25: 12 | O25: 12 | P25: 12 | Q25: 12 | R25: 12 | S25: 12 | T25: 12 | U25: 12 | V25: 12 | W25: 12 | X25: 12 | Y25: 12 | Z25: 12 | AA25: 12 | AB25: 12 | AC25: 12 | AD25: 0 | AE25: 12 | AF25: 12 | AG25: 12 | AH25: 12 | AI25: 12 | AJ25: 12 | AK25: 12 | AL25: 12 | AM25: 12 | AN25: 12
H26: Rio de Janeiro | I26: 32% | M26: PI | N26: 12 | O26: 12 | P26: 12 | Q26: 12 | R26: 12 | S26: 12 | T26: 12 | U26: 12 | V26: 12 | W26: 12 | X26: 12 | Y26: 12 | Z26: 12 | AA26: 12 | AB26: 12 | AC26: 12 | AD26: 12 | AE26: 0 | AF26: 12 | AG26: 12 | AH26: 12 | AI26: 12 | AJ26: 12 | AK26: 12 | AL26: 12 | AM26: 12 | AN26: 12
H27: Rio Grande do Norte | I27: 18% | M27: RN | N27: 12 | O27: 12 | P27: 12 | Q27: 12 | R27: 12 | S27: 12 | T27: 12 | U27: 12 | V27: 12 | W27: 12 | X27: 12 | Y27: 12 | Z27: 12 | AA27: 12 | AB27: 12 | AC27: 12 | AD27: 12 | AE27: 12 | AF27: 0 | AG27: 12 | AH27: 12 | AI27: 12 | AJ27: 12 | AK27: 12 | AL27: 12 | AM27: 12 | AN27: 12
H28: Rio Grande do Sul | I28: 30% | J28: O comprador é reconhecido como Indústria pelo Estado, por meio do CAE | M28: RJ | N28: 7 | O28: 7 | P28: 7 | Q28: 7 | R28: 7 | S28: 7 | T28: 7 | U28: 7 | V28: 7 | W28: 7 | X28: 7 | Y28: 7 | Z28: 12 | AA28: 7 | AB28: 7 | AC28: 12 | AD28: 7 | AE28: 7 | AF28: 7 | AG28: 0 | AH28: 7 | AI28: 7 | AJ28: 12 | AK28: 12 | AL28: 12 | AM28: 7 | AN28: 7
H29: Rondônia | I29: 17% | M29: RO | N29: 12 | O29: 12 | P29: 12 | Q29: 12 | R29: 12 | S29: 12 | T29: 12 | U29: 12 | V29: 12 | W29: 12 | X29: 12 | Y29: 12 | Z29: 12 | AA29: 12 | AB29: 12 | AC29: 12 | AD29: 12 | AE29: 12 | AF29: 12 | AG29: 12 | AH29: 0 | AI29: 12 | AJ29: 12 | AK29: 12 | AL29: 12 | AM29: 12 | AN29: 12
H30: Roraima | I30: 17% | M30: RR | N30: 12 | O30: 12 | P30: 12 | Q30: 12 | R30: 12 | S30: 12 | T30: 12 | U30: 12 | V30: 12 | W30: 12 | X30: 12 | Y30: 12 | Z30: 12 | AA30: 12 | AB30: 12 | AC30: 12 | AD30: 12 | AE30: 12 | AF30: 12 | AG30: 12 | AH30: 12 | AI30: 0 | AJ30: 12 | AK30: 12 | AL30: 12 | AM30: 12 | AN30: 12
H31: Santa Catarina | I31: 25% | M31: RS | N31: 7 | O31: 7 | P31: 7 | Q31: 7 | R31: 7 | S31: 7 | T31: 7 | U31: 7 | V31: 7 | W31: 7 | X31: 7 | Y31: 7 | Z31: 12 | AA31: 7 | AB31: 7 | AC31: 12 | AD31: 7 | AE31: 7 | AF31: 7 | AG31: 12 | AH31: 7 | AI31: 7 | AJ31: 0 | AK31: 12 | AL31: 12 | AM31: 7 | AN31: 7
H32: São Paulo | I32: 18% | M32: SC | N32: 7 | O32: 7 | P32: 7 | Q32: 7 | R32: 7 | S32: 7 | T32: 7 | U32: 7 | V32: 7 | W32: 7 | X32: 7 | Y32: 7 | Z32: 12 | AA32: 7 | AB32: 7 | AC32: 12 | AD32: 7 | AE32: 7 | AF32: 7 | AG32: 12 | AH32: 7 | AI32: 7 | AJ32: 12 | AK32: 0 | AL32: 12 | AM32: 7 | AN32: 7
H33: Sergipe | I33: 17% | M33: SP | N33: 7 | O33: 7 | P33: 7 | Q33: 7 | R33: 7 | S33: 7 | T33: 7 | U33: 7 | V33: 7 | W33: 7 | X33: 7 | Y33: 7 | Z33: 12 | AA33: 7 | AB33: 7 | AC33: 12 | AD33: 7 | AE33: 7 | AF33: 7 | AG33: 12 | AH33: 7 | AI33: 7 | AJ33: 12 | AK33: 12 | AL33: 0 | AM33: 7 | AN33: 7
H34: Tocantins | I34: 25% | M34: SE | N34: 12 | O34: 12 | P34: 12 | Q34: 12 | R34: 12 | S34: 12 | T34: 12 | U34: 12 | V34: 12 | W34: 12 | X34: 12 | Y34: 12 | Z34: 12 | AA34: 12 | AB34: 12 | AC34: 12 | AD34: 12 | AE34: 12 | AF34: 12 | AG34: 12 | AH34: 12 | AI34: 12 | AJ34: 12 | AK34: 12 | AL34: 12 | AM34: 0 | AN34: 12
M35: TO | N35: 12 | O35: 12 | P35: 12 | Q35: 12 | R35: 12 | S35: 12 | T35: 12 | U35: 12 | V35: 12 | W35: 12 | X35: 12 | Y35: 12 | Z35: 12 | AA35: 12 | AB35: 12 | AC35: 12 | AD35: 12 | AE35: 12 | AF35: 12 | AG35: 12 | AH35: 12 | AI35: 12 | AJ35: 12 | AK35: 12 | AL35: 12 | AM35: 12 | AN35: 0
B37: Descrição e Explicações:

Sheet Biblioteca modelos industriais
B2: BIBLIOTECA MODELOS INDUSTRIAIS
Q4: 1 x 5 MW - Grelha | X4: 1 x 25 MW - Grelha | AE4: 1 x 50 MW - Grelha | AL4: 1 x 50 MW - LFB | AS4: 2 x 50 MW - Grelha | AZ4: 2 x 50 MW - LFB | BG4: 1 x 100 MW - LFC | BN4: 3 x 50 MW - Grelha | BU4: 2 x 75 MW - LFB | CB4: 1 x 150 MW - LFC | CI4: 1 x 150 MW - LFC - alto desempenho
B6: Tópico | C6: Item | D6: Unidade | Q6: Item | R6: Custos Diretos (mil R$) | X6: Item | Y6: Custos Diretos (mil R$) | AE6: Item | AF6: Custos Diretos (mil R$) | AL6: Item | AM6: Custos Diretos (mil R$) | AS6: Item | AT6: Custos Diretos (mil R$) | AZ6: Item | BA6: Custos Diretos (mil R$) | BG6: Item | BH6: Custos Diretos (mil R$) | BN6: Item | BO6: Custos Diretos (mil R$) | BU6: Item | BV6: Custos Diretos (mil R$) | CB6: Item | CC6: Custos Diretos (mil R$) | CI6: Item | CJ6: Custos Diretos (mil R$)
A7: 1 | E7: 5 MW - Grelha | F7: 25 MW - Grelha | G7: 50 MW - Grelha | H7: 50 MW - LFB | I7: 100 MW - Grelha | J7: 100 MW - LFB | K7: 100 MW - LFC | L7: 150 MW - Grelha | M7: 150 MW - LFB | N7: 150 MW - LFC | O7: 150 MW LFC - alto des. | R7: Construção civil | S7: Equipamento nacional | T7: Equipamento importado | U7: Equipamento móvel | V7: Total | Y7: Construção civil | Z7: Equipamento nacional | AA7: Equipamento importado | AB7: Equipamento móvel | AC7: Total | AF7: Construção civil | AG7: Equipamento nacional | AH7: Equipamento importado | AI7: Equipamento móvel | AJ7: Total | AM7: Construção civil | AN7: Equipamento nacional | AO7: Equipamento importado | AP7: Equipamento móvel | AQ7: Total | AT7: Construção civil | AU7: Equipamento nacional | AV7: Equipamento importado | AW7: Equipamento móvel | AX7: Total | BA7: Construção civil | BB7: Equipamento nacional | BC7: Equipamento importado | BD7: Equipamento móvel | BE7: Total | BH7: Construção civil | BI7: Equipamento nacional | BJ7: Equipamento importado | BK7: Equipamento móvel | BL7: Total | BO7: Construção civil | BP7: Equipamento nacional | BQ7: Equipamento importado | BR7: Equipamento móvel | BS7: Total | BV7: Construção civil | BW7: Equipamento nacional | BX7: Equipamento importado | BY7: Equipamento móvel | BZ7: Total | CC7: Construção civil | CD7: Equipamento nacional | CE7: Equipamento importado | CF7: Equipamento móvel | CG7: Total | CJ7: Construção civil | CK7: Equipamento nacional | CL7: Equipamento importado | CM7: Equipamento móvel | CN7: Total
A8: =1+A7 -> 2 | B8: Potência da UTE | C8: Potência instalada | D8: MW | E8: 6 | F8: 28 | G8: 55 | H8: 55 | I8: 110 | J8: 110 | K8: 110 | L8: 165 | M8: 165 | N8: 165 | O8: 165 | Q8: Preparação da madeira | R8: 2,478 | S8: 2,724 | T8: 0 | U8: 0 | V8: =SUM(R8:U8) -> 5,202 | W8: =V8/V16 -> 10% | X8: Preparação da madeira | Y8: 6,628 | Z8: 7,287 | AA8: 0 | AB8: 0 | AC8: =SUM(Y8:AB8) -> 13,914 | AD8: =AC8/AC16 -> 12% | AE8: Preparação da madeira | AF8: 15,963 | AG8: 12,018 | AH8: 5,531 | AI8: 0 | AJ8: =SUM(AF8:AI8) -> 33,512 | AK8: =AJ8/AJ16 -> 11% | AL8: Preparação da madeira | AM8: 15,963 | AN8: 12,018 | AO8: 5,531 | AP8: 0 | AQ8: =SUM(AM8:AP8) -> 33,512 | AR8: =AQ8/AQ16 -> 11% | AS8: Preparação da madeira | AT8: 25,048 | AU8: 18,859 | AV8: 8,679 | AW8: 0 | AX8: =SUM(AT8:AW8) -> 52,587 | AY8: =AX8/AX16 -> 8% | AZ8: Preparação da madeira | BA8: 25,048 | BB8: 18,859 | BC8: 8,679 | BD8: 0 | BE8: =SUM(BA8:BD8) -> 52,587 | BF8: =BE8/BE16 -> 7% | BG8: Preparação da madeira | BH8: 25,048 | BI8: 18,859 | BJ8: 8,679 | BK8: 0 | BL8: =SUM(BH8:BK8) -> 52,587 | BM8: =BL8/BL16 -> 7% | BN8: Preparação da madeira | BO8: 38,334 | BP8: 28,861 | BQ8: 13,283 | BR8: 0 | BS8: =SUM(BO8:BR8) -> 80,478 | BT8: =BS8/BS16 -> 8% | BU8: Preparação da madeira | BV8: 38,334 | BW8: 28,861 | BX8: 13,283 | BY8: 0 | BZ8: =SUM(BV8:BY8) -> 80,478 | CA8: =BZ8/BZ16 -> 8% | CB8: Preparação da madeira | CC8: 38,334 | CD8: 28,861 | CE8: 13,283 | CF8: 0 | CG8: =SUM(CC8:CF8) -> 80,478 | CH8: =CG8/CG16 -> 8% | CI8: Preparação da madeira | CJ8: 34,929 | CK8: 26,298 | CL8: 12,103 | CM8: 0 | CN8: =SUM(CJ8:CM8) -> 73,330 | CO8: =CN8/CN16 -> 0.06620221444 | CW8: =MIN(W8,AD8,AK8,AR8,AY8,BF8,BM8,BT8,CA8,CH8,CO8) -> 0.06620221444
A9: =1+A8 -> 3 | C9: Potência líquida | D9: MW | E9: 5 | F9: 25 | G9: 50 | H9: 50 | I9: 100 | J9: 100 | K9: 100 | L9: 150 | M9: 150 | N9: 150 | O9: 150 | Q9: Caldeira | R9: 1 | S9: 20,000 | T9: 0 | U9: 0 | V9: =SUM(R9:U9) -> 20,001 | W9: =V9/V16 -> 37% | X9: Caldeira | Y9: 1 | Z9: 38,000 | AA9: 0 | AB9: 0 | AC9: =SUM(Y9:AB9) -> 38,001 | AD9: =AC9/AC16 -> 32% | AE9: Caldeira | AF9: 6,909 | AG9: 100,000 | AH9: 0 | AI9: 0 | AJ9: =SUM(AF9:AI9) -> 106,909 | AK9: =AJ9/AJ16 -> 35% | AL9: Caldeira | AM9: 7,945 | AN9: 115,000 | AO9: 0 | AP9: 0 | AQ9: =SUM(AM9:AP9) -> 122,945 | AR9: =AQ9/AQ16 -> 40% | AS9: Caldeira | AT9: 13,818 | AU9: 200,000 | AV9: 0 | AW9: 0 | AX9: =SUM(AT9:AW9) -> 213,818 | AY9: =AX9/AX16 -> 34% | AZ9: Caldeira | BA9: 15,891 | BB9: 230,000 | BC9: 0 | BD9: 0 | BE9: =SUM(BA9:BD9) -> 245,891 | BF9: =BE9/BE16 -> 33% | BG9: Caldeira | BH9: 18,271 | BI9: 0 | BJ9: 290,844 | BK9: 0 | BL9: =SUM(BH9:BK9) -> 309,115 | BM9: =BL9/BL16 -> 39% | BN9: Caldeira | BO9: 20,727 | BP9: 300,000 | BQ9: 0 | BR9: 0 | BS9: =SUM(BO9:BR9) -> 320,727 | BT9: =BS9/BS16 -> 33% | BU9: Caldeira | BV9: 20,273 | BW9: 310,000 | BX9: 0 | BY9: 0 | BZ9: =SUM(BV9:BY9) -> 330,273 | CA9: =BZ9/BZ16 -> 33% | CB9: Caldeira | CC9: 23,780 | CD9: 0 | CE9: 378,546 | CF9: 0 | CG9: =SUM(CC9:CF9) -> 402,327 | CH9: =CG9/CG16 -> 38% | CI9: Caldeira | CJ9: 24,689 | CK9: 0 | CL9: 393,017 | CM9: 0 | CN9: =SUM(CJ9:CM9) -> 417,706 | CO9: =CN9/CN16 -> 0.3771049595 | CW9: 0.3155308119
A10: 4 | B10: Caldeira | C10: Tipo | D10: - | E10: grelha | F10: grelha | G10: grelha | H10: LFB | I10: grelha | J10: LFB | K10: LFC | L10: grelha | M10: LFB | N10: LFC | O10: LFC | Q10: Turbogerador | R10: 1 | S10: 8,669 | T10: 0 | U10: 0 | V10: 8,670 | W10: =V10/V16 -> 16% | X10: Turbogerador | Y10: 1 | Z10: 14,200 | AA10: 0 | AB10: 0 | AC10: 14,201 | AD10: =AC10/AC16 -> 12% | AE10: Turbogerador | AF10: 10,052 | AG10: 24,500 | AH10: 0 | AI10: 0 | AJ10: 34,552 | AK10: =AJ10/AJ16 -> 11% | AL10: Turbogerador | AM10: 10,052 | AN10: 24,500 | AO10: 0 | AP10: 0 | AQ10: 34,552 | AR10: =AQ10/AQ16 -> 11% | AS10: Turbogerador | AT10: 20,104 | AU10: 49,000 | AV10: 0 | AW10: 0 | AX10: 69,104 | AY10: =AX10/AX16 -> 11% | AZ10: Turbogerador | BA10: 20,104 | BB10: 49,000 | BC10: 0 | BD10: 0 | BE10: 69,104 | BF10: =BE10/BE16 -> 9% | BG10: Turbogerador | BH10: 21,567 | BI10: 45,000 | BJ10: 0 | BK10: 0 | BL10: 66,567 | BM10: =BL10/BL16 -> 8% | BN10: Turbogerador | BO10: 30,156 | BP10: 73,500 | BQ10: 0 | BR10: 0 | BS10: 103,656 | BT10: =BS10/BS16 -> 11% | BU10: Turbogerador | BV10: 26,166 | BW10: 68,000 | BX10: 0 | BY10: 0 | BZ10: 94,166 | CA10: =BZ10/BZ16 -> 9% | CB10: Turbogerador | CC10: 28,070 | CD10: 150,000 | CE10: 0 | CF10: 0 | CG10: 178,070 | CH10: =CG10/CG16 -> 17% | CI10: Turbogerador | CJ10: 31,831 | CK10: 150,000 | CL10: 0 | CM10: 0 | CN10: 181,831 | CO10: =CN10/CN16 -> 0.1641573332 | CW10: 0.08454870381
A11: 5 | C11: Características do vapor | D11: - | E11: 40bar/420C | F11: 75bar/485C | G11: 102bar/505C | H11: 102bar/505C | I11: 102bar/505C | J11: 102bar/505C | K11: 102bar/505C | L11: 102bar/505C | M11: 102bar/505C | N11: 102bar/505C | O11: 125bar/535C | Q11: Resfriamento | R11: 1,406 | S11: 1,629 | T11: 0 | U11: 0 | V11: 3,035 | W11: =V11/V16 -> 6% | X11: Resfriamento | Y11: 0 | Z11: 7,468 | AA11: 0 | AB11: 0 | AC11: 7,468 | AD11: =AC11/AC16 -> 6% | AE11: Resfriamento | AF11: 11,648 | AG11: 13,497 | AH11: 0 | AI11: 0 | AJ11: 25,145 | AK11: =AJ11/AJ16 -> 8% | AL11: Resfriamento | AM11: 11,648 | AN11: 13,497 | AO11: 0 | AP11: 0 | AQ11: 25,145 | AR11: =AQ11/AQ16 -> 8% | AS11: Resfriamento | AT11: 18,277 | AU11: 21,179 | AV11: 0 | AW11: 0 | AX11: 39,456 | AY11: =AX11/AX16 -> 6% | AZ11: Resfriamento | BA11: 18,277 | BB11: 21,179 | BC11: 0 | BD11: 0 | BE11: 39,456 | BF11: =BE11/BE16 -> 5% | BG11: Resfriamento | BH11: 18,277 | BI11: 21,179 | BJ11: 0 | BK11: 0 | BL11: 39,456 | BM11: =BL11/BL16 -> 5% | BN11: Resfriamento | BO11: 25,769 | BP11: 29,860 | BQ11: 0 | BR11: 0 | BS11: 55,629 | BT11: =BS11/BS16 -> 6% | BU11: Resfriamento | BV11: 25,769 | BW11: 29,860 | BX11: 0 | BY11: 0 | BZ11: 55,629 | CA11: =BZ11/BZ16 -> 6% | CB11: Resfriamento | CC11: 25,769 | CD11: 29,860 | CE11: 0 | CF11: 0 | CG11: 55,629 | CH11: =CG11/CG16 -> 5% | CI11: Resfriamento | CJ11: 24,063 | CK11: 27,883 | CL11: 0 | CM11: 0 | CN11: 51,947 | CO11: =CN11/CN16 -> 0.0468975377 | CW11: 0.0468975377
A12: 6 | C12: Número x vazão | D12: t/hora | E12: 1 x 26 | F12: 1 x 96 | G12: 1 x 220 | H12: 1 x 220 | I12: 2 x 220 | J12: 2 x 220 | K12: 1 x 420 | L12: 3 x 220 | M12: 2 x 320 | N12: 1 x 620 | O12: 1 x 500 | Q12: Subestação | R12: 267 | S12: 1,900 | T12: 0 | U12: 0 | V12: 2,168 | W12: =V12/V16 -> 4% | X12: Subestação | Y12: 795 | Z12: 5,652 | AA12: 0 | AB12: 0 | AC12: 6,447 | AD12: =AC12/AC16 -> 5% | AE12: Subestação | AF12: 925 | AG12: 6,576 | AH12: 0 | AI12: 0 | AJ12: 7,500 | AK12: =AJ12/AJ16 -> 2% | AL12: Subestação | AM12: 925 | AN12: 6,576 | AO12: 0 | AP12: 0 | AQ12: 7,500 | AR12: =AQ12/AQ16 -> 2% | AS12: Subestação | AT12: 5,874 | AU12: 36,126 | AV12: 1,319 | AW12: 0 | AX12: 43,319 | AY12: =AX12/AX16 -> 7% | AZ12: Subestação | BA12: 5,874 | BB12: 36,126 | BC12: 1,319 | BD12: 0 | BE12: 43,319 | BF12: =BE12/BE16 -> 6% | BG12: Subestação | BH12: 5,874 | BI12: 36,126 | BJ12: 1,319 | BK12: 0 | BL12: 43,319 | BM12: =BL12/BL16 -> 6% | BN12: Subestação | BO12: 6,218 | BP12: 46,313 | BQ12: 1,396 | BR12: 0 | BS12: 53,927 | BT12: =BS12/BS16 -> 6% | BU12: Subestação | BV12: 6,218 | BW12: 46,313 | BX12: 1,396 | BY12: 0 | BZ12: 53,927 | CA12: =BZ12/BZ16 -> 5% | CB12: Subestação | CC12: 6,218 | CD12: 46,313 | CE12: 1,396 | CF12: 0 | CG12: 53,927 | CH12: =CG12/CG16 -> 5% | CI12: Subestação | CJ12: 6,218 | CK12: 46,313 | CL12: 1,396 | CM12: 0 | CN12: 53,927 | CO12: =CN12/CN16 -> 5% | CW12: 2%
A13: 7 | B13: Turbogerador(es) | C13: Número x Potência | D13: MW | E13: 1 x 6 | F13: 1 x 28 | G13: 1 x 55 | H13: 1 x 55 | I13: 2 x 55 | J13: 2 x 55 | K13: 1 x 110 | L13: 3 x 55 | M13: 2 x 83 | N13: 1 x 165 | O13: 1 x 165 | Q13: Linha de conexão | R13: =E16*H35 -> 678 | S13: =E16*I35 -> 4,822 | T13: 0 | U13: 0 | V13: 5,500 | W13: =V13/V16 -> 10% | X13: Linha de conexão | Y13: =F16*H35 -> 1,695 | Z13: =F16*I35 -> 12,055 | AA13: 0 | AB13: 0 | AC13: 13,750 | AD13: =AC13/AC16 -> 11% | AE13: Linha de conexão | AF13: =G16*H35 -> 3,390 | AG13: =G16*I35 -> 24,110 | AH13: 0 | AI13: 0 | AJ13: 27,500 | AK13: =AJ13/AJ16 -> 9% | AL13: Linha de conexão | AM13: =H16*H35 -> 3,390 | AN13: =10*I35 -> 9,644 | AO13: 0 | AP13: 0 | AQ13: 13,034 | AR13: =AQ13/AQ16 -> 4% | AS13: Linha de conexão | AT13: =I16*H36 -> 10,170 | AU13: =I16*I36 -> 72,330 | AV13: 0 | AW13: 0 | AX13: 82,500 | AY13: =AX13/AX16 -> 13% | AZ13: Linha de conexão | BA13: =J16*H36 -> 20,340 | BB13: =J16*I36 -> 144,660 | BC13: 0 | BD13: 0 | BE13: 165,000 | BF13: =BE13/BE16 -> 22% | BG13: Linha de conexão | BH13: =K16*H36 -> 20,340 | BI13: =K16*I36 -> 144,660 | BJ13: 0 | BK13: 0 | BL13: 165,000 | BM13: =BL13/BL16 -> 21% | BN13: Linha de conexão | BO13: =L16*H36 -> 20,340 | BP13: =L16*I36 -> 144,660 | BQ13: 0 | BR13: 0 | BS13: 165,000 | BT13: =BS13/BS16 -> 17% | BU13: Linha de conexão | BV13: =M16*H36 -> 20,340 | BW13: =M16*I36 -> 144,660 | BX13: 0 | BY13: 0 | BZ13: 165,000 | CA13: =BZ13/BZ16 -> 16% | CB13: Linha de conexão | CC13: =N16*H36 -> 20,340 | CD13: =N16*I36 -> 144,660 | CE13: 0 | CF13: 0 | CG13: 165,000 | CH13: =CG13/CG16 -> 15% | CI13: Linha de conexão | CJ13: =O16*H36 -> 20,340 | CK13: =O16*I36 -> 144,660 | CL13: 0 | CM13: 0 | CN13: 165,000 | CO13: =CN13/CN16 -> 15% | CW13: 4%
A14: =1+A13 -> 8 | B14: Torre(s) de resfriamento | C14: Capacidade | D14: m³/hora | E14: 1 x 1.200 | F14: 2 x 2.750 | G14: 4 x 2.750 | H14: 4 x 2.750 | I14: 4 x 5.000 | J14: 4 x 5.000 | K14: 4 x 5.000 | L14: 6 x 5.000 | M14: 6 x 5.000 | N14: 6 x 5.000 | O14: 6 x 4.500 | Q14: Equipamento móvel | R14: 0 | S14: 0 | T14: 0 | U14: 434 | V14: 434 | W14: =V14/V16 -> 1% | X14: Equipamento móvel | Y14: 0 | Z14: 0 | AA14: 0 | AB14: 655 | AC14: 655 | AD14: =AC14/AC16 -> 1% | AE14: Equipamento móvel | AF14: 0 | AG14: 0 | AH14: 0 | AI14: 2,645 | AJ14: 2,645 | AK14: =AJ14/AJ16 -> 1% | AL14: Equipamento móvel | AM14: 0 | AN14: 0 | AO14: 0 | AP14: 2,645 | AQ14: 2,645 | AR14: =AQ14/AQ16 -> 1% | AS14: Equipamento móvel | AT14: 0 | AU14: 0 | AV14: 0 | AW14: 5,291 | AX14: 5,291 | AY14: =AX14/AX16 -> 1% | AZ14: Equipamento móvel | BA14: 0 | BB14: 0 | BC14: 0 | BD14: 5,291 | BE14: 5,291 | BF14: =BE14/BE16 -> 1% | BG14: Equipamento móvel | BH14: 0 | BI14: 0 | BJ14: 0 | BK14: 5,291 | BL14: 5,291 | BM14: =BL14/BL16 -> 1% | BN14: Equipamento móvel | BO14: 0 | BP14: 0 | BQ14: 0 | BR14: 7,936 | BS14: 7,936 | BT14: =BS14/BS16 -> 1% | BU14: Equipamento móvel | BV14: 0 | BW14: 0 | BX14: 0 | BY14: 5,291 | BZ14: 5,291 | CA14: =BZ14/BZ16 -> 1% | CB14: Equipamento móvel | CC14: 0 | CD14: 0 | CE14: 0 | CF14: 5,291 | CG14: 5,291 | CH14: =CG14/CG16 -> 0% | CI14: Equipamento móvel | CJ14: 0 | CK14: 0 | CL14: 0 | CM14: 5,291 | CN14: 5,291 | CO14: =CN14/CN16 -> 0% | CW14: 0%
A15: 9 | B15: Sistem de conexão até a rede | C15: Voltagem | D15: kV | E15: ≤ 34,5 | F15: ≤ 34,5 | G15: 138 | H15: 138 | I15: ≥ 230 | J15: ≥ 230 | K15: ≥ 230 | L15: ≥ 230 | M15: ≥ 230 | N15: ≥ 230 | O15: ≥ 230 | Q15: Outros postos | R15: 2,989 | S15: 5,681 | T15: 0 | U15: 0 | V15: 8,670 | W15: =V15/V16 -> 16% | X15: Outros postos | Y15: 8,963 | Z15: 17,036 | AA15: 0 | AB15: 0 | AC15: 25,999 | AD15: =AC15/AC16 -> 22% | AE15: Outros postos | AF15: 24,576 | AG15: 34,121 | AH15: 12,593 | AI15: 0 | AJ15: 71,289 | AK15: =AJ15/AJ16 -> 23% | AL15: Outros postos | AM15: 24,576 | AN15: 34,121 | AO15: 12,593 | AP15: 0 | AQ15: 71,289 | AR15: =AQ15/AQ16 -> 23% | AS15: Outros postos | AT15: 42,188 | AU15: 58,573 | AV15: 21,617 | AW15: 0 | AX15: 122,379 | AY15: =AX15/AX16 -> 19% | AZ15: Outros postos | BA15: 42,188 | BB15: 58,573 | BC15: 21,617 | BD15: 0 | BE15: 122,379 | BF15: =BE15/BE16 -> 16% | BG15: Outros postos | BH15: 36,536 | BI15: 50,726 | BJ15: 18,721 | BK15: 0 | BL15: 105,983 | BM15: =BL15/BL16 -> 13% | BN15: Outros postos | BO15: 59,514 | BP15: 82,629 | BQ15: 30,495 | BR15: 0 | BS15: 172,637 | BT15: =BS15/BS16 -> 18% | BU15: Outros postos | BV15: 74,887 | BW15: 103,971 | BX15: 38,371 | BY15: 0 | BZ15: 217,230 | CA15: =BZ15/BZ16 -> 22% | CB15: Outros postos | CC15: 44,658 | CD15: 62,002 | CE15: 22,882 | CF15: 0 | CG15: 129,543 | CH15: =CG15/CG16 -> 12% | CI15: Outros postos | CJ15: 54,687 | CK15: 75,926 | CL15: 28,021 | CM15: 0 | CN15: 158,633 | CO15: =CN15/CN16 -> 14% | CW15: 12%
A16: 10 | C16: Distância padrão considerada | D16: km | E16: 5.0 | F16: 12.5 | G16: 25.0 | H16: 25.0 | I16: 25.0 | J16: 50.0 | K16: 50.0 | L16: 50.0 | M16: 50.0 | N16: 50.0 | O16: 50.0 | Q16: Total | R16: =SUM(R8:R15) -> 7,820 | S16: =SUM(S8:S15) -> 45,426 | T16: =SUM(T8:T15) -> 0 | U16: =SUM(U8:U15) -> 434 | V16: =SUM(V8:V15) -> 53,679 | X16: Total | Y16: =SUM(Y8:Y15) -> 18,082 | Z16: =SUM(Z8:Z15) -> 101,697 | AA16: =SUM(AA8:AA15) -> 0 | AB16: =SUM(AB8:AB15) -> 655 | AC16: =SUM(AC8:AC15) -> 120,434 | AE16: Total | AF16: =SUM(AF8:AF15) -> 73,462 | AG16: =SUM(AG8:AG15) -> 214,822 | AH16: =SUM(AH8:AH15) -> 18,124 | AI16: =SUM(AI8:AI15) -> 2,645 | AJ16: =SUM(AJ8:AJ15) -> 309,053 | AL16: Total | AM16: =SUM(AM8:AM15) -> 74,498 | AN16: =SUM(AN8:AN15) -> 215,356 | AO16: =SUM(AO8:AO15) -> 18,124 | AP16: =SUM(AP8:AP15) -> 2,645 | AQ16: =SUM(AQ8:AQ15) -> 310,623 | AS16: Total | AT16: =SUM(AT8:AT15) -> 135,480 | AU16: =SUM(AU8:AU15) -> 456,067 | AV16: =SUM(AV8:AV15) -> 31,615 | AW16: =SUM(AW8:AW15) -> 5,291 | AX16: =SUM(AX8:AX15) -> 628,453 | AZ16: Total | BA16: =SUM(BA8:BA15) -> 147,723 | BB16: =SUM(BB8:BB15) -> 558,397 | BC16: =SUM(BC8:BC15) -> 31,615 | BD16: =SUM(BD8:BD15) -> 5,291 | BE16: =SUM(BE8:BE15) -> 743,025 | BG16: Total | BH16: =SUM(BH8:BH15) -> 145,914 | BI16: =SUM(BI8:BI15) -> 316,550 | BJ16: =SUM(BJ8:BJ15) -> 319,563 | BK16: =SUM(BK8:BK15) -> 5,291 | BL16: =SUM(BL8:BL15) -> 787,317 | BN16: Total | BO16: =SUM(BO8:BO15) -> 201,057 | BP16: =SUM(BP8:BP15) -> 705,823 | BQ16: =SUM(BQ8:BQ15) -> 45,174 | BR16: =SUM(BR8:BR15) -> 7,936 | BS16: =SUM(BS8:BS15) -> 959,990 | BU16: Total | BV16: =SUM(BV8:BV15) -> 211,986 | BW16: =SUM(BW8:BW15) -> 731,666 | BX16: =SUM(BX8:BX15) -> 53,050 | BY16: =SUM(BY8:BY15) -> 5,291 | BZ16: =SUM(BZ8:BZ15) -> 1,001,993 | CB16: Total | CC16: =SUM(CC8:CC15) -> 187,169 | CD16: =SUM(CD8:CD15) -> 461,697 | CE16: =SUM(CE8:CE15) -> 416,108 | CF16: =SUM(CF8:CF15) -> 5,291 | CG16: =SUM(CG8:CG15) -> 1,070,264 | CI16: Total | CJ16: =SUM(CJ8:CJ15) -> 196,758 | CK16: =SUM(CK8:CK15) -> 471,080 | CL16: =SUM(CL8:CL15) -> 434,537 | CM16: =SUM(CM8:CM15) -> 5,291 | CN16: =SUM(CN8:CN15) -> 1,107,665
A17: 11 | B17: Custos de investimento base SP | C17: Construção civil | D17: mil R$ | E17: =R16 -> 7,820 | F17: =Y16 -> 18,082 | G17: =AF16 -> 73,462 | H17: =AM16 -> 74,498 | I17: =AT16 -> 135,480 | J17: =BA16 -> 147,723 | K17: =BH16 -> 145,914 | L17: =BO16 -> 201,057 | M17: =BV16 -> 211,986 | N17: =CC16 -> 187,169 | O17: =CJ16 -> 196,758 | R17: =R16/V16 -> 15% | S17: =S16/V16 -> 85% | T17: =T16/V16 -> 0% | U17: =U16/V16 -> 1% | Y17: =Y16/AC16 -> 15% | Z17: =Z16/AC16 -> 84% | AA17: =AA16/AC16 -> 0% | AB17: =AB16/AC16 -> 1% | AF17: =AF16/AJ16 -> 24% | AG17: =AG16/AJ16 -> 70% | AH17: =AH16/AJ16 -> 6% | AI17: =AI16/AJ16 -> 1% | AM17: =AM16/AQ16 -> 24% | AN17: =AN16/AQ16 -> 69% | AO17: =AO16/AQ16 -> 6% | AP17: =AP16/AQ16 -> 1% | AT17: =AT16/AX16 -> 22% | AU17: =AU16/AX16 -> 73% | AV17: =AV16/AX16 -> 5% | AW17: =AW16/AX16 -> 1% | BA17: =BA16/BE16 -> 20% | BB17: =BB16/BE16 -> 75% | BC17: =BC16/BE16 -> 4% | BD17: =BD16/BE16 -> 1% | BH17: =BH16/BL16 -> 19% | BI17: =BI16/BL16 -> 40% | BJ17: =BJ16/BL16 -> 41% | BK17: =BK16/BL16 -> 1% | BO17: =BO16/BS16 -> 21% | BP17: =BP16/BS16 -> 74% | BQ17: =BQ16/BS16 -> 5% | BR17: =BR16/BS16 -> 1% | BV17: =BV16/BZ16 -> 21% | BW17: =BW16/BZ16 -> 73% | BX17: =BX16/BZ16 -> 5% | BY17: =BY16/BZ16 -> 1% | CC17: =CC16/CG16 -> 17% | CD17: =CD16/CG16 -> 43% | CE17: =CE16/CG16 -> 39% | CF17: =CF16/CG16 -> 0% | CJ17: =CJ16/CN16 -> 18% | CK17: =CK16/CN16 -> 43% | CL17: =CL16/CN16 -> 39% | CM17: =CM16/CN16 -> 0% | CR17: =MIN(R17,Y17,AF17,AM17,AT17,BA17,BH17,BO17,BV17,CC17,CJ17) -> 0.1456731766 | CS17: =MIN(S17,Z17,AG17,AN17,AU17,BB17,BI17,BP17,BW17,CD17,CK17) -> 0.4020614819 | CT17: =MIN(T17,AA17,AH17,AO17,AV17,BC17,BJ17,BQ17,BX17,CE17,CL17) -> 0 | CU17: =MIN(U17,AB17,AI17,AP17,AW17,BD17,BK17,BR17,BY17,CF17,CM17) -> 0.004776376369 | CZ17: =MAX(R17,Y17,AF17,AM17,AT17,BA17,BH17,BO17,BV17,CC17,CJ17) -> 0.2398352102
A18: 12 | C18: Equipamento fixo nacional | D18: mil US$ | E18: =S16 -> 45,426 | F18: =Z16 -> 101,697 | G18: =AG16 -> 214,822 | H18: =AN16 -> 215,356 | I18: =AU16 -> 456,067 | J18: =BB16 -> 558,397 | K18: =BI16 -> 316,550 | L18: =BP16 -> 705,823 | M18: =BW16 -> 731,666 | N18: =CD16 -> 461,697 | O18: =CK16 -> 471,080
A19: 13 | C19: Equipamento fixo importado | D19: mil R$ | E19: =T16/'Premissas macroeconomicas'!J11 -> 0 | F19: =AA16/'Premissas macroeconomicas'!J11 -> 0 | G19: =AH16/'Premissas macroeconomicas'!J11 -> 5,492 | H19: =AO16/'Premissas macroeconomicas'!J11 -> 5,492 | I19: =AV16/'Premissas macroeconomicas'!J11 -> 9,580 | J19: =BC16/'Premissas macroeconomicas'!J11 -> 9,580 | K19: =BJ16/'Premissas macroeconomicas'!J11 -> 96,837 | L19: =BQ16/'Premissas macroeconomicas'!J11 -> 13,689 | M19: =BX16/'Premissas macroeconomicas'!J11 -> 16,076 | N19: =CE16/'Premissas macroeconomicas'!J11 -> 126,093 | O19: =CL16/'Premissas macroeconomicas'!J11 -> 131,678
A20: 14 | C20: Equipamento móvel | D20: mil R$ | E20: =U16 -> 434 | F20: =AB16 -> 655 | G20: =AI16 -> 2,645 | H20: =AP16 -> 2,645 | I20: =AW16 -> 5,291 | J20: =BD16 -> 5,291 | K20: =BK16 -> 5,291 | L20: =BR16 -> 7,936 | M20: =BY16 -> 5,291 | N20: 5,000 | O20: =CM16 -> 5,291
A21: 15 | C21: Custos indiretos | D21: mil R$ | E21: 12,906 | F21: 39,282 | G21: =0.183*(G17+G18+G19*'Premissas macroeconomicas'!$J11+G20) -> 56,557 | H21: =0.183*(H17+H18+H19*'Premissas macroeconomicas'!$J11+H20) -> 56,844 | I21: =0.183*(I17+I18+I19*'Premissas macroeconomicas'!$J11+I20) -> 115,007 | J21: =0.183*(J17+J18+J19*'Premissas macroeconomicas'!$J11+J20) -> 135,974 | K21: =0.183*(K17+K18+K19*'Premissas macroeconomicas'!$J11+K20) -> 144,079 | L21: =0.183*(L17+L18+L19*'Premissas macroeconomicas'!$J11+L20) -> 175,678 | M21: =0.183*(M17+M18+M19*'Premissas macroeconomicas'!$J11+M20) -> 183,365 | N21: =0.183*(N17+N18+N19*'Premissas macroeconomicas'!$J11+N20) -> 195,805 | O21: =0.183*(O17+O18+O19*'Premissas macroeconomicas'!$J11+O20) -> 202,703
A22: 16 | B22: Consumos específicos areia e madeira | C22: Rendimento energético líquido | D22: MWh elec / MWh madeira | E22: 21.0% | F22: 27.5% | G22: 28.2% | H22: 29.5% | I22: 28.9% | J22: 29.9% | K22: 30.8% | L22: 29.4% | M22: 30.1% | N22: 31.1% | O22: 35.9%
A23: 17 | C23: Água | D23: m³/MWh | E23: 6.00 | F23: 5.50 | G23: 5.50 | H23: 5.50 | I23: 5.00 | J23: 5.00 | K23: 5.00 | L23: 5.00 | M23: 5.00 | N23: 5.00 | O23: 4.50
A24: 18 | C24: Areia | D24: t/MWh | E24: 0 | F24: 0 | G24: 0 | H24: 0.02 | I24: 0 | J24: 0.02 | K24: 0.02 | L24: 0.02 | M24: 0.02 | N24: 0.02 | O24: 0.02
A25: 19 | B25: Outros custos variáveis | C25: Outros custos variáveis | D25: R$/MWh | E25: 19.88 | F25: 15.69 | G25: 14.62 | H25: 11.52 | I25: 14.77 | J25: 11.63 | K25: 11.51 | L25: 13.51 | M25: 11.60 | N25: 11.48 | O25: 11.14
A26: 20 | B26: Custos operacionais fixos base SP | C26: Mão de obra | D26: mil R$/ano | E26: 6,036 | F26: 6,318 | G26: 6,438 | H26: 6,438 | I26: 6,817 | J26: 6,817 | K26: 6,744 | L26: 7,050 | M26: 7,050 | N26: 6,744 | O26: 6,744
A27: 21 | C27: Serviços terceirizados | D27: mil R$/ano | E27: 745 | F27: 1,154 | G27: 1,394 | H27: 1,394 | I27: 1,683 | J27: 1,633 | K27: 1,792 | L27: 1,879 | M27: 1,792 | N27: 1,792 | O27: 1,792
A28: 22 | C28: Manutenção | D28: mil R$/ano | E28: 2,116 | F28: 6,440 | G28: 10,954 | H28: 9,604 | I28: 21,851 | J28: 15,337 | K28: 25,828 | L28: 32,860 | M28: 27,415 | N28: 23,926 | O28: 25,895
A29: 23 | C29: Outros custos fixos | D29: mil R$/ano | E29: 891 | F29: 1,081 | G29: 1,175 | H29: 1,175 | I29: 1,276 | J29: 1,268 | K29: 1,280 | L29: 1,339 | M29: 1,326 | N29: 1,280 | O29: 1,280
A30: 24 | C30: Custos administrativos | D30: mil R$/ano | E30: 1,105 | F30: 1,525 | G30: 1,752 | H30: 1,752 | I30: 2,017 | J30: 2,017 | K30: 2,190 | L30: 2,190 | M30: 2,190 | N30: 2,190 | O30: 2,190
C31: Total fixo | F31: =SUM(F26:F30) -> 16,518 | G31: =LN(L26/G26)/LN(3) -> 0.08 | H31: =LN(M26/H26)/LN(3) -> 0.08
B32: Descrição e Explicações:
G33: Custos unitários de transmissão
H34: cons. civil | I34: equip nacional
G35: até 50 MW | H35: 135.6 | I35: 964.4
G36: > 50 MW | H36: 406.8 | I36: 2893.2
I90: U)

Sheet Modelo financeiro alvo (hidden)
G8: ='Premissas do projeto'!$F$16 -> 2017 | H8: =G8+1 -> 2018 | I8: =H8+1 -> 2019 | J8: =I8+1 -> 2020 | K8: 2021 | L8: 2022 | M8: 2023 | N8: 2024 | O8: 2025 | P8: 2026 | Q8: 2027 | R8: 2028 | S8: 2029 | T8: 2030 | U8: 2031 | V8: 2032 | W8: 2033 | X8: 2034 | Y8: 2035 | Z8: 2036 | AA8: 2037 | AB8: 2038 | AC8: 2039 | AD8: 2040 | AE8: 2041 | AF8: 2042 | AG8: 2043 | AH8: 2044 | AI8: 2045 | AJ8: =AI8+1 -> 2046 | AK8: 2047 | AL8: 2048 | AM8: 2049 | AN8: 2050 | AO8: 2051 | AP8: 2052 | AQ8: 2053 | AR8: 2054 | AS8: 2055 | AT8: 2056 | AU8: 2057 | AV8: 2058 | AW8: 2059 | AX8: 2060 | AY8: 2061 | AZ8: 2062 | BA8: 2063 | BB8: 2064 | BC8: 2065 | BD8: 2066 | BE8: 2067 | BF8: 2068 | BG8: 2069 | BH8: 2070 | BI8: 2071 | BJ8: 2072 | BK8: 2073 | BL8: 2074 | BM8: 2075
B10: INDICADORES TÉCNICO-ECONÔMICOS CHAVE
B12: Indexador inflação | G12: =HLOOKUP(G8,'Premissas macroeconomicas'!C4:BP6,3,0) -> 1.00 | H12: =HLOOKUP(H8,'Premissas macroeconomicas'!D4:BQ6,3,0) -> 1.04 | I12: =HLOOKUP(I8,'Premissas macroeconomicas'!E4:BR6,3,0) -> 1.09 | J12: =HLOOKUP(J8,'Premissas macroeconomicas'!F4:BS6,3,0) -> 1.13 | K12: =HLOOKUP(K8,'Premissas macroeconomicas'!G4:BT6,3,0) -> 1.18 | L12: =HLOOKUP(L8,'Premissas macroeconomicas'!H4:BU6,3,0) -> 1.23 | M12: =HLOOKUP(M8,'Premissas macroeconomicas'!I4:BV6,3,0) -> 1.28 | N12: =HLOOKUP(N8,'Premissas macroeconomicas'!J4:BW6,3,0) -> 1.33 | O12: =HLOOKUP(O8,'Premissas macroeconomicas'!K4:BX6,3,0) -> 1.39 | P12: =HLOOKUP(P8,'Premissas macroeconomicas'!L4:BY6,3,0) -> 1.45 | Q12: =HLOOKUP(Q8,'Premissas macroeconomicas'!M4:BZ6,3,0) -> 1.51 | R12: =HLOOKUP(R8,'Premissas macroeconomicas'!N4:CA6,3,0) -> 1.57 | S12: =HLOOKUP(S8,'Premissas macroeconomicas'!O4:CB6,3,0) -> 1.64 | T12: =HLOOKUP(T8,'Premissas macroeconomicas'!P4:CC6,3,0) -> 1.71 | U12: =HLOOKUP(U8,'Premissas macroeconomicas'!Q4:CD6,3,0) -> 1.78 | V12: =HLOOKUP(V8,'Premissas macroeconomicas'!R4:CE6,3,0) -> 1.85 | W12: =HLOOKUP(W8,'Premissas macroeconomicas'!S4:CF6,3,0) -> 1.93 | X12: =HLOOKUP(X8,'Premissas macroeconomicas'!T4:CG6,3,0) -> 2.01 | Y12: =HLOOKUP(Y8,'Premissas macroeconomicas'!U4:CH6,3,0) -> 2.10 | Z12: =HLOOKUP(Z8,'Premissas macroeconomicas'!V4:CI6,3,0) -> 2.19 | AA12: =HLOOKUP(AA8,'Premissas macroeconomicas'!W4:CJ6,3,0) -> 2.28 | AB12: =HLOOKUP(AB8,'Premissas macroeconomicas'!X4:CK6,3,0) -> 2.37 | AC12: =HLOOKUP(AC8,'Premissas macroeconomicas'!Y4:CL6,3,0) -> 2.47 | AD12: =HLOOKUP(AD8,'Premissas macroeconomicas'!Z4:CM6,3,0) -> 2.58 | AE12: =HLOOKUP(AE8,'Premissas macroeconomicas'!AA4:CN6,3,0) -> 2.68 | AF12: =HLOOKUP(AF8,'Premissas macroeconomicas'!AB4:CO6,3,0) -> 2.80 | AG12: =HLOOKUP(AG8,'Premissas macroeconomicas'!AC4:CP6,3,0) -> 2.91 | AH12: =HLOOKUP(AH8,'Premissas macroeconomicas'!AD4:CQ6,3,0) -> 3.04 | AI12: =HLOOKUP(AI8,'Premissas macroeconomicas'!AE4:CR6,3,0) -> 3.16 | AJ12: =HLOOKUP(AJ8,'Premissas macroeconomicas'!AF4:CS6,3,0) -> 3.30 | AK12: =HLOOKUP(AK8,'Premissas macroeconomicas'!AG4:CT6,3,0) -> 3.44 | AL12: =HLOOKUP(AL8,'Premissas macroeconomicas'!AH4:CU6,3,0) -> 3.58 | AM12: =HLOOKUP(AM8,'Premissas macroeconomicas'!AI4:CV6,3,0) -> 3.73 | AN12: =HLOOKUP(AN8,'Premissas macroeconomicas'!AJ4:CW6,3,0) -> 3.89 | AO12: =HLOOKUP(AO8,'Premissas macroeconomicas'!AK4:CX6,3,0) -> 4.05 | AP12: =HLOOKUP(AP8,'Premissas macroeconomicas'!AL4:CY6,3,0) -> 4.22 | AQ12: =HLOOKUP(AQ8,'Premissas macroeconomicas'!AM4:CZ6,3,0) -> 4.40 | AR12: =HLOOKUP(AR8,'Premissas macroeconomicas'!AN4:DA6,3,0) -> 4.58 | AS12: =HLOOKUP(AS8,'Premissas macroeconomicas'!AO4:DB6,3,0) -> 4.77 | AT12: =HLOOKUP(AT8,'Premissas macroeconomicas'!AP4:DC6,3,0) -> 4.98 | AU12: =HLOOKUP(AU8,'Premissas macroeconomicas'!AQ4:DD6,3,0) -> 5.18 | AV12: =HLOOKUP(AV8,'Premissas macroeconomicas'!AR4:DE6,3,0) -> 5.40 | AW12: =HLOOKUP(AW8,'Premissas macroeconomicas'!AS4:DF6,3,0) -> 5.63 | AX12: =HLOOKUP(AX8,'Premissas macroeconomicas'!AT4:DG6,3,0) -> 5.87 | AY12: =HLOOKUP(AY8,'Premissas macroeconomicas'!AU4:DH6,3,0) -> 6.11 | AZ12: =HLOOKUP(AZ8,'Premissas macroeconomicas'!AV4:DI6,3,0) -> 6.37 | BA12: =HLOOKUP(BA8,'Premissas macroeconomicas'!AW4:DJ6,3,0) -> 6.64 | BB12: =HLOOKUP(BB8,'Premissas macroeconomicas'!AX4:DK6,3,0) -> 6.91 | BC12: =HLOOKUP(BC8,'Premissas macroeconomicas'!AY4:DL6,3,0) -> 7.21 | BD12: =HLOOKUP(BD8,'Premissas macroeconomicas'!AZ4:DM6,3,0) -> 7.51 | BE12: =HLOOKUP(BE8,'Premissas macroeconomicas'!BA4:DN6,3,0) -> 7.82 | BF12: =HLOOKUP(BF8,'Premissas macroeconomicas'!BB4:DO6,3,0) -> 8.15 | BG12: =HLOOKUP(BG8,'Premissas macroeconomicas'!BC4:DP6,3,0) -> 8.49 | BH12: =HLOOKUP(BH8,'Premissas macroeconomicas'!BD4:DQ6,3,0) -> 8.85 | BI12: =HLOOKUP(BI8,'Premissas macroeconomicas'!BE4:DR6,3,0) -> 9.22 | BJ12: =HLOOKUP(BJ8,'Premissas macroeconomicas'!BF4:DS6,3,0) -> 9.61 | BK12: =HLOOKUP(BK8,'Premissas macroeconomicas'!BG4:DT6,3,0) -> 10.01 | BL12: =HLOOKUP(BL8,'Premissas macroeconomicas'!BH4:DU6,3,0) -> 10.43 | BM12: =HLOOKUP(BM8,'Premissas macroeconomicas'!BI4:DV6,3,0) -> 10.87
B13: Operação (horas) | H13: =IF(H8<Resultados!$C$13-1,0,IF(H8<Resultados!$C$13,1000,IF(H8>Resultados!$C$15,0,'Premissas do projeto'!$G$31))) -> 0 | I13: =IF(I8<Resultados!$C$13-1,0,IF(I8<Resultados!$C$13,1000,IF(I8>Resultados!$C$15,0,'Premissas do projeto'!$G$31))) -> 0 | J13: =IF(J8<Resultados!$C$13-1,0,IF(J8<Resultados!$C$13,1000,IF(J8>Resultados!$C$15,0,'Premissas do projeto'!$G$31))) -> 0 | K13: =IF(K8<Resultados!$C$13-1,0,IF(K8<Resultados!$C$13,1000,IF(K8>Resultados!$C$15,0,'Premissas do projeto'!$G$31))) -> 0 | L13: =IF(L8<Resultados!$C$13-1,0,IF(L8<Resultados!$C$13,1000,IF(L8>Resultados!$C$15,0,'Premissas do projeto'!$G$31))) -> 1,000 | M13: =IF(M8<Resultados!$C$13-1,0,IF(M8<Resultados!$C$13,1000,IF(M8>Resultados!$C$15,0,'Premissas do projeto'!$G$31))) -> 7,920 | N13: =IF(N8<Resultados!$C$13-1,0,IF(N8<Resultados!$C$13,1000,IF(N8>Resultados!$C$15,0,'Premissas do projeto'!$G$31))) -> 7,920 | O13: =IF(O8<Resultados!$C$13-1,0,IF(O8<Resultados!$C$13,1000,IF(O8>Resultados!$C$15,0,'Premissas do projeto'!$G$31))) -> 7,920 | P13: =IF(P8<Resultados!$C$13-1,0,IF(P8<Resultados!$C$13,1000,IF(P8>Resultados!$C$15,0,'Premissas do projeto'!$G$31))) -> 7,920 | Q13: =IF(Q8<Resultados!$C$13-1,0,IF(Q8<Resultados!$C$13,1000,IF(Q8>Resultados!$C$15,0,'Premissas do projeto'!$G$31))) -> 7,920 | R13: =IF(R8<Resultados!$C$13-1,0,IF(R8<Resultados!$C$13,1000,IF(R8>Resultados!$C$15,0,'Premissas do projeto'!$G$31))) -> 7,920 | S13: =IF(S8<Resultados!$C$13-1,0,IF(S8<Resultados!$C$13,1000,IF(S8>Resultados!$C$15,0,'Premissas do projeto'!$G$31))) -> 7,920 | T13: =IF(T8<Resultados!$C$13-1,0,IF(T8<Resultados!$C$13,1000,IF(T8>Resultados!$C$15,0,'Premissas do projeto'!$G$31))) -> 7,920 | U13: =IF(U8<Resultados!$C$13-1,0,IF(U8<Resultados!$C$13,1000,IF(U8>Resultados!$C$15,0,'Premissas do projeto'!$G$31))) -> 7,920 | V13: =IF(V8<Resultados!$C$13-1,0,IF(V8<Resultados!$C$13,1000,IF(V8>Resultados!$C$15,0,'Premissas do projeto'!$G$31))) -> 7,920 | W13: =IF(W8<Resultados!$C$13-1,0,IF(W8<Resultados!$C$13,1000,IF(W8>Resultados!$C$15,0,'Premissas do projeto'!$G$31))) -> 7,920 | X13: =IF(X8<Resultados!$C$13-1,0,IF(X8<Resultados!$C$13,1000,IF(X8>Resultados!$C$15,0,'Premissas do projeto'!$G$31))) -> 7,920 | Y13: =IF(Y8<Resultados!$C$13-1,0,IF(Y8<Resultados!$C$13,1000,IF(Y8>Resultados!$C$15,0,'Premissas do projeto'!$G$31))) -> 7,920 | Z13: =IF(Z8<Resultados!$C$13-1,0,IF(Z8<Resultados!$C$13,1000,IF(Z8>Resultados!$C$15,0,'Premissas do projeto'!$G$31))) -> 7,920 | AA13: =IF(AA8<Resultados!$C$13-1,0,IF(AA8<Resultados!$C$13,1000,IF(AA8>Resultados!$C$15,0,'Premissas do projeto'!$G$31))) -> 7,920 | AB13: =IF(AB8<Resultados!$C$13-1,0,IF(AB8<Resultados!$C$13,1000,IF(AB8>Resultados!$C$15,0,'Premissas do projeto'!$G$31))) -> 7,920 | AC13: =IF(AC8<Resultados!$C$13-1,0,IF(AC8<Resultados!$C$13,1000,IF(AC8>Resultados!$C$15,0,'Premissas do projeto'!$G$31))) -> 7,920 | AD13: =IF(AD8<Resultados!$C$13-1,0,IF(AD8<Resultados!$C$13,1000,IF(AD8>Resultados!$C$15,0,'Premissas do projeto'!$G$31))) -> 7,920 | AE13: =IF(AE8<Resultados!$C$13-1,0,IF(AE8<Resultados!$C$13,1000,IF(AE8>Resultados!$C$15,0,'Premissas do projeto'!$G$31))) -> 7,920 | AF13: =IF(AF8<Resultados!$C$13-1,0,IF(AF8<Resultados!$C$13,1000,IF(AF8>Resultados!$C$15,0,'Premissas do projeto'!$G$31))) -> 7,920 | AG13: =IF(AG8<Resultados!$C$13-1,0,IF(AG8<Resultados!$C$13,1000,IF(AG8>Resultados!$C$15,0,'Premissas do projeto'!$G$31))) -> 7,920 | AH13: =IF(AH8<Resultados!$C$13-1,0,IF(AH8<Resultados!$C$13,1000,IF(AH8>Resultados!$C$15,0,'Premissas do projeto'!$G$31))) -> 7,920 | AI13: =IF(AI8<Resultados!$C$13-1,0,IF(AI8<Resultados!$C$13,1000,IF(AI8>Resultados!$C$15,0,'Premissas do projeto'!$G$31))) -> 7,920 | AJ13: =IF(AJ8<Resultados!$C$13-1,0,IF(AJ8<Resultados!$C$13,1000,IF(AJ8>Resultados!$C$15,0,'Premissas do projeto'!$G$31))) -> 7,920 | AK13: =IF(AK8<Resultados!$C$13-1,0,IF(AK8<Resultados!$C$13,1000,IF(AK8>Resultados!$C$15,0,'Premissas do projeto'!$G$31))) -> 7,920 | AL13: =IF(AL8<Resultados!$C$13-1,0,IF(AL8<Resultados!$C$13,1000,IF(AL8>Resultados!$C$15,0,'Premissas do projeto'!$G$31))) -> 0 | AM13: =IF(AM8<Resultados!$C$13-1,0,IF(AM8<Resultados!$C$13,1000,IF(AM8>Resultados!$C$15,0,'Premissas do projeto'!$G$31))) -> 0 | AN13: =IF(AN8<Resultados!$C$13-1,0,IF(AN8<Resultados!$C$13,1000,IF(AN8>Resultados!$C$15,0,'Premissas do projeto'!$G$31))) -> 0 | AO13: =IF(AO8<Resultados!$C$13-1,0,IF(AO8<Resultados!$C$13,1000,IF(AO8>Resultados!$C$15,0,'Premissas do projeto'!$G$31))) -> 0 | AP13: =IF(AP8<Resultados!$C$13-1,0,IF(AP8<Resultados!$C$13,1000,IF(AP8>Resultados!$C$15,0,'Premissas do projeto'!$G$31))) -> 0 | AQ13: =IF(AQ8<Resultados!$C$13-1,0,IF(AQ8<Resultados!$C$13,1000,IF(AQ8>Resultados!$C$15,0,'Premissas do projeto'!$G$31))) -> 0 | AR13: =IF(AR8<Resultados!$C$13-1,0,IF(AR8<Resultados!$C$13,1000,IF(AR8>Resultados!$C$15,0,'Premissas do projeto'!$G$31))) -> 0 | AS13: =IF(AS8<Resultados!$C$13-1,0,IF(AS8<Resultados!$C$13,1000,IF(AS8>Resultados!$C$15,0,'Premissas do projeto'!$G$31))) -> 0 | AT13: =IF(AT8<Resultados!$C$13-1,0,IF(AT8<Resultados!$C$13,1000,IF(AT8>Resultados!$C$15,0,'Premissas do projeto'!$G$31))) -> 0 | AU13: =IF(AU8<Resultados!$C$13-1,0,IF(AU8<Resultados!$C$13,1000,IF(AU8>Resultados!$C$15,0,'Premissas do projeto'!$G$31))) -> 0 | AV13: =IF(AV8<Resultados!$C$13-1,0,IF(AV8<Resultados!$C$13,1000,IF(AV8>Resultados!$C$15,0,'Premissas do projeto'!$G$31))) -> 0 | AW13: =IF(AW8<Resultados!$C$13-1,0,IF(AW8<Resultados!$C$13,1000,IF(AW8>Resultados!$C$15,0,'Premissas do projeto'!$G$31))) -> 0 | AX13: =IF(AX8<Resultados!$C$13-1,0,IF(AX8<Resultados!$C$13,1000,IF(AX8>Resultados!$C$15,0,'Premissas do projeto'!$G$31))) -> 0 | AY13: =IF(AY8<Resultados!$C$13-1,0,IF(AY8<Resultados!$C$13,1000,IF(AY8>Resultados!$C$15,0,'Premissas do projeto'!$G$31))) -> 0 | AZ13: =IF(AZ8<Resultados!$C$13-1,0,IF(AZ8<Resultados!$C$13,1000,IF(AZ8>Resultados!$C$15,0,'Premissas do projeto'!$G$31))) -> 0 | BA13: =IF(BA8<Resultados!$C$13-1,0,IF(BA8<Resultados!$C$13,1000,IF(BA8>Resultados!$C$15,0,'Premissas do projeto'!$G$31))) -> 0 | BB13: =IF(BB8<Resultados!$C$13-1,0,IF(BB8<Resultados!$C$13,1000,IF(BB8>Resultados!$C$15,0,'Premissas do projeto'!$G$31))) -> 0 | BC13: =IF(BC8<Resultados!$C$13-1,0,IF(BC8<Resultados!$C$13,1000,IF(BC8>Resultados!$C$15,0,'Premissas do projeto'!$G$31))) -> 0 | BD13: =IF(BD8<Resultados!$C$13-1,0,IF(BD8<Resultados!$C$13,1000,IF(BD8>Resultados!$C$15,0,'Premissas do projeto'!$G$31))) -> 0 | BE13: =IF(BE8<Resultados!$C$13-1,0,IF(BE8<Resultados!$C$13,1000,IF(BE8>Resultados!$C$15,0,'Premissas do projeto'!$G$31))) -> 0 | BF13: =IF(BF8<Resultados!$C$13-1,0,IF(BF8<Resultados!$C$13,1000,IF(BF8>Resultados!$C$15,0,'Premissas do projeto'!$G$31))) -> 0 | BG13: =IF(BG8<Resultados!$C$13-1,0,IF(BG8<Resultados!$C$13,1000,IF(BG8>Resultados!$C$15,0,'Premissas do projeto'!$G$31))) -> 0 | BH13: =IF(BH8<Resultados!$C$13-1,0,IF(BH8<Resultados!$C$13,1000,IF(BH8>Resultados!$C$15,0,'Premissas do projeto'!$G$31))) -> 0 | BI13: =IF(BI8<Resultados!$C$13-1,0,IF(BI8<Resultados!$C$13,1000,IF(BI8>Resultados!$C$15,0,'Premissas do projeto'!$G$31))) -> 0 | BJ13: =IF(BJ8<Resultados!$C$13-1,0,IF(BJ8<Resultados!$C$13,1000,IF(BJ8>Resultados!$C$15,0,'Premissas do projeto'!$G$31))) -> 0 | BK13: =IF(BK8<Resultados!$C$13-1,0,IF(BK8<Resultados!$C$13,1000,IF(BK8>Resultados!$C$15,0,'Premissas do projeto'!$G$31))) -> 0 | BL13: =IF(BL8<Resultados!$C$13-1,0,IF(BL8<Resultados!$C$13,1000,IF(BL8>Resultados!$C$15,0,'Premissas do projeto'!$G$31))) -> 0 | BM13: =IF(BM8<Resultados!$C$13-1,0,IF(BM8<Resultados!$C$13,1000,IF(BM8>Resultados!$C$15,0,'Premissas do projeto'!$G$31))) -> 0 | BO13: =SUM(H13:BM13) -> 199,000
B14: Mão de obra / mão de obra pleno ano de operação | H14: =IF(H8<Resultados!$C$13-1,0,IF(H8=Resultados!$C$13-1,0.5,IF(H8=Resultados!$C$15+1,0.5,IF(H8>Resultados!$C$15+1,0,1)))) -> 0.0 | I14: =IF(I8<Resultados!$C$13-1,0,IF(I8=Resultados!$C$13-1,0.5,IF(I8=Resultados!$C$15+1,0.5,IF(I8>Resultados!$C$15+1,0,1)))) -> 0.0 | J14: =IF(J8<Resultados!$C$13-1,0,IF(J8=Resultados!$C$13-1,0.5,IF(J8=Resultados!$C$15+1,0.5,IF(J8>Resultados!$C$15+1,0,1)))) -> 0.0 | K14: =IF(K8<Resultados!$C$13-1,0,IF(K8=Resultados!$C$13-1,0.5,IF(K8=Resultados!$C$15+1,0.5,IF(K8>Resultados!$C$15+1,0,1)))) -> 0.0 | L14: =IF(L8<Resultados!$C$13-1,0,IF(L8=Resultados!$C$13-1,0.5,IF(L8=Resultados!$C$15+1,0.5,IF(L8>Resultados!$C$15+1,0,1)))) -> 0.5 | M14: =IF(M8<Resultados!$C$13-1,0,IF(M8=Resultados!$C$13-1,0.5,IF(M8=Resultados!$C$15+1,0.5,IF(M8>Resultados!$C$15+1,0,1)))) -> 1.0 | N14: =IF(N8<Resultados!$C$13-1,0,IF(N8=Resultados!$C$13-1,0.5,IF(N8=Resultados!$C$15+1,0.5,IF(N8>Resultados!$C$15+1,0,1)))) -> 1.0 | O14: =IF(O8<Resultados!$C$13-1,0,IF(O8=Resultados!$C$13-1,0.5,IF(O8=Resultados!$C$15+1,0.5,IF(O8>Resultados!$C$15+1,0,1)))) -> 1.0 | P14: =IF(P8<Resultados!$C$13-1,0,IF(P8=Resultados!$C$13-1,0.5,IF(P8=Resultados!$C$15+1,0.5,IF(P8>Resultados!$C$15+1,0,1)))) -> 1.0 | Q14: =IF(Q8<Resultados!$C$13-1,0,IF(Q8=Resultados!$C$13-1,0.5,IF(Q8=Resultados!$C$15+1,0.5,IF(Q8>Resultados!$C$15+1,0,1)))) -> 1.0 | R14: =IF(R8<Resultados!$C$13-1,0,IF(R8=Resultados!$C$13-1,0.5,IF(R8=Resultados!$C$15+1,0.5,IF(R8>Resultados!$C$15+1,0,1)))) -> 1.0 | S14: =IF(S8<Resultados!$C$13-1,0,IF(S8=Resultados!$C$13-1,0.5,IF(S8=Resultados!$C$15+1,0.5,IF(S8>Resultados!$C$15+1,0,1)))) -> 1.0 | T14: =IF(T8<Resultados!$C$13-1,0,IF(T8=Resultados!$C$13-1,0.5,IF(T8=Resultados!$C$15+1,0.5,IF(T8>Resultados!$C$15+1,0,1)))) -> 1.0 | U14: =IF(U8<Resultados!$C$13-1,0,IF(U8=Resultados!$C$13-1,0.5,IF(U8=Resultados!$C$15+1,0.5,IF(U8>Resultados!$C$15+1,0,1)))) -> 1.0 | V14: =IF(V8<Resultados!$C$13-1,0,IF(V8=Resultados!$C$13-1,0.5,IF(V8=Resultados!$C$15+1,0.5,IF(V8>Resultados!$C$15+1,0,1)))) -> 1.0 | W14: =IF(W8<Resultados!$C$13-1,0,IF(W8=Resultados!$C$13-1,0.5,IF(W8=Resultados!$C$15+1,0.5,IF(W8>Resultados!$C$15+1,0,1)))) -> 1.0 | X14: =IF(X8<Resultados!$C$13-1,0,IF(X8=Resultados!$C$13-1,0.5,IF(X8=Resultados!$C$15+1,0.5,IF(X8>Resultados!$C$15+1,0,1)))) -> 1.0 | Y14: =IF(Y8<Resultados!$C$13-1,0,IF(Y8=Resultados!$C$13-1,0.5,IF(Y8=Resultados!$C$15+1,0.5,IF(Y8>Resultados!$C$15+1,0,1)))) -> 1.0 | Z14: =IF(Z8<Resultados!$C$13-1,0,IF(Z8=Resultados!$C$13-1,0.5,IF(Z8=Resultados!$C$15+1,0.5,IF(Z8>Resultados!$C$15+1,0,1)))) -> 1.0 | AA14: =IF(AA8<Resultados!$C$13-1,0,IF(AA8=Resultados!$C$13-1,0.5,IF(AA8=Resultados!$C$15+1,0.5,IF(AA8>Resultados!$C$15+1,0,1)))) -> 1.0 | AB14: =IF(AB8<Resultados!$C$13-1,0,IF(AB8=Resultados!$C$13-1,0.5,IF(AB8=Resultados!$C$15+1,0.5,IF(AB8>Resultados!$C$15+1,0,1)))) -> 1.0 | AC14: =IF(AC8<Resultados!$C$13-1,0,IF(AC8=Resultados!$C$13-1,0.5,IF(AC8=Resultados!$C$15+1,0.5,IF(AC8>Resultados!$C$15+1,0,1)))) -> 1.0 | AD14: =IF(AD8<Resultados!$C$13-1,0,IF(AD8=Resultados!$C$13-1,0.5,IF(AD8=Resultados!$C$15+1,0.5,IF(AD8>Resultados!$C$15+1,0,1)))) -> 1.0 | AE14: =IF(AE8<Resultados!$C$13-1,0,IF(AE8=Resultados!$C$13-1,0.5,IF(AE8=Resultados!$C$15+1,0.5,IF(AE8>Resultados!$C$15+1,0,1)))) -> 1.0 | AF14: =IF(AF8<Resultados!$C$13-1,0,IF(AF8=Resultados!$C$13-1,0.5,IF(AF8=Resultados!$C$15+1,0.5,IF(AF8>Resultados!$C$15+1,0,1)))) -> 1.0 | AG14: =IF(AG8<Resultados!$C$13-1,0,IF(AG8=Resultados!$C$13-1,0.5,IF(AG8=Resultados!$C$15+1,0.5,IF(AG8>Resultados!$C$15+1,0,1)))) -> 1.0 | AH14: =IF(AH8<Resultados!$C$13-1,0,IF(AH8=Resultados!$C$13-1,0.5,IF(AH8=Resultados!$C$15+1,0.5,IF(AH8>Resultados!$C$15+1,0,1)))) -> 1.0 | AI14: =IF(AI8<Resultados!$C$13-1,0,IF(AI8=Resultados!$C$13-1,0.5,IF(AI8=Resultados!$C$15+1,0.5,IF(AI8>Resultados!$C$15+1,0,1)))) -> 1.0 | AJ14: =IF(AJ8<Resultados!$C$13-1,0,IF(AJ8=Resultados!$C$13-1,0.5,IF(AJ8=Resultados!$C$15+1,0.5,IF(AJ8>Resultados!$C$15+1,0,1)))) -> 1.0 | AK14: =IF(AK8<Resultados!$C$13-1,0,IF(AK8=Resultados!$C$13-1,0.5,IF(AK8=Resultados!$C$15+1,0.5,IF(AK8>Resultados!$C$15+1,0,1)))) -> 1.0 | AL14: =IF(AL8<Resultados!$C$13-1,0,IF(AL8=Resultados!$C$13-1,0.5,IF(AL8=Resultados!$C$15+1,0.5,IF(AL8>Resultados!$C$15+1,0,1)))) -> 0.5 | AM14: =IF(AM8<Resultados!$C$13-1,0,IF(AM8=Resultados!$C$13-1,0.5,IF(AM8=Resultados!$C$15+1,0.5,IF(AM8>Resultados!$C$15+1,0,1)))) -> 0.0 | AN14: =IF(AN8<Resultados!$C$13-1,0,IF(AN8=Resultados!$C$13-1,0.5,IF(AN8=Resultados!$C$15+1,0.5,IF(AN8>Resultados!$C$15+1,0,1)))) -> 0.0 | AO14: =IF(AO8<Resultados!$C$13-1,0,IF(AO8=Resultados!$C$13-1,0.5,IF(AO8=Resultados!$C$15+1,0.5,IF(AO8>Resultados!$C$15+1,0,1)))) -> 0.0 | AP14: =IF(AP8<Resultados!$C$13-1,0,IF(AP8=Resultados!$C$13-1,0.5,IF(AP8=Resultados!$C$15+1,0.5,IF(AP8>Resultados!$C$15+1,0,1)))) -> 0.0 | AQ14: =IF(AQ8<Resultados!$C$13-1,0,IF(AQ8=Resultados!$C$13-1,0.5,IF(AQ8=Resultados!$C$15+1,0.5,IF(AQ8>Resultados!$C$15+1,0,1)))) -> 0.0 | AR14: =IF(AR8<Resultados!$C$13-1,0,IF(AR8=Resultados!$C$13-1,0.5,IF(AR8=Resultados!$C$15+1,0.5,IF(AR8>Resultados!$C$15+1,0,1)))) -> 0.0 | AS14: =IF(AS8<Resultados!$C$13-1,0,IF(AS8=Resultados!$C$13-1,0.5,IF(AS8=Resultados!$C$15+1,0.5,IF(AS8>Resultados!$C$15+1,0,1)))) -> 0.0 | AT14: =IF(AT8<Resultados!$C$13-1,0,IF(AT8=Resultados!$C$13-1,0.5,IF(AT8=Resultados!$C$15+1,0.5,IF(AT8>Resultados!$C$15+1,0,1)))) -> 0.0 | AU14: =IF(AU8<Resultados!$C$13-1,0,IF(AU8=Resultados!$C$13-1,0.5,IF(AU8=Resultados!$C$15+1,0.5,IF(AU8>Resultados!$C$15+1,0,1)))) -> 0.0 | AV14: =IF(AV8<Resultados!$C$13-1,0,IF(AV8=Resultados!$C$13-1,0.5,IF(AV8=Resultados!$C$15+1,0.5,IF(AV8>Resultados!$C$15+1,0,1)))) -> 0.0 | AW14: =IF(AW8<Resultados!$C$13-1,0,IF(AW8=Resultados!$C$13-1,0.5,IF(AW8=Resultados!$C$15+1,0.5,IF(AW8>Resultados!$C$15+1,0,1)))) -> 0.0 | AX14: =IF(AX8<Resultados!$C$13-1,0,IF(AX8=Resultados!$C$13-1,0.5,IF(AX8=Resultados!$C$15+1,0.5,IF(AX8>Resultados!$C$15+1,0,1)))) -> 0.0 | AY14: =IF(AY8<Resultados!$C$13-1,0,IF(AY8=Resultados!$C$13-1,0.5,IF(AY8=Resultados!$C$15+1,0.5,IF(AY8>Resultados!$C$15+1,0,1)))) -> 0.0 | AZ14: =IF(AZ8<Resultados!$C$13-1,0,IF(AZ8=Resultados!$C$13-1,0.5,IF(AZ8=Resultados!$C$15+1,0.5,IF(AZ8>Resultados!$C$15+1,0,1)))) -> 0.0 | BA14: =IF(BA8<Resultados!$C$13-1,0,IF(BA8=Resultados!$C$13-1,0.5,IF(BA8=Resultados!$C$15+1,0.5,IF(BA8>Resultados!$C$15+1,0,1)))) -> 0.0 | BB14: =IF(BB8<Resultados!$C$13-1,0,IF(BB8=Resultados!$C$13-1,0.5,IF(BB8=Resultados!$C$15+1,0.5,IF(BB8>Resultados!$C$15+1,0,1)))) -> 0.0 | BC14: =IF(BC8<Resultados!$C$13-1,0,IF(BC8=Resultados!$C$13-1,0.5,IF(BC8=Resultados!$C$15+1,0.5,IF(BC8>Resultados!$C$15+1,0,1)))) -> 0.0 | BD14: =IF(BD8<Resultados!$C$13-1,0,IF(BD8=Resultados!$C$13-1,0.5,IF(BD8=Resultados!$C$15+1,0.5,IF(BD8>Resultados!$C$15+1,0,1)))) -> 0.0 | BE14: =IF(BE8<Resultados!$C$13-1,0,IF(BE8=Resultados!$C$13-1,0.5,IF(BE8=Resultados!$C$15+1,0.5,IF(BE8>Resultados!$C$15+1,0,1)))) -> 0.0 | BF14: =IF(BF8<Resultados!$C$13-1,0,IF(BF8=Resultados!$C$13-1,0.5,IF(BF8=Resultados!$C$15+1,0.5,IF(BF8>Resultados!$C$15+1,0,1)))) -> 0.0 | BG14: =IF(BG8<Resultados!$C$13-1,0,IF(BG8=Resultados!$C$13-1,0.5,IF(BG8=Resultados!$C$15+1,0.5,IF(BG8>Resultados!$C$15+1,0,1)))) -> 0.0 | BH14: =IF(BH8<Resultados!$C$13-1,0,IF(BH8=Resultados!$C$13-1,0.5,IF(BH8=Resultados!$C$15+1,0.5,IF(BH8>Resultados!$C$15+1,0,1)))) -> 0.0 | BI14: =IF(BI8<Resultados!$C$13-1,0,IF(BI8=Resultados!$C$13-1,0.5,IF(BI8=Resultados!$C$15+1,0.5,IF(BI8>Resultados!$C$15+1,0,1)))) -> 0.0 | BJ14: =IF(BJ8<Resultados!$C$13-1,0,IF(BJ8=Resultados!$C$13-1,0.5,IF(BJ8=Resultados!$C$15+1,0.5,IF(BJ8>Resultados!$C$15+1,0,1)))) -> 0.0 | BK14: =IF(BK8<Resultados!$C$13-1,0,IF(BK8=Resultados!$C$13-1,0.5,IF(BK8=Resultados!$C$15+1,0.5,IF(BK8>Resultados!$C$15+1,0,1)))) -> 0.0 | BL14: =IF(BL8<Resultados!$C$13-1,0,IF(BL8=Resultados!$C$13-1,0.5,IF(BL8=Resultados!$C$15+1,0.5,IF(BL8>Resultados!$C$15+1,0,1)))) -> 0.0 | BM14: =IF(BM8<Resultados!$C$13-1,0,IF(BM8=Resultados!$C$13-1,0.5,IF(BM8=Resultados!$C$15+1,0.5,IF(BM8>Resultados!$C$15+1,0,1)))) -> 0.0
B15: Serviços terceirizados / serviçoes em pleno ano de operação | H15: =IF(OR(H8<Resultados!$C$13,H8>Resultados!$C$15),0,1) -> 0.0 | I15: =IF(OR(I8<Resultados!$C$13,I8>Resultados!$C$15),0,1) -> 0.0 | J15: =IF(OR(J8<Resultados!$C$13,J8>Resultados!$C$15),0,1) -> 0.0 | K15: =IF(OR(K8<Resultados!$C$13,K8>Resultados!$C$15),0,1) -> 0.0 | L15: =IF(OR(L8<Resultados!$C$13,L8>Resultados!$C$15),0,1) -> 0.0 | M15: =IF(OR(M8<Resultados!$C$13,M8>Resultados!$C$15),0,1) -> 1.0 | N15: =IF(OR(N8<Resultados!$C$13,N8>Resultados!$C$15),0,1) -> 1.0 | O15: =IF(OR(O8<Resultados!$C$13,O8>Resultados!$C$15),0,1) -> 1.0 | P15: =IF(OR(P8<Resultados!$C$13,P8>Resultados!$C$15),0,1) -> 1.0 | Q15: =IF(OR(Q8<Resultados!$C$13,Q8>Resultados!$C$15),0,1) -> 1.0 | R15: =IF(OR(R8<Resultados!$C$13,R8>Resultados!$C$15),0,1) -> 1.0 | S15: =IF(OR(S8<Resultados!$C$13,S8>Resultados!$C$15),0,1) -> 1.0 | T15: =IF(OR(T8<Resultados!$C$13,T8>Resultados!$C$15),0,1) -> 1.0 | U15: =IF(OR(U8<Resultados!$C$13,U8>Resultados!$C$15),0,1) -> 1.0 | V15: =IF(OR(V8<Resultados!$C$13,V8>Resultados!$C$15),0,1) -> 1.0 | W15: =IF(OR(W8<Resultados!$C$13,W8>Resultados!$C$15),0,1) -> 1.0 | X15: =IF(OR(X8<Resultados!$C$13,X8>Resultados!$C$15),0,1) -> 1.0 | Y15: =IF(OR(Y8<Resultados!$C$13,Y8>Resultados!$C$15),0,1) -> 1.0 | Z15: =IF(OR(Z8<Resultados!$C$13,Z8>Resultados!$C$15),0,1) -> 1.0 | AA15: =IF(OR(AA8<Resultados!$C$13,AA8>Resultados!$C$15),0,1) -> 1.0 | AB15: =IF(OR(AB8<Resultados!$C$13,AB8>Resultados!$C$15),0,1) -> 1.0 | AC15: =IF(OR(AC8<Resultados!$C$13,AC8>Resultados!$C$15),0,1) -> 1.0 | AD15: =IF(OR(AD8<Resultados!$C$13,AD8>Resultados!$C$15),0,1) -> 1.0 | AE15: =IF(OR(AE8<Resultados!$C$13,AE8>Resultados!$C$15),0,1) -> 1.0 | AF15: =IF(OR(AF8<Resultados!$C$13,AF8>Resultados!$C$15),0,1) -> 1.0 | AG15: =IF(OR(AG8<Resultados!$C$13,AG8>Resultados!$C$15),0,1) -> 1.0 | AH15: =IF(OR(AH8<Resultados!$C$13,AH8>Resultados!$C$15),0,1) -> 1.0 | AI15: =IF(OR(AI8<Resultados!$C$13,AI8>Resultados!$C$15),0,1) -> 1.0 | AJ15: =IF(OR(AJ8<Resultados!$C$13,AJ8>Resultados!$C$15),0,1) -> 1.0 | AK15: =IF(OR(AK8<Resultados!$C$13,AK8>Resultados!$C$15),0,1) -> 1.0 | AL15: =IF(OR(AL8<Resultados!$C$13,AL8>Resultados!$C$15),0,1) -> 0.0 | AM15: =IF(OR(AM8<Resultados!$C$13,AM8>Resultados!$C$15),0,1) -> 0.0 | AN15: =IF(OR(AN8<Resultados!$C$13,AN8>Resultados!$C$15),0,1) -> 0.0 | AO15: =IF(OR(AO8<Resultados!$C$13,AO8>Resultados!$C$15),0,1) -> 0.0 | AP15: =IF(OR(AP8<Resultados!$C$13,AP8>Resultados!$C$15),0,1) -> 0.0 | AQ15: =IF(OR(AQ8<Resultados!$C$13,AQ8>Resultados!$C$15),0,1) -> 0.0 | AR15: =IF(OR(AR8<Resultados!$C$13,AR8>Resultados!$C$15),0,1) -> 0.0 | AS15: =IF(OR(AS8<Resultados!$C$13,AS8>Resultados!$C$15),0,1) -> 0.0 | AT15: =IF(OR(AT8<Resultados!$C$13,AT8>Resultados!$C$15),0,1) -> 0.0 | AU15: =IF(OR(AU8<Resultados!$C$13,AU8>Resultados!$C$15),0,1) -> 0.0 | AV15: =IF(OR(AV8<Resultados!$C$13,AV8>Resultados!$C$15),0,1) -> 0.0 | AW15: =IF(OR(AW8<Resultados!$C$13,AW8>Resultados!$C$15),0,1) -> 0.0 | AX15: =IF(OR(AX8<Resultados!$C$13,AX8>Resultados!$C$15),0,1) -> 0.0 | AY15: =IF(OR(AY8<Resultados!$C$13,AY8>Resultados!$C$15),0,1) -> 0.0 | AZ15: =IF(OR(AZ8<Resultados!$C$13,AZ8>Resultados!$C$15),0,1) -> 0.0 | BA15: =IF(OR(BA8<Resultados!$C$13,BA8>Resultados!$C$15),0,1) -> 0.0 | BB15: =IF(OR(BB8<Resultados!$C$13,BB8>Resultados!$C$15),0,1) -> 0.0 | BC15: =IF(OR(BC8<Resultados!$C$13,BC8>Resultados!$C$15),0,1) -> 0.0 | BD15: =IF(OR(BD8<Resultados!$C$13,BD8>Resultados!$C$15),0,1) -> 0.0 | BE15: =IF(OR(BE8<Resultados!$C$13,BE8>Resultados!$C$15),0,1) -> 0.0 | BF15: =IF(OR(BF8<Resultados!$C$13,BF8>Resultados!$C$15),0,1) -> 0.0 | BG15: =IF(OR(BG8<Resultados!$C$13,BG8>Resultados!$C$15),0,1) -> 0.0 | BH15: =IF(OR(BH8<Resultados!$C$13,BH8>Resultados!$C$15),0,1) -> 0.0 | BI15: =IF(OR(BI8<Resultados!$C$13,BI8>Resultados!$C$15),0,1) -> 0.0 | BJ15: =IF(OR(BJ8<Resultados!$C$13,BJ8>Resultados!$C$15),0,1) -> 0.0 | BK15: =IF(OR(BK8<Resultados!$C$13,BK8>Resultados!$C$15),0,1) -> 0.0 | BL15: =IF(OR(BL8<Resultados!$C$13,BL8>Resultados!$C$15),0,1) -> 0.0 | BM15: =IF(OR(BM8<Resultados!$C$13,BM8>Resultados!$C$15),0,1) -> 0.0
B16: Manutenção / manutenção em pleno ano de operação | H16: =IF(OR(H8<Resultados!$C$13,H8>Resultados!$C$15),0,1) -> 0.0 | I16: =IF(OR(I8<Resultados!$C$13,I8>Resultados!$C$15),0,1) -> 0.0 | J16: =IF(OR(J8<Resultados!$C$13,J8>Resultados!$C$15),0,1) -> 0.0 | K16: =IF(OR(K8<Resultados!$C$13,K8>Resultados!$C$15),0,1) -> 0.0 | L16: =IF(OR(L8<Resultados!$C$13,L8>Resultados!$C$15),0,1) -> 0.0 | M16: =IF(OR(M8<Resultados!$C$13,M8>Resultados!$C$15),0,1) -> 1.0 | N16: =IF(OR(N8<Resultados!$C$13,N8>Resultados!$C$15),0,1) -> 1.0 | O16: =IF(OR(O8<Resultados!$C$13,O8>Resultados!$C$15),0,1) -> 1.0 | P16: =IF(OR(P8<Resultados!$C$13,P8>Resultados!$C$15),0,1) -> 1.0 | Q16: =IF(OR(Q8<Resultados!$C$13,Q8>Resultados!$C$15),0,1) -> 1.0 | R16: =IF(OR(R8<Resultados!$C$13,R8>Resultados!$C$15),0,1) -> 1.0 | S16: =IF(OR(S8<Resultados!$C$13,S8>Resultados!$C$15),0,1) -> 1.0 | T16: =IF(OR(T8<Resultados!$C$13,T8>Resultados!$C$15),0,1) -> 1.0 | U16: =IF(OR(U8<Resultados!$C$13,U8>Resultados!$C$15),0,1) -> 1.0 | V16: =IF(OR(V8<Resultados!$C$13,V8>Resultados!$C$15),0,1) -> 1.0 | W16: =IF(OR(W8<Resultados!$C$13,W8>Resultados!$C$15),0,1) -> 1.0 | X16: =IF(OR(X8<Resultados!$C$13,X8>Resultados!$C$15),0,1) -> 1.0 | Y16: =IF(OR(Y8<Resultados!$C$13,Y8>Resultados!$C$15),0,1) -> 1.0 | Z16: =IF(OR(Z8<Resultados!$C$13,Z8>Resultados!$C$15),0,1) -> 1.0 | AA16: =IF(OR(AA8<Resultados!$C$13,AA8>Resultados!$C$15),0,1) -> 1.0 | AB16: =IF(OR(AB8<Resultados!$C$13,AB8>Resultados!$C$15),0,1) -> 1.0 | AC16: =IF(OR(AC8<Resultados!$C$13,AC8>Resultados!$C$15),0,1) -> 1.0 | AD16: =IF(OR(AD8<Resultados!$C$13,AD8>Resultados!$C$15),0,1) -> 1.0 | AE16: =IF(OR(AE8<Resultados!$C$13,AE8>Resultados!$C$15),0,1) -> 1.0 | AF16: =IF(OR(AF8<Resultados!$C$13,AF8>Resultados!$C$15),0,1) -> 1.0 | AG16: =IF(OR(AG8<Resultados!$C$13,AG8>Resultados!$C$15),0,1) -> 1.0 | AH16: =IF(OR(AH8<Resultados!$C$13,AH8>Resultados!$C$15),0,1) -> 1.0 | AI16: =IF(OR(AI8<Resultados!$C$13,AI8>Resultados!$C$15),0,1) -> 1.0 | AJ16: =IF(OR(AJ8<Resultados!$C$13,AJ8>Resultados!$C$15),0,1) -> 1.0 | AK16: =IF(OR(AK8<Resultados!$C$13,AK8>Resultados!$C$15),0,1) -> 1.0 | AL16: =IF(OR(AL8<Resultados!$C$13,AL8>Resultados!$C$15),0,1) -> 0.0 | AM16: =IF(OR(AM8<Resultados!$C$13,AM8>Resultados!$C$15),0,1) -> 0.0 | AN16: =IF(OR(AN8<Resultados!$C$13,AN8>Resultados!$C$15),0,1) -> 0.0 | AO16: =IF(OR(AO8<Resultados!$C$13,AO8>Resultados!$C$15),0,1) -> 0.0 | AP16: =IF(OR(AP8<Resultados!$C$13,AP8>Resultados!$C$15),0,1) -> 0.0 | AQ16: =IF(OR(AQ8<Resultados!$C$13,AQ8>Resultados!$C$15),0,1) -> 0.0 | AR16: =IF(OR(AR8<Resultados!$C$13,AR8>Resultados!$C$15),0,1) -> 0.0 | AS16: =IF(OR(AS8<Resultados!$C$13,AS8>Resultados!$C$15),0,1) -> 0.0 | AT16: =IF(OR(AT8<Resultados!$C$13,AT8>Resultados!$C$15),0,1) -> 0.0 | AU16: =IF(OR(AU8<Resultados!$C$13,AU8>Resultados!$C$15),0,1) -> 0.0 | AV16: =IF(OR(AV8<Resultados!$C$13,AV8>Resultados!$C$15),0,1) -> 0.0 | AW16: =IF(OR(AW8<Resultados!$C$13,AW8>Resultados!$C$15),0,1) -> 0.0 | AX16: =IF(OR(AX8<Resultados!$C$13,AX8>Resultados!$C$15),0,1) -> 0.0 | AY16: =IF(OR(AY8<Resultados!$C$13,AY8>Resultados!$C$15),0,1) -> 0.0 | AZ16: =IF(OR(AZ8<Resultados!$C$13,AZ8>Resultados!$C$15),0,1) -> 0.0 | BA16: =IF(OR(BA8<Resultados!$C$13,BA8>Resultados!$C$15),0,1) -> 0.0 | BB16: =IF(OR(BB8<Resultados!$C$13,BB8>Resultados!$C$15),0,1) -> 0.0 | BC16: =IF(OR(BC8<Resultados!$C$13,BC8>Resultados!$C$15),0,1) -> 0.0 | BD16: =IF(OR(BD8<Resultados!$C$13,BD8>Resultados!$C$15),0,1) -> 0.0 | BE16: =IF(OR(BE8<Resultados!$C$13,BE8>Resultados!$C$15),0,1) -> 0.0 | BF16: =IF(OR(BF8<Resultados!$C$13,BF8>Resultados!$C$15),0,1) -> 0.0 | BG16: =IF(OR(BG8<Resultados!$C$13,BG8>Resultados!$C$15),0,1) -> 0.0 | BH16: =IF(OR(BH8<Resultados!$C$13,BH8>Resultados!$C$15),0,1) -> 0.0 | BI16: =IF(OR(BI8<Resultados!$C$13,BI8>Resultados!$C$15),0,1) -> 0.0 | BJ16: =IF(OR(BJ8<Resultados!$C$13,BJ8>Resultados!$C$15),0,1) -> 0.0 | BK16: =IF(OR(BK8<Resultados!$C$13,BK8>Resultados!$C$15),0,1) -> 0.0 | BL16: =IF(OR(BL8<Resultados!$C$13,BL8>Resultados!$C$15),0,1) -> 0.0 | BM16: =IF(OR(BM8<Resultados!$C$13,BM8>Resultados!$C$15),0,1) -> 0.0
B17: Outros custos fixos / outros custos fixos em pleno ano de operação | H17: =IF(OR(H8<Resultados!$C$13,H8>Resultados!$C$15),0,1) -> 0.0 | I17: =IF(OR(I8<Resultados!$C$13,I8>Resultados!$C$15),0,1) -> 0.0 | J17: =IF(OR(J8<Resultados!$C$13,J8>Resultados!$C$15),0,1) -> 0.0 | K17: =IF(OR(K8<Resultados!$C$13,K8>Resultados!$C$15),0,1) -> 0.0 | L17: =IF(OR(L8<Resultados!$C$13,L8>Resultados!$C$15),0,1) -> 0.0 | M17: =IF(OR(M8<Resultados!$C$13,M8>Resultados!$C$15),0,1) -> 1.0 | N17: =IF(OR(N8<Resultados!$C$13,N8>Resultados!$C$15),0,1) -> 1.0 | O17: =IF(OR(O8<Resultados!$C$13,O8>Resultados!$C$15),0,1) -> 1.0 | P17: =IF(OR(P8<Resultados!$C$13,P8>Resultados!$C$15),0,1) -> 1.0 | Q17: =IF(OR(Q8<Resultados!$C$13,Q8>Resultados!$C$15),0,1) -> 1.0 | R17: =IF(OR(R8<Resultados!$C$13,R8>Resultados!$C$15),0,1) -> 1.0 | S17: =IF(OR(S8<Resultados!$C$13,S8>Resultados!$C$15),0,1) -> 1.0 | T17: =IF(OR(T8<Resultados!$C$13,T8>Resultados!$C$15),0,1) -> 1.0 | U17: =IF(OR(U8<Resultados!$C$13,U8>Resultados!$C$15),0,1) -> 1.0 | V17: =IF(OR(V8<Resultados!$C$13,V8>Resultados!$C$15),0,1) -> 1.0 | W17: =IF(OR(W8<Resultados!$C$13,W8>Resultados!$C$15),0,1) -> 1.0 | X17: =IF(OR(X8<Resultados!$C$13,X8>Resultados!$C$15),0,1) -> 1.0 | Y17: =IF(OR(Y8<Resultados!$C$13,Y8>Resultados!$C$15),0,1) -> 1.0 | Z17: =IF(OR(Z8<Resultados!$C$13,Z8>Resultados!$C$15),0,1) -> 1.0 | AA17: =IF(OR(AA8<Resultados!$C$13,AA8>Resultados!$C$15),0,1) -> 1.0 | AB17: =IF(OR(AB8<Resultados!$C$13,AB8>Resultados!$C$15),0,1) -> 1.0 | AC17: =IF(OR(AC8<Resultados!$C$13,AC8>Resultados!$C$15),0,1) -> 1.0 | AD17: =IF(OR(AD8<Resultados!$C$13,AD8>Resultados!$C$15),0,1) -> 1.0 | AE17: =IF(OR(AE8<Resultados!$C$13,AE8>Resultados!$C$15),0,1) -> 1.0 | AF17: =IF(OR(AF8<Resultados!$C$13,AF8>Resultados!$C$15),0,1) -> 1.0 | AG17: =IF(OR(AG8<Resultados!$C$13,AG8>Resultados!$C$15),0,1) -> 1.0 | AH17: =IF(OR(AH8<Resultados!$C$13,AH8>Resultados!$C$15),0,1) -> 1.0 | AI17: =IF(OR(AI8<Resultados!$C$13,AI8>Resultados!$C$15),0,1) -> 1.0 | AJ17: =IF(OR(AJ8<Resultados!$C$13,AJ8>Resultados!$C$15),0,1) -> 1.0 | AK17: =IF(OR(AK8<Resultados!$C$13,AK8>Resultados!$C$15),0,1) -> 1.0 | AL17: =IF(OR(AL8<Resultados!$C$13,AL8>Resultados!$C$15),0,1) -> 0.0 | AM17: =IF(OR(AM8<Resultados!$C$13,AM8>Resultados!$C$15),0,1) -> 0.0 | AN17: =IF(OR(AN8<Resultados!$C$13,AN8>Resultados!$C$15),0,1) -> 0.0 | AO17: =IF(OR(AO8<Resultados!$C$13,AO8>Resultados!$C$15),0,1) -> 0.0 | AP17: =IF(OR(AP8<Resultados!$C$13,AP8>Resultados!$C$15),0,1) -> 0.0 | AQ17: =IF(OR(AQ8<Resultados!$C$13,AQ8>Resultados!$C$15),0,1) -> 0.0 | AR17: =IF(OR(AR8<Resultados!$C$13,AR8>Resultados!$C$15),0,1) -> 0.0 | AS17: =IF(OR(AS8<Resultados!$C$13,AS8>Resultados!$C$15),0,1) -> 0.0 | AT17: =IF(OR(AT8<Resultados!$C$13,AT8>Resultados!$C$15),0,1) -> 0.0 | AU17: =IF(OR(AU8<Resultados!$C$13,AU8>Resultados!$C$15),0,1) -> 0.0 | AV17: =IF(OR(AV8<Resultados!$C$13,AV8>Resultados!$C$15),0,1) -> 0.0 | AW17: =IF(OR(AW8<Resultados!$C$13,AW8>Resultados!$C$15),0,1) -> 0.0 | AX17: =IF(OR(AX8<Resultados!$C$13,AX8>Resultados!$C$15),0,1) -> 0.0 | AY17: =IF(OR(AY8<Resultados!$C$13,AY8>Resultados!$C$15),0,1) -> 0.0 | AZ17: =IF(OR(AZ8<Resultados!$C$13,AZ8>Resultados!$C$15),0,1) -> 0.0 | BA17: =IF(OR(BA8<Resultados!$C$13,BA8>Resultados!$C$15),0,1) -> 0.0 | BB17: =IF(OR(BB8<Resultados!$C$13,BB8>Resultados!$C$15),0,1) -> 0.0 | BC17: =IF(OR(BC8<Resultados!$C$13,BC8>Resultados!$C$15),0,1) -> 0.0 | BD17: =IF(OR(BD8<Resultados!$C$13,BD8>Resultados!$C$15),0,1) -> 0.0 | BE17: =IF(OR(BE8<Resultados!$C$13,BE8>Resultados!$C$15),0,1) -> 0.0 | BF17: =IF(OR(BF8<Resultados!$C$13,BF8>Resultados!$C$15),0,1) -> 0.0 | BG17: =IF(OR(BG8<Resultados!$C$13,BG8>Resultados!$C$15),0,1) -> 0.0 | BH17: =IF(OR(BH8<Resultados!$C$13,BH8>Resultados!$C$15),0,1) -> 0.0 | BI17: =IF(OR(BI8<Resultados!$C$13,BI8>Resultados!$C$15),0,1) -> 0.0 | BJ17: =IF(OR(BJ8<Resultados!$C$13,BJ8>Resultados!$C$15),0,1) -> 0.0 | BK17: =IF(OR(BK8<Resultados!$C$13,BK8>Resultados!$C$15),0,1) -> 0.0 | BL17: =IF(OR(BL8<Resultados!$C$13,BL8>Resultados!$C$15),0,1) -> 0.0 | BM17: =IF(OR(BM8<Resultados!$C$13,BM8>Resultados!$C$15),0,1) -> 0.0
B18: Custos administrativos / custos administrativos em pleno ano de operação | H18: =IF(H8<Resultados!$C$13-1,0,IF(H8=Resultados!$C$13-1,0.5,IF(H8=Resultados!$C$15+1,0.5,IF(H8>Resultados!$C$15+1,0,1)))) -> 0.0 | I18: =IF(I8<Resultados!$C$13-1,0,IF(I8=Resultados!$C$13-1,0.5,IF(I8=Resultados!$C$15+1,0.5,IF(I8>Resultados!$C$15+1,0,1)))) -> 0.0 | J18: =IF(J8<Resultados!$C$13-1,0,IF(J8=Resultados!$C$13-1,0.5,IF(J8=Resultados!$C$15+1,0.5,IF(J8>Resultados!$C$15+1,0,1)))) -> 0.0 | K18: =IF(K8<Resultados!$C$13-1,0,IF(K8=Resultados!$C$13-1,0.5,IF(K8=Resultados!$C$15+1,0.5,IF(K8>Resultados!$C$15+1,0,1)))) -> 0.0 | L18: =IF(L8<Resultados!$C$13-1,0,IF(L8=Resultados!$C$13-1,0.5,IF(L8=Resultados!$C$15+1,0.5,IF(L8>Resultados!$C$15+1,0,1)))) -> 0.5 | M18: =IF(M8<Resultados!$C$13-1,0,IF(M8=Resultados!$C$13-1,0.5,IF(M8=Resultados!$C$15+1,0.5,IF(M8>Resultados!$C$15+1,0,1)))) -> 1.0 | N18: =IF(N8<Resultados!$C$13-1,0,IF(N8=Resultados!$C$13-1,0.5,IF(N8=Resultados!$C$15+1,0.5,IF(N8>Resultados!$C$15+1,0,1)))) -> 1.0 | O18: =IF(O8<Resultados!$C$13-1,0,IF(O8=Resultados!$C$13-1,0.5,IF(O8=Resultados!$C$15+1,0.5,IF(O8>Resultados!$C$15+1,0,1)))) -> 1.0 | P18: =IF(P8<Resultados!$C$13-1,0,IF(P8=Resultados!$C$13-1,0.5,IF(P8=Resultados!$C$15+1,0.5,IF(P8>Resultados!$C$15+1,0,1)))) -> 1.0 | Q18: =IF(Q8<Resultados!$C$13-1,0,IF(Q8=Resultados!$C$13-1,0.5,IF(Q8=Resultados!$C$15+1,0.5,IF(Q8>Resultados!$C$15+1,0,1)))) -> 1.0 | R18: =IF(R8<Resultados!$C$13-1,0,IF(R8=Resultados!$C$13-1,0.5,IF(R8=Resultados!$C$15+1,0.5,IF(R8>Resultados!$C$15+1,0,1)))) -> 1.0 | S18: =IF(S8<Resultados!$C$13-1,0,IF(S8=Resultados!$C$13-1,0.5,IF(S8=Resultados!$C$15+1,0.5,IF(S8>Resultados!$C$15+1,0,1)))) -> 1.0 | T18: =IF(T8<Resultados!$C$13-1,0,IF(T8=Resultados!$C$13-1,0.5,IF(T8=Resultados!$C$15+1,0.5,IF(T8>Resultados!$C$15+1,0,1)))) -> 1.0 | U18: =IF(U8<Resultados!$C$13-1,0,IF(U8=Resultados!$C$13-1,0.5,IF(U8=Resultados!$C$15+1,0.5,IF(U8>Resultados!$C$15+1,0,1)))) -> 1.0 | V18: =IF(V8<Resultados!$C$13-1,0,IF(V8=Resultados!$C$13-1,0.5,IF(V8=Resultados!$C$15+1,0.5,IF(V8>Resultados!$C$15+1,0,1)))) -> 1.0 | W18: =IF(W8<Resultados!$C$13-1,0,IF(W8=Resultados!$C$13-1,0.5,IF(W8=Resultados!$C$15+1,0.5,IF(W8>Resultados!$C$15+1,0,1)))) -> 1.0 | X18: =IF(X8<Resultados!$C$13-1,0,IF(X8=Resultados!$C$13-1,0.5,IF(X8=Resultados!$C$15+1,0.5,IF(X8>Resultados!$C$15+1,0,1)))) -> 1.0 | Y18: =IF(Y8<Resultados!$C$13-1,0,IF(Y8=Resultados!$C$13-1,0.5,IF(Y8=Resultados!$C$15+1,0.5,IF(Y8>Resultados!$C$15+1,0,1)))) -> 1.0 | Z18: =IF(Z8<Resultados!$C$13-1,0,IF(Z8=Resultados!$C$13-1,0.5,IF(Z8=Resultados!$C$15+1,0.5,IF(Z8>Resultados!$C$15+1,0,1)))) -> 1.0 | AA18: =IF(AA8<Resultados!$C$13-1,0,IF(AA8=Resultados!$C$13-1,0.5,IF(AA8=Resultados!$C$15+1,0.5,IF(AA8>Resultados!$C$15+1,0,1)))) -> 1.0 | AB18: =IF(AB8<Resultados!$C$13-1,0,IF(AB8=Resultados!$C$13-1,0.5,IF(AB8=Resultados!$C$15+1,0.5,IF(AB8>Resultados!$C$15+1,0,1)))) -> 1.0 | AC18: =IF(AC8<Resultados!$C$13-1,0,IF(AC8=Resultados!$C$13-1,0.5,IF(AC8=Resultados!$C$15+1,0.5,IF(AC8>Resultados!$C$15+1,0,1)))) -> 1.0 | AD18: =IF(AD8<Resultados!$C$13-1,0,IF(AD8=Resultados!$C$13-1,0.5,IF(AD8=Resultados!$C$15+1,0.5,IF(AD8>Resultados!$C$15+1,0,1)))) -> 1.0 | AE18: =IF(AE8<Resultados!$C$13-1,0,IF(AE8=Resultados!$C$13-1,0.5,IF(AE8=Resultados!$C$15+1,0.5,IF(AE8>Resultados!$C$15+1,0,1)))) -> 1.0 | AF18: =IF(AF8<Resultados!$C$13-1,0,IF(AF8=Resultados!$C$13-1,0.5,IF(AF8=Resultados!$C$15+1,0.5,IF(AF8>Resultados!$C$15+1,0,1)))) -> 1.0 | AG18: =IF(AG8<Resultados!$C$13-1,0,IF(AG8=Resultados!$C$13-1,0.5,IF(AG8=Resultados!$C$15+1,0.5,IF(AG8>Resultados!$C$15+1,0,1)))) -> 1.0 | AH18: =IF(AH8<Resultados!$C$13-1,0,IF(AH8=Resultados!$C$13-1,0.5,IF(AH8=Resultados!$C$15+1,0.5,IF(AH8>Resultados!$C$15+1,0,1)))) -> 1.0 | AI18: =IF(AI8<Resultados!$C$13-1,0,IF(AI8=Resultados!$C$13-1,0.5,IF(AI8=Resultados!$C$15+1,0.5,IF(AI8>Resultados!$C$15+1,0,1)))) -> 1.0 | AJ18: =IF(AJ8<Resultados!$C$13-1,0,IF(AJ8=Resultados!$C$13-1,0.5,IF(AJ8=Resultados!$C$15+1,0.5,IF(AJ8>Resultados!$C$15+1,0,1)))) -> 1.0 | AK18: =IF(AK8<Resultados!$C$13-1,0,IF(AK8=Resultados!$C$13-1,0.5,IF(AK8=Resultados!$C$15+1,0.5,IF(AK8>Resultados!$C$15+1,0,1)))) -> 1.0 | AL18: =IF(AL8<Resultados!$C$13-1,0,IF(AL8=Resultados!$C$13-1,0.5,IF(AL8=Resultados!$C$15+1,0.5,IF(AL8>Resultados!$C$15+1,0,1)))) -> 0.5 | AM18: =IF(AM8<Resultados!$C$13-1,0,IF(AM8=Resultados!$C$13-1,0.5,IF(AM8=Resultados!$C$15+1,0.5,IF(AM8>Resultados!$C$15+1,0,1)))) -> 0.0 | AN18: =IF(AN8<Resultados!$C$13-1,0,IF(AN8=Resultados!$C$13-1,0.5,IF(AN8=Resultados!$C$15+1,0.5,IF(AN8>Resultados!$C$15+1,0,1)))) -> 0.0 | AO18: =IF(AO8<Resultados!$C$13-1,0,IF(AO8=Resultados!$C$13-1,0.5,IF(AO8=Resultados!$C$15+1,0.5,IF(AO8>Resultados!$C$15+1,0,1)))) -> 0.0 | AP18: =IF(AP8<Resultados!$C$13-1,0,IF(AP8=Resultados!$C$13-1,0.5,IF(AP8=Resultados!$C$15+1,0.5,IF(AP8>Resultados!$C$15+1,0,1)))) -> 0.0 | AQ18: =IF(AQ8<Resultados!$C$13-1,0,IF(AQ8=Resultados!$C$13-1,0.5,IF(AQ8=Resultados!$C$15+1,0.5,IF(AQ8>Resultados!$C$15+1,0,1)))) -> 0.0 | AR18: =IF(AR8<Resultados!$C$13-1,0,IF(AR8=Resultados!$C$13-1,0.5,IF(AR8=Resultados!$C$15+1,0.5,IF(AR8>Resultados!$C$15+1,0,1)))) -> 0.0 | AS18: =IF(AS8<Resultados!$C$13-1,0,IF(AS8=Resultados!$C$13-1,0.5,IF(AS8=Resultados!$C$15+1,0.5,IF(AS8>Resultados!$C$15+1,0,1)))) -> 0.0 | AT18: =IF(AT8<Resultados!$C$13-1,0,IF(AT8=Resultados!$C$13-1,0.5,IF(AT8=Resultados!$C$15+1,0.5,IF(AT8>Resultados!$C$15+1,0,1)))) -> 0.0 | AU18: =IF(AU8<Resultados!$C$13-1,0,IF(AU8=Resultados!$C$13-1,0.5,IF(AU8=Resultados!$C$15+1,0.5,IF(AU8>Resultados!$C$15+1,0,1)))) -> 0.0 | AV18: =IF(AV8<Resultados!$C$13-1,0,IF(AV8=Resultados!$C$13-1,0.5,IF(AV8=Resultados!$C$15+1,0.5,IF(AV8>Resultados!$C$15+1,0,1)))) -> 0.0 | AW18: =IF(AW8<Resultados!$C$13-1,0,IF(AW8=Resultados!$C$13-1,0.5,IF(AW8=Resultados!$C$15+1,0.5,IF(AW8>Resultados!$C$15+1,0,1)))) -> 0.0 | AX18: =IF(AX8<Resultados!$C$13-1,0,IF(AX8=Resultados!$C$13-1,0.5,IF(AX8=Resultados!$C$15+1,0.5,IF(AX8>Resultados!$C$15+1,0,1)))) -> 0.0 | AY18: =IF(AY8<Resultados!$C$13-1,0,IF(AY8=Resultados!$C$13-1,0.5,IF(AY8=Resultados!$C$15+1,0.5,IF(AY8>Resultados!$C$15+1,0,1)))) -> 0.0 | AZ18: =IF(AZ8<Resultados!$C$13-1,0,IF(AZ8=Resultados!$C$13-1,0.5,IF(AZ8=Resultados!$C$15+1,0.5,IF(AZ8>Resultados!$C$15+1,0,1)))) -> 0.0 | BA18: =IF(BA8<Resultados!$C$13-1,0,IF(BA8=Resultados!$C$13-1,0.5,IF(BA8=Resultados!$C$15+1,0.5,IF(BA8>Resultados!$C$15+1,0,1)))) -> 0.0 | BB18: =IF(BB8<Resultados!$C$13-1,0,IF(BB8=Resultados!$C$13-1,0.5,IF(BB8=Resultados!$C$15+1,0.5,IF(BB8>Resultados!$C$15+1,0,1)))) -> 0.0 | BC18: =IF(BC8<Resultados!$C$13-1,0,IF(BC8=Resultados!$C$13-1,0.5,IF(BC8=Resultados!$C$15+1,0.5,IF(BC8>Resultados!$C$15+1,0,1)))) -> 0.0 | BD18: =IF(BD8<Resultados!$C$13-1,0,IF(BD8=Resultados!$C$13-1,0.5,IF(BD8=Resultados!$C$15+1,0.5,IF(BD8>Resultados!$C$15+1,0,1)))) -> 0.0 | BE18: =IF(BE8<Resultados!$C$13-1,0,IF(BE8=Resultados!$C$13-1,0.5,IF(BE8=Resultados!$C$15+1,0.5,IF(BE8>Resultados!$C$15+1,0,1)))) -> 0.0 | BF18: =IF(BF8<Resultados!$C$13-1,0,IF(BF8=Resultados!$C$13-1,0.5,IF(BF8=Resultados!$C$15+1,0.5,IF(BF8>Resultados!$C$15+1,0,1)))) -> 0.0 | BG18: =IF(BG8<Resultados!$C$13-1,0,IF(BG8=Resultados!$C$13-1,0.5,IF(BG8=Resultados!$C$15+1,0.5,IF(BG8>Resultados!$C$15+1,0,1)))) -> 0.0 | BH18: =IF(BH8<Resultados!$C$13-1,0,IF(BH8=Resultados!$C$13-1,0.5,IF(BH8=Resultados!$C$15+1,0.5,IF(BH8>Resultados!$C$15+1,0,1)))) -> 0.0 | BI18: =IF(BI8<Resultados!$C$13-1,0,IF(BI8=Resultados!$C$13-1,0.5,IF(BI8=Resultados!$C$15+1,0.5,IF(BI8>Resultados!$C$15+1,0,1)))) -> 0.0 | BJ18: =IF(BJ8<Resultados!$C$13-1,0,IF(BJ8=Resultados!$C$13-1,0.5,IF(BJ8=Resultados!$C$15+1,0.5,IF(BJ8>Resultados!$C$15+1,0,1)))) -> 0.0 | BK18: =IF(BK8<Resultados!$C$13-1,0,IF(BK8=Resultados!$C$13-1,0.5,IF(BK8=Resultados!$C$15+1,0.5,IF(BK8>Resultados!$C$15+1,0,1)))) -> 0.0 | BL18: =IF(BL8<Resultados!$C$13-1,0,IF(BL8=Resultados!$C$13-1,0.5,IF(BL8=Resultados!$C$15+1,0.5,IF(BL8>Resultados!$C$15+1,0,1)))) -> 0.0 | BM18: =IF(BM8<Resultados!$C$13-1,0,IF(BM8=Resultados!$C$13-1,0.5,IF(BM8=Resultados!$C$15+1,0.5,IF(BM8>Resultados!$C$15+1,0,1)))) -> 0.0
B19: Eletricidade vendida / vendas em pleno ano | H19: =IF(OR(H8<Resultados!$C$13,H8>Resultados!$C$15),0,1) -> 0 | I19: =IF(OR(I8<Resultados!$C$13,I8>Resultados!$C$15),0,1) -> 0 | J19: =IF(OR(J8<Resultados!$C$13,J8>Resultados!$C$15),0,1) -> 0 | K19: =IF(OR(K8<Resultados!$C$13,K8>Resultados!$C$15),0,1) -> 0 | L19: =IF(OR(L8<Resultados!$C$13,L8>Resultados!$C$15),0,1) -> 0 | M19: =IF(OR(M8<Resultados!$C$13,M8>Resultados!$C$15),0,1) -> 1 | N19: =IF(OR(N8<Resultados!$C$13,N8>Resultados!$C$15),0,1) -> 1 | O19: =IF(OR(O8<Resultados!$C$13,O8>Resultados!$C$15),0,1) -> 1 | P19: =IF(OR(P8<Resultados!$C$13,P8>Resultados!$C$15),0,1) -> 1 | Q19: =IF(OR(Q8<Resultados!$C$13,Q8>Resultados!$C$15),0,1) -> 1 | R19: =IF(OR(R8<Resultados!$C$13,R8>Resultados!$C$15),0,1) -> 1 | S19: =IF(OR(S8<Resultados!$C$13,S8>Resultados!$C$15),0,1) -> 1 | T19: =IF(OR(T8<Resultados!$C$13,T8>Resultados!$C$15),0,1) -> 1 | U19: =IF(OR(U8<Resultados!$C$13,U8>Resultados!$C$15),0,1) -> 1 | V19: =IF(OR(V8<Resultados!$C$13,V8>Resultados!$C$15),0,1) -> 1 | W19: =IF(OR(W8<Resultados!$C$13,W8>Resultados!$C$15),0,1) -> 1 | X19: =IF(OR(X8<Resultados!$C$13,X8>Resultados!$C$15),0,1) -> 1 | Y19: =IF(OR(Y8<Resultados!$C$13,Y8>Resultados!$C$15),0,1) -> 1 | Z19: =IF(OR(Z8<Resultados!$C$13,Z8>Resultados!$C$15),0,1) -> 1 | AA19: =IF(OR(AA8<Resultados!$C$13,AA8>Resultados!$C$15),0,1) -> 1 | AB19: =IF(OR(AB8<Resultados!$C$13,AB8>Resultados!$C$15),0,1) -> 1 | AC19: =IF(OR(AC8<Resultados!$C$13,AC8>Resultados!$C$15),0,1) -> 1 | AD19: =IF(OR(AD8<Resultados!$C$13,AD8>Resultados!$C$15),0,1) -> 1 | AE19: =IF(OR(AE8<Resultados!$C$13,AE8>Resultados!$C$15),0,1) -> 1 | AF19: =IF(OR(AF8<Resultados!$C$13,AF8>Resultados!$C$15),0,1) -> 1 | AG19: =IF(OR(AG8<Resultados!$C$13,AG8>Resultados!$C$15),0,1) -> 1 | AH19: =IF(OR(AH8<Resultados!$C$13,AH8>Resultados!$C$15),0,1) -> 1 | AI19: =IF(OR(AI8<Resultados!$C$13,AI8>Resultados!$C$15),0,1) -> 1 | AJ19: =IF(OR(AJ8<Resultados!$C$13,AJ8>Resultados!$C$15),0,1) -> 1 | AK19: =IF(OR(AK8<Resultados!$C$13,AK8>Resultados!$C$15),0,1) -> 1 | AL19: =IF(OR(AL8<Resultados!$C$13,AL8>Resultados!$C$15),0,1) -> 0 | AM19: =IF(OR(AM8<Resultados!$C$13,AM8>Resultados!$C$15),0,1) -> 0 | AN19: =IF(OR(AN8<Resultados!$C$13,AN8>Resultados!$C$15),0,1) -> 0 | AO19: =IF(OR(AO8<Resultados!$C$13,AO8>Resultados!$C$15),0,1) -> 0 | AP19: =IF(OR(AP8<Resultados!$C$13,AP8>Resultados!$C$15),0,1) -> 0 | AQ19: =IF(OR(AQ8<Resultados!$C$13,AQ8>Resultados!$C$15),0,1) -> 0 | AR19: =IF(OR(AR8<Resultados!$C$13,AR8>Resultados!$C$15),0,1) -> 0 | AS19: =IF(OR(AS8<Resultados!$C$13,AS8>Resultados!$C$15),0,1) -> 0 | AT19: =IF(OR(AT8<Resultados!$C$13,AT8>Resultados!$C$15),0,1) -> 0 | AU19: =IF(OR(AU8<Resultados!$C$13,AU8>Resultados!$C$15),0,1) -> 0 | AV19: =IF(OR(AV8<Resultados!$C$13,AV8>Resultados!$C$15),0,1) -> 0 | AW19: =IF(OR(AW8<Resultados!$C$13,AW8>Resultados!$C$15),0,1) -> 0 | AX19: =IF(OR(AX8<Resultados!$C$13,AX8>Resultados!$C$15),0,1) -> 0 | AY19: =IF(OR(AY8<Resultados!$C$13,AY8>Resultados!$C$15),0,1) -> 0 | AZ19: =IF(OR(AZ8<Resultados!$C$13,AZ8>Resultados!$C$15),0,1) -> 0 | BA19: =IF(OR(BA8<Resultados!$C$13,BA8>Resultados!$C$15),0,1) -> 0 | BB19: =IF(OR(BB8<Resultados!$C$13,BB8>Resultados!$C$15),0,1) -> 0 | BC19: =IF(OR(BC8<Resultados!$C$13,BC8>Resultados!$C$15),0,1) -> 0 | BD19: =IF(OR(BD8<Resultados!$C$13,BD8>Resultados!$C$15),0,1) -> 0 | BE19: =IF(OR(BE8<Resultados!$C$13,BE8>Resultados!$C$15),0,1) -> 0 | BF19: =IF(OR(BF8<Resultados!$C$13,BF8>Resultados!$C$15),0,1) -> 0 | BG19: =IF(OR(BG8<Resultados!$C$13,BG8>Resultados!$C$15),0,1) -> 0 | BH19: =IF(OR(BH8<Resultados!$C$13,BH8>Resultados!$C$15),0,1) -> 0 | BI19: =IF(OR(BI8<Resultados!$C$13,BI8>Resultados!$C$15),0,1) -> 0 | BJ19: =IF(OR(BJ8<Resultados!$C$13,BJ8>Resultados!$C$15),0,1) -> 0 | BK19: =IF(OR(BK8<Resultados!$C$13,BK8>Resultados!$C$15),0,1) -> 0 | BL19: =IF(OR(BL8<Resultados!$C$13,BL8>Resultados!$C$15),0,1) -> 0 | BM19: =IF(OR(BM8<Resultados!$C$13,BM8>Resultados!$C$15),0,1) -> 0
B20: Consumo de madeira (mil m³) | H20: =H13*'Premissas do projeto'!$G$106/1000 -> 0 | I20: =I13*'Premissas do projeto'!$G$106/1000 -> 0 | J20: =J13*'Premissas do projeto'!$G$106/1000 -> 0 | K20: =K13*'Premissas do projeto'!$G$106/1000 -> 0 | L20: =L13*'Premissas do projeto'!$G$106/1000 -> 163 | M20: =M13*'Premissas do projeto'!$G$106/1000 -> 1,288 | N20: =N13*'Premissas do projeto'!$G$106/1000 -> 1,288 | O20: =O13*'Premissas do projeto'!$G$106/1000 -> 1,288 | P20: =P13*'Premissas do projeto'!$G$106/1000 -> 1,288 | Q20: =Q13*'Premissas do projeto'!$G$106/1000 -> 1,288 | R20: =R13*'Premissas do projeto'!$G$106/1000 -> 1,288 | S20: =S13*'Premissas do projeto'!$G$106/1000 -> 1,288 | T20: =T13*'Premissas do projeto'!$G$106/1000 -> 1,288 | U20: =U13*'Premissas do projeto'!$G$106/1000 -> 1,288 | V20: =V13*'Premissas do projeto'!$G$106/1000 -> 1,288 | W20: =W13*'Premissas do projeto'!$G$106/1000 -> 1,288 | X20: =X13*'Premissas do projeto'!$G$106/1000 -> 1,288 | Y20: =Y13*'Premissas do projeto'!$G$106/1000 -> 1,288 | Z20: =Z13*'Premissas do projeto'!$G$106/1000 -> 1,288 | AA20: =AA13*'Premissas do projeto'!$G$106/1000 -> 1,288 | AB20: =AB13*'Premissas do projeto'!$G$106/1000 -> 1,288 | AC20: =AC13*'Premissas do projeto'!$G$106/1000 -> 1,288 | AD20: =AD13*'Premissas do projeto'!$G$106/1000 -> 1,288 | AE20: =AE13*'Premissas do projeto'!$G$106/1000 -> 1,288 | AF20: =AF13*'Premissas do projeto'!$G$106/1000 -> 1,288 | AG20: =AG13*'Premissas do projeto'!$G$106/1000 -> 1,288 | AH20: =AH13*'Premissas do projeto'!$G$106/1000 -> 1,288 | AI20: =AI13*'Premissas do projeto'!$G$106/1000 -> 1,288 | AJ20: =AJ13*'Premissas do projeto'!$G$106/1000 -> 1,288 | AK20: =AK13*'Premissas do projeto'!$G$106/1000 -> 1,288 | AL20: =AL13*'Premissas do projeto'!$G$106/1000 -> 0 | AM20: =AM13*'Premissas do projeto'!$G$106/1000 -> 0 | AN20: =AN13*'Premissas do projeto'!$G$106/1000 -> 0 | AO20: =AO13*'Premissas do projeto'!$G$106/1000 -> 0 | AP20: =AP13*'Premissas do projeto'!$G$106/1000 -> 0 | AQ20: =AQ13*'Premissas do projeto'!$G$106/1000 -> 0 | AR20: =AR13*'Premissas do projeto'!$G$106/1000 -> 0 | AS20: =AS13*'Premissas do projeto'!$G$106/1000 -> 0 | AT20: =AT13*'Premissas do projeto'!$G$106/1000 -> 0 | AU20: =AU13*'Premissas do projeto'!$G$106/1000 -> 0 | AV20: =AV13*'Premissas do projeto'!$G$106/1000 -> 0 | AW20: =AW13*'Premissas do projeto'!$G$106/1000 -> 0 | AX20: =AX13*'Premissas do projeto'!$G$106/1000 -> 0 | AY20: =AY13*'Premissas do projeto'!$G$106/1000 -> 0 | AZ20: =AZ13*'Premissas do projeto'!$G$106/1000 -> 0 | BA20: =BA13*'Premissas do projeto'!$G$106/1000 -> 0 | BB20: =BB13*'Premissas do projeto'!$G$106/1000 -> 0 | BC20: =BC13*'Premissas do projeto'!$G$106/1000 -> 0 | BD20: =BD13*'Premissas do projeto'!$G$106/1000 -> 0 | BE20: =BE13*'Premissas do projeto'!$G$106/1000 -> 0 | BF20: =BF13*'Premissas do projeto'!$G$106/1000 -> 0 | BG20: =BG13*'Premissas do projeto'!$G$106/1000 -> 0 | BH20: =BH13*'Premissas do projeto'!$G$106/1000 -> 0 | BI20: =BI13*'Premissas do projeto'!$G$106/1000 -> 0 | BJ20: =BJ13*'Premissas do projeto'!$G$106/1000 -> 0 | BK20: =BK13*'Premissas do projeto'!$G$106/1000 -> 0 | BL20: =BL13*'Premissas do projeto'!$G$106/1000 -> 0 | BM20: =BM13*'Premissas do projeto'!$G$106/1000 -> 0 | BO20: =SUM(H20:BM20) -> 32,374
B21: Output (GWh) | H21: ='Premissas do projeto'!$G$45*H13*H19/1000 -> 0 | I21: ='Premissas do projeto'!$G$45*I13*I19/1000 -> 0 | J21: ='Premissas do projeto'!$G$45*J13*J19/1000 -> 0 | K21: ='Premissas do projeto'!$G$45*K13*K19/1000 -> 0 | L21: ='Premissas do projeto'!$G$45*L13*L19/1000 -> 0 | M21: ='Premissas do projeto'!$G$45*M13*M19/1000 -> 792 | N21: ='Premissas do projeto'!$G$45*N13*N19/1000 -> 792 | O21: ='Premissas do projeto'!$G$45*O13*O19/1000 -> 792 | P21: ='Premissas do projeto'!$G$45*P13*P19/1000 -> 792 | Q21: ='Premissas do projeto'!$G$45*Q13*Q19/1000 -> 792 | R21: ='Premissas do projeto'!$G$45*R13*R19/1000 -> 792 | S21: ='Premissas do projeto'!$G$45*S13*S19/1000 -> 792 | T21: ='Premissas do projeto'!$G$45*T13*T19/1000 -> 792 | U21: ='Premissas do projeto'!$G$45*U13*U19/1000 -> 792 | V21: ='Premissas do projeto'!$G$45*V13*V19/1000 -> 792 | W21: ='Premissas do projeto'!$G$45*W13*W19/1000 -> 792 | X21: ='Premissas do projeto'!$G$45*X13*X19/1000 -> 792 | Y21: ='Premissas do projeto'!$G$45*Y13*Y19/1000 -> 792 | Z21: ='Premissas do projeto'!$G$45*Z13*Z19/1000 -> 792 | AA21: ='Premissas do projeto'!$G$45*AA13*AA19/1000 -> 792 | AB21: ='Premissas do projeto'!$G$45*AB13*AB19/1000 -> 792 | AC21: ='Premissas do projeto'!$G$45*AC13*AC19/1000 -> 792 | AD21: ='Premissas do projeto'!$G$45*AD13*AD19/1000 -> 792 | AE21: ='Premissas do projeto'!$G$45*AE13*AE19/1000 -> 792 | AF21: ='Premissas do projeto'!$G$45*AF13*AF19/1000 -> 792 | AG21: ='Premissas do projeto'!$G$45*AG13*AG19/1000 -> 792 | AH21: ='Premissas do projeto'!$G$45*AH13*AH19/1000 -> 792 | AI21: ='Premissas do projeto'!$G$45*AI13*AI19/1000 -> 792 | AJ21: ='Premissas do projeto'!$G$45*AJ13*AJ19/1000 -> 792 | AK21: ='Premissas do projeto'!$G$45*AK13*AK19/1000 -> 792 | AL21: ='Premissas do projeto'!$G$45*AL13*AL19/1000 -> 0 | AM21: ='Premissas do projeto'!$G$45*AM13*AM19/1000 -> 0 | AN21: ='Premissas do projeto'!$G$45*AN13*AN19/1000 -> 0 | AO21: ='Premissas do projeto'!$G$45*AO13*AO19/1000 -> 0 | AP21: ='Premissas do projeto'!$G$45*AP13*AP19/1000 -> 0 | AQ21: ='Premissas do projeto'!$G$45*AQ13*AQ19/1000 -> 0 | AR21: ='Premissas do projeto'!$G$45*AR13*AR19/1000 -> 0 | AS21: ='Premissas do projeto'!$G$45*AS13*AS19/1000 -> 0 | AT21: ='Premissas do projeto'!$G$45*AT13*AT19/1000 -> 0 | AU21: ='Premissas do projeto'!$G$45*AU13*AU19/1000 -> 0 | AV21: ='Premissas do projeto'!$G$45*AV13*AV19/1000 -> 0 | AW21: ='Premissas do projeto'!$G$45*AW13*AW19/1000 -> 0 | AX21: ='Premissas do projeto'!$G$45*AX13*AX19/1000 -> 0 | AY21: ='Premissas do projeto'!$G$45*AY13*AY19/1000 -> 0 | AZ21: ='Premissas do projeto'!$G$45*AZ13*AZ19/1000 -> 0 | BA21: ='Premissas do projeto'!$G$45*BA13*BA19/1000 -> 0 | BB21: ='Premissas do projeto'!$G$45*BB13*BB19/1000 -> 0 | BC21: ='Premissas do projeto'!$G$45*BC13*BC19/1000 -> 0 | BD21: ='Premissas do projeto'!$G$45*BD13*BD19/1000 -> 0 | BE21: ='Premissas do projeto'!$G$45*BE13*BE19/1000 -> 0 | BF21: ='Premissas do projeto'!$G$45*BF13*BF19/1000 -> 0 | BG21: ='Premissas do projeto'!$G$45*BG13*BG19/1000 -> 0 | BH21: ='Premissas do projeto'!$G$45*BH13*BH19/1000 -> 0 | BI21: ='Premissas do projeto'!$G$45*BI13*BI19/1000 -> 0 | BJ21: ='Premissas do projeto'!$G$45*BJ13*BJ19/1000 -> 0 | BK21: ='Premissas do projeto'!$G$45*BK13*BK19/1000 -> 0 | BL21: ='Premissas do projeto'!$G$45*BL13*BL19/1000 -> 0 | BM21: ='Premissas do projeto'!$G$45*BM13*BM19/1000 -> 0 | BO21: =SUM(H21:BM21) -> 19,800
G25: ='Premissas do projeto'!$F$16 -> 2017 | H25: =G25+1 -> 2018 | I25: =H25+1 -> 2019 | J25: =I25+1 -> 2020 | K25: =J25+1 -> 2021 | L25: =K25+1 -> 2022 | M25: =L25+1 -> 2023 | N25: =M25+1 -> 2024 | O25: =N25+1 -> 2025 | P25: =O25+1 -> 2026 | Q25: =P25+1 -> 2027 | R25: =Q25+1 -> 2028 | S25: =R25+1 -> 2029 | T25: =S25+1 -> 2030 | U25: =T25+1 -> 2031 | V25: =U25+1 -> 2032 | W25: =V25+1 -> 2033 | X25: =W25+1 -> 2034 | Y25: =X25+1 -> 2035 | Z25: =Y25+1 -> 2036 | AA25: =Z25+1 -> 2037 | AB25: =AA25+1 -> 2038 | AC25: =AB25+1 -> 2039 | AD25: =AC25+1 -> 2040 | AE25: =AD25+1 -> 2041 | AF25: =AE25+1 -> 2042 | AG25: =AF25+1 -> 2043 | AH25: =AG25+1 -> 2044 | AI25: =AH25+1 -> 2045 | AJ25: =AI25+1 -> 2046 | AK25: =AJ25+1 -> 2047 | AL25: =AK25+1 -> 2048 | AM25: =AL25+1 -> 2049 | AN25: =AM25+1 -> 2050 | AO25: =AN25+1 -> 2051 | AP25: =AO25+1 -> 2052 | AQ25: =AP25+1 -> 2053 | AR25: =AQ25+1 -> 2054 | AS25: =AR25+1 -> 2055 | AT25: =AS25+1 -> 2056 | AU25: =AT25+1 -> 2057 | AV25: =AU25+1 -> 2058 | AW25: =AV25+1 -> 2059 | AX25: =AW25+1 -> 2060 | AY25: =AX25+1 -> 2061 | AZ25: =AY25+1 -> 2062 | BA25: =AZ25+1 -> 2063 | BB25: =BA25+1 -> 2064 | BC25: =BB25+1 -> 2065 | BD25: =BC25+1 -> 2066 | BE25: =BD25+1 -> 2067 | BF25: =BE25+1 -> 2068 | BG25: =BF25+1 -> 2069 | BH25: =BG25+1 -> 2070 | BI25: =BH25+1 -> 2071 | BJ25: =BI25+1 -> 2072 | BK25: =BJ25+1 -> 2073 | BL25: =BK25+1 -> 2074 | BM25: =BL25+1 -> 2075
B27: DECLARAÇÃO DE RESULTADOS DO EXERCÍCIO PARA O PROJETO (Mil R$ NOMINAIS)
B29: Receita bruta | F29: ='Premissas do projeto'!G33 -> 431,923 | H29: =$F29*H19*IF('Premissas do projeto'!$G$35="Sim",H12,1) -> 0 | I29: =$F29*I19*IF('Premissas do projeto'!$G$35="Sim",I12,1) -> 0 | J29: =$F29*J19*IF('Premissas do projeto'!$G$35="Sim",J12,1) -> 0 | K29: =$F29*K19*IF('Premissas do projeto'!$G$35="Sim",K12,1) -> 0 | L29: =$F29*L19*IF('Premissas do projeto'!$G$35="Sim",L12,1) -> 0 | M29: =$F29*M19*IF('Premissas do projeto'!$G$35="Sim",M12,1) -> 552,857 | N29: =$F29*N19*IF('Premissas do projeto'!$G$35="Sim",N12,1) -> 576,077 | O29: =$F29*O19*IF('Premissas do projeto'!$G$35="Sim",O12,1) -> 600,272 | P29: =$F29*P19*IF('Premissas do projeto'!$G$35="Sim",P12,1) -> 625,483 | Q29: =$F29*Q19*IF('Premissas do projeto'!$G$35="Sim",Q12,1) -> 651,754 | R29: =$F29*R19*IF('Premissas do projeto'!$G$35="Sim",R12,1) -> 679,127 | S29: =$F29*S19*IF('Premissas do projeto'!$G$35="Sim",S12,1) -> 707,651 | T29: =$F29*T19*IF('Premissas do projeto'!$G$35="Sim",T12,1) -> 737,372 | U29: =$F29*U19*IF('Premissas do projeto'!$G$35="Sim",U12,1) -> 768,342 | V29: =$F29*V19*IF('Premissas do projeto'!$G$35="Sim",V12,1) -> 800,612 | W29: =$F29*W19*IF('Premissas do projeto'!$G$35="Sim",W12,1) -> 834,238 | X29: =$F29*X19*IF('Premissas do projeto'!$G$35="Sim",X12,1) -> 869,276 | Y29: =$F29*Y19*IF('Premissas do projeto'!$G$35="Sim",Y12,1) -> 905,785 | Z29: =$F29*Z19*IF('Premissas do projeto'!$G$35="Sim",Z12,1) -> 943,828 | AA29: =$F29*AA19*IF('Premissas do projeto'!$G$35="Sim",AA12,1) -> 983,469 | AB29: =$F29*AB19*IF('Premissas do projeto'!$G$35="Sim",AB12,1) -> 1,024,775 | AC29: =$F29*AC19*IF('Premissas do projeto'!$G$35="Sim",AC12,1) -> 1,067,815 | AD29: =$F29*AD19*IF('Premissas do projeto'!$G$35="Sim",AD12,1) -> 1,112,664 | AE29: =$F29*AE19*IF('Premissas do projeto'!$G$35="Sim",AE12,1) -> 1,159,396 | AF29: =$F29*AF19*IF('Premissas do projeto'!$G$35="Sim",AF12,1) -> 1,208,090 | AG29: =$F29*AG19*IF('Premissas do projeto'!$G$35="Sim",AG12,1) -> 1,258,830 | AH29: =$F29*AH19*IF('Premissas do projeto'!$G$35="Sim",AH12,1) -> 1,311,701 | AI29: =$F29*AI19*IF('Premissas do projeto'!$G$35="Sim",AI12,1) -> 1,366,792 | AJ29: =$F29*AJ19*IF('Premissas do projeto'!$G$35="Sim",AJ12,1) -> 1,424,197 | AK29: =$F29*AK19*IF('Premissas do projeto'!$G$35="Sim",AK12,1) -> 1,484,014 | AL29: =$F29*AL19*IF('Premissas do projeto'!$G$35="Sim",AL12,1) -> 0 | AM29: =$F29*AM19*IF('Premissas do projeto'!$G$35="Sim",AM12,1) -> 0 | AN29: =$F29*AN19*IF('Premissas do projeto'!$G$35="Sim",AN12,1) -> 0 | AO29: =$F29*AO19*IF('Premissas do projeto'!$G$35="Sim",AO12,1) -> 0 | AP29: =$F29*AP19*IF('Premissas do projeto'!$G$35="Sim",AP12,1) -> 0 | AQ29: =$F29*AQ19*IF('Premissas do projeto'!$G$35="Sim",AQ12,1) -> 0 | AR29: =$F29*AR19*IF('Premissas do projeto'!$G$35="Sim",AR12,1) -> 0 | AS29: =$F29*AS19*IF('Premissas do projeto'!$G$35="Sim",AS12,1) -> 0 | AT29: =$F29*AT19*IF('Premissas do projeto'!$G$35="Sim",AT12,1) -> 0 | AU29: =$F29*AU19*IF('Premissas do projeto'!$G$35="Sim",AU12,1) -> 0 | AV29: =$F29*AV19*IF('Premissas do projeto'!$G$35="Sim",AV12,1) -> 0 | AW29: =$F29*AW19*IF('Premissas do projeto'!$G$35="Sim",AW12,1) -> 0 | AX29: =$F29*AX19*IF('Premissas do projeto'!$G$35="Sim",AX12,1) -> 0 | AY29: =$F29*AY19*IF('Premissas do projeto'!$G$35="Sim",AY12,1) -> 0 | AZ29: =$F29*AZ19*IF('Premissas do projeto'!$G$35="Sim",AZ12,1) -> 0 | BA29: =$F29*BA19*IF('Premissas do projeto'!$G$35="Sim",BA12,1) -> 0 | BB29: =$F29*BB19*IF('Premissas do projeto'!$G$35="Sim",BB12,1) -> 0 | BC29: =$F29*BC19*IF('Premissas do projeto'!$G$35="Sim",BC12,1) -> 0 | BD29: =$F29*BD19*IF('Premissas do projeto'!$G$35="Sim",BD12,1) -> 0 | BE29: =$F29*BE19*IF('Premissas do projeto'!$G$35="Sim",BE12,1) -> 0 | BF29: =$F29*BF19*IF('Premissas do projeto'!$G$35="Sim",BF12,1) -> 0 | BG29: =$F29*BG19*IF('Premissas do projeto'!$G$35="Sim",BG12,1) -> 0 | BH29: =$F29*BH19*IF('Premissas do projeto'!$G$35="Sim",BH12,1) -> 0 | BI29: =$F29*BI19*IF('Premissas do projeto'!$G$35="Sim",BI12,1) -> 0 | BJ29: =$F29*BJ19*IF('Premissas do projeto'!$G$35="Sim",BJ12,1) -> 0 | BK29: =$F29*BK19*IF('Premissas do projeto'!$G$35="Sim",BK12,1) -> 0 | BL29: =$F29*BL19*IF('Premissas do projeto'!$G$35="Sim",BL12,1) -> 0 | BM29: =$F29*BM19*IF('Premissas do projeto'!$G$35="Sim",BM12,1) -> 0 | BO29: =SUM(H29:BM29) -> 23,654,417
B32: Deducões | H32: =H33+H38+H39 -> 0 | I32: =I33+I38+I39 -> 0 | J32: 0 | K32: 0 | L32: 0 | M32: (12,765) | N32: (39,292) | O32: (46,546) | P32: (48,188) | Q32: (50,212) | R32: (52,321) | S32: (54,518) | T32: (56,808) | U32: (59,194) | V32: (61,680) | W32: (64,271) | X32: (66,970) | Y32: (69,783) | Z32: (72,714) | AA32: (75,768) | AB32: (78,950) | AC32: (82,266) | AD32: (85,721) | AE32: (89,321) | AF32: (93,073) | AG32: (96,982) | AH32: (101,055) | AI32: (105,982) | AJ32: (111,145) | AK32: (116,555) | AL32: 0 | AM32: 0 | AN32: 0 | AO32: 0 | AP32: 0 | AQ32: 0 | AR32: 0 | AS32: 0 | AT32: 0 | AU32: 0 | AV32: 0 | AW32: 0 | AX32: 0 | AY32: 0 | AZ32: 0 | BA32: 0 | BB32: 0 | BC32: 0 | BD32: 0 | BE32: 0 | BF32: 0 | BG32: 0 | BH32: 0 | BI32: 0 | BJ32: 0 | BK32: 0 | BL32: 0 | BM32: 0 | BO32: =SUM(H32:BM32) -> (1,792,078)
D33: ICMS | H33: =-(H29*$A$35+H36) -> 0 | I33: 0 | J33: 0 | K33: 0 | L33: 0 | M33: 0 | N33: 0 | O33: 0 | P33: 0 | Q33: 0 | R33: 0 | S33: 0 | T33: 0 | U33: 0 | V33: 0 | W33: 0 | X33: 0 | Y33: 0 | Z33: 0 | AA33: 0 | AB33: 0 | AC33: 0 | AD33: 0 | AE33: 0 | AF33: 0 | AG33: 0 | AH33: 0 | AI33: 0 | AJ33: 0 | AK33: 0 | AL33: 0 | AM33: 0 | AN33: =-(AN29*$A$35+AN36) -> 0 | AO33: 0 | AP33: 0 | AQ33: 0 | AR33: 0 | AS33: 0 | AT33: 0 | AU33: 0 | AV33: 0 | AW33: 0 | AX33: 0 | AY33: 0 | AZ33: 0 | BA33: 0 | BB33: 0 | BC33: 0 | BD33: 0 | BE33: 0 | BF33: 0 | BG33: 0 | BH33: 0 | BI33: 0 | BJ33: 0 | BK33: 0 | BL33: 0 | BM33: 0
E34: Creditos iniciais | H34: =G37 -> 0 | I34: 0 | J34: 0 | K34: 0 | L34: 16,574 | M34: 33,870 | N34: 40,623 | O34: 47,563 | P34: 54,794 | Q34: 62,632 | R34: 70,799 | S34: 79,309 | T34: 88,176 | U34: 97,416 | V34: 107,043 | W34: 117,076 | X34: 127,529 | Y34: 138,422 | Z34: 149,772 | AA34: 161,598 | AB34: 173,922 | AC34: 186,763 | AD34: 200,143 | AE34: 214,086 | AF34: 228,614 | AG34: 243,752 | AH34: 259,526 | AI34: 275,962 | AJ34: 292,428 | AK34: 308,897 | AL34: 325,339 | AM34: 325,339 | AN34: =AM37 -> 325,339 | AO34: 325,339 | AP34: 325,339 | AQ34: 325,339 | AR34: 325,339 | AS34: 325,339 | AT34: 325,339 | AU34: 325,339 | AV34: 325,339 | AW34: 325,339 | AX34: 325,339 | AY34: 325,339 | AZ34: 325,339 | BA34: 325,339 | BB34: 325,339 | BC34: 325,339 | BD34: 325,339 | BE34: 325,339 | BF34: 325,339 | BG34: 325,339 | BH34: 325,339 | BI34: 325,339 | BJ34: 325,339 | BK34: 325,339 | BL34: 325,339 | BM34: 325,339
A35: =IF('Premissas do projeto'!G20="Consumidor(es) final(is) sem usar a rede",VLOOKUP('Premissas do projeto'!G13,'Biblioteca impostos'!H8:I34,2,0),0) -> 0% | E35: (+) Criados | H35: =-(H114+H125)*'Premissas do projeto'!$G$162-(H44+H48)*'Premissas do projeto'!$G$163-(H45+SUM(H50:H52))*'Premissas do projeto'!$G$164 -> 0 | I35: =-(I114+I125)*'Premissas do projeto'!$G$162-(I44+I48)*'Premissas do projeto'!$G$163-(I45+SUM(I50:I52))*'Premissas do projeto'!$G$164 -> 0 | J35: =-(J114+J125)*'Premissas do projeto'!$G$162-(J44+J48)*'Premissas do projeto'!$G$163-(J45+SUM(J50:J52))*'Premissas do projeto'!$G$164 -> 0 | K35: =-(K114+K125)*'Premissas do projeto'!$G$162-(K44+K48)*'Premissas do projeto'!$G$163-(K45+SUM(K50:K52))*'Premissas do projeto'!$G$164 -> 16,574 | L35: =-(L114+L125)*'Premissas do projeto'!$G$162-(L44+L48)*'Premissas do projeto'!$G$163-(L45+SUM(L50:L52))*'Premissas do projeto'!$G$164 -> 17,295 | M35: =-(M114+M125)*'Premissas do projeto'!$G$162-(M44+M48)*'Premissas do projeto'!$G$163-(M45+SUM(M50:M52))*'Premissas do projeto'!$G$164 -> 6,753 | N35: =-(N114+N125)*'Premissas do projeto'!$G$162-(N44+N48)*'Premissas do projeto'!$G$163-(N45+SUM(N50:N52))*'Premissas do projeto'!$G$164 -> 6,940 | O35: =-(O114+O125)*'Premissas do projeto'!$G$162-(O44+O48)*'Premissas do projeto'!$G$163-(O45+SUM(O50:O52))*'Premissas do projeto'!$G$164 -> 7,231 | P35: =-(P114+P125)*'Premissas do projeto'!$G$162-(P44+P48)*'Premissas do projeto'!$G$163-(P45+SUM(P50:P52))*'Premissas do projeto'!$G$164 -> 7,838 | Q35: =-(Q114+Q125)*'Premissas do projeto'!$G$162-(Q44+Q48)*'Premissas do projeto'!$G$163-(Q45+SUM(Q50:Q52))*'Premissas do projeto'!$G$164 -> 8,167 | R35: =-(R114+R125)*'Premissas do projeto'!$G$162-(R44+R48)*'Premissas do projeto'!$G$163-(R45+SUM(R50:R52))*'Premissas do projeto'!$G$164 -> 8,510 | S35: =-(S114+S125)*'Premissas do projeto'!$G$162-(S44+S48)*'Premissas do projeto'!$G$163-(S45+SUM(S50:S52))*'Premissas do projeto'!$G$164 -> 8,867 | T35: =-(T114+T125)*'Premissas do projeto'!$G$162-(T44+T48)*'Premissas do projeto'!$G$163-(T45+SUM(T50:T52))*'Premissas do projeto'!$G$164 -> 9,240 | U35: =-(U114+U125)*'Premissas do projeto'!$G$162-(U44+U48)*'Premissas do projeto'!$G$163-(U45+SUM(U50:U52))*'Premissas do projeto'!$G$164 -> 9,628 | V35: =-(V114+V125)*'Premissas do projeto'!$G$162-(V44+V48)*'Premissas do projeto'!$G$163-(V45+SUM(V50:V52))*'Premissas do projeto'!$G$164 -> 10,032 | W35: =-(W114+W125)*'Premissas do projeto'!$G$162-(W44+W48)*'Premissas do projeto'!$G$163-(W45+SUM(W50:W52))*'Premissas do projeto'!$G$164 -> 10,454 | X35: =-(X114+X125)*'Premissas do projeto'!$G$162-(X44+X48)*'Premissas do projeto'!$G$163-(X45+SUM(X50:X52))*'Premissas do projeto'!$G$164 -> 10,893 | Y35: =-(Y114+Y125)*'Premissas do projeto'!$G$162-(Y44+Y48)*'Premissas do projeto'!$G$163-(Y45+SUM(Y50:Y52))*'Premissas do projeto'!$G$164 -> 11,350 | Z35: =-(Z114+Z125)*'Premissas do projeto'!$G$162-(Z44+Z48)*'Premissas do projeto'!$G$163-(Z45+SUM(Z50:Z52))*'Premissas do projeto'!$G$164 -> 11,827 | AA35: =-(AA114+AA125)*'Premissas do projeto'!$G$162-(AA44+AA48)*'Premissas do projeto'!$G$163-(AA45+SUM(AA50:AA52))*'Premissas do projeto'!$G$164 -> 12,323 | AB35: =-(AB114+AB125)*'Premissas do projeto'!$G$162-(AB44+AB48)*'Premissas do projeto'!$G$163-(AB45+SUM(AB50:AB52))*'Premissas do projeto'!$G$164 -> 12,841 | AC35: =-(AC114+AC125)*'Premissas do projeto'!$G$162-(AC44+AC48)*'Premissas do projeto'!$G$163-(AC45+SUM(AC50:AC52))*'Premissas do projeto'!$G$164 -> 13,380 | AD35: =-(AD114+AD125)*'Premissas do projeto'!$G$162-(AD44+AD48)*'Premissas do projeto'!$G$163-(AD45+SUM(AD50:AD52))*'Premissas do projeto'!$G$164 -> 13,942 | AE35: =-(AE114+AE125)*'Premissas do projeto'!$G$162-(AE44+AE48)*'Premissas do projeto'!$G$163-(AE45+SUM(AE50:AE52))*'Premissas do projeto'!$G$164 -> 14,528 | AF35: =-(AF114+AF125)*'Premissas do projeto'!$G$162-(AF44+AF48)*'Premissas do projeto'!$G$163-(AF45+SUM(AF50:AF52))*'Premissas do projeto'!$G$164 -> 15,138 | AG35: =-(AG114+AG125)*'Premissas do projeto'!$G$162-(AG44+AG48)*'Premissas do projeto'!$G$163-(AG45+SUM(AG50:AG52))*'Premissas do projeto'!$G$164 -> 15,774 | AH35: =-(AH114+AH125)*'Premissas do projeto'!$G$162-(AH44+AH48)*'Premissas do projeto'!$G$163-(AH45+SUM(AH50:AH52))*'Premissas do projeto'!$G$164 -> 16,436 | AI35: =-(AI114+AI125)*'Premissas do projeto'!$G$162-(AI44+AI48)*'Premissas do projeto'!$G$163-(AI45+SUM(AI50:AI52))*'Premissas do projeto'!$G$164 -> 16,466 | AJ35: =-(AJ114+AJ125)*'Premissas do projeto'!$G$162-(AJ44+AJ48)*'Premissas do projeto'!$G$163-(AJ45+SUM(AJ50:AJ52))*'Premissas do projeto'!$G$164 -> 16,469 | AK35: =-(AK114+AK125)*'Premissas do projeto'!$G$162-(AK44+AK48)*'Premissas do projeto'!$G$163-(AK45+SUM(AK50:AK52))*'Premissas do projeto'!$G$164 -> 16,443 | AL35: =-(AL114+AL125)*'Premissas do projeto'!$G$162-(AL44+AL48)*'Premissas do projeto'!$G$163-(AL45+SUM(AL50:AL52))*'Premissas do projeto'!$G$164 -> 0 | AM35: =-(AM114+AM125)*'Premissas do projeto'!$G$162-(AM44+AM48)*'Premissas do projeto'!$G$163-(AM45+SUM(AM50:AM52))*'Premissas do projeto'!$G$164 -> 0 | AN35: =-(AN114+AN125)*'Premissas do projeto'!$G$162-(AN44+AN48)*'Premissas do projeto'!$G$163-(AN45+SUM(AN50:AN52))*'Premissas do projeto'!$G$164 -> 0 | AO35: =-(AO114+AO125)*'Premissas do projeto'!$G$162-(AO44+AO48)*'Premissas do projeto'!$G$163-(AO45+SUM(AO50:AO52))*'Premissas do projeto'!$G$164 -> 0 | AP35: =-(AP114+AP125)*'Premissas do projeto'!$G$162-(AP44+AP48)*'Premissas do projeto'!$G$163-(AP45+SUM(AP50:AP52))*'Premissas do projeto'!$G$164 -> 0 | AQ35: =-(AQ114+AQ125)*'Premissas do projeto'!$G$162-(AQ44+AQ48)*'Premissas do projeto'!$G$163-(AQ45+SUM(AQ50:AQ52))*'Premissas do projeto'!$G$164 -> 0 | AR35: =-(AR114+AR125)*'Premissas do projeto'!$G$162-(AR44+AR48)*'Premissas do projeto'!$G$163-(AR45+SUM(AR50:AR52))*'Premissas do projeto'!$G$164 -> 0 | AS35: =-(AS114+AS125)*'Premissas do projeto'!$G$162-(AS44+AS48)*'Premissas do projeto'!$G$163-(AS45+SUM(AS50:AS52))*'Premissas do projeto'!$G$164 -> 0 | AT35: =-(AT114+AT125)*'Premissas do projeto'!$G$162-(AT44+AT48)*'Premissas do projeto'!$G$163-(AT45+SUM(AT50:AT52))*'Premissas do projeto'!$G$164 -> 0 | AU35: =-(AU114+AU125)*'Premissas do projeto'!$G$162-(AU44+AU48)*'Premissas do projeto'!$G$163-(AU45+SUM(AU50:AU52))*'Premissas do projeto'!$G$164 -> 0 | AV35: =-(AV114+AV125)*'Premissas do projeto'!$G$162-(AV44+AV48)*'Premissas do projeto'!$G$163-(AV45+SUM(AV50:AV52))*'Premissas do projeto'!$G$164 -> 0 | AW35: =-(AW114+AW125)*'Premissas do projeto'!$G$162-(AW44+AW48)*'Premissas do projeto'!$G$163-(AW45+SUM(AW50:AW52))*'Premissas do projeto'!$G$164 -> 0 | AX35: =-(AX114+AX125)*'Premissas do projeto'!$G$162-(AX44+AX48)*'Premissas do projeto'!$G$163-(AX45+SUM(AX50:AX52))*'Premissas do projeto'!$G$164 -> 0 | AY35: =-(AY114+AY125)*'Premissas do projeto'!$G$162-(AY44+AY48)*'Premissas do projeto'!$G$163-(AY45+SUM(AY50:AY52))*'Premissas do projeto'!$G$164 -> 0 | AZ35: =-(AZ114+AZ125)*'Premissas do projeto'!$G$162-(AZ44+AZ48)*'Premissas do projeto'!$G$163-(AZ45+SUM(AZ50:AZ52))*'Premissas do projeto'!$G$164 -> 0 | BA35: =-(BA114+BA125)*'Premissas do projeto'!$G$162-(BA44+BA48)*'Premissas do projeto'!$G$163-(BA45+SUM(BA50:BA52))*'Premissas do projeto'!$G$164 -> 0 | BB35: =-(BB114+BB125)*'Premissas do projeto'!$G$162-(BB44+BB48)*'Premissas do projeto'!$G$163-(BB45+SUM(BB50:BB52))*'Premissas do projeto'!$G$164 -> 0 | BC35: =-(BC114+BC125)*'Premissas do projeto'!$G$162-(BC44+BC48)*'Premissas do projeto'!$G$163-(BC45+SUM(BC50:BC52))*'Premissas do projeto'!$G$164 -> 0 | BD35: =-(BD114+BD125)*'Premissas do projeto'!$G$162-(BD44+BD48)*'Premissas do projeto'!$G$163-(BD45+SUM(BD50:BD52))*'Premissas do projeto'!$G$164 -> 0 | BE35: =-(BE114+BE125)*'Premissas do projeto'!$G$162-(BE44+BE48)*'Premissas do projeto'!$G$163-(BE45+SUM(BE50:BE52))*'Premissas do projeto'!$G$164 -> 0 | BF35: =-(BF114+BF125)*'Premissas do projeto'!$G$162-(BF44+BF48)*'Premissas do projeto'!$G$163-(BF45+SUM(BF50:BF52))*'Premissas do projeto'!$G$164 -> 0 | BG35: =-(BG114+BG125)*'Premissas do projeto'!$G$162-(BG44+BG48)*'Premissas do projeto'!$G$163-(BG45+SUM(BG50:BG52))*'Premissas do projeto'!$G$164 -> 0 | BH35: =-(BH114+BH125)*'Premissas do projeto'!$G$162-(BH44+BH48)*'Premissas do projeto'!$G$163-(BH45+SUM(BH50:BH52))*'Premissas do projeto'!$G$164 -> 0 | BI35: =-(BI114+BI125)*'Premissas do projeto'!$G$162-(BI44+BI48)*'Premissas do projeto'!$G$163-(BI45+SUM(BI50:BI52))*'Premissas do projeto'!$G$164 -> 0 | BJ35: =-(BJ114+BJ125)*'Premissas do projeto'!$G$162-(BJ44+BJ48)*'Premissas do projeto'!$G$163-(BJ45+SUM(BJ50:BJ52))*'Premissas do projeto'!$G$164 -> 0 | BK35: =-(BK114+BK125)*'Premissas do projeto'!$G$162-(BK44+BK48)*'Premissas do projeto'!$G$163-(BK45+SUM(BK50:BK52))*'Premissas do projeto'!$G$164 -> 0 | BL35: =-(BL114+BL125)*'Premissas do projeto'!$G$162-(BL44+BL48)*'Premissas do projeto'!$G$163-(BL45+SUM(BL50:BL52))*'Premissas do projeto'!$G$164 -> 0 | BM35: =-(BM114+BM125)*'Premissas do projeto'!$G$162-(BM44+BM48)*'Premissas do projeto'!$G$163-(BM45+SUM(BM50:BM52))*'Premissas do projeto'!$G$164 -> 0
E36: (-) Utilizados | H36: =-MIN(H34+H35,H29*$A$35) -> 0 | I36: 0 | J36: 0 | K36: 0 | L36: 0 | M36: 0 | N36: 0 | O36: 0 | P36: 0 | Q36: 0 | R36: 0 | S36: 0 | T36: 0 | U36: 0 | V36: 0 | W36: 0 | X36: 0 | Y36: 0 | Z36: 0 | AA36: 0 | AB36: 0 | AC36: 0 | AD36: 0 | AE36: 0 | AF36: 0 | AG36: 0 | AH36: 0 | AI36: 0 | AJ36: 0 | AK36: 0 | AL36: 0 | AM36: 0 | AN36: =-MIN(AN34+AN35,AN29*$A$35) -> 0 | AO36: 0 | AP36: 0 | AQ36: 0 | AR36: 0 | AS36: 0 | AT36: 0 | AU36: 0 | AV36: 0 | AW36: 0 | AX36: 0 | AY36: 0 | AZ36: 0 | BA36: 0 | BB36: 0 | BC36: 0 | BD36: 0 | BE36: 0 | BF36: 0 | BG36: 0 | BH36: 0 | BI36: 0 | BJ36: 0 | BK36: 0 | BL36: 0 | BM36: 0
E37: Creditos finais | H37: =SUM(H34:H36) -> 0 | I37: 0 | J37: 0 | K37: 16,574 | L37: 33,870 | M37: 40,623 | N37: 47,563 | O37: 54,794 | P37: 62,632 | Q37: 70,799 | R37: 79,309 | S37: 88,176 | T37: 97,416 | U37: 107,043 | V37: 117,076 | W37: 127,529 | X37: 138,422 | Y37: 149,772 | Z37: 161,598 | AA37: 173,922 | AB37: 186,763 | AC37: 200,143 | AD37: 214,086 | AE37: 228,614 | AF37: 243,752 | AG37: 259,526 | AH37: 275,962 | AI37: 292,428 | AJ37: 308,897 | AK37: 325,339 | AL37: 325,339 | AM37: 325,339 | AN37: 325,339 | AO37: 325,339 | AP37: 325,339 | AQ37: 325,339 | AR37: 325,339 | AS37: 325,339 | AT37: 325,339 | AU37: 325,339 | AV37: 325,339 | AW37: 325,339 | AX37: 325,339 | AY37: 325,339 | AZ37: 325,339 | BA37: 325,339 | BB37: 325,339 | BC37: 325,339 | BD37: 325,339 | BE37: 325,339 | BF37: 325,339 | BG37: 325,339 | BH37: 325,339 | BI37: 325,339 | BJ37: 325,339 | BK37: 325,339 | BL37: 325,339 | BM37: 325,339
D38: PIS | H38: =IF($G$334="Presumido",H218,IF($G$334="Real",H247,H289)) -> 0 | I38: 0 | J38: 0 | K38: 0 | L38: 0 | M38: 0 | N38: (2,022) | O38: (7,711) | P38: (7,924) | Q38: (8,256) | R38: (8,603) | S38: (8,965) | T38: (9,341) | U38: (9,733) | V38: (10,142) | W38: (10,568) | X38: (11,012) | Y38: (11,474) | Z38: (11,956) | AA38: (12,459) | AB38: (12,982) | AC38: (13,527) | AD38: (14,095) | AE38: (14,687) | AF38: (15,304) | AG38: (15,947) | AH38: (16,617) | AI38: (17,557) | AJ38: (18,547) | AK38: (19,589) | AL38: 0 | AM38: 0 | AN38: =IF($G$334="Presumido",AN218,IF($G$334="Real",AN247,AN289)) -> 0 | AO38: 0 | AP38: 0 | AQ38: 0 | AR38: 0 | AS38: 0 | AT38: 0 | AU38: 0 | AV38: 0 | AW38: 0 | AX38: 0 | AY38: 0 | AZ38: 0 | BA38: 0 | BB38: 0 | BC38: 0 | BD38: 0 | BE38: 0 | BF38: 0 | BG38: 0 | BH38: 0 | BI38: 0 | BJ38: 0 | BK38: 0 | BL38: 0 | BM38: 0
D39: COFINS | H39: =IF($G$334="Presumido",H219,IF($G$334="Real",H252,H294)) -> 0 | I39: 0 | J39: 0 | K39: 0 | L39: 0 | M39: (12,765) | N39: (37,270) | O39: (38,835) | P39: (40,264) | Q39: (41,955) | R39: (43,718) | S39: (45,554) | T39: (47,467) | U39: (49,461) | V39: (51,538) | W39: (53,703) | X39: (55,958) | Y39: (58,308) | Z39: (60,757) | AA39: (63,309) | AB39: (65,968) | AC39: (68,739) | AD39: (71,626) | AE39: (74,634) | AF39: (77,769) | AG39: (81,035) | AH39: (84,438) | AI39: (88,425) | AJ39: (92,598) | AK39: (96,966) | AL39: 0 | AM39: 0 | AN39: =IF($G$334="Presumido",AN219,IF($G$334="Real",AN252,AN294)) -> 0 | AO39: 0 | AP39: 0 | AQ39: 0 | AR39: 0 | AS39: 0 | AT39: 0 | AU39: 0 | AV39: 0 | AW39: 0 | AX39: 0 | AY39: 0 | AZ39: 0 | BA39: 0 | BB39: 0 | BC39: 0 | BD39: 0 | BE39: 0 | BF39: 0 | BG39: 0 | BH39: 0 | BI39: 0 | BJ39: 0 | BK39: 0 | BL39: 0 | BM39: 0
B41: Receita líquida | H41: =H29+H32 -> 0 | I41: =I29+I32 -> 0 | J41: 0 | K41: 0 | L41: 0 | M41: 540,092 | N41: 536,785 | O41: 553,726 | P41: 577,295 | Q41: 601,542 | R41: 626,807 | S41: 653,132 | T41: 680,564 | U41: 709,148 | V41: 738,932 | W41: 769,967 | X41: 802,306 | Y41: 836,003 | Z41: 871,115 | AA41: 907,701 | AB41: 945,825 | AC41: 985,550 | AD41: 1,026,943 | AE41: 1,070,074 | AF41: 1,115,017 | AG41: 1,161,848 | AH41: 1,210,646 | AI41: 1,260,810 | AJ41: 1,313,052 | AK41: 1,367,459 | AL41: 0 | AM41: 0 | AN41: 0 | AO41: 0 | AP41: 0 | AQ41: 0 | AR41: 0 | AS41: 0 | AT41: 0 | AU41: 0 | AV41: 0 | AW41: 0 | AX41: 0 | AY41: 0 | AZ41: 0 | BA41: 0 | BB41: 0 | BC41: 0 | BD41: 0 | BE41: 0 | BF41: 0 | BG41: 0 | BH41: 0 | BI41: 0 | BJ41: 0 | BK41: 0 | BL41: 0 | BM41: 0 | BO41: =SUM(H41:BM41) -> 21,862,339
B43: Custos variáveis | H43: =SUM(H44:H45) -> 0 | I43: =SUM(I44:I45) -> 0 | J43: 0 | K43: 0 | L43: (20,255) | M43: (167,155) | N43: (174,176) | O43: (181,491) | P43: (189,114) | Q43: (197,057) | R43: (205,333) | S43: (213,957) | T43: (222,943) | U43: (232,307) | V43: (242,064) | W43: (252,231) | X43: (262,824) | Y43: (273,863) | Z43: (285,365) | AA43: (297,350) | AB43: (309,839) | AC43: (322,852) | AD43: (336,412) | AE43: (350,542) | AF43: (365,264) | AG43: (380,605) | AH43: (396,591) | AI43: (413,248) | AJ43: (430,604) | AK43: (448,689) | AL43: 0 | AM43: 0 | AN43: 0 | AO43: 0 | AP43: 0 | AQ43: 0 | AR43: 0 | AS43: 0 | AT43: 0 | AU43: 0 | AV43: 0 | AW43: 0 | AX43: 0 | AY43: 0 | AZ43: 0 | BA43: 0 | BB43: 0 | BC43: 0 | BD43: 0 | BE43: 0 | BF43: 0 | BG43: 0 | BH43: 0 | BI43: 0 | BJ43: 0 | BK43: 0 | BL43: 0 | BM43: 0 | BO43: =SUM(H43:BM43) -> (7,172,133)
C44: Madeira outra que mínimo contratual | F44: N/D | H44: =-IF(OR(H8<Resultados!$C$13,H8>Resultados!$C$15),'Premissas do projeto'!$G$127*H20,IF(H20<'Premissas do projeto'!$G$120,0,IF(H20<'Premissas do projeto'!$G$121,'Premissas do projeto'!$G$123*(H20-'Premissas do projeto'!$G$120),'Premissas do projeto'!$G$123*('Premissas do projeto'!$G$121-'Premissas do projeto'!$G$120)+'Premissas do projeto'!$G$127*(H20-'Premissas do projeto'!$G$121))))*Resultados!$CI$67*Resultados!$CI$64*H12 -> 0 | I44: =-IF(OR(I8<Resultados!$C$13,I8>Resultados!$C$15),'Premissas do projeto'!$G$127*I20,IF(I20<'Premissas do projeto'!$G$120,0,IF(I20<'Premissas do projeto'!$G$121,'Premissas do projeto'!$G$123*(I20-'Premissas do projeto'!$G$120),'Premissas do projeto'!$G$123*('Premissas do projeto'!$G$121-'Premissas do projeto'!$G$120)+'Premissas do projeto'!$G$127*(I20-'Premissas do projeto'!$G$121))))*Resultados!$CI$67*Resultados!$CI$64*I12 -> 0 | J44: =-IF(OR(J8<Resultados!$C$13,J8>Resultados!$C$15),'Premissas do projeto'!$G$127*J20,IF(J20<'Premissas do projeto'!$G$120,0,IF(J20<'Premissas do projeto'!$G$121,'Premissas do projeto'!$G$123*(J20-'Premissas do projeto'!$G$120),'Premissas do projeto'!$G$123*('Premissas do projeto'!$G$121-'Premissas do projeto'!$G$120)+'Premissas do projeto'!$G$127*(J20-'Premissas do projeto'!$G$121))))*Resultados!$CI$67*Resultados!$CI$64*J12 -> 0 | K44: =-IF(OR(K8<Resultados!$C$13,K8>Resultados!$C$15),'Premissas do projeto'!$G$127*K20,IF(K20<'Premissas do projeto'!$G$120,0,IF(K20<'Premissas do projeto'!$G$121,'Premissas do projeto'!$G$123*(K20-'Premissas do projeto'!$G$120),'Premissas do projeto'!$G$123*('Premissas do projeto'!$G$121-'Premissas do projeto'!$G$120)+'Premissas do projeto'!$G$127*(K20-'Premissas do projeto'!$G$121))))*Resultados!$CI$67*Resultados!$CI$64*K12 -> 0 | L44: =-IF(OR(L8<Resultados!$C$13,L8>Resultados!$C$15),'Premissas do projeto'!$G$127*L20,IF(L20<'Premissas do projeto'!$G$120,0,IF(L20<'Premissas do projeto'!$G$121,'Premissas do projeto'!$G$123*(L20-'Premissas do projeto'!$G$120),'Premissas do projeto'!$G$123*('Premissas do projeto'!$G$121-'Premissas do projeto'!$G$120)+'Premissas do projeto'!$G$127*(L20-'Premissas do projeto'!$G$121))))*Resultados!$CI$67*Resultados!$CI$64*L12 -> (17,168) | M44: =-IF(OR(M8<Resultados!$C$13,M8>Resultados!$C$15),'Premissas do projeto'!$G$127*M20,IF(M20<'Premissas do projeto'!$G$120,0,IF(M20<'Premissas do projeto'!$G$121,'Premissas do projeto'!$G$123*(M20-'Premissas do projeto'!$G$120),'Premissas do projeto'!$G$123*('Premissas do projeto'!$G$121-'Premissas do projeto'!$G$120)+'Premissas do projeto'!$G$127*(M20-'Premissas do projeto'!$G$121))))*Resultados!$CI$67*Resultados!$CI$64*M12 -> (141,682) | N44: =-IF(OR(N8<Resultados!$C$13,N8>Resultados!$C$15),'Premissas do projeto'!$G$127*N20,IF(N20<'Premissas do projeto'!$G$120,0,IF(N20<'Premissas do projeto'!$G$121,'Premissas do projeto'!$G$123*(N20-'Premissas do projeto'!$G$120),'Premissas do projeto'!$G$123*('Premissas do projeto'!$G$121-'Premissas do projeto'!$G$120)+'Premissas do projeto'!$G$127*(N20-'Premissas do projeto'!$G$121))))*Resultados!$CI$67*Resultados!$CI$64*N12 -> (147,632) | O44: =-IF(OR(O8<Resultados!$C$13,O8>Resultados!$C$15),'Premissas do projeto'!$G$127*O20,IF(O20<'Premissas do projeto'!$G$120,0,IF(O20<'Premissas do projeto'!$G$121,'Premissas do projeto'!$G$123*(O20-'Premissas do projeto'!$G$120),'Premissas do projeto'!$G$123*('Premissas do projeto'!$G$121-'Premissas do projeto'!$G$120)+'Premissas do projeto'!$G$127*(O20-'Premissas do projeto'!$G$121))))*Resultados!$CI$67*Resultados!$CI$64*O12 -> (153,833) | P44: =-IF(OR(P8<Resultados!$C$13,P8>Resultados!$C$15),'Premissas do projeto'!$G$127*P20,IF(P20<'Premissas do projeto'!$G$120,0,IF(P20<'Premissas do projeto'!$G$121,'Premissas do projeto'!$G$123*(P20-'Premissas do projeto'!$G$120),'Premissas do projeto'!$G$123*('Premissas do projeto'!$G$121-'Premissas do projeto'!$G$120)+'Premissas do projeto'!$G$127*(P20-'Premissas do projeto'!$G$121))))*Resultados!$CI$67*Resultados!$CI$64*P12 -> (160,294) | Q44: =-IF(OR(Q8<Resultados!$C$13,Q8>Resultados!$C$15),'Premissas do projeto'!$G$127*Q20,IF(Q20<'Premissas do projeto'!$G$120,0,IF(Q20<'Premissas do projeto'!$G$121,'Premissas do projeto'!$G$123*(Q20-'Premissas do projeto'!$G$120),'Premissas do projeto'!$G$123*('Premissas do projeto'!$G$121-'Premissas do projeto'!$G$120)+'Premissas do projeto'!$G$127*(Q20-'Premissas do projeto'!$G$121))))*Resultados!$CI$67*Resultados!$CI$64*Q12 -> (167,026) | R44: =-IF(OR(R8<Resultados!$C$13,R8>Resultados!$C$15),'Premissas do projeto'!$G$127*R20,IF(R20<'Premissas do projeto'!$G$120,0,IF(R20<'Premissas do projeto'!$G$121,'Premissas do projeto'!$G$123*(R20-'Premissas do projeto'!$G$120),'Premissas do projeto'!$G$123*('Premissas do projeto'!$G$121-'Premissas do projeto'!$G$120)+'Premissas do projeto'!$G$127*(R20-'Premissas do projeto'!$G$121))))*Resultados!$CI$67*Resultados!$CI$64*R12 -> (174,041) | S44: =-IF(OR(S8<Resultados!$C$13,S8>Resultados!$C$15),'Premissas do projeto'!$G$127*S20,IF(S20<'Premissas do projeto'!$G$120,0,IF(S20<'Premissas do projeto'!$G$121,'Premissas do projeto'!$G$123*(S20-'Premissas do projeto'!$G$120),'Premissas do projeto'!$G$123*('Premissas do projeto'!$G$121-'Premissas do projeto'!$G$120)+'Premissas do projeto'!$G$127*(S20-'Premissas do projeto'!$G$121))))*Resultados!$CI$67*Resultados!$CI$64*S12 -> (181,351) | T44: =-IF(OR(T8<Resultados!$C$13,T8>Resultados!$C$15),'Premissas do projeto'!$G$127*T20,IF(T20<'Premissas do projeto'!$G$120,0,IF(T20<'Premissas do projeto'!$G$121,'Premissas do projeto'!$G$123*(T20-'Premissas do projeto'!$G$120),'Premissas do projeto'!$G$123*('Premissas do projeto'!$G$121-'Premissas do projeto'!$G$120)+'Premissas do projeto'!$G$127*(T20-'Premissas do projeto'!$G$121))))*Resultados!$CI$67*Resultados!$CI$64*T12 -> (188,968) | U44: =-IF(OR(U8<Resultados!$C$13,U8>Resultados!$C$15),'Premissas do projeto'!$G$127*U20,IF(U20<'Premissas do projeto'!$G$120,0,IF(U20<'Premissas do projeto'!$G$121,'Premissas do projeto'!$G$123*(U20-'Premissas do projeto'!$G$120),'Premissas do projeto'!$G$123*('Premissas do projeto'!$G$121-'Premissas do projeto'!$G$120)+'Premissas do projeto'!$G$127*(U20-'Premissas do projeto'!$G$121))))*Resultados!$CI$67*Resultados!$CI$64*U12 -> (196,905) | V44: =-IF(OR(V8<Resultados!$C$13,V8>Resultados!$C$15),'Premissas do projeto'!$G$127*V20,IF(V20<'Premissas do projeto'!$G$120,0,IF(V20<'Premissas do projeto'!$G$121,'Premissas do projeto'!$G$123*(V20-'Premissas do projeto'!$G$120),'Premissas do projeto'!$G$123*('Premissas do projeto'!$G$121-'Premissas do projeto'!$G$120)+'Premissas do projeto'!$G$127*(V20-'Premissas do projeto'!$G$121))))*Resultados!$CI$67*Resultados!$CI$64*V12 -> (205,175) | W44: =-IF(OR(W8<Resultados!$C$13,W8>Resultados!$C$15),'Premissas do projeto'!$G$127*W20,IF(W20<'Premissas do projeto'!$G$120,0,IF(W20<'Premissas do projeto'!$G$121,'Premissas do projeto'!$G$123*(W20-'Premissas do projeto'!$G$120),'Premissas do projeto'!$G$123*('Premissas do projeto'!$G$121-'Premissas do projeto'!$G$120)+'Premissas do projeto'!$G$127*(W20-'Premissas do projeto'!$G$121))))*Resultados!$CI$67*Resultados!$CI$64*W12 -> (213,792) | X44: =-IF(OR(X8<Resultados!$C$13,X8>Resultados!$C$15),'Premissas do projeto'!$G$127*X20,IF(X20<'Premissas do projeto'!$G$120,0,IF(X20<'Premissas do projeto'!$G$121,'Premissas do projeto'!$G$123*(X20-'Premissas do projeto'!$G$120),'Premissas do projeto'!$G$123*('Premissas do projeto'!$G$121-'Premissas do projeto'!$G$120)+'Premissas do projeto'!$G$127*(X20-'Premissas do projeto'!$G$121))))*Resultados!$CI$67*Resultados!$CI$64*X12 -> (222,771) | Y44: =-IF(OR(Y8<Resultados!$C$13,Y8>Resultados!$C$15),'Premissas do projeto'!$G$127*Y20,IF(Y20<'Premissas do projeto'!$G$120,0,IF(Y20<'Premissas do projeto'!$G$121,'Premissas do projeto'!$G$123*(Y20-'Premissas do projeto'!$G$120),'Premissas do projeto'!$G$123*('Premissas do projeto'!$G$121-'Premissas do projeto'!$G$120)+'Premissas do projeto'!$G$127*(Y20-'Premissas do projeto'!$G$121))))*Resultados!$CI$67*Resultados!$CI$64*Y12 -> (232,128) | Z44: =-IF(OR(Z8<Resultados!$C$13,Z8>Resultados!$C$15),'Premissas do projeto'!$G$127*Z20,IF(Z20<'Premissas do projeto'!$G$120,0,IF(Z20<'Premissas do projeto'!$G$121,'Premissas do projeto'!$G$123*(Z20-'Premissas do projeto'!$G$120),'Premissas do projeto'!$G$123*('Premissas do projeto'!$G$121-'Premissas do projeto'!$G$120)+'Premissas do projeto'!$G$127*(Z20-'Premissas do projeto'!$G$121))))*Resultados!$CI$67*Resultados!$CI$64*Z12 -> (241,877) | AA44: =-IF(OR(AA8<Resultados!$C$13,AA8>Resultados!$C$15),'Premissas do projeto'!$G$127*AA20,IF(AA20<'Premissas do projeto'!$G$120,0,IF(AA20<'Premissas do projeto'!$G$121,'Premissas do projeto'!$G$123*(AA20-'Premissas do projeto'!$G$120),'Premissas do projeto'!$G$123*('Premissas do projeto'!$G$121-'Premissas do projeto'!$G$120)+'Premissas do projeto'!$G$127*(AA20-'Premissas do projeto'!$G$121))))*Resultados!$CI$67*Resultados!$CI$64*AA12 -> (252,036) | AB44: =-IF(OR(AB8<Resultados!$C$13,AB8>Resultados!$C$15),'Premissas do projeto'!$G$127*AB20,IF(AB20<'Premissas do projeto'!$G$120,0,IF(AB20<'Premissas do projeto'!$G$121,'Premissas do projeto'!$G$123*(AB20-'Premissas do projeto'!$G$120),'Premissas do projeto'!$G$123*('Premissas do projeto'!$G$121-'Premissas do projeto'!$G$120)+'Premissas do projeto'!$G$127*(AB20-'Premissas do projeto'!$G$121))))*Resultados!$CI$67*Resultados!$CI$64*AB12 -> (262,621) | AC44: =-IF(OR(AC8<Resultados!$C$13,AC8>Resultados!$C$15),'Premissas do projeto'!$G$127*AC20,IF(AC20<'Premissas do projeto'!$G$120,0,IF(AC20<'Premissas do projeto'!$G$121,'Premissas do projeto'!$G$123*(AC20-'Premissas do projeto'!$G$120),'Premissas do projeto'!$G$123*('Premissas do projeto'!$G$121-'Premissas do projeto'!$G$120)+'Premissas do projeto'!$G$127*(AC20-'Premissas do projeto'!$G$121))))*Resultados!$CI$67*Resultados!$CI$64*AC12 -> (273,651) | AD44: =-IF(OR(AD8<Resultados!$C$13,AD8>Resultados!$C$15),'Premissas do projeto'!$G$127*AD20,IF(AD20<'Premissas do projeto'!$G$120,0,IF(AD20<'Premissas do projeto'!$G$121,'Premissas do projeto'!$G$123*(AD20-'Premissas do projeto'!$G$120),'Premissas do projeto'!$G$123*('Premissas do projeto'!$G$121-'Premissas do projeto'!$G$120)+'Premissas do projeto'!$G$127*(AD20-'Premissas do projeto'!$G$121))))*Resultados!$CI$67*Resultados!$CI$64*AD12 -> (285,145) | AE44: =-IF(OR(AE8<Resultados!$C$13,AE8>Resultados!$C$15),'Premissas do projeto'!$G$127*AE20,IF(AE20<'Premissas do projeto'!$G$120,0,IF(AE20<'Premissas do projeto'!$G$121,'Premissas do projeto'!$G$123*(AE20-'Premissas do projeto'!$G$120),'Premissas do projeto'!$G$123*('Premissas do projeto'!$G$121-'Premissas do projeto'!$G$120)+'Premissas do projeto'!$G$127*(AE20-'Premissas do projeto'!$G$121))))*Resultados!$CI$67*Resultados!$CI$64*AE12 -> (297,121) | AF44: =-IF(OR(AF8<Resultados!$C$13,AF8>Resultados!$C$15),'Premissas do projeto'!$G$127*AF20,IF(AF20<'Premissas do projeto'!$G$120,0,IF(AF20<'Premissas do projeto'!$G$121,'Premissas do projeto'!$G$123*(AF20-'Premissas do projeto'!$G$120),'Premissas do projeto'!$G$123*('Premissas do projeto'!$G$121-'Premissas do projeto'!$G$120)+'Premissas do projeto'!$G$127*(AF20-'Premissas do projeto'!$G$121))))*Resultados!$CI$67*Resultados!$CI$64*AF12 -> (309,600) | AG44: =-IF(OR(AG8<Resultados!$C$13,AG8>Resultados!$C$15),'Premissas do projeto'!$G$127*AG20,IF(AG20<'Premissas do projeto'!$G$120,0,IF(AG20<'Premissas do projeto'!$G$121,'Premissas do projeto'!$G$123*(AG20-'Premissas do projeto'!$G$120),'Premissas do projeto'!$G$123*('Premissas do projeto'!$G$121-'Premissas do projeto'!$G$120)+'Premissas do projeto'!$G$127*(AG20-'Premissas do projeto'!$G$121))))*Resultados!$CI$67*Resultados!$CI$64*AG12 -> (322,603) | AH44: =-IF(OR(AH8<Resultados!$C$13,AH8>Resultados!$C$15),'Premissas do projeto'!$G$127*AH20,IF(AH20<'Premissas do projeto'!$G$120,0,IF(AH20<'Premissas do projeto'!$G$121,'Premissas do projeto'!$G$123*(AH20-'Premissas do projeto'!$G$120),'Premissas do projeto'!$G$123*('Premissas do projeto'!$G$121-'Premissas do projeto'!$G$120)+'Premissas do projeto'!$G$127*(AH20-'Premissas do projeto'!$G$121))))*Resultados!$CI$67*Resultados!$CI$64*AH12 -> (336,152) | AI44: =-IF(OR(AI8<Resultados!$C$13,AI8>Resultados!$C$15),'Premissas do projeto'!$G$127*AI20,IF(AI20<'Premissas do projeto'!$G$120,0,IF(AI20<'Premissas do projeto'!$G$121,'Premissas do projeto'!$G$123*(AI20-'Premissas do projeto'!$G$120),'Premissas do projeto'!$G$123*('Premissas do projeto'!$G$121-'Premissas do projeto'!$G$120)+'Premissas do projeto'!$G$127*(AI20-'Premissas do projeto'!$G$121))))*Resultados!$CI$67*Resultados!$CI$64*AI12 -> (350,271) | AJ44: =-IF(OR(AJ8<Resultados!$C$13,AJ8>Resultados!$C$15),'Premissas do projeto'!$G$127*AJ20,IF(AJ20<'Premissas do projeto'!$G$120,0,IF(AJ20<'Premissas do projeto'!$G$121,'Premissas do projeto'!$G$123*(AJ20-'Premissas do projeto'!$G$120),'Premissas do projeto'!$G$123*('Premissas do projeto'!$G$121-'Premissas do projeto'!$G$120)+'Premissas do projeto'!$G$127*(AJ20-'Premissas do projeto'!$G$121))))*Resultados!$CI$67*Resultados!$CI$64*AJ12 -> (364,982) | AK44: =-IF(OR(AK8<Resultados!$C$13,AK8>Resultados!$C$15),'Premissas do projeto'!$G$127*AK20,IF(AK20<'Premissas do projeto'!$G$120,0,IF(AK20<'Premissas do projeto'!$G$121,'Premissas do projeto'!$G$123*(AK20-'Premissas do projeto'!$G$120),'Premissas do projeto'!$G$123*('Premissas do projeto'!$G$121-'Premissas do projeto'!$G$120)+'Premissas do projeto'!$G$127*(AK20-'Premissas do projeto'!$G$121))))*Resultados!$CI$67*Resultados!$CI$64*AK12 -> (380,311) | AL44: =-IF(OR(AL8<Resultados!$C$13,AL8>Resultados!$C$15),'Premissas do projeto'!$G$127*AL20,IF(AL20<'Premissas do projeto'!$G$120,0,IF(AL20<'Premissas do projeto'!$G$121,'Premissas do projeto'!$G$123*(AL20-'Premissas do projeto'!$G$120),'Premissas do projeto'!$G$123*('Premissas do projeto'!$G$121-'Premissas do projeto'!$G$120)+'Premissas do projeto'!$G$127*(AL20-'Premissas do projeto'!$G$121))))*Resultados!$CI$67*Resultados!$CI$64*AL12 -> 0 | AM44: =-IF(OR(AM8<Resultados!$C$13,AM8>Resultados!$C$15),'Premissas do projeto'!$G$127*AM20,IF(AM20<'Premissas do projeto'!$G$120,0,IF(AM20<'Premissas do projeto'!$G$121,'Premissas do projeto'!$G$123*(AM20-'Premissas do projeto'!$G$120),'Premissas do projeto'!$G$123*('Premissas do projeto'!$G$121-'Premissas do projeto'!$G$120)+'Premissas do projeto'!$G$127*(AM20-'Premissas do projeto'!$G$121))))*Resultados!$CI$67*Resultados!$CI$64*AM12 -> 0 | AN44: =-IF(OR(AN8<Resultados!$C$13,AN8>Resultados!$C$15),'Premissas do projeto'!$G$127*AN20,IF(AN20<'Premissas do projeto'!$G$120,0,IF(AN20<'Premissas do projeto'!$G$121,'Premissas do projeto'!$G$123*(AN20-'Premissas do projeto'!$G$120),'Premissas do projeto'!$G$123*('Premissas do projeto'!$G$121-'Premissas do projeto'!$G$120)+'Premissas do projeto'!$G$127*(AN20-'Premissas do projeto'!$G$121))))*Resultados!$CI$67*Resultados!$CI$64*AN12 -> 0 | AO44: =-IF(OR(AO8<Resultados!$C$13,AO8>Resultados!$C$15),'Premissas do projeto'!$G$127*AO20,IF(AO20<'Premissas do projeto'!$G$120,0,IF(AO20<'Premissas do projeto'!$G$121,'Premissas do projeto'!$G$123*(AO20-'Premissas do projeto'!$G$120),'Premissas do projeto'!$G$123*('Premissas do projeto'!$G$121-'Premissas do projeto'!$G$120)+'Premissas do projeto'!$G$127*(AO20-'Premissas do projeto'!$G$121))))*Resultados!$CI$67*Resultados!$CI$64*AO12 -> 0 | AP44: =-IF(OR(AP8<Resultados!$C$13,AP8>Resultados!$C$15),'Premissas do projeto'!$G$127*AP20,IF(AP20<'Premissas do projeto'!$G$120,0,IF(AP20<'Premissas do projeto'!$G$121,'Premissas do projeto'!$G$123*(AP20-'Premissas do projeto'!$G$120),'Premissas do projeto'!$G$123*('Premissas do projeto'!$G$121-'Premissas do projeto'!$G$120)+'Premissas do projeto'!$G$127*(AP20-'Premissas do projeto'!$G$121))))*Resultados!$CI$67*Resultados!$CI$64*AP12 -> 0 | AQ44: =-IF(OR(AQ8<Resultados!$C$13,AQ8>Resultados!$C$15),'Premissas do projeto'!$G$127*AQ20,IF(AQ20<'Premissas do projeto'!$G$120,0,IF(AQ20<'Premissas do projeto'!$G$121,'Premissas do projeto'!$G$123*(AQ20-'Premissas do projeto'!$G$120),'Premissas do projeto'!$G$123*('Premissas do projeto'!$G$121-'Premissas do projeto'!$G$120)+'Premissas do projeto'!$G$127*(AQ20-'Premissas do projeto'!$G$121))))*Resultados!$CI$67*Resultados!$CI$64*AQ12 -> 0 | AR44: =-IF(OR(AR8<Resultados!$C$13,AR8>Resultados!$C$15),'Premissas do projeto'!$G$127*AR20,IF(AR20<'Premissas do projeto'!$G$120,0,IF(AR20<'Premissas do projeto'!$G$121,'Premissas do projeto'!$G$123*(AR20-'Premissas do projeto'!$G$120),'Premissas do projeto'!$G$123*('Premissas do projeto'!$G$121-'Premissas do projeto'!$G$120)+'Premissas do projeto'!$G$127*(AR20-'Premissas do projeto'!$G$121))))*Resultados!$CI$67*Resultados!$CI$64*AR12 -> 0 | AS44: =-IF(OR(AS8<Resultados!$C$13,AS8>Resultados!$C$15),'Premissas do projeto'!$G$127*AS20,IF(AS20<'Premissas do projeto'!$G$120,0,IF(AS20<'Premissas do projeto'!$G$121,'Premissas do projeto'!$G$123*(AS20-'Premissas do projeto'!$G$120),'Premissas do projeto'!$G$123*('Premissas do projeto'!$G$121-'Premissas do projeto'!$G$120)+'Premissas do projeto'!$G$127*(AS20-'Premissas do projeto'!$G$121))))*Resultados!$CI$67*Resultados!$CI$64*AS12 -> 0 | AT44: =-IF(OR(AT8<Resultados!$C$13,AT8>Resultados!$C$15),'Premissas do projeto'!$G$127*AT20,IF(AT20<'Premissas do projeto'!$G$120,0,IF(AT20<'Premissas do projeto'!$G$121,'Premissas do projeto'!$G$123*(AT20-'Premissas do projeto'!$G$120),'Premissas do projeto'!$G$123*('Premissas do projeto'!$G$121-'Premissas do projeto'!$G$120)+'Premissas do projeto'!$G$127*(AT20-'Premissas do projeto'!$G$121))))*Resultados!$CI$67*Resultados!$CI$64*AT12 -> 0 | AU44: =-IF(OR(AU8<Resultados!$C$13,AU8>Resultados!$C$15),'Premissas do projeto'!$G$127*AU20,IF(AU20<'Premissas do projeto'!$G$120,0,IF(AU20<'Premissas do projeto'!$G$121,'Premissas do projeto'!$G$123*(AU20-'Premissas do projeto'!$G$120),'Premissas do projeto'!$G$123*('Premissas do projeto'!$G$121-'Premissas do projeto'!$G$120)+'Premissas do projeto'!$G$127*(AU20-'Premissas do projeto'!$G$121))))*Resultados!$CI$67*Resultados!$CI$64*AU12 -> 0 | AV44: =-IF(OR(AV8<Resultados!$C$13,AV8>Resultados!$C$15),'Premissas do projeto'!$G$127*AV20,IF(AV20<'Premissas do projeto'!$G$120,0,IF(AV20<'Premissas do projeto'!$G$121,'Premissas do projeto'!$G$123*(AV20-'Premissas do projeto'!$G$120),'Premissas do projeto'!$G$123*('Premissas do projeto'!$G$121-'Premissas do projeto'!$G$120)+'Premissas do projeto'!$G$127*(AV20-'Premissas do projeto'!$G$121))))*Resultados!$CI$67*Resultados!$CI$64*AV12 -> 0 | AW44: =-IF(OR(AW8<Resultados!$C$13,AW8>Resultados!$C$15),'Premissas do projeto'!$G$127*AW20,IF(AW20<'Premissas do projeto'!$G$120,0,IF(AW20<'Premissas do projeto'!$G$121,'Premissas do projeto'!$G$123*(AW20-'Premissas do projeto'!$G$120),'Premissas do projeto'!$G$123*('Premissas do projeto'!$G$121-'Premissas do projeto'!$G$120)+'Premissas do projeto'!$G$127*(AW20-'Premissas do projeto'!$G$121))))*Resultados!$CI$67*Resultados!$CI$64*AW12 -> 0 | AX44: =-IF(OR(AX8<Resultados!$C$13,AX8>Resultados!$C$15),'Premissas do projeto'!$G$127*AX20,IF(AX20<'Premissas do projeto'!$G$120,0,IF(AX20<'Premissas do projeto'!$G$121,'Premissas do projeto'!$G$123*(AX20-'Premissas do projeto'!$G$120),'Premissas do projeto'!$G$123*('Premissas do projeto'!$G$121-'Premissas do projeto'!$G$120)+'Premissas do projeto'!$G$127*(AX20-'Premissas do projeto'!$G$121))))*Resultados!$CI$67*Resultados!$CI$64*AX12 -> 0 | AY44: =-IF(OR(AY8<Resultados!$C$13,AY8>Resultados!$C$15),'Premissas do projeto'!$G$127*AY20,IF(AY20<'Premissas do projeto'!$G$120,0,IF(AY20<'Premissas do projeto'!$G$121,'Premissas do projeto'!$G$123*(AY20-'Premissas do projeto'!$G$120),'Premissas do projeto'!$G$123*('Premissas do projeto'!$G$121-'Premissas do projeto'!$G$120)+'Premissas do projeto'!$G$127*(AY20-'Premissas do projeto'!$G$121))))*Resultados!$CI$67*Resultados!$CI$64*AY12 -> 0 | AZ44: =-IF(OR(AZ8<Resultados!$C$13,AZ8>Resultados!$C$15),'Premissas do projeto'!$G$127*AZ20,IF(AZ20<'Premissas do projeto'!$G$120,0,IF(AZ20<'Premissas do projeto'!$G$121,'Premissas do projeto'!$G$123*(AZ20-'Premissas do projeto'!$G$120),'Premissas do projeto'!$G$123*('Premissas do projeto'!$G$121-'Premissas do projeto'!$G$120)+'Premissas do projeto'!$G$127*(AZ20-'Premissas do projeto'!$G$121))))*Resultados!$CI$67*Resultados!$CI$64*AZ12 -> 0 | BA44: =-IF(OR(BA8<Resultados!$C$13,BA8>Resultados!$C$15),'Premissas do projeto'!$G$127*BA20,IF(BA20<'Premissas do projeto'!$G$120,0,IF(BA20<'Premissas do projeto'!$G$121,'Premissas do projeto'!$G$123*(BA20-'Premissas do projeto'!$G$120),'Premissas do projeto'!$G$123*('Premissas do projeto'!$G$121-'Premissas do projeto'!$G$120)+'Premissas do projeto'!$G$127*(BA20-'Premissas do projeto'!$G$121))))*Resultados!$CI$67*Resultados!$CI$64*BA12 -> 0 | BB44: =-IF(OR(BB8<Resultados!$C$13,BB8>Resultados!$C$15),'Premissas do projeto'!$G$127*BB20,IF(BB20<'Premissas do projeto'!$G$120,0,IF(BB20<'Premissas do projeto'!$G$121,'Premissas do projeto'!$G$123*(BB20-'Premissas do projeto'!$G$120),'Premissas do projeto'!$G$123*('Premissas do projeto'!$G$121-'Premissas do projeto'!$G$120)+'Premissas do projeto'!$G$127*(BB20-'Premissas do projeto'!$G$121))))*Resultados!$CI$67*Resultados!$CI$64*BB12 -> 0 | BC44: =-IF(OR(BC8<Resultados!$C$13,BC8>Resultados!$C$15),'Premissas do projeto'!$G$127*BC20,IF(BC20<'Premissas do projeto'!$G$120,0,IF(BC20<'Premissas do projeto'!$G$121,'Premissas do projeto'!$G$123*(BC20-'Premissas do projeto'!$G$120),'Premissas do projeto'!$G$123*('Premissas do projeto'!$G$121-'Premissas do projeto'!$G$120)+'Premissas do projeto'!$G$127*(BC20-'Premissas do projeto'!$G$121))))*Resultados!$CI$67*Resultados!$CI$64*BC12 -> 0 | BD44: =-IF(OR(BD8<Resultados!$C$13,BD8>Resultados!$C$15),'Premissas do projeto'!$G$127*BD20,IF(BD20<'Premissas do projeto'!$G$120,0,IF(BD20<'Premissas do projeto'!$G$121,'Premissas do projeto'!$G$123*(BD20-'Premissas do projeto'!$G$120),'Premissas do projeto'!$G$123*('Premissas do projeto'!$G$121-'Premissas do projeto'!$G$120)+'Premissas do projeto'!$G$127*(BD20-'Premissas do projeto'!$G$121))))*Resultados!$CI$67*Resultados!$CI$64*BD12 -> 0 | BE44: =-IF(OR(BE8<Resultados!$C$13,BE8>Resultados!$C$15),'Premissas do projeto'!$G$127*BE20,IF(BE20<'Premissas do projeto'!$G$120,0,IF(BE20<'Premissas do projeto'!$G$121,'Premissas do projeto'!$G$123*(BE20-'Premissas do projeto'!$G$120),'Premissas do projeto'!$G$123*('Premissas do projeto'!$G$121-'Premissas do projeto'!$G$120)+'Premissas do projeto'!$G$127*(BE20-'Premissas do projeto'!$G$121))))*Resultados!$CI$67*Resultados!$CI$64*BE12 -> 0 | BF44: =-IF(OR(BF8<Resultados!$C$13,BF8>Resultados!$C$15),'Premissas do projeto'!$G$127*BF20,IF(BF20<'Premissas do projeto'!$G$120,0,IF(BF20<'Premissas do projeto'!$G$121,'Premissas do projeto'!$G$123*(BF20-'Premissas do projeto'!$G$120),'Premissas do projeto'!$G$123*('Premissas do projeto'!$G$121-'Premissas do projeto'!$G$120)+'Premissas do projeto'!$G$127*(BF20-'Premissas do projeto'!$G$121))))*Resultados!$CI$67*Resultados!$CI$64*BF12 -> 0 | BG44: =-IF(OR(BG8<Resultados!$C$13,BG8>Resultados!$C$15),'Premissas do projeto'!$G$127*BG20,IF(BG20<'Premissas do projeto'!$G$120,0,IF(BG20<'Premissas do projeto'!$G$121,'Premissas do projeto'!$G$123*(BG20-'Premissas do projeto'!$G$120),'Premissas do projeto'!$G$123*('Premissas do projeto'!$G$121-'Premissas do projeto'!$G$120)+'Premissas do projeto'!$G$127*(BG20-'Premissas do projeto'!$G$121))))*Resultados!$CI$67*Resultados!$CI$64*BG12 -> 0 | BH44: =-IF(OR(BH8<Resultados!$C$13,BH8>Resultados!$C$15),'Premissas do projeto'!$G$127*BH20,IF(BH20<'Premissas do projeto'!$G$120,0,IF(BH20<'Premissas do projeto'!$G$121,'Premissas do projeto'!$G$123*(BH20-'Premissas do projeto'!$G$120),'Premissas do projeto'!$G$123*('Premissas do projeto'!$G$121-'Premissas do projeto'!$G$120)+'Premissas do projeto'!$G$127*(BH20-'Premissas do projeto'!$G$121))))*Resultados!$CI$67*Resultados!$CI$64*BH12 -> 0 | BI44: =-IF(OR(BI8<Resultados!$C$13,BI8>Resultados!$C$15),'Premissas do projeto'!$G$127*BI20,IF(BI20<'Premissas do projeto'!$G$120,0,IF(BI20<'Premissas do projeto'!$G$121,'Premissas do projeto'!$G$123*(BI20-'Premissas do projeto'!$G$120),'Premissas do projeto'!$G$123*('Premissas do projeto'!$G$121-'Premissas do projeto'!$G$120)+'Premissas do projeto'!$G$127*(BI20-'Premissas do projeto'!$G$121))))*Resultados!$CI$67*Resultados!$CI$64*BI12 -> 0 | BJ44: =-IF(OR(BJ8<Resultados!$C$13,BJ8>Resultados!$C$15),'Premissas do projeto'!$G$127*BJ20,IF(BJ20<'Premissas do projeto'!$G$120,0,IF(BJ20<'Premissas do projeto'!$G$121,'Premissas do projeto'!$G$123*(BJ20-'Premissas do projeto'!$G$120),'Premissas do projeto'!$G$123*('Premissas do projeto'!$G$121-'Premissas do projeto'!$G$120)+'Premissas do projeto'!$G$127*(BJ20-'Premissas do projeto'!$G$121))))*Resultados!$CI$67*Resultados!$CI$64*BJ12 -> 0 | BK44: =-IF(OR(BK8<Resultados!$C$13,BK8>Resultados!$C$15),'Premissas do projeto'!$G$127*BK20,IF(BK20<'Premissas do projeto'!$G$120,0,IF(BK20<'Premissas do projeto'!$G$121,'Premissas do projeto'!$G$123*(BK20-'Premissas do projeto'!$G$120),'Premissas do projeto'!$G$123*('Premissas do projeto'!$G$121-'Premissas do projeto'!$G$120)+'Premissas do projeto'!$G$127*(BK20-'Premissas do projeto'!$G$121))))*Resultados!$CI$67*Resultados!$CI$64*BK12 -> 0 | BL44: =-IF(OR(BL8<Resultados!$C$13,BL8>Resultados!$C$15),'Premissas do projeto'!$G$127*BL20,IF(BL20<'Premissas do projeto'!$G$120,0,IF(BL20<'Premissas do projeto'!$G$121,'Premissas do projeto'!$G$123*(BL20-'Premissas do projeto'!$G$120),'Premissas do projeto'!$G$123*('Premissas do projeto'!$G$121-'Premissas do projeto'!$G$120)+'Premissas do projeto'!$G$127*(BL20-'Premissas do projeto'!$G$121))))*Resultados!$CI$67*Resultados!$CI$64*BL12 -> 0 | BM44: =-IF(OR(BM8<Resultados!$C$13,BM8>Resultados!$C$15),'Premissas do projeto'!$G$127*BM20,IF(BM20<'Premissas do projeto'!$G$120,0,IF(BM20<'Premissas do projeto'!$G$121,'Premissas do projeto'!$G$123*(BM20-'Premissas do projeto'!$G$120),'Premissas do projeto'!$G$123*('Premissas do projeto'!$G$121-'Premissas do projeto'!$G$120)+'Premissas do projeto'!$G$127*(BM20-'Premissas do projeto'!$G$121))))*Resultados!$CI$67*Resultados!$CI$64*BM12 -> 0
C45: Outros custos variáveis | F45: =(HLOOKUP('Premissas do projeto'!G22,'Biblioteca modelos industriais'!$E$7:$O$25,'Biblioteca modelos industriais'!A23,0)*'Premissas do projeto'!G129+HLOOKUP('Premissas do projeto'!G22,'Biblioteca modelos industriais'!$E$7:$O$25,'Biblioteca modelos industriais'!A24,0)*'Premissas do projeto'!G130+HLOOKUP('Premissas do projeto'!G22,'Biblioteca modelos industriais'!$E$7:$O$25,'Biblioteca modelos industriais'!A25,0))*Resultados!CI70*'Premissas do projeto'!G45 -> 2,513 | H45: =-$F45*H$13*H$12/1000 -> 0 | I45: =-$F45*I$13*I$12/1000 -> 0 | J45: 0 | K45: 0 | L45: (3,087) | M45: (25,474) | N45: (26,544) | O45: (27,658) | P45: (28,820) | Q45: (30,030) | R45: (31,292) | S45: (32,606) | T45: (33,975) | U45: (35,402) | V45: (36,889) | W45: (38,439) | X45: (40,053) | Y45: (41,735) | Z45: (43,488) | AA45: (45,315) | AB45: (47,218) | AC45: (49,201) | AD45: (51,268) | AE45: (53,421) | AF45: (55,664) | AG45: (58,002) | AH45: (60,439) | AI45: (62,977) | AJ45: (65,622) | AK45: (68,378) | AL45: 0 | AM45: 0 | AN45: 0 | AO45: 0 | AP45: 0 | AQ45: 0 | AR45: 0 | AS45: 0 | AT45: 0 | AU45: 0 | AV45: 0 | AW45: 0 | AX45: 0 | AY45: 0 | AZ45: 0 | BA45: 0 | BB45: 0 | BC45: 0 | BD45: 0 | BE45: 0 | BF45: 0 | BG45: 0 | BH45: 0 | BI45: 0 | BJ45: 0 | BK45: 0 | BL45: 0 | BM45: 0
B47: Custos fixos de operação | H47: =SUM(H48:H53) -> 0 | I47: =SUM(I48:I53) -> 0 | J47: 0 | K47: 0 | L47: (5,426) | M47: (34,653) | N47: (36,108) | O47: (37,624) | P47: (39,205) | Q47: (40,851) | R47: (42,567) | S47: (44,355) | T47: (46,218) | U47: (48,159) | V47: (50,182) | W47: (52,289) | X47: (54,485) | Y47: (56,774) | Z47: (59,158) | AA47: (61,643) | AB47: (64,232) | AC47: (66,930) | AD47: (69,741) | AE47: (72,670) | AF47: (75,722) | AG47: (78,902) | AH47: (82,216) | AI47: (85,669) | AJ47: (89,267) | AK47: (93,017) | AL47: (15,814) | AM47: 0 | AN47: 0 | AO47: 0 | AP47: 0 | AQ47: 0 | AR47: 0 | AS47: 0 | AT47: 0 | AU47: 0 | AV47: 0 | AW47: 0 | AX47: 0 | AY47: 0 | AZ47: 0 | BA47: 0 | BB47: 0 | BC47: 0 | BD47: 0 | BE47: 0 | BF47: 0 | BG47: 0 | BH47: 0 | BI47: 0 | BJ47: 0 | BK47: 0 | BL47: 0 | BM47: 0 | BO47: =SUM(H47:BM47) -> (1,503,876)
D48: Madeira: mínimo contratual durante operação | F48: ='Premissas do projeto'!G117*Resultados!CI67 -> 0 | H48: =-$F$48*H12*IF(H19=1,1,0) -> 0 | I48: 0 | J48: 0 | K48: 0 | L48: 0 | M48: 0 | N48: 0 | O48: 0 | P48: 0 | Q48: 0 | R48: 0 | S48: 0 | T48: 0 | U48: 0 | V48: 0 | W48: 0 | X48: 0 | Y48: 0 | Z48: 0 | AA48: 0 | AB48: 0 | AC48: 0 | AD48: 0 | AE48: 0 | AF48: 0 | AG48: 0 | AH48: 0 | AI48: 0 | AJ48: 0 | AK48: 0 | AL48: 0 | AM48: 0 | AN48: =-$F$48*AN12*IF(AN19=1,1,0) -> 0 | AO48: 0 | AP48: 0 | AQ48: 0 | AR48: 0 | AS48: 0 | AT48: 0 | AU48: 0 | AV48: 0 | AW48: 0 | AX48: 0 | AY48: 0 | AZ48: 0 | BA48: 0 | BB48: 0 | BC48: 0 | BD48: 0 | BE48: 0 | BF48: 0 | BG48: 0 | BH48: 0 | BI48: 0 | BJ48: 0 | BK48: 0 | BL48: 0 | BM48: 0
D49: Mão de obra | F49: =HLOOKUP('Premissas do projeto'!G22,'Biblioteca modelos industriais'!$E$7:$O$30,'Biblioteca modelos industriais'!A26,0)*Resultados!CI$73 -> 6,817 | H49: =-$F49*H$12*H14 -> 0 | I49: 0 | J49: 0 | K49: 0 | L49: (4,187) | M49: (8,726) | N49: (9,092) | O49: (9,474) | P49: (9,872) | Q49: (10,287) | R49: (10,719) | S49: (11,169) | T49: (11,638) | U49: (12,127) | V49: (12,636) | W49: (13,167) | X49: (13,720) | Y49: (14,296) | Z49: (14,897) | AA49: (15,522) | AB49: (16,174) | AC49: (16,854) | AD49: (17,562) | AE49: (18,299) | AF49: (19,068) | AG49: (19,869) | AH49: (20,703) | AI49: (21,573) | AJ49: (22,479) | AK49: (23,423) | AL49: (12,203) | AM49: 0 | AN49: =-$F49*AN$12*AN14 -> 0 | AO49: 0 | AP49: 0 | AQ49: 0 | AR49: 0 | AS49: 0 | AT49: 0 | AU49: 0 | AV49: 0 | AW49: 0 | AX49: 0 | AY49: 0 | AZ49: 0 | BA49: 0 | BB49: 0 | BC49: 0 | BD49: 0 | BE49: 0 | BF49: 0 | BG49: 0 | BH49: 0 | BI49: 0 | BJ49: 0 | BK49: 0 | BL49: 0 | BM49: 0
D50: Serviços terceirizados | F50: =HLOOKUP('Premissas do projeto'!G22,'Biblioteca modelos industriais'!$E$7:$O$30,'Biblioteca modelos industriais'!A27,0)*Resultados!CI$73 -> 1,633 | H50: =-$F50*H$12*H15 -> 0 | I50: 0 | J50: 0 | K50: 0 | L50: 0 | M50: (2,090) | N50: (2,178) | O50: (2,270) | P50: (2,365) | Q50: (2,464) | R50: (2,568) | S50: (2,676) | T50: (2,788) | U50: (2,905) | V50: (3,027) | W50: (3,154) | X50: (3,287) | Y50: (3,425) | Z50: (3,569) | AA50: (3,719) | AB50: (3,875) | AC50: (4,038) | AD50: (4,207) | AE50: (4,384) | AF50: (4,568) | AG50: (4,760) | AH50: (4,960) | AI50: (5,168) | AJ50: (5,385) | AK50: (5,611) | AL50: 0 | AM50: 0 | AN50: =-$F50*AN$12*AN15 -> 0 | AO50: 0 | AP50: 0 | AQ50: 0 | AR50: 0 | AS50: 0 | AT50: 0 | AU50: 0 | AV50: 0 | AW50: 0 | AX50: 0 | AY50: 0 | AZ50: 0 | BA50: 0 | BB50: 0 | BC50: 0 | BD50: 0 | BE50: 0 | BF50: 0 | BG50: 0 | BH50: 0 | BI50: 0 | BJ50: 0 | BK50: 0 | BL50: 0 | BM50: 0
D51: Manutenção | F51: =HLOOKUP('Premissas do projeto'!G22,'Biblioteca modelos industriais'!$E$7:$O$30,'Biblioteca modelos industriais'!A28,0)*Resultados!CI$73 -> 15,337 | H51: =-$F51*H$12*H16 -> 0 | I51: 0 | J51: 0 | K51: 0 | L51: 0 | M51: (19,631) | N51: (20,456) | O51: (21,315) | P51: (22,210) | Q51: (23,143) | R51: (24,115) | S51: (25,128) | T51: (26,183) | U51: (27,283) | V51: (28,429) | W51: (29,623) | X51: (30,867) | Y51: (32,163) | Z51: (33,514) | AA51: (34,922) | AB51: (36,389) | AC51: (37,917) | AD51: (39,509) | AE51: (41,169) | AF51: (42,898) | AG51: (44,700) | AH51: (46,577) | AI51: (48,533) | AJ51: (50,572) | AK51: (52,696) | AL51: 0 | AM51: 0 | AN51: =-$F51*AN$12*AN16 -> 0 | AO51: 0 | AP51: 0 | AQ51: 0 | AR51: 0 | AS51: 0 | AT51: 0 | AU51: 0 | AV51: 0 | AW51: 0 | AX51: 0 | AY51: 0 | AZ51: 0 | BA51: 0 | BB51: 0 | BC51: 0 | BD51: 0 | BE51: 0 | BF51: 0 | BG51: 0 | BH51: 0 | BI51: 0 | BJ51: 0 | BK51: 0 | BL51: 0 | BM51: 0
D52: Outros custos fixos | F52: =HLOOKUP('Premissas do projeto'!G22,'Biblioteca modelos industriais'!$E$7:$O$30,'Biblioteca modelos industriais'!A29,0)*Resultados!CI$73 -> 1,268 | H52: =-$F52*H$12*H17 -> 0 | I52: 0 | J52: 0 | K52: 0 | L52: 0 | M52: (1,623) | N52: (1,691) | O52: (1,762) | P52: (1,836) | Q52: (1,914) | R52: (1,994) | S52: (2,078) | T52: (2,165) | U52: (2,256) | V52: (2,351) | W52: (2,449) | X52: (2,552) | Y52: (2,659) | Z52: (2,771) | AA52: (2,888) | AB52: (3,009) | AC52: (3,135) | AD52: (3,267) | AE52: (3,404) | AF52: (3,547) | AG52: (3,696) | AH52: (3,851) | AI52: (4,013) | AJ52: (4,182) | AK52: (4,357) | AL52: 0 | AM52: 0 | AN52: =-$F52*AN$12*AN17 -> 0 | AO52: 0 | AP52: 0 | AQ52: 0 | AR52: 0 | AS52: 0 | AT52: 0 | AU52: 0 | AV52: 0 | AW52: 0 | AX52: 0 | AY52: 0 | AZ52: 0 | BA52: 0 | BB52: 0 | BC52: 0 | BD52: 0 | BE52: 0 | BF52: 0 | BG52: 0 | BH52: 0 | BI52: 0 | BJ52: 0 | BK52: 0 | BL52: 0 | BM52: 0
D53: Custos administrativos | F53: =HLOOKUP('Premissas do projeto'!G22,'Biblioteca modelos industriais'!$E$7:$O$30,'Biblioteca modelos industriais'!A30,0)*Resultados!CI$73 -> 2,017 | H53: =-$F53*H$12*H18 -> 0 | I53: 0 | J53: 0 | K53: 0 | L53: (1,239) | M53: (2,582) | N53: (2,690) | O53: (2,803) | P53: (2,921) | Q53: (3,043) | R53: (3,171) | S53: (3,304) | T53: (3,443) | U53: (3,588) | V53: (3,738) | W53: (3,895) | X53: (4,059) | Y53: (4,230) | Z53: (4,407) | AA53: (4,592) | AB53: (4,785) | AC53: (4,986) | AD53: (5,196) | AE53: (5,414) | AF53: (5,641) | AG53: (5,878) | AH53: (6,125) | AI53: (6,382) | AJ53: (6,650) | AK53: (6,930) | AL53: (3,610) | AM53: 0 | AN53: =-$F53*AN$12*AN18 -> 0 | AO53: 0 | AP53: 0 | AQ53: 0 | AR53: 0 | AS53: 0 | AT53: 0 | AU53: 0 | AV53: 0 | AW53: 0 | AX53: 0 | AY53: 0 | AZ53: 0 | BA53: 0 | BB53: 0 | BC53: 0 | BD53: 0 | BE53: 0 | BF53: 0 | BG53: 0 | BH53: 0 | BI53: 0 | BJ53: 0 | BK53: 0 | BL53: 0 | BM53: 0
B55: Custos de acesso na rede | H55: =SUM(H56:H61) -> 0 | I55: =SUM(I56:I61) -> 0 | J55: 0 | K55: 0 | L55: 0 | M55: (2,738) | N55: (2,853) | O55: (2,973) | P55: (3,098) | Q55: (3,228) | R55: (3,364) | S55: (3,505) | T55: (3,652) | U55: (3,805) | V55: (3,965) | W55: (4,132) | X55: (4,305) | Y55: (4,486) | Z55: (4,675) | AA55: (4,871) | AB55: (5,075) | AC55: (5,289) | AD55: (5,511) | AE55: (5,742) | AF55: (5,983) | AG55: (6,235) | AH55: (6,497) | AI55: (6,769) | AJ55: (7,054) | AK55: (7,350) | AL55: 0 | AM55: 0 | AN55: 0 | AO55: 0 | AP55: 0 | AQ55: 0 | AR55: 0 | AS55: 0 | AT55: 0 | AU55: 0 | AV55: 0 | AW55: 0 | AX55: 0 | AY55: 0 | AZ55: 0 | BA55: 0 | BB55: 0 | BC55: 0 | BD55: 0 | BE55: 0 | BF55: 0 | BG55: 0 | BH55: 0 | BI55: 0 | BJ55: 0 | BK55: 0 | BL55: 0 | BM55: 0 | BO55: =SUM(H55:BM55) -> (117,154)
D56: TUST | F56: ='Premissas do projeto'!G148*'Premissas do projeto'!G45 -> 1,750 | H56: =-$F$56*H12*H19 -> 0 | I56: 0 | J56: 0 | K56: 0 | L56: 0 | M56: (2,240) | N56: (2,334) | O56: (2,432) | P56: (2,534) | Q56: (2,641) | R56: (2,752) | S56: (2,867) | T56: (2,988) | U56: (3,113) | V56: (3,244) | W56: (3,380) | X56: (3,522) | Y56: (3,670) | Z56: (3,824) | AA56: (3,985) | AB56: (4,152) | AC56: (4,326) | AD56: (4,508) | AE56: (4,697) | AF56: (4,895) | AG56: (5,100) | AH56: (5,315) | AI56: (5,538) | AJ56: (5,770) | AK56: (6,013) | AL56: 0 | AM56: 0 | AN56: =-$F$56*AN12*AN19 -> 0 | AO56: 0 | AP56: 0 | AQ56: 0 | AR56: 0 | AS56: 0 | AT56: 0 | AU56: 0 | AV56: 0 | AW56: 0 | AX56: 0 | AY56: 0 | AZ56: 0 | BA56: 0 | BB56: 0 | BC56: 0 | BD56: 0 | BE56: 0 | BF56: 0 | BG56: 0 | BH56: 0 | BI56: 0 | BJ56: 0 | BK56: 0 | BL56: 0 | BM56: 0
D57: TFSEE | F57: ='Premissas do projeto'!G149*'Premissas do projeto'!G45 -> 300 | H57: =-$F$57*H12*H19 -> 0 | I57: 0 | J57: 0 | K57: 0 | L57: 0 | M57: (384) | N57: (400) | O57: (417) | P57: (434) | Q57: (453) | R57: (472) | S57: (492) | T57: (512) | U57: (534) | V57: (556) | W57: (579) | X57: (604) | Y57: (629) | Z57: (656) | AA57: (683) | AB57: (712) | AC57: (742) | AD57: (773) | AE57: (805) | AF57: (839) | AG57: (874) | AH57: (911) | AI57: (949) | AJ57: (989) | AK57: (1,031) | AL57: 0 | AM57: 0 | AN57: =-$F$57*AN12*AN19 -> 0 | AO57: 0 | AP57: 0 | AQ57: 0 | AR57: 0 | AS57: 0 | AT57: 0 | AU57: 0 | AV57: 0 | AW57: 0 | AX57: 0 | AY57: 0 | AZ57: 0 | BA57: 0 | BB57: 0 | BC57: 0 | BD57: 0 | BE57: 0 | BF57: 0 | BG57: 0 | BH57: 0 | BI57: 0 | BJ57: 0 | BK57: 0 | BL57: 0 | BM57: 0
D58: Pesquisa & Desenvolvimento | F58: ='Premissas do projeto'!E150 -> 0% | H58: =-$F$58*H29 -> 0 | I58: 0 | J58: 0 | K58: 0 | L58: 0 | M58: 0 | N58: 0 | O58: 0 | P58: 0 | Q58: 0 | R58: 0 | S58: 0 | T58: 0 | U58: 0 | V58: 0 | W58: 0 | X58: 0 | Y58: 0 | Z58: 0 | AA58: 0 | AB58: 0 | AC58: 0 | AD58: 0 | AE58: 0 | AF58: 0 | AG58: 0 | AH58: 0 | AI58: 0 | AJ58: 0 | AK58: 0 | AL58: 0 | AM58: 0 | AN58: =-$F$58*AN29 -> 0 | AO58: 0 | AP58: 0 | AQ58: 0 | AR58: 0 | AS58: 0 | AT58: 0 | AU58: 0 | AV58: 0 | AW58: 0 | AX58: 0 | AY58: 0 | AZ58: 0 | BA58: 0 | BB58: 0 | BC58: 0 | BD58: 0 | BE58: 0 | BF58: 0 | BG58: 0 | BH58: 0 | BI58: 0 | BJ58: 0 | BK58: 0 | BL58: 0 | BM58: 0
D59: CCEE | F59: ='Premissas do projeto'!E151 -> 0.10 | H59: =-$F$59*H12*H21 -> 0 | I59: 0 | J59: 0 | K59: 0 | L59: 0 | M59: (101) | N59: (106) | O59: (110) | P59: (115) | Q59: (120) | R59: (125) | S59: (130) | T59: (135) | U59: (141) | V59: (147) | W59: (153) | X59: (159) | Y59: (166) | Z59: (173) | AA59: (180) | AB59: (188) | AC59: (196) | AD59: (204) | AE59: (213) | AF59: (222) | AG59: (231) | AH59: (241) | AI59: (251) | AJ59: (261) | AK59: (272) | AL59: 0 | AM59: 0 | AN59: =-$F$59*AN12*AN21 -> 0 | AO59: 0 | AP59: 0 | AQ59: 0 | AR59: 0 | AS59: 0 | AT59: 0 | AU59: 0 | AV59: 0 | AW59: 0 | AX59: 0 | AY59: 0 | AZ59: 0 | BA59: 0 | BB59: 0 | BC59: 0 | BD59: 0 | BE59: 0 | BF59: 0 | BG59: 0 | BH59: 0 | BI59: 0 | BJ59: 0 | BK59: 0 | BL59: 0 | BM59: 0
D60: ONS | F60: ='Premissas do projeto'!E152*'Premissas do projeto'!G45/1000 -> 10.00 | H60: =-$F$60*H12*H19 -> 0 | I60: 0 | J60: 0 | K60: 0 | L60: 0 | M60: (13) | N60: (13) | O60: (14) | P60: (14) | Q60: (15) | R60: (16) | S60: (16) | T60: (17) | U60: (18) | V60: (19) | W60: (19) | X60: (20) | Y60: (21) | Z60: (22) | AA60: (23) | AB60: (24) | AC60: (25) | AD60: (26) | AE60: (27) | AF60: (28) | AG60: (29) | AH60: (30) | AI60: (32) | AJ60: (33) | AK60: (34) | AL60: 0 | AM60: 0 | AN60: =-$F$60*AN12*AN19 -> 0 | AO60: 0 | AP60: 0 | AQ60: 0 | AR60: 0 | AS60: 0 | AT60: 0 | AU60: 0 | AV60: 0 | AW60: 0 | AX60: 0 | AY60: 0 | AZ60: 0 | BA60: 0 | BB60: 0 | BC60: 0 | BD60: 0 | BE60: 0 | BF60: 0 | BG60: 0 | BH60: 0 | BI60: 0 | BJ60: 0 | BK60: 0 | BL60: 0 | BM60: 0
D61: Lastro | F61: ='Premissas do projeto'!G153 -> 0% | H61: =-$F$61*H29 -> 0 | I61: 0 | J61: 0 | K61: 0 | L61: 0 | M61: 0 | N61: 0 | O61: 0 | P61: 0 | Q61: 0 | R61: 0 | S61: 0 | T61: 0 | U61: 0 | V61: 0 | W61: 0 | X61: 0 | Y61: 0 | Z61: 0 | AA61: 0 | AB61: 0 | AC61: 0 | AD61: 0 | AE61: 0 | AF61: 0 | AG61: 0 | AH61: 0 | AI61: 0 | AJ61: 0 | AK61: 0 | AL61: 0 | AM61: 0 | AN61: =-$F$61*AN29 -> 0 | AO61: 0 | AP61: 0 | AQ61: 0 | AR61: 0 | AS61: 0 | AT61: 0 | AU61: 0 | AV61: 0 | AW61: 0 | AX61: 0 | AY61: 0 | AZ61: 0 | BA61: 0 | BB61: 0 | BC61: 0 | BD61: 0 | BE61: 0 | BF61: 0 | BG61: 0 | BH61: 0 | BI61: 0 | BJ61: 0 | BK61: 0 | BL61: 0 | BM61: 0
B63: Custos de intermediação financeira | H63: =SUM(H64:H65) -> 0 | I63: 0 | J63: 0 | K63: (1,665) | L63: (4,185) | M63: (3,689) | N63: 0 | O63: 0 | P63: 0 | Q63: 0 | R63: 0 | S63: 0 | T63: 0 | U63: 0 | V63: 0 | W63: 0 | X63: 0 | Y63: 0 | Z63: 0 | AA63: 0 | AB63: 0 | AC63: 0 | AD63: 0 | AE63: 0 | AF63: 0 | AG63: 0 | AH63: 0 | AI63: 0 | AJ63: 0 | AK63: 0 | AL63: 0 | AM63: 0 | AN63: 0 | AO63: 0 | AP63: 0 | AQ63: 0 | AR63: 0 | AS63: 0 | AT63: 0 | AU63: 0 | AV63: 0 | AW63: 0 | AX63: 0 | AY63: 0 | AZ63: 0 | BA63: 0 | BB63: 0 | BC63: 0 | BD63: 0 | BE63: 0 | BF63: 0 | BG63: 0 | BH63: 0 | BI63: 0 | BJ63: 0 | BK63: 0 | BL63: 0 | BM63: 0 | BO63: =SUM(H63:BM63) -> (9,539)
C64: Custo de captação de capital (atrasado de um ano para não girar um cálculo circular) | I64: ='Premissas do projeto'!$G$65*MIN(H139,0) -> 0 | J64: ='Premissas do projeto'!$G$65*MIN(I139,0) -> 0 | K64: ='Premissas do projeto'!$G$65*MIN(J139,0) -> (305) | L64: ='Premissas do projeto'!$G$65*MIN(K139,0) -> (2,796) | M64: ='Premissas do projeto'!$G$65*MIN(L139,0) -> (3,660) | N64: ='Premissas do projeto'!$G$65*MIN(M139,0) -> 0 | O64: ='Premissas do projeto'!$G$65*MIN(N139,0) -> 0 | P64: ='Premissas do projeto'!$G$65*MIN(O139,0) -> 0 | Q64: ='Premissas do projeto'!$G$65*MIN(P139,0) -> 0 | R64: ='Premissas do projeto'!$G$65*MIN(Q139,0) -> 0 | S64: ='Premissas do projeto'!$G$65*MIN(R139,0) -> 0 | T64: ='Premissas do projeto'!$G$65*MIN(S139,0) -> 0 | U64: ='Premissas do projeto'!$G$65*MIN(T139,0) -> 0 | V64: ='Premissas do projeto'!$G$65*MIN(U139,0) -> 0 | W64: ='Premissas do projeto'!$G$65*MIN(V139,0) -> 0 | X64: ='Premissas do projeto'!$G$65*MIN(W139,0) -> 0 | Y64: ='Premissas do projeto'!$G$65*MIN(X139,0) -> 0 | Z64: ='Premissas do projeto'!$G$65*MIN(Y139,0) -> 0 | AA64: ='Premissas do projeto'!$G$65*MIN(Z139,0) -> 0 | AB64: ='Premissas do projeto'!$G$65*MIN(AA139,0) -> 0 | AC64: ='Premissas do projeto'!$G$65*MIN(AB139,0) -> 0 | AD64: ='Premissas do projeto'!$G$65*MIN(AC139,0) -> 0 | AE64: ='Premissas do projeto'!$G$65*MIN(AD139,0) -> 0 | AF64: ='Premissas do projeto'!$G$65*MIN(AE139,0) -> 0 | AG64: ='Premissas do projeto'!$G$65*MIN(AF139,0) -> 0 | AH64: ='Premissas do projeto'!$G$65*MIN(AG139,0) -> 0 | AI64: ='Premissas do projeto'!$G$65*MIN(AH139,0) -> 0 | AJ64: ='Premissas do projeto'!$G$65*MIN(AI139,0) -> 0 | AK64: ='Premissas do projeto'!$G$65*MIN(AJ139,0) -> 0 | AL64: ='Premissas do projeto'!$G$65*MIN(AK139,0) -> 0 | AM64: ='Premissas do projeto'!$G$65*MIN(AL139,0) -> 0 | AN64: ='Premissas do projeto'!$G$65*MIN(AM139,0) -> 0 | AO64: ='Premissas do projeto'!$G$65*MIN(AN139,0) -> 0 | AP64: ='Premissas do projeto'!$G$65*MIN(AO139,0) -> 0 | AQ64: ='Premissas do projeto'!$G$65*MIN(AP139,0) -> 0 | AR64: ='Premissas do projeto'!$G$65*MIN(AQ139,0) -> 0 | AS64: ='Premissas do projeto'!$G$65*MIN(AR139,0) -> 0 | AT64: ='Premissas do projeto'!$G$65*MIN(AS139,0) -> 0 | AU64: ='Premissas do projeto'!$G$65*MIN(AT139,0) -> 0 | AV64: ='Premissas do projeto'!$G$65*MIN(AU139,0) -> 0 | AW64: ='Premissas do projeto'!$G$65*MIN(AV139,0) -> 0 | AX64: ='Premissas do projeto'!$G$65*MIN(AW139,0) -> 0 | AY64: ='Premissas do projeto'!$G$65*MIN(AX139,0) -> 0 | AZ64: ='Premissas do projeto'!$G$65*MIN(AY139,0) -> 0 | BA64: ='Premissas do projeto'!$G$65*MIN(AZ139,0) -> 0 | BB64: ='Premissas do projeto'!$G$65*MIN(BA139,0) -> 0 | BC64: ='Premissas do projeto'!$G$65*MIN(BB139,0) -> 0 | BD64: ='Premissas do projeto'!$G$65*MIN(BC139,0) -> 0 | BE64: ='Premissas do projeto'!$G$65*MIN(BD139,0) -> 0 | BF64: ='Premissas do projeto'!$G$65*MIN(BE139,0) -> 0 | BG64: ='Premissas do projeto'!$G$65*MIN(BF139,0) -> 0 | BH64: ='Premissas do projeto'!$G$65*MIN(BG139,0) -> 0 | BI64: ='Premissas do projeto'!$G$65*MIN(BH139,0) -> 0 | BJ64: ='Premissas do projeto'!$G$65*MIN(BI139,0) -> 0 | BK64: ='Premissas do projeto'!$G$65*MIN(BJ139,0) -> 0 | BL64: ='Premissas do projeto'!$G$65*MIN(BK139,0) -> 0 | BM64: ='Premissas do projeto'!$G$65*MIN(BL139,0) -> 0
C65: Intermediação de emprestimos | H65: =SUM(H66:H67) -> 0 | I65: 0 | J65: 0 | K65: (1,360) | L65: (1,389) | M65: (30) | N65: =SUM(N66:N67) -> 0 | O65: 0 | P65: 0 | Q65: 0 | R65: 0 | S65: 0 | T65: 0 | U65: 0 | V65: 0 | W65: 0 | X65: 0 | Y65: 0 | Z65: 0 | AA65: 0 | AB65: 0 | AC65: 0 | AD65: 0 | AE65: 0 | AF65: 0 | AG65: 0 | AH65: 0 | AI65: 0 | AJ65: 0 | AK65: 0 | AL65: 0 | AM65: 0 | AN65: 0 | AO65: 0 | AP65: 0 | AQ65: 0 | AR65: 0 | AS65: 0 | AT65: 0 | AU65: 0 | AV65: 0 | AW65: 0 | AX65: 0 | AY65: 0 | AZ65: 0 | BA65: 0 | BB65: 0 | BC65: 0 | BD65: 0 | BE65: 0 | BF65: 0 | BG65: 0 | BH65: 0 | BI65: 0 | BJ65: 0 | BK65: 0 | BL65: 0 | BM65: 0
D66: BNDES | H66: =-'Premissas do projeto'!$G$59*H598 -> 0 | I66: =-'Premissas do projeto'!$G$59*I598 -> 0 | J66: =-'Premissas do projeto'!$G$59*J598 -> 0 | K66: =-'Premissas do projeto'!$G$59*K598 -> (1,360) | L66: =-'Premissas do projeto'!$G$59*L598 -> (1,389) | M66: =-'Premissas do projeto'!$G$59*M598 -> (30) | N66: =-'Premissas do projeto'!$G$59*N598 -> 0 | O66: =-'Premissas do projeto'!$G$59*O598 -> 0 | P66: =-'Premissas do projeto'!$G$59*P598 -> 0 | Q66: =-'Premissas do projeto'!$G$59*Q598 -> 0 | R66: =-'Premissas do projeto'!$G$59*R598 -> 0 | S66: =-'Premissas do projeto'!$G$59*S598 -> 0 | T66: =-'Premissas do projeto'!$G$59*T598 -> 0 | U66: =-'Premissas do projeto'!$G$59*U598 -> 0 | V66: =-'Premissas do projeto'!$G$59*V598 -> 0 | W66: =-'Premissas do projeto'!$G$59*W598 -> 0 | X66: =-'Premissas do projeto'!$G$59*X598 -> 0 | Y66: =-'Premissas do projeto'!$G$59*Y598 -> 0 | Z66: =-'Premissas do projeto'!$G$59*Z598 -> 0 | AA66: =-'Premissas do projeto'!$G$59*AA598 -> 0 | AB66: =-'Premissas do projeto'!$G$59*AB598 -> 0 | AC66: =-'Premissas do projeto'!$G$59*AC598 -> 0 | AD66: =-'Premissas do projeto'!$G$59*AD598 -> 0 | AE66: =-'Premissas do projeto'!$G$59*AE598 -> 0 | AF66: =-'Premissas do projeto'!$G$59*AF598 -> 0 | AG66: =-'Premissas do projeto'!$G$59*AG598 -> 0 | AH66: =-'Premissas do projeto'!$G$59*AH598 -> 0 | AI66: =-'Premissas do projeto'!$G$59*AI598 -> 0 | AJ66: =-'Premissas do projeto'!$G$59*AJ598 -> 0 | AK66: =-'Premissas do projeto'!$G$59*AK598 -> 0 | AL66: =-'Premissas do projeto'!$G$59*AL598 -> 0 | AM66: =-'Premissas do projeto'!$G$59*AM598 -> 0 | AN66: =-'Premissas do projeto'!$G$59*AN598 -> 0 | AO66: =-'Premissas do projeto'!$G$59*AO598 -> 0 | AP66: =-'Premissas do projeto'!$G$59*AP598 -> 0 | AQ66: =-'Premissas do projeto'!$G$59*AQ598 -> 0 | AR66: =-'Premissas do projeto'!$G$59*AR598 -> 0 | AS66: =-'Premissas do projeto'!$G$59*AS598 -> 0 | AT66: =-'Premissas do projeto'!$G$59*AT598 -> 0 | AU66: =-'Premissas do projeto'!$G$59*AU598 -> 0 | AV66: =-'Premissas do projeto'!$G$59*AV598 -> 0 | AW66: =-'Premissas do projeto'!$G$59*AW598 -> 0 | AX66: =-'Premissas do projeto'!$G$59*AX598 -> 0 | AY66: =-'Premissas do projeto'!$G$59*AY598 -> 0 | AZ66: =-'Premissas do projeto'!$G$59*AZ598 -> 0 | BA66: =-'Premissas do projeto'!$G$59*BA598 -> 0 | BB66: =-'Premissas do projeto'!$G$59*BB598 -> 0 | BC66: =-'Premissas do projeto'!$G$59*BC598 -> 0 | BD66: =-'Premissas do projeto'!$G$59*BD598 -> 0 | BE66: =-'Premissas do projeto'!$G$59*BE598 -> 0 | BF66: =-'Premissas do projeto'!$G$59*BF598 -> 0 | BG66: =-'Premissas do projeto'!$G$59*BG598 -> 0 | BH66: =-'Premissas do projeto'!$G$59*BH598 -> 0 | BI66: =-'Premissas do projeto'!$G$59*BI598 -> 0 | BJ66: =-'Premissas do projeto'!$G$59*BJ598 -> 0 | BK66: =-'Premissas do projeto'!$G$59*BK598 -> 0 | BL66: =-'Premissas do projeto'!$G$59*BL598 -> 0 | BM66: =-'Premissas do projeto'!$G$59*BM598 -> 0
D67: Outros emprestimos
B69: EBITDA | H69: =H41+H43+H47+H55+H63 -> 0 | I69: 0 | J69: 0 | K69: (1,665) | L69: (29,865) | M69: 331,856 | N69: 323,648 | O69: 331,638 | P69: 345,879 | Q69: 360,406 | R69: 375,543 | S69: 391,316 | T69: 407,751 | U69: 424,876 | V69: 442,721 | W69: 461,316 | X69: 480,691 | Y69: 500,880 | Z69: 521,917 | AA69: 543,837 | AB69: 566,678 | AC69: 590,479 | AD69: 615,279 | AE69: 641,121 | AF69: 668,048 | AG69: 696,106 | AH69: 725,342 | AI69: 755,124 | AJ69: 786,127 | AK69: 818,403 | AL69: (15,814) | AM69: 0 | AN69: =AN41+AN43+AN47+AN55+AN63 -> 0 | AO69: 0 | AP69: 0 | AQ69: 0 | AR69: 0 | AS69: 0 | AT69: 0 | AU69: 0 | AV69: 0 | AW69: 0 | AX69: 0 | AY69: 0 | AZ69: 0 | BA69: 0 | BB69: 0 | BC69: 0 | BD69: 0 | BE69: 0 | BF69: 0 | BG69: 0 | BH69: 0 | BI69: 0 | BJ69: 0 | BK69: 0 | BL69: 0 | BM69: 0 | BO69: =SUM(H69:BM69) -> 13,059,636
B72: Depreciação | H72: =H73+H79 -> 0 | I72: =I73+I79 -> 0 | J72: 0 | K72: 0 | L72: 0 | M72: (117,177) | N72: (118,436) | O72: (118,436) | P72: (118,436) | Q72: (100,950) | R72: (83,094) | S72: (82,714) | T72: (82,714) | U72: (82,714) | V72: (45,882) | W72: (8,271) | X72: (7,471) | Y72: (7,471) | Z72: (7,471) | AA72: (7,471) | AB72: (7,471) | AC72: (7,471) | AD72: (7,471) | AE72: (7,471) | AF72: (7,471) | AG72: (7,471) | AH72: (7,471) | AI72: (7,471) | AJ72: (7,471) | AK72: (3,814) | AL72: 0 | AM72: 0 | AN72: 0 | AO72: 0 | AP72: 0 | AQ72: 0 | AR72: 0 | AS72: 0 | AT72: 0 | AU72: 0 | AV72: 0 | AW72: 0 | AX72: 0 | AY72: 0 | AZ72: 0 | BA72: 0 | BB72: 0 | BC72: 0 | BD72: 0 | BE72: 0 | BF72: 0 | BG72: 0 | BH72: 0 | BI72: 0 | BJ72: 0 | BK72: 0 | BL72: 0 | BM72: 0 | BO72: =SUM(H72:BM72) -> (1,059,760)
C73: Investimento inicial | H73: =SUM(H75:H78) -> 0 | I73: =SUM(I75:I78) -> 0 | J73: 0 | K73: 0 | L73: 0 | M73: (117,177) | N73: (118,436) | O73: (118,436) | P73: (118,436) | Q73: (100,950) | R73: (83,094) | S73: (82,714) | T73: (82,714) | U73: (82,714) | V73: (45,882) | W73: (8,271) | X73: (7,471) | Y73: (7,471) | Z73: (7,471) | AA73: (7,471) | AB73: (7,471) | AC73: (7,471) | AD73: (7,471) | AE73: (7,471) | AF73: (7,471) | AG73: (7,471) | AH73: (7,471) | AI73: (7,471) | AJ73: (7,471) | AK73: (3,814) | AL73: 0 | AM73: 0 | AN73: 0 | AO73: 0 | AP73: 0 | AQ73: 0 | AR73: 0 | AS73: 0 | AT73: 0 | AU73: 0 | AV73: 0 | AW73: 0 | AX73: 0 | AY73: 0 | AZ73: 0 | BA73: 0 | BB73: 0 | BC73: 0 | BD73: 0 | BE73: 0 | BF73: 0 | BG73: 0 | BH73: 0 | BI73: 0 | BJ73: 0 | BK73: 0 | BL73: 0 | BM73: 0
D74: Desenvolvimento e licenciamento | H74: =IF($G$334="Presumido",H224,IF($G$334="Real",H261,H303)) -> 0 | I74: 0 | J74: 0 | K74: 0 | L74: 0 | M74: (6,108) | N74: (6,108) | O74: (6,108) | P74: 0 | Q74: 0 | R74: 0 | S74: 0 | T74: 0 | U74: 0 | V74: 0 | W74: 0 | X74: 0 | Y74: 0 | Z74: 0 | AA74: 0 | AB74: 0 | AC74: 0 | AD74: 0 | AE74: 0 | AF74: 0 | AG74: 0 | AH74: 0 | AI74: 0 | AJ74: 0 | AK74: 0 | AL74: 0 | AM74: 0 | AN74: =IF($G$334="Presumido",AN224,IF($G$334="Real",AN261,AN303)) -> 0 | AO74: 0 | AP74: 0 | AQ74: 0 | AR74: 0 | AS74: 0 | AT74: 0 | AU74: 0 | AV74: 0 | AW74: 0 | AX74: 0 | AY74: 0 | AZ74: 0 | BA74: 0 | BB74: 0 | BC74: 0 | BD74: 0 | BE74: 0 | BF74: 0 | BG74: 0 | BH74: 0 | BI74: 0 | BJ74: 0 | BK74: 0 | BL74: 0 | BM74: 0
D75: Construção civil | H75: =IF($G$334="Presumido",H225,IF($G$334="Real",H262,H304)) -> 0 | I75: 0 | J75: 0 | K75: 0 | L75: 0 | M75: (7,392) | N75: (7,471) | O75: (7,471) | P75: (7,471) | Q75: (7,471) | R75: (7,471) | S75: (7,471) | T75: (7,471) | U75: (7,471) | V75: (7,471) | W75: (7,471) | X75: (7,471) | Y75: (7,471) | Z75: (7,471) | AA75: (7,471) | AB75: (7,471) | AC75: (7,471) | AD75: (7,471) | AE75: (7,471) | AF75: (7,471) | AG75: (7,471) | AH75: (7,471) | AI75: (7,471) | AJ75: (7,471) | AK75: (3,814) | AL75: 0 | AM75: 0 | AN75: =IF($G$334="Presumido",AN225,IF($G$334="Real",AN262,AN304)) -> 0 | AO75: 0 | AP75: 0 | AQ75: 0 | AR75: 0 | AS75: 0 | AT75: 0 | AU75: 0 | AV75: 0 | AW75: 0 | AX75: 0 | AY75: 0 | AZ75: 0 | BA75: 0 | BB75: 0 | BC75: 0 | BD75: 0 | BE75: 0 | BF75: 0 | BG75: 0 | BH75: 0 | BI75: 0 | BJ75: 0 | BK75: 0 | BL75: 0 | BM75: 0
D76: Equipamento e material | H76: =IF($G$334="Presumido",H226,IF($G$334="Real",H263,H305)) -> 0 | I76: 0 | J76: 0 | K76: 0 | L76: 0 | M76: (74,443) | N76: (75,243) | O76: (75,243) | P76: (75,243) | Q76: (75,243) | R76: (75,243) | S76: (75,243) | T76: (75,243) | U76: (75,243) | V76: (38,411) | W76: (800) | X76: 0 | Y76: 0 | Z76: 0 | AA76: 0 | AB76: 0 | AC76: 0 | AD76: 0 | AE76: 0 | AF76: 0 | AG76: 0 | AH76: 0 | AI76: 0 | AJ76: 0 | AK76: 0 | AL76: 0 | AM76: 0 | AN76: =IF($G$334="Presumido",AN226,IF($G$334="Real",AN263,AN305)) -> 0 | AO76: 0 | AP76: 0 | AQ76: 0 | AR76: 0 | AS76: 0 | AT76: 0 | AU76: 0 | AV76: 0 | AW76: 0 | AX76: 0 | AY76: 0 | AZ76: 0 | BA76: 0 | BB76: 0 | BC76: 0 | BD76: 0 | BE76: 0 | BF76: 0 | BG76: 0 | BH76: 0 | BI76: 0 | BJ76: 0 | BK76: 0 | BL76: 0 | BM76: 0
D77: Equipamentos móveis | H77: =IF($G$334="Presumido",H227,IF($G$334="Real",H264,H306)) -> 0 | I77: 0 | J77: 0 | K77: 0 | L77: 0 | M77: (1,324) | N77: (1,338) | O77: (1,338) | P77: (1,338) | Q77: (683) | R77: (14) | S77: 0 | T77: 0 | U77: 0 | V77: 0 | W77: 0 | X77: 0 | Y77: 0 | Z77: 0 | AA77: 0 | AB77: 0 | AC77: 0 | AD77: 0 | AE77: 0 | AF77: 0 | AG77: 0 | AH77: 0 | AI77: 0 | AJ77: 0 | AK77: 0 | AL77: 0 | AM77: 0 | AN77: =IF($G$334="Presumido",AN227,IF($G$334="Real",AN264,AN306)) -> 0 | AO77: 0 | AP77: 0 | AQ77: 0 | AR77: 0 | AS77: 0 | AT77: 0 | AU77: 0 | AV77: 0 | AW77: 0 | AX77: 0 | AY77: 0 | AZ77: 0 | BA77: 0 | BB77: 0 | BC77: 0 | BD77: 0 | BE77: 0 | BF77: 0 | BG77: 0 | BH77: 0 | BI77: 0 | BJ77: 0 | BK77: 0 | BL77: 0 | BM77: 0
D78: Custos indiretos | H78: =IF($G$334="Presumido",H228,IF($G$334="Real",H265,H307)) -> 0 | I78: 0 | J78: 0 | K78: 0 | L78: 0 | M78: (34,019) | N78: (34,384) | O78: (34,384) | P78: (34,384) | Q78: (17,553) | R78: (365) | S78: 0 | T78: 0 | U78: 0 | V78: 0 | W78: 0 | X78: 0 | Y78: 0 | Z78: 0 | AA78: 0 | AB78: 0 | AC78: 0 | AD78: 0 | AE78: 0 | AF78: 0 | AG78: 0 | AH78: 0 | AI78: 0 | AJ78: 0 | AK78: 0 | AL78: 0 | AM78: 0 | AN78: =IF($G$334="Presumido",AN228,IF($G$334="Real",AN265,AN307)) -> 0 | AO78: 0 | AP78: 0 | AQ78: 0 | AR78: 0 | AS78: 0 | AT78: 0 | AU78: 0 | AV78: 0 | AW78: 0 | AX78: 0 | AY78: 0 | AZ78: 0 | BA78: 0 | BB78: 0 | BC78: 0 | BD78: 0 | BE78: 0 | BF78: 0 | BG78: 0 | BH78: 0 | BI78: 0 | BJ78: 0 | BK78: 0 | BL78: 0 | BM78: 0
C79: Reinvestmentos | H79: =IF($G$334="Presumido",H229,IF($G$334="Real",H266,H308)) -> 0 | I79: 0 | J79: 0 | K79: 0 | L79: 0 | M79: 0 | N79: 0 | O79: 0 | P79: 0 | Q79: 0 | R79: 0 | S79: 0 | T79: 0 | U79: 0 | V79: 0 | W79: 0 | X79: 0 | Y79: 0 | Z79: 0 | AA79: 0 | AB79: 0 | AC79: 0 | AD79: 0 | AE79: 0 | AF79: 0 | AG79: 0 | AH79: 0 | AI79: 0 | AJ79: 0 | AK79: 0 | AL79: 0 | AM79: 0 | AN79: =IF($G$334="Presumido",AN229,IF($G$334="Real",AN266,AN308)) -> 0 | AO79: 0 | AP79: 0 | AQ79: 0 | AR79: 0 | AS79: 0 | AT79: 0 | AU79: 0 | AV79: 0 | AW79: 0 | AX79: 0 | AY79: 0 | AZ79: 0 | BA79: 0 | BB79: 0 | BC79: 0 | BD79: 0 | BE79: 0 | BF79: 0 | BG79: 0 | BH79: 0 | BI79: 0 | BJ79: 0 | BK79: 0 | BL79: 0 | BM79: 0
B81: Provisão para decomissionamento | H81: =IF(OR(H8<Resultados!$C$15-'Premissas do projeto'!$G$92+1,H8>Resultados!$C$15),0,-'Premissas do projeto'!$G$91*$F$348*H12/'Premissas do projeto'!$G$92) -> 0 | I81: =IF(OR(I8<Resultados!$C$15-'Premissas do projeto'!$G$92+1,I8>Resultados!$C$15),0,-'Premissas do projeto'!$G$91*$F$348*I12/'Premissas do projeto'!$G$92) -> 0 | J81: =IF(OR(J8<Resultados!$C$15-'Premissas do projeto'!$G$92+1,J8>Resultados!$C$15),0,-'Premissas do projeto'!$G$91*$F$348*J12/'Premissas do projeto'!$G$92) -> 0 | K81: =IF(OR(K8<Resultados!$C$15-'Premissas do projeto'!$G$92+1,K8>Resultados!$C$15),0,-'Premissas do projeto'!$G$91*$F$348*K12/'Premissas do projeto'!$G$92) -> 0 | L81: =IF(OR(L8<Resultados!$C$15-'Premissas do projeto'!$G$92+1,L8>Resultados!$C$15),0,-'Premissas do projeto'!$G$91*$F$348*L12/'Premissas do projeto'!$G$92) -> 0 | M81: =IF(OR(M8<Resultados!$C$15-'Premissas do projeto'!$G$92+1,M8>Resultados!$C$15),0,-'Premissas do projeto'!$G$91*$F$348*M12/'Premissas do projeto'!$G$92) -> 0 | N81: =IF(OR(N8<Resultados!$C$15-'Premissas do projeto'!$G$92+1,N8>Resultados!$C$15),0,-'Premissas do projeto'!$G$91*$F$348*N12/'Premissas do projeto'!$G$92) -> 0 | O81: =IF(OR(O8<Resultados!$C$15-'Premissas do projeto'!$G$92+1,O8>Resultados!$C$15),0,-'Premissas do projeto'!$G$91*$F$348*O12/'Premissas do projeto'!$G$92) -> 0 | P81: =IF(OR(P8<Resultados!$C$15-'Premissas do projeto'!$G$92+1,P8>Resultados!$C$15),0,-'Premissas do projeto'!$G$91*$F$348*P12/'Premissas do projeto'!$G$92) -> 0 | Q81: =IF(OR(Q8<Resultados!$C$15-'Premissas do projeto'!$G$92+1,Q8>Resultados!$C$15),0,-'Premissas do projeto'!$G$91*$F$348*Q12/'Premissas do projeto'!$G$92) -> 0 | R81: =IF(OR(R8<Resultados!$C$15-'Premissas do projeto'!$G$92+1,R8>Resultados!$C$15),0,-'Premissas do projeto'!$G$91*$F$348*R12/'Premissas do projeto'!$G$92) -> 0 | S81: =IF(OR(S8<Resultados!$C$15-'Premissas do projeto'!$G$92+1,S8>Resultados!$C$15),0,-'Premissas do projeto'!$G$91*$F$348*S12/'Premissas do projeto'!$G$92) -> 0 | T81: =IF(OR(T8<Resultados!$C$15-'Premissas do projeto'!$G$92+1,T8>Resultados!$C$15),0,-'Premissas do projeto'!$G$91*$F$348*T12/'Premissas do projeto'!$G$92) -> 0 | U81: =IF(OR(U8<Resultados!$C$15-'Premissas do projeto'!$G$92+1,U8>Resultados!$C$15),0,-'Premissas do projeto'!$G$91*$F$348*U12/'Premissas do projeto'!$G$92) -> 0 | V81: =IF(OR(V8<Resultados!$C$15-'Premissas do projeto'!$G$92+1,V8>Resultados!$C$15),0,-'Premissas do projeto'!$G$91*$F$348*V12/'Premissas do projeto'!$G$92) -> 0 | W81: =IF(OR(W8<Resultados!$C$15-'Premissas do projeto'!$G$92+1,W8>Resultados!$C$15),0,-'Premissas do projeto'!$G$91*$F$348*W12/'Premissas do projeto'!$G$92) -> 0 | X81: =IF(OR(X8<Resultados!$C$15-'Premissas do projeto'!$G$92+1,X8>Resultados!$C$15),0,-'Premissas do projeto'!$G$91*$F$348*X12/'Premissas do projeto'!$G$92) -> 0 | Y81: =IF(OR(Y8<Resultados!$C$15-'Premissas do projeto'!$G$92+1,Y8>Resultados!$C$15),0,-'Premissas do projeto'!$G$91*$F$348*Y12/'Premissas do projeto'!$G$92) -> 0 | Z81: =IF(OR(Z8<Resultados!$C$15-'Premissas do projeto'!$G$92+1,Z8>Resultados!$C$15),0,-'Premissas do projeto'!$G$91*$F$348*Z12/'Premissas do projeto'!$G$92) -> 0 | AA81: =IF(OR(AA8<Resultados!$C$15-'Premissas do projeto'!$G$92+1,AA8>Resultados!$C$15),0,-'Premissas do projeto'!$G$91*$F$348*AA12/'Premissas do projeto'!$G$92) -> 0 | AB81: =IF(OR(AB8<Resultados!$C$15-'Premissas do projeto'!$G$92+1,AB8>Resultados!$C$15),0,-'Premissas do projeto'!$G$91*$F$348*AB12/'Premissas do projeto'!$G$92) -> 0 | AC81: =IF(OR(AC8<Resultados!$C$15-'Premissas do projeto'!$G$92+1,AC8>Resultados!$C$15),0,-'Premissas do projeto'!$G$91*$F$348*AC12/'Premissas do projeto'!$G$92) -> 0 | AD81: =IF(OR(AD8<Resultados!$C$15-'Premissas do projeto'!$G$92+1,AD8>Resultados!$C$15),0,-'Premissas do projeto'!$G$91*$F$348*AD12/'Premissas do projeto'!$G$92) -> 0 | AE81: =IF(OR(AE8<Resultados!$C$15-'Premissas do projeto'!$G$92+1,AE8>Resultados!$C$15),0,-'Premissas do projeto'!$G$91*$F$348*AE12/'Premissas do projeto'!$G$92) -> 0 | AF81: =IF(OR(AF8<Resultados!$C$15-'Premissas do projeto'!$G$92+1,AF8>Resultados!$C$15),0,-'Premissas do projeto'!$G$91*$F$348*AF12/'Premissas do projeto'!$G$92) -> 0 | AG81: =IF(OR(AG8<Resultados!$C$15-'Premissas do projeto'!$G$92+1,AG8>Resultados!$C$15),0,-'Premissas do projeto'!$G$91*$F$348*AG12/'Premissas do projeto'!$G$92) -> (72,846) | AH81: =IF(OR(AH8<Resultados!$C$15-'Premissas do projeto'!$G$92+1,AH8>Resultados!$C$15),0,-'Premissas do projeto'!$G$91*$F$348*AH12/'Premissas do projeto'!$G$92) -> (75,905) | AI81: =IF(OR(AI8<Resultados!$C$15-'Premissas do projeto'!$G$92+1,AI8>Resultados!$C$15),0,-'Premissas do projeto'!$G$91*$F$348*AI12/'Premissas do projeto'!$G$92) -> (79,093) | AJ81: =IF(OR(AJ8<Resultados!$C$15-'Premissas do projeto'!$G$92+1,AJ8>Resultados!$C$15),0,-'Premissas do projeto'!$G$91*$F$348*AJ12/'Premissas do projeto'!$G$92) -> (82,415) | AK81: =IF(OR(AK8<Resultados!$C$15-'Premissas do projeto'!$G$92+1,AK8>Resultados!$C$15),0,-'Premissas do projeto'!$G$91*$F$348*AK12/'Premissas do projeto'!$G$92) -> (85,877) | AL81: =IF(OR(AL8<Resultados!$C$15-'Premissas do projeto'!$G$92+1,AL8>Resultados!$C$15),0,-'Premissas do projeto'!$G$91*$F$348*AL12/'Premissas do projeto'!$G$92) -> 0 | AM81: =IF(OR(AM8<Resultados!$C$15-'Premissas do projeto'!$G$92+1,AM8>Resultados!$C$15),0,-'Premissas do projeto'!$G$91*$F$348*AM12/'Premissas do projeto'!$G$92) -> 0 | AN81: =IF(OR(AN8<Resultados!$C$15-'Premissas do projeto'!$G$92+1,AN8>Resultados!$C$15),0,-'Premissas do projeto'!$G$91*$F$348*AN12/'Premissas do projeto'!$G$92) -> 0 | AO81: =IF(OR(AO8<Resultados!$C$15-'Premissas do projeto'!$G$92+1,AO8>Resultados!$C$15),0,-'Premissas do projeto'!$G$91*$F$348*AO12/'Premissas do projeto'!$G$92) -> 0 | AP81: =IF(OR(AP8<Resultados!$C$15-'Premissas do projeto'!$G$92+1,AP8>Resultados!$C$15),0,-'Premissas do projeto'!$G$91*$F$348*AP12/'Premissas do projeto'!$G$92) -> 0 | AQ81: =IF(OR(AQ8<Resultados!$C$15-'Premissas do projeto'!$G$92+1,AQ8>Resultados!$C$15),0,-'Premissas do projeto'!$G$91*$F$348*AQ12/'Premissas do projeto'!$G$92) -> 0 | AR81: =IF(OR(AR8<Resultados!$C$15-'Premissas do projeto'!$G$92+1,AR8>Resultados!$C$15),0,-'Premissas do projeto'!$G$91*$F$348*AR12/'Premissas do projeto'!$G$92) -> 0 | AS81: =IF(OR(AS8<Resultados!$C$15-'Premissas do projeto'!$G$92+1,AS8>Resultados!$C$15),0,-'Premissas do projeto'!$G$91*$F$348*AS12/'Premissas do projeto'!$G$92) -> 0 | AT81: =IF(OR(AT8<Resultados!$C$15-'Premissas do projeto'!$G$92+1,AT8>Resultados!$C$15),0,-'Premissas do projeto'!$G$91*$F$348*AT12/'Premissas do projeto'!$G$92) -> 0 | AU81: =IF(OR(AU8<Resultados!$C$15-'Premissas do projeto'!$G$92+1,AU8>Resultados!$C$15),0,-'Premissas do projeto'!$G$91*$F$348*AU12/'Premissas do projeto'!$G$92) -> 0 | AV81: =IF(OR(AV8<Resultados!$C$15-'Premissas do projeto'!$G$92+1,AV8>Resultados!$C$15),0,-'Premissas do projeto'!$G$91*$F$348*AV12/'Premissas do projeto'!$G$92) -> 0 | AW81: =IF(OR(AW8<Resultados!$C$15-'Premissas do projeto'!$G$92+1,AW8>Resultados!$C$15),0,-'Premissas do projeto'!$G$91*$F$348*AW12/'Premissas do projeto'!$G$92) -> 0 | AX81: =IF(OR(AX8<Resultados!$C$15-'Premissas do projeto'!$G$92+1,AX8>Resultados!$C$15),0,-'Premissas do projeto'!$G$91*$F$348*AX12/'Premissas do projeto'!$G$92) -> 0 | AY81: =IF(OR(AY8<Resultados!$C$15-'Premissas do projeto'!$G$92+1,AY8>Resultados!$C$15),0,-'Premissas do projeto'!$G$91*$F$348*AY12/'Premissas do projeto'!$G$92) -> 0 | AZ81: =IF(OR(AZ8<Resultados!$C$15-'Premissas do projeto'!$G$92+1,AZ8>Resultados!$C$15),0,-'Premissas do projeto'!$G$91*$F$348*AZ12/'Premissas do projeto'!$G$92) -> 0 | BA81: =IF(OR(BA8<Resultados!$C$15-'Premissas do projeto'!$G$92+1,BA8>Resultados!$C$15),0,-'Premissas do projeto'!$G$91*$F$348*BA12/'Premissas do projeto'!$G$92) -> 0 | BB81: =IF(OR(BB8<Resultados!$C$15-'Premissas do projeto'!$G$92+1,BB8>Resultados!$C$15),0,-'Premissas do projeto'!$G$91*$F$348*BB12/'Premissas do projeto'!$G$92) -> 0 | BC81: =IF(OR(BC8<Resultados!$C$15-'Premissas do projeto'!$G$92+1,BC8>Resultados!$C$15),0,-'Premissas do projeto'!$G$91*$F$348*BC12/'Premissas do projeto'!$G$92) -> 0 | BD81: =IF(OR(BD8<Resultados!$C$15-'Premissas do projeto'!$G$92+1,BD8>Resultados!$C$15),0,-'Premissas do projeto'!$G$91*$F$348*BD12/'Premissas do projeto'!$G$92) -> 0 | BE81: =IF(OR(BE8<Resultados!$C$15-'Premissas do projeto'!$G$92+1,BE8>Resultados!$C$15),0,-'Premissas do projeto'!$G$91*$F$348*BE12/'Premissas do projeto'!$G$92) -> 0 | BF81: =IF(OR(BF8<Resultados!$C$15-'Premissas do projeto'!$G$92+1,BF8>Resultados!$C$15),0,-'Premissas do projeto'!$G$91*$F$348*BF12/'Premissas do projeto'!$G$92) -> 0 | BG81: =IF(OR(BG8<Resultados!$C$15-'Premissas do projeto'!$G$92+1,BG8>Resultados!$C$15),0,-'Premissas do projeto'!$G$91*$F$348*BG12/'Premissas do projeto'!$G$92) -> 0 | BH81: =IF(OR(BH8<Resultados!$C$15-'Premissas do projeto'!$G$92+1,BH8>Resultados!$C$15),0,-'Premissas do projeto'!$G$91*$F$348*BH12/'Premissas do projeto'!$G$92) -> 0 | BI81: =IF(OR(BI8<Resultados!$C$15-'Premissas do projeto'!$G$92+1,BI8>Resultados!$C$15),0,-'Premissas do projeto'!$G$91*$F$348*BI12/'Premissas do projeto'!$G$92) -> 0 | BJ81: =IF(OR(BJ8<Resultados!$C$15-'Premissas do projeto'!$G$92+1,BJ8>Resultados!$C$15),0,-'Premissas do projeto'!$G$91*$F$348*BJ12/'Premissas do projeto'!$G$92) -> 0 | BK81: =IF(OR(BK8<Resultados!$C$15-'Premissas do projeto'!$G$92+1,BK8>Resultados!$C$15),0,-'Premissas do projeto'!$G$91*$F$348*BK12/'Premissas do projeto'!$G$92) -> 0 | BL81: =IF(OR(BL8<Resultados!$C$15-'Premissas do projeto'!$G$92+1,BL8>Resultados!$C$15),0,-'Premissas do projeto'!$G$91*$F$348*BL12/'Premissas do projeto'!$G$92) -> 0 | BM81: =IF(OR(BM8<Resultados!$C$15-'Premissas do projeto'!$G$92+1,BM8>Resultados!$C$15),0,-'Premissas do projeto'!$G$91*$F$348*BM12/'Premissas do projeto'!$G$92) -> 0 | BO81: =SUM(H81:BM81) -> (396,136)
B84: EBIT | H84: =H69+H72+H81 -> 0 | I84: =I69+I72+I81 -> 0 | J84: 0 | K84: (1,665) | L84: (29,865) | M84: 214,679 | N84: 205,212 | O84: 213,202 | P84: 227,443 | Q84: 259,456 | R84: 292,449 | S84: 308,602 | T84: 325,037 | U84: 342,162 | V84: 396,839 | W84: 453,045 | X84: 473,220 | Y84: 493,409 | Z84: 514,446 | AA84: 536,366 | AB84: 559,207 | AC84: 583,008 | AD84: 607,808 | AE84: 633,650 | AF84: 660,577 | AG84: 615,789 | AH84: 641,966 | AI84: 668,559 | AJ84: 696,241 | AK84: 728,712 | AL84: (15,814) | AM84: 0 | AN84: 0 | AO84: 0 | AP84: 0 | AQ84: 0 | AR84: 0 | AS84: 0 | AT84: 0 | AU84: 0 | AV84: 0 | AW84: 0 | AX84: 0 | AY84: 0 | AZ84: 0 | BA84: 0 | BB84: 0 | BC84: 0 | BD84: 0 | BE84: 0 | BF84: 0 | BG84: 0 | BH84: 0 | BI84: 0 | BJ84: 0 | BK84: 0 | BL84: 0 | BM84: 0 | BO84: =SUM(H84:BM84) -> 11,603,740
B86: Juros acumulados | H86: =SUM(H87:H88) -> 0 | I86: =SUM(I87:I88) -> 0 | J86: 0 | K86: (15,326) | L86: (50,097) | M86: (69,854) | N86: (66,272) | O86: (62,690) | P86: (59,107) | Q86: (55,525) | R86: (51,943) | S86: (48,361) | T86: (44,778) | U86: (41,196) | V86: (37,614) | W86: (34,032) | X86: (30,449) | Y86: (26,867) | Z86: (23,285) | AA86: (19,702) | AB86: (16,120) | AC86: (12,538) | AD86: (8,956) | AE86: (5,373) | AF86: (1,791) | AG86: 0 | AH86: 0 | AI86: 0 | AJ86: 0 | AK86: 0 | AL86: 0 | AM86: 0 | AN86: 0 | AO86: 0 | AP86: 0 | AQ86: 0 | AR86: 0 | AS86: 0 | AT86: 0 | AU86: 0 | AV86: 0 | AW86: 0 | AX86: 0 | AY86: 0 | AZ86: 0 | BA86: 0 | BB86: 0 | BC86: 0 | BD86: 0 | BE86: 0 | BF86: 0 | BG86: 0 | BH86: 0 | BI86: 0 | BJ86: 0 | BK86: 0 | BL86: 0 | BM86: 0 | BO86: =SUM(H86:BM86) -> (781,876)
C87: BNDES | H87: =-H599 -> 0 | I87: =-I599 -> 0 | J87: 0 | K87: (15,326) | L87: (50,097) | M87: (69,854) | N87: (66,272) | O87: (62,690) | P87: (59,107) | Q87: (55,525) | R87: (51,943) | S87: (48,361) | T87: (44,778) | U87: (41,196) | V87: (37,614) | W87: (34,032) | X87: (30,449) | Y87: (26,867) | Z87: (23,285) | AA87: (19,702) | AB87: (16,120) | AC87: (12,538) | AD87: (8,956) | AE87: (5,373) | AF87: (1,791) | AG87: 0 | AH87: 0 | AI87: 0 | AJ87: 0 | AK87: 0 | AL87: 0 | AM87: 0 | AN87: 0 | AO87: 0 | AP87: 0 | AQ87: 0 | AR87: 0 | AS87: 0 | AT87: 0 | AU87: 0 | AV87: 0 | AW87: 0 | AX87: 0 | AY87: 0 | AZ87: 0 | BA87: 0 | BB87: 0 | BC87: 0 | BD87: 0 | BE87: 0 | BF87: 0 | BG87: 0 | BH87: 0 | BI87: 0 | BJ87: 0 | BK87: 0 | BL87: 0 | BM87: 0
C88: Outros emprestimos
B90: EBT | H90: =H84+H86 -> 0 | I90: =I84+I86 -> 0 | J90: 0 | K90: (16,991) | L90: (79,962) | M90: 144,825 | N90: 138,940 | O90: 150,512 | P90: 168,336 | Q90: 203,931 | R90: 240,506 | S90: 260,241 | T90: 280,259 | U90: 300,966 | V90: 359,225 | W90: 419,013 | X90: 442,771 | Y90: 466,542 | Z90: 491,161 | AA90: 516,664 | AB90: 543,087 | AC90: 570,470 | AD90: 598,852 | AE90: 628,276 | AF90: 658,786 | AG90: 615,789 | AH90: 641,966 | AI90: 668,559 | AJ90: 696,241 | AK90: 728,712 | AL90: (15,814) | AM90: 0 | AN90: 0 | AO90: 0 | AP90: 0 | AQ90: 0 | AR90: 0 | AS90: 0 | AT90: 0 | AU90: 0 | AV90: 0 | AW90: 0 | AX90: 0 | AY90: 0 | AZ90: 0 | BA90: 0 | BB90: 0 | BC90: 0 | BD90: 0 | BE90: 0 | BF90: 0 | BG90: 0 | BH90: 0 | BI90: 0 | BJ90: 0 | BK90: 0 | BL90: 0 | BM90: 0 | BO90: =SUM(H90:BM90) -> 10,821,864
B93: Impostos da renda | H93: =SUM(H94:H95) -> 0 | I93: =SUM(I94:I95) -> 0 | J93: 0 | K93: 0 | L93: 0 | M93: (33,862) | N93: (31,590) | O93: (45,235) | P93: (57,210) | Q93: (69,312) | R93: (81,748) | S93: (88,458) | T93: (95,264) | U93: (102,305) | V93: (122,113) | W93: (142,440) | X93: (150,518) | Y93: (158,600) | Z93: (166,971) | AA93: (175,642) | AB93: (184,626) | AC93: (193,936) | AD93: (203,586) | AE93: (213,590) | AF93: (223,963) | AG93: (209,344) | AH93: (218,244) | AI93: (227,286) | AJ93: (236,698) | AK93: (247,738) | AL93: 0 | AM93: 0 | AN93: 0 | AO93: 0 | AP93: 0 | AQ93: 0 | AR93: 0 | AS93: 0 | AT93: 0 | AU93: 0 | AV93: 0 | AW93: 0 | AX93: 0 | AY93: 0 | AZ93: 0 | BA93: 0 | BB93: 0 | BC93: 0 | BD93: 0 | BE93: 0 | BF93: 0 | BG93: 0 | BH93: 0 | BI93: 0 | BJ93: 0 | BK93: 0 | BL93: 0 | BM93: 0 | BO93: =SUM(H93:BM93) -> (3,680,279)
B94: CSLL | H94: =IF($G$334="Presumido",H235,IF($G$334="Real",H277,H319)) -> 0 | I94: 0 | J94: 0 | K94: 0 | L94: 0 | M94: (8,970) | N94: (8,368) | O94: (11,980) | P94: (15,150) | Q94: (18,354) | R94: (21,646) | S94: (23,422) | T94: (25,223) | U94: (27,087) | V94: (32,330) | W94: (37,711) | X94: (39,849) | Y94: (41,989) | Z94: (44,204) | AA94: (46,500) | AB94: (48,878) | AC94: (51,342) | AD94: (53,897) | AE94: (56,545) | AF94: (59,291) | AG94: (55,421) | AH94: (57,777) | AI94: (60,170) | AJ94: (62,662) | AK94: (65,584) | AL94: 0 | AM94: 0 | AN94: =IF($G$334="Presumido",AN235,IF($G$334="Real",AN277,AN319)) -> 0 | AO94: 0 | AP94: 0 | AQ94: 0 | AR94: 0 | AS94: 0 | AT94: 0 | AU94: 0 | AV94: 0 | AW94: 0 | AX94: 0 | AY94: 0 | AZ94: 0 | BA94: 0 | BB94: 0 | BC94: 0 | BD94: 0 | BE94: 0 | BF94: 0 | BG94: 0 | BH94: 0 | BI94: 0 | BJ94: 0 | BK94: 0 | BL94: 0 | BM94: 0
B95: IRPJ | H95: =IF($G$334="Presumido",H236,IF($G$334="Real",H278,H320)) -> 0 | I95: 0 | J95: 0 | K95: 0 | L95: 0 | M95: (24,892) | N95: (23,222) | O95: (33,255) | P95: (42,060) | Q95: (50,959) | R95: (60,103) | S95: (65,036) | T95: (70,041) | U95: (75,218) | V95: (89,782) | W95: (104,729) | X95: (110,669) | Y95: (116,611) | Z95: (122,766) | AA95: (129,142) | AB95: (135,748) | AC95: (142,593) | AD95: (149,689) | AE95: (157,045) | AF95: (164,672) | AG95: (153,923) | AH95: (160,467) | AI95: (167,116) | AJ95: (174,036) | AK95: (182,154) | AL95: 0 | AM95: 0 | AN95: =IF($G$334="Presumido",AN236,IF($G$334="Real",AN278,AN320)) -> 0 | AO95: 0 | AP95: 0 | AQ95: 0 | AR95: 0 | AS95: 0 | AT95: 0 | AU95: 0 | AV95: 0 | AW95: 0 | AX95: 0 | AY95: 0 | AZ95: 0 | BA95: 0 | BB95: 0 | BC95: 0 | BD95: 0 | BE95: 0 | BF95: 0 | BG95: 0 | BH95: 0 | BI95: 0 | BJ95: 0 | BK95: 0 | BL95: 0 | BM95: 0
B97: Lucro líquido | H97: =H90+H93 -> 0 | I97: =I90+I93 -> 0 | J97: 0 | K97: (16,991) | L97: (79,962) | M97: 110,963 | N97: 107,350 | O97: 105,277 | P97: 111,126 | Q97: 134,618 | R97: 158,758 | S97: 171,783 | T97: 184,995 | U97: 198,662 | V97: 237,113 | W97: 276,573 | X97: 292,253 | Y97: 307,942 | Z97: 324,190 | AA97: 341,022 | AB97: 358,462 | AC97: 376,534 | AD97: 395,267 | AE97: 414,686 | AF97: 434,823 | AG97: 406,445 | AH97: 423,722 | AI97: 441,273 | AJ97: 459,543 | AK97: 480,974 | AL97: (15,814) | AM97: 0 | AN97: 0 | AO97: 0 | AP97: 0 | AQ97: 0 | AR97: 0 | AS97: 0 | AT97: 0 | AU97: 0 | AV97: 0 | AW97: 0 | AX97: 0 | AY97: 0 | AZ97: 0 | BA97: 0 | BB97: 0 | BC97: 0 | BD97: 0 | BE97: 0 | BF97: 0 | BG97: 0 | BH97: 0 | BI97: 0 | BJ97: 0 | BK97: 0 | BL97: 0 | BM97: 0 | BO97: =SUM(H97:BM97) -> 7,141,585
G100: ='Premissas do projeto'!F16 -> 2017 | H100: =G100+1 -> 2018 | I100: 2019 | J100: 2020 | K100: 2021 | L100: 2022 | M100: 2023 | N100: 2024 | O100: 2025 | P100: 2026 | Q100: 2027 | R100: 2028 | S100: 2029 | T100: 2030 | U100: 2031 | V100: 2032 | W100: 2033 | X100: 2034 | Y100: 2035 | Z100: 2036 | AA100: 2037 | AB100: 2038 | AC100: 2039 | AD100: 2040 | AE100: 2041 | AF100: 2042 | AG100: 2043 | AH100: 2044 | AI100: 2045 | AJ100: 2046 | AK100: 2047 | AL100: 2048 | AM100: 2049 | AN100: =AM100+1 -> 2050 | AO100: 2051 | AP100: 2052 | AQ100: 2053 | AR100: 2054 | AS100: 2055 | AT100: 2056 | AU100: 2057 | AV100: 2058 | AW100: 2059 | AX100: 2060 | AY100: 2061 | AZ100: 2062 | BA100: 2063 | BB100: 2064 | BC100: 2065 | BD100: 2066 | BE100: 2067 | BF100: 2068 | BG100: 2069 | BH100: 2070 | BI100: 2071 | BJ100: 2072 | BK100: 2073 | BL100: 2074 | BM100: 2075
B102: FLUXOS DE CAIXA PARA O PROJETO (Mil R$ NOMINAIS)
B104: Operações | H104: =SUM(H105:H107) -> 0 | I104: =SUM(I105:I107) -> 0 | J104: 0 | K104: (1,665) | L104: (29,865) | M104: 297,994 | N104: 292,058 | O104: 286,403 | P104: 288,669 | Q104: 291,093 | R104: 293,795 | S104: 302,858 | T104: 312,487 | U104: 322,572 | V104: 320,609 | W104: 318,875 | X104: 330,173 | Y104: 342,280 | Z104: 354,946 | AA104: 368,196 | AB104: 382,053 | AC104: 396,543 | AD104: 411,693 | AE104: 427,531 | AF104: 444,085 | AG104: 413,916 | AH104: 431,193 | AI104: 448,744 | AJ104: 467,014 | AK104: 484,788 | AL104: (15,814) | AM104: 0 | AN104: 0 | AO104: 0 | AP104: 0 | AQ104: 0 | AR104: 0 | AS104: 0 | AT104: 0 | AU104: 0 | AV104: 0 | AW104: 0 | AX104: 0 | AY104: 0 | AZ104: 0 | BA104: 0 | BB104: 0 | BC104: 0 | BD104: 0 | BE104: 0 | BF104: 0 | BG104: 0 | BH104: 0 | BI104: 0 | BJ104: 0 | BK104: 0 | BL104: 0 | BM104: 0 | BO104: =SUM(H104:BM104) -> 8,983,221
C105: Lucro líquido | H105: =H97 -> 0 | I105: =I97 -> 0 | J105: 0 | K105: (16,991) | L105: (79,962) | M105: 110,963 | N105: 107,350 | O105: 105,277 | P105: 111,126 | Q105: 134,618 | R105: 158,758 | S105: 171,783 | T105: 184,995 | U105: 198,662 | V105: 237,113 | W105: 276,573 | X105: 292,253 | Y105: 307,942 | Z105: 324,190 | AA105: 341,022 | AB105: 358,462 | AC105: 376,534 | AD105: 395,267 | AE105: 414,686 | AF105: 434,823 | AG105: 406,445 | AH105: 423,722 | AI105: 441,273 | AJ105: 459,543 | AK105: 480,974 | AL105: (15,814) | AM105: 0 | AN105: 0 | AO105: 0 | AP105: 0 | AQ105: 0 | AR105: 0 | AS105: 0 | AT105: 0 | AU105: 0 | AV105: 0 | AW105: 0 | AX105: 0 | AY105: 0 | AZ105: 0 | BA105: 0 | BB105: 0 | BC105: 0 | BD105: 0 | BE105: 0 | BF105: 0 | BG105: 0 | BH105: 0 | BI105: 0 | BJ105: 0 | BK105: 0 | BL105: 0 | BM105: 0
B106: - Juros acumulados | H106: =-H86 -> 0 | I106: =-I86 -> 0 | J106: 0 | K106: 15,326 | L106: 50,097 | M106: 69,854 | N106: 66,272 | O106: 62,690 | P106: 59,107 | Q106: 55,525 | R106: 51,943 | S106: 48,361 | T106: 44,778 | U106: 41,196 | V106: 37,614 | W106: 34,032 | X106: 30,449 | Y106: 26,867 | Z106: 23,285 | AA106: 19,702 | AB106: 16,120 | AC106: 12,538 | AD106: 8,956 | AE106: 5,373 | AF106: 1,791 | AG106: 0 | AH106: 0 | AI106: 0 | AJ106: 0 | AK106: 0 | AL106: 0 | AM106: 0 | AN106: 0 | AO106: 0 | AP106: 0 | AQ106: 0 | AR106: 0 | AS106: 0 | AT106: 0 | AU106: 0 | AV106: 0 | AW106: 0 | AX106: 0 | AY106: 0 | AZ106: 0 | BA106: 0 | BB106: 0 | BC106: 0 | BD106: 0 | BE106: 0 | BF106: 0 | BG106: 0 | BH106: 0 | BI106: 0 | BJ106: 0 | BK106: 0 | BL106: 0 | BM106: 0
B107: - Depreciação | H107: =-H72 -> 0 | I107: =-I72 -> 0 | J107: 0 | K107: 0 | L107: 0 | M107: 117,177 | N107: 118,436 | O107: 118,436 | P107: 118,436 | Q107: 100,950 | R107: 83,094 | S107: 82,714 | T107: 82,714 | U107: 82,714 | V107: 45,882 | W107: 8,271 | X107: 7,471 | Y107: 7,471 | Z107: 7,471 | AA107: 7,471 | AB107: 7,471 | AC107: 7,471 | AD107: 7,471 | AE107: 7,471 | AF107: 7,471 | AG107: 7,471 | AH107: 7,471 | AI107: 7,471 | AJ107: 7,471 | AK107: 3,814 | AL107: 0 | AM107: 0 | AN107: 0 | AO107: 0 | AP107: 0 | AQ107: 0 | AR107: 0 | AS107: 0 | AT107: 0 | AU107: 0 | AV107: 0 | AW107: 0 | AX107: 0 | AY107: 0 | AZ107: 0 | BA107: 0 | BB107: 0 | BC107: 0 | BD107: 0 | BE107: 0 | BF107: 0 | BG107: 0 | BH107: 0 | BI107: 0 | BJ107: 0 | BK107: 0 | BL107: 0 | BM107: 0
B109: Investmento | H109: =H111+H119+H125+H127+H131 -> 0 | I109: 0 | J109: (30,541) | K109: (549,890) | L109: (613,836) | M109: (187,098) | N109: (24,024) | O109: (25,108) | P109: (32,960) | Q109: (34,419) | R109: (35,940) | S109: (37,525) | T109: (39,176) | U109: (40,897) | V109: (42,690) | W109: (44,558) | X109: (46,504) | Y109: (48,533) | Z109: (50,646) | AA109: (52,849) | AB109: (55,144) | AC109: (57,535) | AD109: (60,027) | AE109: (62,623) | AF109: (50,699) | AG109: (69,939) | AH109: (72,876) | AI109: (61,249) | AJ109: (48,517) | AK109: (26,701) | AL109: 473,783 | AM109: 0 | AN109: =AN111+AN119+AN125+AN127+AN131 -> 0 | AO109: 0 | AP109: 0 | AQ109: 0 | AR109: 0 | AS109: 0 | AT109: 0 | AU109: 0 | AV109: 0 | AW109: 0 | AX109: 0 | AY109: 0 | AZ109: 0 | BA109: 0 | BB109: 0 | BC109: 0 | BD109: 0 | BE109: 0 | BF109: 0 | BG109: 0 | BH109: 0 | BI109: 0 | BJ109: 0 | BK109: 0 | BL109: 0 | BM109: 0 | BO109: =SUM(H109:BM109) -> (2,028,720)
B111: Investimento inicial | H111: =SUM(H112:H116) -> 0 | I111: 0 | J111: (30,541) | K111: (547,177) | L111: (558,755) | M111: (11,882) | N111: 0 | O111: 0 | P111: 0 | Q111: 0 | R111: 0 | S111: 0 | T111: 0 | U111: 0 | V111: 0 | W111: 0 | X111: 0 | Y111: 0 | Z111: 0 | AA111: 0 | AB111: 0 | AC111: 0 | AD111: 0 | AE111: 0 | AF111: 0 | AG111: 0 | AH111: 0 | AI111: 0 | AJ111: 0 | AK111: 0 | AL111: 0 | AM111: 0 | AN111: =SUM(AN112:AN116) -> 0 | AO111: 0 | AP111: 0 | AQ111: 0 | AR111: 0 | AS111: 0 | AT111: 0 | AU111: 0 | AV111: 0 | AW111: 0 | AX111: 0 | AY111: 0 | AZ111: 0 | BA111: 0 | BB111: 0 | BC111: 0 | BD111: 0 | BE111: 0 | BF111: 0 | BG111: 0 | BH111: 0 | BI111: 0 | BJ111: 0 | BK111: 0 | BL111: 0 | BM111: 0
C112: Desenvolvimemnto e licenciamento | H112: =-H364 -> 0 | I112: =-I364 -> 0 | J112: (30,541) | K112: 0 | L112: 0 | M112: 0 | N112: 0 | O112: =-O364 -> 0 | P112: 0 | Q112: =-Q364 -> 0 | R112: 0 | S112: 0 | T112: 0 | U112: 0 | V112: 0 | W112: 0 | X112: 0 | Y112: 0 | Z112: 0 | AA112: 0 | AB112: 0 | AC112: 0 | AD112: 0 | AE112: 0 | AF112: 0 | AG112: 0 | AH112: 0 | AI112: 0 | AJ112: 0 | AK112: 0 | AL112: 0 | AM112: 0 | AN112: 0 | AO112: 0 | AP112: 0 | AQ112: 0 | AR112: 0 | AS112: 0 | AT112: 0 | AU112: 0 | AV112: 0 | AW112: 0 | AX112: 0 | AY112: 0 | AZ112: 0 | BA112: 0 | BB112: 0 | BC112: 0 | BD112: 0 | BE112: 0 | BF112: 0 | BG112: 0 | BH112: 0 | BI112: 0 | BJ112: 0 | BK112: 0 | BL112: 0 | BM112: 0
C113: Construção cívil | H113: =-H366 -> 0 | I113: =-I366 -> 0 | J113: 0 | K113: (91,427) | L113: (93,362) | M113: (1,985) | N113: 0 | O113: =-O366 -> 0 | P113: 0 | Q113: =-Q366 -> 0 | R113: 0 | S113: 0 | T113: 0 | U113: 0 | V113: 0 | W113: 0 | X113: 0 | Y113: 0 | Z113: 0 | AA113: 0 | AB113: 0 | AC113: 0 | AD113: 0 | AE113: 0 | AF113: 0 | AG113: 0 | AH113: 0 | AI113: 0 | AJ113: 0 | AK113: 0 | AL113: 0 | AM113: 0 | AN113: 0 | AO113: 0 | AP113: 0 | AQ113: 0 | AR113: 0 | AS113: 0 | AT113: 0 | AU113: 0 | AV113: 0 | AW113: 0 | AX113: 0 | AY113: 0 | AZ113: 0 | BA113: 0 | BB113: 0 | BC113: 0 | BD113: 0 | BE113: 0 | BF113: 0 | BG113: 0 | BH113: 0 | BI113: 0 | BJ113: 0 | BK113: 0 | BL113: 0 | BM113: 0
C114: Equipamento fixo com montagem | H114: =-H367 -> 0 | I114: =-I367 -> 0 | J114: 0 | K114: (368,319) | L114: (376,113) | M114: (7,998) | N114: 0 | O114: =-O367 -> 0 | P114: 0 | Q114: =-Q367 -> 0 | R114: 0 | S114: 0 | T114: 0 | U114: 0 | V114: 0 | W114: 0 | X114: 0 | Y114: 0 | Z114: 0 | AA114: 0 | AB114: 0 | AC114: 0 | AD114: 0 | AE114: 0 | AF114: 0 | AG114: 0 | AH114: 0 | AI114: 0 | AJ114: 0 | AK114: 0 | AL114: 0 | AM114: 0 | AN114: 0 | AO114: 0 | AP114: 0 | AQ114: 0 | AR114: 0 | AS114: 0 | AT114: 0 | AU114: 0 | AV114: 0 | AW114: 0 | AX114: 0 | AY114: 0 | AZ114: 0 | BA114: 0 | BB114: 0 | BC114: 0 | BD114: 0 | BE114: 0 | BF114: 0 | BG114: 0 | BH114: 0 | BI114: 0 | BJ114: 0 | BK114: 0 | BL114: 0 | BM114: 0
C115: Equipamento móvel | H115: =-H368 -> 0 | I115: =-I368 -> 0 | J115: 0 | K115: (3,274) | L115: (3,344) | M115: (71) | N115: 0 | O115: =-O368 -> 0 | P115: 0 | Q115: =-Q368 -> 0 | R115: 0 | S115: 0 | T115: 0 | U115: 0 | V115: 0 | W115: 0 | X115: 0 | Y115: 0 | Z115: 0 | AA115: 0 | AB115: 0 | AC115: 0 | AD115: 0 | AE115: 0 | AF115: 0 | AG115: 0 | AH115: 0 | AI115: 0 | AJ115: 0 | AK115: 0 | AL115: 0 | AM115: 0 | AN115: 0 | AO115: 0 | AP115: 0 | AQ115: 0 | AR115: 0 | AS115: 0 | AT115: 0 | AU115: 0 | AV115: 0 | AW115: 0 | AX115: 0 | AY115: 0 | AZ115: 0 | BA115: 0 | BB115: 0 | BC115: 0 | BD115: 0 | BE115: 0 | BF115: 0 | BG115: 0 | BH115: 0 | BI115: 0 | BJ115: 0 | BK115: 0 | BL115: 0 | BM115: 0
C116: Custos indiretos | H116: =-H369 -> 0 | I116: =-I369 -> 0 | J116: 0 | K116: (84,156) | L116: (85,937) | M116: (1,827) | N116: 0 | O116: =-O369 -> 0 | P116: 0 | Q116: =-Q369 -> 0 | R116: 0 | S116: 0 | T116: 0 | U116: 0 | V116: 0 | W116: 0 | X116: 0 | Y116: 0 | Z116: 0 | AA116: 0 | AB116: 0 | AC116: 0 | AD116: 0 | AE116: 0 | AF116: 0 | AG116: 0 | AH116: 0 | AI116: 0 | AJ116: 0 | AK116: 0 | AL116: 0 | AM116: 0 | AN116: 0 | AO116: 0 | AP116: 0 | AQ116: 0 | AR116: 0 | AS116: 0 | AT116: 0 | AU116: 0 | AV116: 0 | AW116: 0 | AX116: 0 | AY116: 0 | AZ116: 0 | BA116: 0 | BB116: 0 | BC116: 0 | BD116: 0 | BE116: 0 | BF116: 0 | BG116: 0 | BH116: 0 | BI116: 0 | BJ116: 0 | BK116: 0 | BL116: 0 | BM116: 0
B119: Capital de giro | H119: =SUM(H120:H123) -> 0 | I119: =SUM(I120:I123) -> 0 | J119: 0 | K119: 0 | L119: (1,688) | M119: (164,888) | N119: (6,996) | O119: (7,290) | P119: (7,596) | Q119: (7,915) | R119: (8,248) | S119: (8,594) | T119: (8,955) | U119: (9,331) | V119: (9,723) | W119: (10,131) | X119: (10,557) | Y119: (11,000) | Z119: (11,462) | AA119: (11,944) | AB119: (12,445) | AC119: (12,968) | AD119: (13,513) | AE119: (14,080) | AF119: (14,672) | AG119: (15,288) | AH119: (15,930) | AI119: (16,599) | AJ119: (17,296) | AK119: (18,023) | AL119: 447,133 | AM119: 0 | AN119: 0 | AO119: 0 | AP119: 0 | AQ119: 0 | AR119: 0 | AS119: 0 | AT119: 0 | AU119: 0 | AV119: 0 | AW119: 0 | AX119: 0 | AY119: 0 | AZ119: 0 | BA119: 0 | BB119: 0 | BC119: 0 | BD119: 0 | BE119: 0 | BF119: 0 | BG119: 0 | BH119: 0 | BI119: 0 | BJ119: 0 | BK119: 0 | BL119: 0 | BM119: 0
C120: Estoques de madeira | F120: =F610 -> 18,635 | H120: =$F120*(G$12*G$19-H$12*H$19) -> 0 | I120: 0 | J120: 0 | K120: 0 | L120: 0 | M120: (23,852) | N120: (1,002) | O120: (1,044) | P120: (1,088) | Q120: (1,133) | R120: (1,181) | S120: (1,231) | T120: (1,282) | U120: (1,336) | V120: (1,392) | W120: (1,451) | X120: (1,512) | Y120: (1,575) | Z120: (1,641) | AA120: (1,710) | AB120: (1,782) | AC120: (1,857) | AD120: (1,935) | AE120: (2,016) | AF120: (2,101) | AG120: (2,189) | AH120: (2,281) | AI120: (2,377) | AJ120: (2,477) | AK120: (2,581) | AL120: 64,025 | AM120: 0 | AN120: =$F120*(AM$12*AM$19-AN$12*AN$19) -> 0 | AO120: 0 | AP120: 0 | AQ120: 0 | AR120: 0 | AS120: 0 | AT120: 0 | AU120: 0 | AV120: 0 | AW120: 0 | AX120: 0 | AY120: 0 | AZ120: 0 | BA120: 0 | BB120: 0 | BC120: 0 | BD120: 0 | BE120: 0 | BF120: 0 | BG120: 0 | BH120: 0 | BI120: 0 | BJ120: 0 | BK120: 0 | BL120: 0 | BM120: 0
C121: Estoques outros consumíveis | F121: =$F$45*'Premissas do projeto'!G45*30*24*('Premissas do projeto'!$G$81/12)/1000 -> 30,154 | H121: =$F121*(G$12*G$19-H$12*H$19) -> 0 | I121: 0 | J121: 0 | K121: 0 | L121: 0 | M121: (38,596) | N121: (1,621) | O121: (1,689) | P121: (1,760) | Q121: (1,834) | R121: (1,911) | S121: (1,991) | T121: (2,075) | U121: (2,162) | V121: (2,253) | W121: (2,348) | X121: (2,446) | Y121: (2,549) | Z121: (2,656) | AA121: (2,767) | AB121: (2,884) | AC121: (3,005) | AD121: (3,131) | AE121: (3,262) | AF121: (3,400) | AG121: (3,542) | AH121: (3,691) | AI121: (3,846) | AJ121: (4,008) | AK121: (4,176) | AL121: 103,603 | AM121: 0 | AN121: =$F121*(AM$12*AM$19-AN$12*AN$19) -> 0 | AO121: 0 | AP121: 0 | AQ121: 0 | AR121: 0 | AS121: 0 | AT121: 0 | AU121: 0 | AV121: 0 | AW121: 0 | AX121: 0 | AY121: 0 | AZ121: 0 | BA121: 0 | BB121: 0 | BC121: 0 | BD121: 0 | BE121: 0 | BF121: 0 | BG121: 0 | BH121: 0 | BI121: 0 | BJ121: 0 | BK121: 0 | BL121: 0 | BM121: 0
C122: Credito ao cliente | I122: =(H29-I29)*'Premissas do projeto'!$G$82/12 -> 0 | J122: =(I29-J29)*'Premissas do projeto'!$G$82/12 -> 0 | K122: =(J29-K29)*'Premissas do projeto'!$G$82/12 -> 0 | L122: =(K29-L29)*'Premissas do projeto'!$G$82/12 -> 0 | M122: =(L29-M29)*'Premissas do projeto'!$G$82/12 -> (92,143) | N122: =(M29-N29)*'Premissas do projeto'!$G$82/12 -> (3,870) | O122: =(N29-O29)*'Premissas do projeto'!$G$82/12 -> (4,033) | P122: =(O29-P29)*'Premissas do projeto'!$G$82/12 -> (4,202) | Q122: =(P29-Q29)*'Premissas do projeto'!$G$82/12 -> (4,378) | R122: =(Q29-R29)*'Premissas do projeto'!$G$82/12 -> (4,562) | S122: =(R29-S29)*'Premissas do projeto'!$G$82/12 -> (4,754) | T122: =(S29-T29)*'Premissas do projeto'!$G$82/12 -> (4,954) | U122: =(T29-U29)*'Premissas do projeto'!$G$82/12 -> (5,162) | V122: =(U29-V29)*'Premissas do projeto'!$G$82/12 -> (5,378) | W122: =(V29-W29)*'Premissas do projeto'!$G$82/12 -> (5,604) | X122: =(W29-X29)*'Premissas do projeto'!$G$82/12 -> (5,840) | Y122: =(X29-Y29)*'Premissas do projeto'!$G$82/12 -> (6,085) | Z122: =(Y29-Z29)*'Premissas do projeto'!$G$82/12 -> (6,340) | AA122: =(Z29-AA29)*'Premissas do projeto'!$G$82/12 -> (6,607) | AB122: =(AA29-AB29)*'Premissas do projeto'!$G$82/12 -> (6,884) | AC122: =(AB29-AC29)*'Premissas do projeto'!$G$82/12 -> (7,173) | AD122: =(AC29-AD29)*'Premissas do projeto'!$G$82/12 -> (7,475) | AE122: =(AD29-AE29)*'Premissas do projeto'!$G$82/12 -> (7,789) | AF122: =(AE29-AF29)*'Premissas do projeto'!$G$82/12 -> (8,116) | AG122: =(AF29-AG29)*'Premissas do projeto'!$G$82/12 -> (8,457) | AH122: =(AG29-AH29)*'Premissas do projeto'!$G$82/12 -> (8,812) | AI122: =(AH29-AI29)*'Premissas do projeto'!$G$82/12 -> (9,182) | AJ122: =(AI29-AJ29)*'Premissas do projeto'!$G$82/12 -> (9,568) | AK122: =(AJ29-AK29)*'Premissas do projeto'!$G$82/12 -> (9,969) | AL122: =(AK29-AL29)*'Premissas do projeto'!$G$82/12 -> 247,336 | AM122: =(AL29-AM29)*'Premissas do projeto'!$G$82/12 -> 0 | AN122: =(AM29-AN29)*'Premissas do projeto'!$G$82/12 -> 0 | AO122: =(AN29-AO29)*'Premissas do projeto'!$G$82/12 -> 0 | AP122: =(AO29-AP29)*'Premissas do projeto'!$G$82/12 -> 0 | AQ122: =(AP29-AQ29)*'Premissas do projeto'!$G$82/12 -> 0 | AR122: =(AQ29-AR29)*'Premissas do projeto'!$G$82/12 -> 0 | AS122: =(AR29-AS29)*'Premissas do projeto'!$G$82/12 -> 0 | AT122: =(AS29-AT29)*'Premissas do projeto'!$G$82/12 -> 0 | AU122: =(AT29-AU29)*'Premissas do projeto'!$G$82/12 -> 0 | AV122: =(AU29-AV29)*'Premissas do projeto'!$G$82/12 -> 0 | AW122: =(AV29-AW29)*'Premissas do projeto'!$G$82/12 -> 0 | AX122: =(AW29-AX29)*'Premissas do projeto'!$G$82/12 -> 0 | AY122: =(AX29-AY29)*'Premissas do projeto'!$G$82/12 -> 0 | AZ122: =(AY29-AZ29)*'Premissas do projeto'!$G$82/12 -> 0 | BA122: =(AZ29-BA29)*'Premissas do projeto'!$G$82/12 -> 0 | BB122: =(BA29-BB29)*'Premissas do projeto'!$G$82/12 -> 0 | BC122: =(BB29-BC29)*'Premissas do projeto'!$G$82/12 -> 0 | BD122: =(BC29-BD29)*'Premissas do projeto'!$G$82/12 -> 0 | BE122: =(BD29-BE29)*'Premissas do projeto'!$G$82/12 -> 0 | BF122: =(BE29-BF29)*'Premissas do projeto'!$G$82/12 -> 0 | BG122: =(BF29-BG29)*'Premissas do projeto'!$G$82/12 -> 0 | BH122: =(BG29-BH29)*'Premissas do projeto'!$G$82/12 -> 0 | BI122: =(BH29-BI29)*'Premissas do projeto'!$G$82/12 -> 0 | BJ122: =(BI29-BJ29)*'Premissas do projeto'!$G$82/12 -> 0 | BK122: =(BJ29-BK29)*'Premissas do projeto'!$G$82/12 -> 0 | BL122: =(BK29-BL29)*'Premissas do projeto'!$G$82/12 -> 0 | BM122: =(BL29-BM29)*'Premissas do projeto'!$G$82/12 -> 0
